Workbook

Sheet Magazyn Danych
H3: raport jest częścią książki
A4: Firma: | B4: =JPK_KR!L2 -> Firma TESTOWA | H4: Księgowa analiza danych zawartych w JPK. Raporty w arkuszach Excel Wydawnictwo C. H. BECK
H6: Autor: Magdalena Chomuszko
H9: Instrukcja obsługi raportu znajduje się w w/w książce
C12: Magazyn Danych Księgowych
C14: Okres | D14: =JPK_KR!G2 -> 2018-01-01 | E14: do | F14: =JPK_KR!H2 -> 2018-01-31

Sheet ZOiS_A
A1: Data Od | B1: =ZOiS!B1 -> 2018-01-01 | C1: =ROUND(SUM(ZOiS!B5:B40000),2) -> 0 | D1: =ROUND(SUM(ZOiS!C5:C40000),2) -> 0 | E1: =ROUND(SUM(ZOiS!D5:D40000),2) -> 52453.93 | F1: =ROUND(SUM(ZOiS!E5:E40000),2) -> 52453.93 | G1: =ROUND(SUM(ZOiS!F5:F40000),2) -> 52453.93 | H1: =ROUND(SUM(ZOiS!G5:G40000),2) -> 52453.93 | I1: =ROUND(SUM(ZOiS!H5:H40000),2) -> 52453.93 | J1: =ROUND(SUM(ZOiS!I5:I40000),2) -> 52453.93 | K1: ZOiS
A2: Data Do | B2: =ZOiS!B2 -> 2018-01-31
B3: SUMA | C3: =ROUND(SUM(C5:C1000),2) -> 0 | D3: 0 | E3: 52453.93 | F3: 52453.93 | G3: 52453.93 | H3: 52453.93 | I3: 52453.93 | J3: 52453.93
A4: Konto | B4: Opis | C4: BO Wn | D4: BO Ma | E4: Obroty Wn | F4: Obroty Ma | G4: Obroty Wn Narastająco | H4: Obroty Ma Narastająco | I4: Saldo Wn | J4: Saldo Ma
A5: =IF(parametry!I2<>"",parametry!I2,"") -> 070 | B5: =IF(A5<>"",parametry!J2,"") -> Umorzenie środków trwałych | C5: =IF(A5<>"",SUMIFS(JPK_KR!AD:AD,JPK_KR!V:V,parametry!G2),"") -> 0 | D5: =IF(A5<>"",SUMIFS(JPK_KR!AE:AE,JPK_KR!V:V,parametry!G2),"") -> 0 | E5: =IF(A5<>"",SUMIFS(JPK_KR!AF:AF,JPK_KR!V:V,parametry!G2),"") -> 0 | F5: =IF(A5<>"",SUMIFS(JPK_KR!AG:AG,JPK_KR!V:V,parametry!G2),"") -> 1443 | G5: =IF(A5<>"",SUMIFS(JPK_KR!AH:AH,JPK_KR!V:V,parametry!G2),"") -> 0 | H5: =IF(A5<>"",SUMIFS(JPK_KR!AI:AI,JPK_KR!V:V,parametry!G2),"") -> 1443 | I5: =IF(A5<>"",SUMIFS(JPK_KR!AJ:AJ,JPK_KR!V:V,parametry!G2),"") -> 0 | J5: =IF(A5<>"",SUMIFS(JPK_KR!AK:AK,JPK_KR!V:V,parametry!G2),"") -> 1443
A6: =IF(parametry!I3<>"",parametry!I3,"") -> 201 | B6: =IF(A6<>"",parametry!J3,"") -> Rozrachunki krajowe z odbiorcami z tytułu dostaw i usług | C6: =IF(A6<>"",SUMIFS(JPK_KR!AD:AD,JPK_KR!V:V,parametry!G3),"") -> 0 | D6: =IF(A6<>"",SUMIFS(JPK_KR!AE:AE,JPK_KR!V:V,parametry!G3),"") -> 0 | E6: =IF(A6<>"",SUMIFS(JPK_KR!AF:AF,JPK_KR!V:V,parametry!G3),"") -> 34304.7 | F6: =IF(A6<>"",SUMIFS(JPK_KR!AG:AG,JPK_KR!V:V,parametry!G3),"") -> 0 | G6: =IF(A6<>"",SUMIFS(JPK_KR!AH:AH,JPK_KR!V:V,parametry!G3),"") -> 34304.7 | H6: =IF(A6<>"",SUMIFS(JPK_KR!AI:AI,JPK_KR!V:V,parametry!G3),"") -> 0 | I6: =IF(A6<>"",SUMIFS(JPK_KR!AJ:AJ,JPK_KR!V:V,parametry!G3),"") -> 34304.7 | J6: =IF(A6<>"",SUMIFS(JPK_KR!AK:AK,JPK_KR!V:V,parametry!G3),"") -> 0
A7: =IF(parametry!I4<>"",parametry!I4,"") -> 202 | B7: =IF(A7<>"",parametry!J4,"") -> Rozrachunki krajowe z dostawcami z tytułu dostaw i usług | C7: =IF(A7<>"",SUMIFS(JPK_KR!AD:AD,JPK_KR!V:V,parametry!G4),"") -> 0 | D7: =IF(A7<>"",SUMIFS(JPK_KR!AE:AE,JPK_KR!V:V,parametry!G4),"") -> 0 | E7: =IF(A7<>"",SUMIFS(JPK_KR!AF:AF,JPK_KR!V:V,parametry!G4),"") -> 0 | F7: =IF(A7<>"",SUMIFS(JPK_KR!AG:AG,JPK_KR!V:V,parametry!G4),"") -> 3522.23 | G7: =IF(A7<>"",SUMIFS(JPK_KR!AH:AH,JPK_KR!V:V,parametry!G4),"") -> 0 | H7: =IF(A7<>"",SUMIFS(JPK_KR!AI:AI,JPK_KR!V:V,parametry!G4),"") -> 3522.23 | I7: =IF(A7<>"",SUMIFS(JPK_KR!AJ:AJ,JPK_KR!V:V,parametry!G4),"") -> 0 | J7: =IF(A7<>"",SUMIFS(JPK_KR!AK:AK,JPK_KR!V:V,parametry!G4),"") -> 3522.23
A8: =IF(parametry!I5<>"",parametry!I5,"") -> 220 | B8: =IF(A8<>"",parametry!J5,"") -> Rozrachunki publicznoprawne | C8: =IF(A8<>"",SUMIFS(JPK_KR!AD:AD,JPK_KR!V:V,parametry!G5),"") -> 0 | D8: =IF(A8<>"",SUMIFS(JPK_KR!AE:AE,JPK_KR!V:V,parametry!G5),"") -> 0 | E8: =IF(A8<>"",SUMIFS(JPK_KR!AF:AF,JPK_KR!V:V,parametry!G5),"") -> 0 | F8: =IF(A8<>"",SUMIFS(JPK_KR!AG:AG,JPK_KR!V:V,parametry!G5),"") -> 1286 | G8: =IF(A8<>"",SUMIFS(JPK_KR!AH:AH,JPK_KR!V:V,parametry!G5),"") -> 0 | H8: =IF(A8<>"",SUMIFS(JPK_KR!AI:AI,JPK_KR!V:V,parametry!G5),"") -> 1286 | I8: =IF(A8<>"",SUMIFS(JPK_KR!AJ:AJ,JPK_KR!V:V,parametry!G5),"") -> 0 | J8: =IF(A8<>"",SUMIFS(JPK_KR!AK:AK,JPK_KR!V:V,parametry!G5),"") -> 1286
A9: =IF(parametry!I6<>"",parametry!I6,"") -> 221-1 | B9: =IF(A9<>"",parametry!J6,"") -> Rozliczenie należnego VAT | C9: =IF(A9<>"",SUMIFS(JPK_KR!AD:AD,JPK_KR!V:V,parametry!G6),"") -> 0 | D9: =IF(A9<>"",SUMIFS(JPK_KR!AE:AE,JPK_KR!V:V,parametry!G6),"") -> 0 | E9: =IF(A9<>"",SUMIFS(JPK_KR!AF:AF,JPK_KR!V:V,parametry!G6),"") -> 0 | F9: =IF(A9<>"",SUMIFS(JPK_KR!AG:AG,JPK_KR!V:V,parametry!G6),"") -> 6414.7 | G9: =IF(A9<>"",SUMIFS(JPK_KR!AH:AH,JPK_KR!V:V,parametry!G6),"") -> 0 | H9: =IF(A9<>"",SUMIFS(JPK_KR!AI:AI,JPK_KR!V:V,parametry!G6),"") -> 6414.7 | I9: =IF(A9<>"",SUMIFS(JPK_KR!AJ:AJ,JPK_KR!V:V,parametry!G6),"") -> 0 | J9: =IF(A9<>"",SUMIFS(JPK_KR!AK:AK,JPK_KR!V:V,parametry!G6),"") -> 6414.7
A10: =IF(parametry!I7<>"",parametry!I7,"") -> 221-2 | B10: =IF(A10<>"",parametry!J7,"") -> Rozliczenie naliczonego VAT | C10: =IF(A10<>"",SUMIFS(JPK_KR!AD:AD,JPK_KR!V:V,parametry!G7),"") -> 0 | D10: =IF(A10<>"",SUMIFS(JPK_KR!AE:AE,JPK_KR!V:V,parametry!G7),"") -> 0 | E10: =IF(A10<>"",SUMIFS(JPK_KR!AF:AF,JPK_KR!V:V,parametry!G7),"") -> 658.63 | F10: =IF(A10<>"",SUMIFS(JPK_KR!AG:AG,JPK_KR!V:V,parametry!G7),"") -> 0 | G10: =IF(A10<>"",SUMIFS(JPK_KR!AH:AH,JPK_KR!V:V,parametry!G7),"") -> 658.63 | H10: =IF(A10<>"",SUMIFS(JPK_KR!AI:AI,JPK_KR!V:V,parametry!G7),"") -> 0 | I10: =IF(A10<>"",SUMIFS(JPK_KR!AJ:AJ,JPK_KR!V:V,parametry!G7),"") -> 658.63 | J10: =IF(A10<>"",SUMIFS(JPK_KR!AK:AK,JPK_KR!V:V,parametry!G7),"") -> 0
A11: =IF(parametry!I8<>"",parametry!I8,"") -> 230 | B11: =IF(A11<>"",parametry!J8,"") -> Rozrachunki z tytułu wypłat wynagrodzeń | C11: =IF(A11<>"",SUMIFS(JPK_KR!AD:AD,JPK_KR!V:V,parametry!G8),"") -> 0 | D11: =IF(A11<>"",SUMIFS(JPK_KR!AE:AE,JPK_KR!V:V,parametry!G8),"") -> 0 | E11: =IF(A11<>"",SUMIFS(JPK_KR!AF:AF,JPK_KR!V:V,parametry!G8),"") -> 0 | F11: =IF(A11<>"",SUMIFS(JPK_KR!AG:AG,JPK_KR!V:V,parametry!G8),"") -> 11898 | G11: =IF(A11<>"",SUMIFS(JPK_KR!AH:AH,JPK_KR!V:V,parametry!G8),"") -> 0 | H11: =IF(A11<>"",SUMIFS(JPK_KR!AI:AI,JPK_KR!V:V,parametry!G8),"") -> 11898 | I11: =IF(A11<>"",SUMIFS(JPK_KR!AJ:AJ,JPK_KR!V:V,parametry!G8),"") -> 0 | J11: =IF(A11<>"",SUMIFS(JPK_KR!AK:AK,JPK_KR!V:V,parametry!G8),"") -> 11898
A12: =IF(parametry!I9<>"",parametry!I9,"") -> 401-1 | B12: =IF(A12<>"",parametry!J9,"") -> Amortyzacja | C12: =IF(A12<>"",SUMIFS(JPK_KR!AD:AD,JPK_KR!V:V,parametry!G9),"") -> 0 | D12: =IF(A12<>"",SUMIFS(JPK_KR!AE:AE,JPK_KR!V:V,parametry!G9),"") -> 0 | E12: =IF(A12<>"",SUMIFS(JPK_KR!AF:AF,JPK_KR!V:V,parametry!G9),"") -> 1443 | F12: =IF(A12<>"",SUMIFS(JPK_KR!AG:AG,JPK_KR!V:V,parametry!G9),"") -> 0 | G12: =IF(A12<>"",SUMIFS(JPK_KR!AH:AH,JPK_KR!V:V,parametry!G9),"") -> 1443 | H12: =IF(A12<>"",SUMIFS(JPK_KR!AI:AI,JPK_KR!V:V,parametry!G9),"") -> 0 | I12: =IF(A12<>"",SUMIFS(JPK_KR!AJ:AJ,JPK_KR!V:V,parametry!G9),"") -> 1443 | J12: =IF(A12<>"",SUMIFS(JPK_KR!AK:AK,JPK_KR!V:V,parametry!G9),"") -> 0
A13: =IF(parametry!I10<>"",parametry!I10,"") -> 403-1 | B13: =IF(A13<>"",parametry!J10,"") -> Usługi obceUsługi telekomunikacyjne | C13: =IF(A13<>"",SUMIFS(JPK_KR!AD:AD,JPK_KR!V:V,parametry!G10),"") -> 0 | D13: =IF(A13<>"",SUMIFS(JPK_KR!AE:AE,JPK_KR!V:V,parametry!G10),"") -> 0 | E13: =IF(A13<>"",SUMIFS(JPK_KR!AF:AF,JPK_KR!V:V,parametry!G10),"") -> 501 | F13: =IF(A13<>"",SUMIFS(JPK_KR!AG:AG,JPK_KR!V:V,parametry!G10),"") -> 0 | G13: =IF(A13<>"",SUMIFS(JPK_KR!AH:AH,JPK_KR!V:V,parametry!G10),"") -> 501 | H13: =IF(A13<>"",SUMIFS(JPK_KR!AI:AI,JPK_KR!V:V,parametry!G10),"") -> 0 | I13: =IF(A13<>"",SUMIFS(JPK_KR!AJ:AJ,JPK_KR!V:V,parametry!G10),"") -> 501 | J13: =IF(A13<>"",SUMIFS(JPK_KR!AK:AK,JPK_KR!V:V,parametry!G10),"") -> 0
A14: =IF(parametry!I11<>"",parametry!I11,"") -> 403-7 | B14: =IF(A14<>"",parametry!J11,"") -> Usługi obceleasing | C14: =IF(A14<>"",SUMIFS(JPK_KR!AD:AD,JPK_KR!V:V,parametry!G11),"") -> 0 | D14: =IF(A14<>"",SUMIFS(JPK_KR!AE:AE,JPK_KR!V:V,parametry!G11),"") -> 0 | E14: =IF(A14<>"",SUMIFS(JPK_KR!AF:AF,JPK_KR!V:V,parametry!G11),"") -> 1162.6 | F14: =IF(A14<>"",SUMIFS(JPK_KR!AG:AG,JPK_KR!V:V,parametry!G11),"") -> 0 | G14: =IF(A14<>"",SUMIFS(JPK_KR!AH:AH,JPK_KR!V:V,parametry!G11),"") -> 1162.6 | H14: =IF(A14<>"",SUMIFS(JPK_KR!AI:AI,JPK_KR!V:V,parametry!G11),"") -> 0 | I14: =IF(A14<>"",SUMIFS(JPK_KR!AJ:AJ,JPK_KR!V:V,parametry!G11),"") -> 1162.6 | J14: =IF(A14<>"",SUMIFS(JPK_KR!AK:AK,JPK_KR!V:V,parametry!G11),"") -> 0
A15: =IF(parametry!I12<>"",parametry!I12,"") -> 403-8 | B15: =IF(A15<>"",parametry!J12,"") -> Usługi obceczynsz | C15: =IF(A15<>"",SUMIFS(JPK_KR!AD:AD,JPK_KR!V:V,parametry!G12),"") -> 0 | D15: =IF(A15<>"",SUMIFS(JPK_KR!AE:AE,JPK_KR!V:V,parametry!G12),"") -> 0 | E15: =IF(A15<>"",SUMIFS(JPK_KR!AF:AF,JPK_KR!V:V,parametry!G12),"") -> 1200 | F15: =IF(A15<>"",SUMIFS(JPK_KR!AG:AG,JPK_KR!V:V,parametry!G12),"") -> 0 | G15: =IF(A15<>"",SUMIFS(JPK_KR!AH:AH,JPK_KR!V:V,parametry!G12),"") -> 1200 | H15: =IF(A15<>"",SUMIFS(JPK_KR!AI:AI,JPK_KR!V:V,parametry!G12),"") -> 0 | I15: =IF(A15<>"",SUMIFS(JPK_KR!AJ:AJ,JPK_KR!V:V,parametry!G12),"") -> 1200 | J15: =IF(A15<>"",SUMIFS(JPK_KR!AK:AK,JPK_KR!V:V,parametry!G12),"") -> 0
A16: =IF(parametry!I13<>"",parametry!I13,"") -> 405 | B16: =IF(A16<>"",parametry!J13,"") -> Wynagrodzenia | C16: =IF(A16<>"",SUMIFS(JPK_KR!AD:AD,JPK_KR!V:V,parametry!G13),"") -> 0 | D16: =IF(A16<>"",SUMIFS(JPK_KR!AE:AE,JPK_KR!V:V,parametry!G13),"") -> 0 | E16: =IF(A16<>"",SUMIFS(JPK_KR!AF:AF,JPK_KR!V:V,parametry!G13),"") -> 11898 | F16: =IF(A16<>"",SUMIFS(JPK_KR!AG:AG,JPK_KR!V:V,parametry!G13),"") -> 0 | G16: =IF(A16<>"",SUMIFS(JPK_KR!AH:AH,JPK_KR!V:V,parametry!G13),"") -> 11898 | H16: =IF(A16<>"",SUMIFS(JPK_KR!AI:AI,JPK_KR!V:V,parametry!G13),"") -> 0 | I16: =IF(A16<>"",SUMIFS(JPK_KR!AJ:AJ,JPK_KR!V:V,parametry!G13),"") -> 11898 | J16: =IF(A16<>"",SUMIFS(JPK_KR!AK:AK,JPK_KR!V:V,parametry!G13),"") -> 0
A17: =IF(parametry!I14<>"",parametry!I14,"") -> 406 | B17: =IF(A17<>"",parametry!J14,"") -> Ubezpieczenia społeczne i inne świadczenia | C17: =IF(A17<>"",SUMIFS(JPK_KR!AD:AD,JPK_KR!V:V,parametry!G14),"") -> 0 | D17: =IF(A17<>"",SUMIFS(JPK_KR!AE:AE,JPK_KR!V:V,parametry!G14),"") -> 0 | E17: =IF(A17<>"",SUMIFS(JPK_KR!AF:AF,JPK_KR!V:V,parametry!G14),"") -> 1286 | F17: =IF(A17<>"",SUMIFS(JPK_KR!AG:AG,JPK_KR!V:V,parametry!G14),"") -> 0 | G17: =IF(A17<>"",SUMIFS(JPK_KR!AH:AH,JPK_KR!V:V,parametry!G14),"") -> 1286 | H17: =IF(A17<>"",SUMIFS(JPK_KR!AI:AI,JPK_KR!V:V,parametry!G14),"") -> 0 | I17: =IF(A17<>"",SUMIFS(JPK_KR!AJ:AJ,JPK_KR!V:V,parametry!G14),"") -> 1286 | J17: =IF(A17<>"",SUMIFS(JPK_KR!AK:AK,JPK_KR!V:V,parametry!G14),"") -> 0
A18: =IF(parametry!I15<>"",parametry!I15,"") -> 702 | B18: =IF(A18<>"",parametry!J15,"") -> Sprzedaż usług działalności podstawowej | C18: =IF(A18<>"",SUMIFS(JPK_KR!AD:AD,JPK_KR!V:V,parametry!G15),"") -> 0 | D18: =IF(A18<>"",SUMIFS(JPK_KR!AE:AE,JPK_KR!V:V,parametry!G15),"") -> 0 | E18: =IF(A18<>"",SUMIFS(JPK_KR!AF:AF,JPK_KR!V:V,parametry!G15),"") -> 0 | F18: =IF(A18<>"",SUMIFS(JPK_KR!AG:AG,JPK_KR!V:V,parametry!G15),"") -> 27890 | G18: =IF(A18<>"",SUMIFS(JPK_KR!AH:AH,JPK_KR!V:V,parametry!G15),"") -> 0 | H18: =IF(A18<>"",SUMIFS(JPK_KR!AI:AI,JPK_KR!V:V,parametry!G15),"") -> 27890 | I18: =IF(A18<>"",SUMIFS(JPK_KR!AJ:AJ,JPK_KR!V:V,parametry!G15),"") -> 0 | J18: =IF(A18<>"",SUMIFS(JPK_KR!AK:AK,JPK_KR!V:V,parametry!G15),"") -> 27890
A19: =IF(parametry!I16<>"",parametry!I16,"") -> (puste) | B19: =IF(A19<>"",parametry!J16,"") ->  | C19: =IF(A19<>"",SUMIFS(JPK_KR!AD:AD,JPK_KR!V:V,parametry!G16),"") -> 0 | D19: =IF(A19<>"",SUMIFS(JPK_KR!AE:AE,JPK_KR!V:V,parametry!G16),"") -> 0 | E19: =IF(A19<>"",SUMIFS(JPK_KR!AF:AF,JPK_KR!V:V,parametry!G16),"") -> 0 | F19: =IF(A19<>"",SUMIFS(JPK_KR!AG:AG,JPK_KR!V:V,parametry!G16),"") -> 0 | G19: =IF(A19<>"",SUMIFS(JPK_KR!AH:AH,JPK_KR!V:V,parametry!G16),"") -> 0 | H19: =IF(A19<>"",SUMIFS(JPK_KR!AI:AI,JPK_KR!V:V,parametry!G16),"") -> 0 | I19: =IF(A19<>"",SUMIFS(JPK_KR!AJ:AJ,JPK_KR!V:V,parametry!G16),"") -> 0 | J19: =IF(A19<>"",SUMIFS(JPK_KR!AK:AK,JPK_KR!V:V,parametry!G16),"") -> 0
A20: =IF(parametry!I17<>"",parametry!I17,"") ->  | B20: =IF(A20<>"",parametry!J17,"") ->  | C20: =IF(A20<>"",SUMIFS(JPK_KR!AD:AD,JPK_KR!V:V,parametry!G17),"") ->  | D20: =IF(A20<>"",SUMIFS(JPK_KR!AE:AE,JPK_KR!V:V,parametry!G17),"") ->  | E20: =IF(A20<>"",SUMIFS(JPK_KR!AF:AF,JPK_KR!V:V,parametry!G17),"") ->  | F20: =IF(A20<>"",SUMIFS(JPK_KR!AG:AG,JPK_KR!V:V,parametry!G17),"") ->  | G20: =IF(A20<>"",SUMIFS(JPK_KR!AH:AH,JPK_KR!V:V,parametry!G17),"") ->  | H20: =IF(A20<>"",SUMIFS(JPK_KR!AI:AI,JPK_KR!V:V,parametry!G17),"") ->  | I20: =IF(A20<>"",SUMIFS(JPK_KR!AJ:AJ,JPK_KR!V:V,parametry!G17),"") ->  | J20: =IF(A20<>"",SUMIFS(JPK_KR!AK:AK,JPK_KR!V:V,parametry!G17),"") -> 
A21: =IF(parametry!I18<>"",parametry!I18,"") ->  | B21: =IF(A21<>"",parametry!J18,"") ->  | C21: =IF(A21<>"",SUMIFS(JPK_KR!AD:AD,JPK_KR!V:V,parametry!G18),"") ->  | D21: =IF(A21<>"",SUMIFS(JPK_KR!AE:AE,JPK_KR!V:V,parametry!G18),"") ->  | E21: =IF(A21<>"",SUMIFS(JPK_KR!AF:AF,JPK_KR!V:V,parametry!G18),"") ->  | F21: =IF(A21<>"",SUMIFS(JPK_KR!AG:AG,JPK_KR!V:V,parametry!G18),"") ->  | G21: =IF(A21<>"",SUMIFS(JPK_KR!AH:AH,JPK_KR!V:V,parametry!G18),"") ->  | H21: =IF(A21<>"",SUMIFS(JPK_KR!AI:AI,JPK_KR!V:V,parametry!G18),"") ->  | I21: =IF(A21<>"",SUMIFS(JPK_KR!AJ:AJ,JPK_KR!V:V,parametry!G18),"") ->  | J21: =IF(A21<>"",SUMIFS(JPK_KR!AK:AK,JPK_KR!V:V,parametry!G18),"") -> 
A22: =IF(parametry!I19<>"",parametry!I19,"") ->  | B22: =IF(A22<>"",parametry!J19,"") ->  | C22: =IF(A22<>"",SUMIFS(JPK_KR!AD:AD,JPK_KR!V:V,parametry!G19),"") ->  | D22: =IF(A22<>"",SUMIFS(JPK_KR!AE:AE,JPK_KR!V:V,parametry!G19),"") ->  | E22: =IF(A22<>"",SUMIFS(JPK_KR!AF:AF,JPK_KR!V:V,parametry!G19),"") ->  | F22: =IF(A22<>"",SUMIFS(JPK_KR!AG:AG,JPK_KR!V:V,parametry!G19),"") ->  | G22: =IF(A22<>"",SUMIFS(JPK_KR!AH:AH,JPK_KR!V:V,parametry!G19),"") ->  | H22: =IF(A22<>"",SUMIFS(JPK_KR!AI:AI,JPK_KR!V:V,parametry!G19),"") ->  | I22: =IF(A22<>"",SUMIFS(JPK_KR!AJ:AJ,JPK_KR!V:V,parametry!G19),"") ->  | J22: =IF(A22<>"",SUMIFS(JPK_KR!AK:AK,JPK_KR!V:V,parametry!G19),"") -> 
A23: =IF(parametry!I20<>"",parametry!I20,"") ->  | B23: =IF(A23<>"",parametry!J20,"") ->  | C23: =IF(A23<>"",SUMIFS(JPK_KR!AD:AD,JPK_KR!V:V,parametry!G20),"") ->  | D23: =IF(A23<>"",SUMIFS(JPK_KR!AE:AE,JPK_KR!V:V,parametry!G20),"") ->  | E23: =IF(A23<>"",SUMIFS(JPK_KR!AF:AF,JPK_KR!V:V,parametry!G20),"") ->  | F23: =IF(A23<>"",SUMIFS(JPK_KR!AG:AG,JPK_KR!V:V,parametry!G20),"") ->  | G23: =IF(A23<>"",SUMIFS(JPK_KR!AH:AH,JPK_KR!V:V,parametry!G20),"") ->  | H23: =IF(A23<>"",SUMIFS(JPK_KR!AI:AI,JPK_KR!V:V,parametry!G20),"") ->  | I23: =IF(A23<>"",SUMIFS(JPK_KR!AJ:AJ,JPK_KR!V:V,parametry!G20),"") ->  | J23: =IF(A23<>"",SUMIFS(JPK_KR!AK:AK,JPK_KR!V:V,parametry!G20),"") -> 
A24: =IF(parametry!I21<>"",parametry!I21,"") ->  | B24: =IF(A24<>"",parametry!J21,"") ->  | C24: =IF(A24<>"",SUMIFS(JPK_KR!AD:AD,JPK_KR!V:V,parametry!G21),"") ->  | D24: =IF(A24<>"",SUMIFS(JPK_KR!AE:AE,JPK_KR!V:V,parametry!G21),"") ->  | E24: =IF(A24<>"",SUMIFS(JPK_KR!AF:AF,JPK_KR!V:V,parametry!G21),"") ->  | F24: =IF(A24<>"",SUMIFS(JPK_KR!AG:AG,JPK_KR!V:V,parametry!G21),"") ->  | G24: =IF(A24<>"",SUMIFS(JPK_KR!AH:AH,JPK_KR!V:V,parametry!G21),"") ->  | H24: =IF(A24<>"",SUMIFS(JPK_KR!AI:AI,JPK_KR!V:V,parametry!G21),"") ->  | I24: =IF(A24<>"",SUMIFS(JPK_KR!AJ:AJ,JPK_KR!V:V,parametry!G21),"") ->  | J24: =IF(A24<>"",SUMIFS(JPK_KR!AK:AK,JPK_KR!V:V,parametry!G21),"") -> 
A25: =IF(parametry!I22<>"",parametry!I22,"") ->  | B25: =IF(A25<>"",parametry!J22,"") ->  | C25: =IF(A25<>"",SUMIFS(JPK_KR!AD:AD,JPK_KR!V:V,parametry!G22),"") ->  | D25: =IF(A25<>"",SUMIFS(JPK_KR!AE:AE,JPK_KR!V:V,parametry!G22),"") ->  | E25: =IF(A25<>"",SUMIFS(JPK_KR!AF:AF,JPK_KR!V:V,parametry!G22),"") ->  | F25: =IF(A25<>"",SUMIFS(JPK_KR!AG:AG,JPK_KR!V:V,parametry!G22),"") ->  | G25: =IF(A25<>"",SUMIFS(JPK_KR!AH:AH,JPK_KR!V:V,parametry!G22),"") ->  | H25: =IF(A25<>"",SUMIFS(JPK_KR!AI:AI,JPK_KR!V:V,parametry!G22),"") ->  | I25: =IF(A25<>"",SUMIFS(JPK_KR!AJ:AJ,JPK_KR!V:V,parametry!G22),"") ->  | J25: =IF(A25<>"",SUMIFS(JPK_KR!AK:AK,JPK_KR!V:V,parametry!G22),"") -> 
A26: =IF(parametry!I23<>"",parametry!I23,"") ->  | B26: =IF(A26<>"",parametry!J23,"") ->  | C26: =IF(A26<>"",SUMIFS(JPK_KR!AD:AD,JPK_KR!V:V,parametry!G23),"") ->  | D26: =IF(A26<>"",SUMIFS(JPK_KR!AE:AE,JPK_KR!V:V,parametry!G23),"") ->  | E26: =IF(A26<>"",SUMIFS(JPK_KR!AF:AF,JPK_KR!V:V,parametry!G23),"") ->  | F26: =IF(A26<>"",SUMIFS(JPK_KR!AG:AG,JPK_KR!V:V,parametry!G23),"") ->  | G26: =IF(A26<>"",SUMIFS(JPK_KR!AH:AH,JPK_KR!V:V,parametry!G23),"") ->  | H26: =IF(A26<>"",SUMIFS(JPK_KR!AI:AI,JPK_KR!V:V,parametry!G23),"") ->  | I26: =IF(A26<>"",SUMIFS(JPK_KR!AJ:AJ,JPK_KR!V:V,parametry!G23),"") ->  | J26: =IF(A26<>"",SUMIFS(JPK_KR!AK:AK,JPK_KR!V:V,parametry!G23),"") -> 
A27: =IF(parametry!I24<>"",parametry!I24,"") ->  | B27: =IF(A27<>"",parametry!J24,"") ->  | C27: =IF(A27<>"",SUMIFS(JPK_KR!AD:AD,JPK_KR!V:V,parametry!G24),"") ->  | D27: =IF(A27<>"",SUMIFS(JPK_KR!AE:AE,JPK_KR!V:V,parametry!G24),"") ->  | E27: =IF(A27<>"",SUMIFS(JPK_KR!AF:AF,JPK_KR!V:V,parametry!G24),"") ->  | F27: =IF(A27<>"",SUMIFS(JPK_KR!AG:AG,JPK_KR!V:V,parametry!G24),"") ->  | G27: =IF(A27<>"",SUMIFS(JPK_KR!AH:AH,JPK_KR!V:V,parametry!G24),"") ->  | H27: =IF(A27<>"",SUMIFS(JPK_KR!AI:AI,JPK_KR!V:V,parametry!G24),"") ->  | I27: =IF(A27<>"",SUMIFS(JPK_KR!AJ:AJ,JPK_KR!V:V,parametry!G24),"") ->  | J27: =IF(A27<>"",SUMIFS(JPK_KR!AK:AK,JPK_KR!V:V,parametry!G24),"") -> 
A28: =IF(parametry!I25<>"",parametry!I25,"") ->  | B28: =IF(A28<>"",parametry!J25,"") ->  | C28: =IF(A28<>"",SUMIFS(JPK_KR!AD:AD,JPK_KR!V:V,parametry!G25),"") ->  | D28: =IF(A28<>"",SUMIFS(JPK_KR!AE:AE,JPK_KR!V:V,parametry!G25),"") ->  | E28: =IF(A28<>"",SUMIFS(JPK_KR!AF:AF,JPK_KR!V:V,parametry!G25),"") ->  | F28: =IF(A28<>"",SUMIFS(JPK_KR!AG:AG,JPK_KR!V:V,parametry!G25),"") ->  | G28: =IF(A28<>"",SUMIFS(JPK_KR!AH:AH,JPK_KR!V:V,parametry!G25),"") ->  | H28: =IF(A28<>"",SUMIFS(JPK_KR!AI:AI,JPK_KR!V:V,parametry!G25),"") ->  | I28: =IF(A28<>"",SUMIFS(JPK_KR!AJ:AJ,JPK_KR!V:V,parametry!G25),"") ->  | J28: =IF(A28<>"",SUMIFS(JPK_KR!AK:AK,JPK_KR!V:V,parametry!G25),"") -> 
A29: =IF(parametry!I26<>"",parametry!I26,"") ->  | B29: =IF(A29<>"",parametry!J26,"") ->  | C29: =IF(A29<>"",SUMIFS(JPK_KR!AD:AD,JPK_KR!V:V,parametry!G26),"") ->  | D29: =IF(A29<>"",SUMIFS(JPK_KR!AE:AE,JPK_KR!V:V,parametry!G26),"") ->  | E29: =IF(A29<>"",SUMIFS(JPK_KR!AF:AF,JPK_KR!V:V,parametry!G26),"") ->  | F29: =IF(A29<>"",SUMIFS(JPK_KR!AG:AG,JPK_KR!V:V,parametry!G26),"") ->  | G29: =IF(A29<>"",SUMIFS(JPK_KR!AH:AH,JPK_KR!V:V,parametry!G26),"") ->  | H29: =IF(A29<>"",SUMIFS(JPK_KR!AI:AI,JPK_KR!V:V,parametry!G26),"") ->  | I29: =IF(A29<>"",SUMIFS(JPK_KR!AJ:AJ,JPK_KR!V:V,parametry!G26),"") ->  | J29: =IF(A29<>"",SUMIFS(JPK_KR!AK:AK,JPK_KR!V:V,parametry!G26),"") -> 
A30: =IF(parametry!I27<>"",parametry!I27,"") ->  | B30: =IF(A30<>"",parametry!J27,"") ->  | C30: =IF(A30<>"",SUMIFS(JPK_KR!AD:AD,JPK_KR!V:V,parametry!G27),"") ->  | D30: =IF(A30<>"",SUMIFS(JPK_KR!AE:AE,JPK_KR!V:V,parametry!G27),"") ->  | E30: =IF(A30<>"",SUMIFS(JPK_KR!AF:AF,JPK_KR!V:V,parametry!G27),"") ->  | F30: =IF(A30<>"",SUMIFS(JPK_KR!AG:AG,JPK_KR!V:V,parametry!G27),"") ->  | G30: =IF(A30<>"",SUMIFS(JPK_KR!AH:AH,JPK_KR!V:V,parametry!G27),"") ->  | H30: =IF(A30<>"",SUMIFS(JPK_KR!AI:AI,JPK_KR!V:V,parametry!G27),"") ->  | I30: =IF(A30<>"",SUMIFS(JPK_KR!AJ:AJ,JPK_KR!V:V,parametry!G27),"") ->  | J30: =IF(A30<>"",SUMIFS(JPK_KR!AK:AK,JPK_KR!V:V,parametry!G27),"") -> 
A31: =IF(parametry!I28<>"",parametry!I28,"") ->  | B31: =IF(A31<>"",parametry!J28,"") ->  | C31: =IF(A31<>"",SUMIFS(JPK_KR!AD:AD,JPK_KR!V:V,parametry!G28),"") ->  | D31: =IF(A31<>"",SUMIFS(JPK_KR!AE:AE,JPK_KR!V:V,parametry!G28),"") ->  | E31: =IF(A31<>"",SUMIFS(JPK_KR!AF:AF,JPK_KR!V:V,parametry!G28),"") ->  | F31: =IF(A31<>"",SUMIFS(JPK_KR!AG:AG,JPK_KR!V:V,parametry!G28),"") ->  | G31: =IF(A31<>"",SUMIFS(JPK_KR!AH:AH,JPK_KR!V:V,parametry!G28),"") ->  | H31: =IF(A31<>"",SUMIFS(JPK_KR!AI:AI,JPK_KR!V:V,parametry!G28),"") ->  | I31: =IF(A31<>"",SUMIFS(JPK_KR!AJ:AJ,JPK_KR!V:V,parametry!G28),"") ->  | J31: =IF(A31<>"",SUMIFS(JPK_KR!AK:AK,JPK_KR!V:V,parametry!G28),"") -> 
A32: =IF(parametry!I29<>"",parametry!I29,"") ->  | B32: =IF(A32<>"",parametry!J29,"") ->  | C32: =IF(A32<>"",SUMIFS(JPK_KR!AD:AD,JPK_KR!V:V,parametry!G29),"") ->  | D32: =IF(A32<>"",SUMIFS(JPK_KR!AE:AE,JPK_KR!V:V,parametry!G29),"") ->  | E32: =IF(A32<>"",SUMIFS(JPK_KR!AF:AF,JPK_KR!V:V,parametry!G29),"") ->  | F32: =IF(A32<>"",SUMIFS(JPK_KR!AG:AG,JPK_KR!V:V,parametry!G29),"") ->  | G32: =IF(A32<>"",SUMIFS(JPK_KR!AH:AH,JPK_KR!V:V,parametry!G29),"") ->  | H32: =IF(A32<>"",SUMIFS(JPK_KR!AI:AI,JPK_KR!V:V,parametry!G29),"") ->  | I32: =IF(A32<>"",SUMIFS(JPK_KR!AJ:AJ,JPK_KR!V:V,parametry!G29),"") ->  | J32: =IF(A32<>"",SUMIFS(JPK_KR!AK:AK,JPK_KR!V:V,parametry!G29),"") -> 
A33: =IF(parametry!I30<>"",parametry!I30,"") ->  | B33: =IF(A33<>"",parametry!J30,"") ->  | C33: =IF(A33<>"",SUMIFS(JPK_KR!AD:AD,JPK_KR!V:V,parametry!G30),"") ->  | D33: =IF(A33<>"",SUMIFS(JPK_KR!AE:AE,JPK_KR!V:V,parametry!G30),"") ->  | E33: =IF(A33<>"",SUMIFS(JPK_KR!AF:AF,JPK_KR!V:V,parametry!G30),"") ->  | F33: =IF(A33<>"",SUMIFS(JPK_KR!AG:AG,JPK_KR!V:V,parametry!G30),"") ->  | G33: =IF(A33<>"",SUMIFS(JPK_KR!AH:AH,JPK_KR!V:V,parametry!G30),"") ->  | H33: =IF(A33<>"",SUMIFS(JPK_KR!AI:AI,JPK_KR!V:V,parametry!G30),"") ->  | I33: =IF(A33<>"",SUMIFS(JPK_KR!AJ:AJ,JPK_KR!V:V,parametry!G30),"") ->  | J33: =IF(A33<>"",SUMIFS(JPK_KR!AK:AK,JPK_KR!V:V,parametry!G30),"") -> 
A34: =IF(parametry!I31<>"",parametry!I31,"") ->  | B34: =IF(A34<>"",parametry!J31,"") ->  | C34: =IF(A34<>"",SUMIFS(JPK_KR!AD:AD,JPK_KR!V:V,parametry!G31),"") ->  | D34: =IF(A34<>"",SUMIFS(JPK_KR!AE:AE,JPK_KR!V:V,parametry!G31),"") ->  | E34: =IF(A34<>"",SUMIFS(JPK_KR!AF:AF,JPK_KR!V:V,parametry!G31),"") ->  | F34: =IF(A34<>"",SUMIFS(JPK_KR!AG:AG,JPK_KR!V:V,parametry!G31),"") ->  | G34: =IF(A34<>"",SUMIFS(JPK_KR!AH:AH,JPK_KR!V:V,parametry!G31),"") ->  | H34: =IF(A34<>"",SUMIFS(JPK_KR!AI:AI,JPK_KR!V:V,parametry!G31),"") ->  | I34: =IF(A34<>"",SUMIFS(JPK_KR!AJ:AJ,JPK_KR!V:V,parametry!G31),"") ->  | J34: =IF(A34<>"",SUMIFS(JPK_KR!AK:AK,JPK_KR!V:V,parametry!G31),"") -> 
A35: =IF(parametry!I32<>"",parametry!I32,"") ->  | B35: =IF(A35<>"",parametry!J32,"") ->  | C35: =IF(A35<>"",SUMIFS(JPK_KR!AD:AD,JPK_KR!V:V,parametry!G32),"") ->  | D35: =IF(A35<>"",SUMIFS(JPK_KR!AE:AE,JPK_KR!V:V,parametry!G32),"") ->  | E35: =IF(A35<>"",SUMIFS(JPK_KR!AF:AF,JPK_KR!V:V,parametry!G32),"") ->  | F35: =IF(A35<>"",SUMIFS(JPK_KR!AG:AG,JPK_KR!V:V,parametry!G32),"") ->  | G35: =IF(A35<>"",SUMIFS(JPK_KR!AH:AH,JPK_KR!V:V,parametry!G32),"") ->  | H35: =IF(A35<>"",SUMIFS(JPK_KR!AI:AI,JPK_KR!V:V,parametry!G32),"") ->  | I35: =IF(A35<>"",SUMIFS(JPK_KR!AJ:AJ,JPK_KR!V:V,parametry!G32),"") ->  | J35: =IF(A35<>"",SUMIFS(JPK_KR!AK:AK,JPK_KR!V:V,parametry!G32),"") -> 
A36: =IF(parametry!I33<>"",parametry!I33,"") ->  | B36: =IF(A36<>"",parametry!J33,"") ->  | C36: =IF(A36<>"",SUMIFS(JPK_KR!AD:AD,JPK_KR!V:V,parametry!G33),"") ->  | D36: =IF(A36<>"",SUMIFS(JPK_KR!AE:AE,JPK_KR!V:V,parametry!G33),"") ->  | E36: =IF(A36<>"",SUMIFS(JPK_KR!AF:AF,JPK_KR!V:V,parametry!G33),"") ->  | F36: =IF(A36<>"",SUMIFS(JPK_KR!AG:AG,JPK_KR!V:V,parametry!G33),"") ->  | G36: =IF(A36<>"",SUMIFS(JPK_KR!AH:AH,JPK_KR!V:V,parametry!G33),"") ->  | H36: =IF(A36<>"",SUMIFS(JPK_KR!AI:AI,JPK_KR!V:V,parametry!G33),"") ->  | I36: =IF(A36<>"",SUMIFS(JPK_KR!AJ:AJ,JPK_KR!V:V,parametry!G33),"") ->  | J36: =IF(A36<>"",SUMIFS(JPK_KR!AK:AK,JPK_KR!V:V,parametry!G33),"") -> 
A37: =IF(parametry!I34<>"",parametry!I34,"") ->  | B37: =IF(A37<>"",parametry!J34,"") ->  | C37: =IF(A37<>"",SUMIFS(JPK_KR!AD:AD,JPK_KR!V:V,parametry!G34),"") ->  | D37: =IF(A37<>"",SUMIFS(JPK_KR!AE:AE,JPK_KR!V:V,parametry!G34),"") ->  | E37: =IF(A37<>"",SUMIFS(JPK_KR!AF:AF,JPK_KR!V:V,parametry!G34),"") ->  | F37: =IF(A37<>"",SUMIFS(JPK_KR!AG:AG,JPK_KR!V:V,parametry!G34),"") ->  | G37: =IF(A37<>"",SUMIFS(JPK_KR!AH:AH,JPK_KR!V:V,parametry!G34),"") ->  | H37: =IF(A37<>"",SUMIFS(JPK_KR!AI:AI,JPK_KR!V:V,parametry!G34),"") ->  | I37: =IF(A37<>"",SUMIFS(JPK_KR!AJ:AJ,JPK_KR!V:V,parametry!G34),"") ->  | J37: =IF(A37<>"",SUMIFS(JPK_KR!AK:AK,JPK_KR!V:V,parametry!G34),"") ->  | S37: =J36-I36+J39 -> 
A38: =IF(parametry!I35<>"",parametry!I35,"") ->  | B38: =IF(A38<>"",parametry!J35,"") ->  | C38: =IF(A38<>"",SUMIFS(JPK_KR!AD:AD,JPK_KR!V:V,parametry!G35),"") ->  | D38: =IF(A38<>"",SUMIFS(JPK_KR!AE:AE,JPK_KR!V:V,parametry!G35),"") ->  | E38: =IF(A38<>"",SUMIFS(JPK_KR!AF:AF,JPK_KR!V:V,parametry!G35),"") ->  | F38: =IF(A38<>"",SUMIFS(JPK_KR!AG:AG,JPK_KR!V:V,parametry!G35),"") ->  | G38: =IF(A38<>"",SUMIFS(JPK_KR!AH:AH,JPK_KR!V:V,parametry!G35),"") ->  | H38: =IF(A38<>"",SUMIFS(JPK_KR!AI:AI,JPK_KR!V:V,parametry!G35),"") ->  | I38: =IF(A38<>"",SUMIFS(JPK_KR!AJ:AJ,JPK_KR!V:V,parametry!G35),"") ->  | J38: =IF(A38<>"",SUMIFS(JPK_KR!AK:AK,JPK_KR!V:V,parametry!G35),"") -> 
A39: =IF(parametry!I36<>"",parametry!I36,"") ->  | B39: =IF(A39<>"",parametry!J36,"") ->  | C39: =IF(A39<>"",SUMIFS(JPK_KR!AD:AD,JPK_KR!V:V,parametry!G36),"") ->  | D39: =IF(A39<>"",SUMIFS(JPK_KR!AE:AE,JPK_KR!V:V,parametry!G36),"") ->  | E39: =IF(A39<>"",SUMIFS(JPK_KR!AF:AF,JPK_KR!V:V,parametry!G36),"") ->  | F39: =IF(A39<>"",SUMIFS(JPK_KR!AG:AG,JPK_KR!V:V,parametry!G36),"") ->  | G39: =IF(A39<>"",SUMIFS(JPK_KR!AH:AH,JPK_KR!V:V,parametry!G36),"") ->  | H39: =IF(A39<>"",SUMIFS(JPK_KR!AI:AI,JPK_KR!V:V,parametry!G36),"") ->  | I39: =IF(A39<>"",SUMIFS(JPK_KR!AJ:AJ,JPK_KR!V:V,parametry!G36),"") ->  | J39: =IF(A39<>"",SUMIFS(JPK_KR!AK:AK,JPK_KR!V:V,parametry!G36),"") -> 
A40: =IF(parametry!I37<>"",parametry!I37,"") ->  | B40: =IF(A40<>"",parametry!J37,"") ->  | C40: =IF(A40<>"",SUMIFS(JPK_KR!AD:AD,JPK_KR!V:V,parametry!G37),"") ->  | D40: =IF(A40<>"",SUMIFS(JPK_KR!AE:AE,JPK_KR!V:V,parametry!G37),"") ->  | E40: =IF(A40<>"",SUMIFS(JPK_KR!AF:AF,JPK_KR!V:V,parametry!G37),"") ->  | F40: =IF(A40<>"",SUMIFS(JPK_KR!AG:AG,JPK_KR!V:V,parametry!G37),"") ->  | G40: =IF(A40<>"",SUMIFS(JPK_KR!AH:AH,JPK_KR!V:V,parametry!G37),"") ->  | H40: =IF(A40<>"",SUMIFS(JPK_KR!AI:AI,JPK_KR!V:V,parametry!G37),"") ->  | I40: =IF(A40<>"",SUMIFS(JPK_KR!AJ:AJ,JPK_KR!V:V,parametry!G37),"") ->  | J40: =IF(A40<>"",SUMIFS(JPK_KR!AK:AK,JPK_KR!V:V,parametry!G37),"") -> 
A41: =IF(parametry!I38<>"",parametry!I38,"") ->  | B41: =IF(A41<>"",parametry!J38,"") ->  | C41: =IF(A41<>"",SUMIFS(JPK_KR!AD:AD,JPK_KR!V:V,parametry!G38),"") ->  | D41: =IF(A41<>"",SUMIFS(JPK_KR!AE:AE,JPK_KR!V:V,parametry!G38),"") ->  | E41: =IF(A41<>"",SUMIFS(JPK_KR!AF:AF,JPK_KR!V:V,parametry!G38),"") ->  | F41: =IF(A41<>"",SUMIFS(JPK_KR!AG:AG,JPK_KR!V:V,parametry!G38),"") ->  | G41: =IF(A41<>"",SUMIFS(JPK_KR!AH:AH,JPK_KR!V:V,parametry!G38),"") ->  | H41: =IF(A41<>"",SUMIFS(JPK_KR!AI:AI,JPK_KR!V:V,parametry!G38),"") ->  | I41: =IF(A41<>"",SUMIFS(JPK_KR!AJ:AJ,JPK_KR!V:V,parametry!G38),"") ->  | J41: =IF(A41<>"",SUMIFS(JPK_KR!AK:AK,JPK_KR!V:V,parametry!G38),"") -> 
A42: =IF(parametry!I39<>"",parametry!I39,"") ->  | B42: =IF(A42<>"",parametry!J39,"") ->  | C42: =IF(A42<>"",SUMIFS(JPK_KR!AD:AD,JPK_KR!V:V,parametry!G39),"") ->  | D42: =IF(A42<>"",SUMIFS(JPK_KR!AE:AE,JPK_KR!V:V,parametry!G39),"") ->  | E42: =IF(A42<>"",SUMIFS(JPK_KR!AF:AF,JPK_KR!V:V,parametry!G39),"") ->  | F42: =IF(A42<>"",SUMIFS(JPK_KR!AG:AG,JPK_KR!V:V,parametry!G39),"") ->  | G42: =IF(A42<>"",SUMIFS(JPK_KR!AH:AH,JPK_KR!V:V,parametry!G39),"") ->  | H42: =IF(A42<>"",SUMIFS(JPK_KR!AI:AI,JPK_KR!V:V,parametry!G39),"") ->  | I42: =IF(A42<>"",SUMIFS(JPK_KR!AJ:AJ,JPK_KR!V:V,parametry!G39),"") ->  | J42: =IF(A42<>"",SUMIFS(JPK_KR!AK:AK,JPK_KR!V:V,parametry!G39),"") -> 
A43: =IF(parametry!I40<>"",parametry!I40,"") ->  | B43: =IF(A43<>"",parametry!J40,"") ->  | C43: =IF(A43<>"",SUMIFS(JPK_KR!AD:AD,JPK_KR!V:V,parametry!G40),"") ->  | D43: =IF(A43<>"",SUMIFS(JPK_KR!AE:AE,JPK_KR!V:V,parametry!G40),"") ->  | E43: =IF(A43<>"",SUMIFS(JPK_KR!AF:AF,JPK_KR!V:V,parametry!G40),"") ->  | F43: =IF(A43<>"",SUMIFS(JPK_KR!AG:AG,JPK_KR!V:V,parametry!G40),"") ->  | G43: =IF(A43<>"",SUMIFS(JPK_KR!AH:AH,JPK_KR!V:V,parametry!G40),"") ->  | H43: =IF(A43<>"",SUMIFS(JPK_KR!AI:AI,JPK_KR!V:V,parametry!G40),"") ->  | I43: =IF(A43<>"",SUMIFS(JPK_KR!AJ:AJ,JPK_KR!V:V,parametry!G40),"") ->  | J43: =IF(A43<>"",SUMIFS(JPK_KR!AK:AK,JPK_KR!V:V,parametry!G40),"") -> 
A44: =IF(parametry!I41<>"",parametry!I41,"") ->  | B44: =IF(A44<>"",parametry!J41,"") ->  | C44: =IF(A44<>"",SUMIFS(JPK_KR!AD:AD,JPK_KR!V:V,parametry!G41),"") ->  | D44: =IF(A44<>"",SUMIFS(JPK_KR!AE:AE,JPK_KR!V:V,parametry!G41),"") ->  | E44: =IF(A44<>"",SUMIFS(JPK_KR!AF:AF,JPK_KR!V:V,parametry!G41),"") ->  | F44: =IF(A44<>"",SUMIFS(JPK_KR!AG:AG,JPK_KR!V:V,parametry!G41),"") ->  | G44: =IF(A44<>"",SUMIFS(JPK_KR!AH:AH,JPK_KR!V:V,parametry!G41),"") ->  | H44: =IF(A44<>"",SUMIFS(JPK_KR!AI:AI,JPK_KR!V:V,parametry!G41),"") ->  | I44: =IF(A44<>"",SUMIFS(JPK_KR!AJ:AJ,JPK_KR!V:V,parametry!G41),"") ->  | J44: =IF(A44<>"",SUMIFS(JPK_KR!AK:AK,JPK_KR!V:V,parametry!G41),"") -> 
A45: =IF(parametry!I42<>"",parametry!I42,"") ->  | B45: =IF(A45<>"",parametry!J42,"") ->  | C45: =IF(A45<>"",SUMIFS(JPK_KR!AD:AD,JPK_KR!V:V,parametry!G42),"") ->  | D45: =IF(A45<>"",SUMIFS(JPK_KR!AE:AE,JPK_KR!V:V,parametry!G42),"") ->  | E45: =IF(A45<>"",SUMIFS(JPK_KR!AF:AF,JPK_KR!V:V,parametry!G42),"") ->  | F45: =IF(A45<>"",SUMIFS(JPK_KR!AG:AG,JPK_KR!V:V,parametry!G42),"") ->  | G45: =IF(A45<>"",SUMIFS(JPK_KR!AH:AH,JPK_KR!V:V,parametry!G42),"") ->  | H45: =IF(A45<>"",SUMIFS(JPK_KR!AI:AI,JPK_KR!V:V,parametry!G42),"") ->  | I45: =IF(A45<>"",SUMIFS(JPK_KR!AJ:AJ,JPK_KR!V:V,parametry!G42),"") ->  | J45: =IF(A45<>"",SUMIFS(JPK_KR!AK:AK,JPK_KR!V:V,parametry!G42),"") -> 
A46: =IF(parametry!I43<>"",parametry!I43,"") ->  | B46: =IF(A46<>"",parametry!J43,"") ->  | C46: =IF(A46<>"",SUMIFS(JPK_KR!AD:AD,JPK_KR!V:V,parametry!G43),"") ->  | D46: =IF(A46<>"",SUMIFS(JPK_KR!AE:AE,JPK_KR!V:V,parametry!G43),"") ->  | E46: =IF(A46<>"",SUMIFS(JPK_KR!AF:AF,JPK_KR!V:V,parametry!G43),"") ->  | F46: =IF(A46<>"",SUMIFS(JPK_KR!AG:AG,JPK_KR!V:V,parametry!G43),"") ->  | G46: =IF(A46<>"",SUMIFS(JPK_KR!AH:AH,JPK_KR!V:V,parametry!G43),"") ->  | H46: =IF(A46<>"",SUMIFS(JPK_KR!AI:AI,JPK_KR!V:V,parametry!G43),"") ->  | I46: =IF(A46<>"",SUMIFS(JPK_KR!AJ:AJ,JPK_KR!V:V,parametry!G43),"") ->  | J46: =IF(A46<>"",SUMIFS(JPK_KR!AK:AK,JPK_KR!V:V,parametry!G43),"") -> 
A47: =IF(parametry!I44<>"",parametry!I44,"") ->  | B47: =IF(A47<>"",parametry!J44,"") ->  | C47: =IF(A47<>"",SUMIFS(JPK_KR!AD:AD,JPK_KR!V:V,parametry!G44),"") ->  | D47: =IF(A47<>"",SUMIFS(JPK_KR!AE:AE,JPK_KR!V:V,parametry!G44),"") ->  | E47: =IF(A47<>"",SUMIFS(JPK_KR!AF:AF,JPK_KR!V:V,parametry!G44),"") ->  | F47: =IF(A47<>"",SUMIFS(JPK_KR!AG:AG,JPK_KR!V:V,parametry!G44),"") ->  | G47: =IF(A47<>"",SUMIFS(JPK_KR!AH:AH,JPK_KR!V:V,parametry!G44),"") ->  | H47: =IF(A47<>"",SUMIFS(JPK_KR!AI:AI,JPK_KR!V:V,parametry!G44),"") ->  | I47: =IF(A47<>"",SUMIFS(JPK_KR!AJ:AJ,JPK_KR!V:V,parametry!G44),"") ->  | J47: =IF(A47<>"",SUMIFS(JPK_KR!AK:AK,JPK_KR!V:V,parametry!G44),"") -> 
A48: =IF(parametry!I45<>"",parametry!I45,"") ->  | B48: =IF(A48<>"",parametry!J45,"") ->  | C48: =IF(A48<>"",SUMIFS(JPK_KR!AD:AD,JPK_KR!V:V,parametry!G45),"") ->  | D48: =IF(A48<>"",SUMIFS(JPK_KR!AE:AE,JPK_KR!V:V,parametry!G45),"") ->  | E48: =IF(A48<>"",SUMIFS(JPK_KR!AF:AF,JPK_KR!V:V,parametry!G45),"") ->  | F48: =IF(A48<>"",SUMIFS(JPK_KR!AG:AG,JPK_KR!V:V,parametry!G45),"") ->  | G48: =IF(A48<>"",SUMIFS(JPK_KR!AH:AH,JPK_KR!V:V,parametry!G45),"") ->  | H48: =IF(A48<>"",SUMIFS(JPK_KR!AI:AI,JPK_KR!V:V,parametry!G45),"") ->  | I48: =IF(A48<>"",SUMIFS(JPK_KR!AJ:AJ,JPK_KR!V:V,parametry!G45),"") ->  | J48: =IF(A48<>"",SUMIFS(JPK_KR!AK:AK,JPK_KR!V:V,parametry!G45),"") -> 
A49: =IF(parametry!I46<>"",parametry!I46,"") ->  | B49: =IF(A49<>"",parametry!J46,"") ->  | C49: =IF(A49<>"",SUMIFS(JPK_KR!AD:AD,JPK_KR!V:V,parametry!G46),"") ->  | D49: =IF(A49<>"",SUMIFS(JPK_KR!AE:AE,JPK_KR!V:V,parametry!G46),"") ->  | E49: =IF(A49<>"",SUMIFS(JPK_KR!AF:AF,JPK_KR!V:V,parametry!G46),"") ->  | F49: =IF(A49<>"",SUMIFS(JPK_KR!AG:AG,JPK_KR!V:V,parametry!G46),"") ->  | G49: =IF(A49<>"",SUMIFS(JPK_KR!AH:AH,JPK_KR!V:V,parametry!G46),"") ->  | H49: =IF(A49<>"",SUMIFS(JPK_KR!AI:AI,JPK_KR!V:V,parametry!G46),"") ->  | I49: =IF(A49<>"",SUMIFS(JPK_KR!AJ:AJ,JPK_KR!V:V,parametry!G46),"") ->  | J49: =IF(A49<>"",SUMIFS(JPK_KR!AK:AK,JPK_KR!V:V,parametry!G46),"") -> 
A50: =IF(parametry!I47<>"",parametry!I47,"") ->  | B50: =IF(A50<>"",parametry!J47,"") ->  | C50: =IF(A50<>"",SUMIFS(JPK_KR!AD:AD,JPK_KR!V:V,parametry!G47),"") ->  | D50: =IF(A50<>"",SUMIFS(JPK_KR!AE:AE,JPK_KR!V:V,parametry!G47),"") ->  | E50: =IF(A50<>"",SUMIFS(JPK_KR!AF:AF,JPK_KR!V:V,parametry!G47),"") ->  | F50: =IF(A50<>"",SUMIFS(JPK_KR!AG:AG,JPK_KR!V:V,parametry!G47),"") ->  | G50: =IF(A50<>"",SUMIFS(JPK_KR!AH:AH,JPK_KR!V:V,parametry!G47),"") ->  | H50: =IF(A50<>"",SUMIFS(JPK_KR!AI:AI,JPK_KR!V:V,parametry!G47),"") ->  | I50: =IF(A50<>"",SUMIFS(JPK_KR!AJ:AJ,JPK_KR!V:V,parametry!G47),"") ->  | J50: =IF(A50<>"",SUMIFS(JPK_KR!AK:AK,JPK_KR!V:V,parametry!G47),"") -> 
A51: =IF(parametry!I48<>"",parametry!I48,"") ->  | B51: =IF(A51<>"",parametry!J48,"") ->  | C51: =IF(A51<>"",SUMIFS(JPK_KR!AD:AD,JPK_KR!V:V,parametry!G48),"") ->  | D51: =IF(A51<>"",SUMIFS(JPK_KR!AE:AE,JPK_KR!V:V,parametry!G48),"") ->  | E51: =IF(A51<>"",SUMIFS(JPK_KR!AF:AF,JPK_KR!V:V,parametry!G48),"") ->  | F51: =IF(A51<>"",SUMIFS(JPK_KR!AG:AG,JPK_KR!V:V,parametry!G48),"") ->  | G51: =IF(A51<>"",SUMIFS(JPK_KR!AH:AH,JPK_KR!V:V,parametry!G48),"") ->  | H51: =IF(A51<>"",SUMIFS(JPK_KR!AI:AI,JPK_KR!V:V,parametry!G48),"") ->  | I51: =IF(A51<>"",SUMIFS(JPK_KR!AJ:AJ,JPK_KR!V:V,parametry!G48),"") ->  | J51: =IF(A51<>"",SUMIFS(JPK_KR!AK:AK,JPK_KR!V:V,parametry!G48),"") -> 
A52: =IF(parametry!I49<>"",parametry!I49,"") ->  | B52: =IF(A52<>"",parametry!J49,"") ->  | C52: =IF(A52<>"",SUMIFS(JPK_KR!AD:AD,JPK_KR!V:V,parametry!G49),"") ->  | D52: =IF(A52<>"",SUMIFS(JPK_KR!AE:AE,JPK_KR!V:V,parametry!G49),"") ->  | E52: =IF(A52<>"",SUMIFS(JPK_KR!AF:AF,JPK_KR!V:V,parametry!G49),"") ->  | F52: =IF(A52<>"",SUMIFS(JPK_KR!AG:AG,JPK_KR!V:V,parametry!G49),"") ->  | G52: =IF(A52<>"",SUMIFS(JPK_KR!AH:AH,JPK_KR!V:V,parametry!G49),"") ->  | H52: =IF(A52<>"",SUMIFS(JPK_KR!AI:AI,JPK_KR!V:V,parametry!G49),"") ->  | I52: =IF(A52<>"",SUMIFS(JPK_KR!AJ:AJ,JPK_KR!V:V,parametry!G49),"") ->  | J52: =IF(A52<>"",SUMIFS(JPK_KR!AK:AK,JPK_KR!V:V,parametry!G49),"") -> 
A53: =IF(parametry!I50<>"",parametry!I50,"") ->  | B53: =IF(A53<>"",parametry!J50,"") ->  | C53: =IF(A53<>"",SUMIFS(JPK_KR!AD:AD,JPK_KR!V:V,parametry!G50),"") ->  | D53: =IF(A53<>"",SUMIFS(JPK_KR!AE:AE,JPK_KR!V:V,parametry!G50),"") ->  | E53: =IF(A53<>"",SUMIFS(JPK_KR!AF:AF,JPK_KR!V:V,parametry!G50),"") ->  | F53: =IF(A53<>"",SUMIFS(JPK_KR!AG:AG,JPK_KR!V:V,parametry!G50),"") ->  | G53: =IF(A53<>"",SUMIFS(JPK_KR!AH:AH,JPK_KR!V:V,parametry!G50),"") ->  | H53: =IF(A53<>"",SUMIFS(JPK_KR!AI:AI,JPK_KR!V:V,parametry!G50),"") ->  | I53: =IF(A53<>"",SUMIFS(JPK_KR!AJ:AJ,JPK_KR!V:V,parametry!G50),"") ->  | J53: =IF(A53<>"",SUMIFS(JPK_KR!AK:AK,JPK_KR!V:V,parametry!G50),"") -> 
A54: =IF(parametry!I51<>"",parametry!I51,"") ->  | B54: =IF(A54<>"",parametry!J51,"") ->  | C54: =IF(A54<>"",SUMIFS(JPK_KR!AD:AD,JPK_KR!V:V,parametry!G51),"") ->  | D54: =IF(A54<>"",SUMIFS(JPK_KR!AE:AE,JPK_KR!V:V,parametry!G51),"") ->  | E54: =IF(A54<>"",SUMIFS(JPK_KR!AF:AF,JPK_KR!V:V,parametry!G51),"") ->  | F54: =IF(A54<>"",SUMIFS(JPK_KR!AG:AG,JPK_KR!V:V,parametry!G51),"") ->  | G54: =IF(A54<>"",SUMIFS(JPK_KR!AH:AH,JPK_KR!V:V,parametry!G51),"") ->  | H54: =IF(A54<>"",SUMIFS(JPK_KR!AI:AI,JPK_KR!V:V,parametry!G51),"") ->  | I54: =IF(A54<>"",SUMIFS(JPK_KR!AJ:AJ,JPK_KR!V:V,parametry!G51),"") ->  | J54: =IF(A54<>"",SUMIFS(JPK_KR!AK:AK,JPK_KR!V:V,parametry!G51),"") -> 
A55: =IF(parametry!I52<>"",parametry!I52,"") ->  | B55: =IF(A55<>"",parametry!J52,"") ->  | C55: =IF(A55<>"",SUMIFS(JPK_KR!AD:AD,JPK_KR!V:V,parametry!G52),"") ->  | D55: =IF(A55<>"",SUMIFS(JPK_KR!AE:AE,JPK_KR!V:V,parametry!G52),"") ->  | E55: =IF(A55<>"",SUMIFS(JPK_KR!AF:AF,JPK_KR!V:V,parametry!G52),"") ->  | F55: =IF(A55<>"",SUMIFS(JPK_KR!AG:AG,JPK_KR!V:V,parametry!G52),"") ->  | G55: =IF(A55<>"",SUMIFS(JPK_KR!AH:AH,JPK_KR!V:V,parametry!G52),"") ->  | H55: =IF(A55<>"",SUMIFS(JPK_KR!AI:AI,JPK_KR!V:V,parametry!G52),"") ->  | I55: =IF(A55<>"",SUMIFS(JPK_KR!AJ:AJ,JPK_KR!V:V,parametry!G52),"") ->  | J55: =IF(A55<>"",SUMIFS(JPK_KR!AK:AK,JPK_KR!V:V,parametry!G52),"") -> 
A56: =IF(parametry!I53<>"",parametry!I53,"") ->  | B56: =IF(A56<>"",parametry!J53,"") ->  | C56: =IF(A56<>"",SUMIFS(JPK_KR!AD:AD,JPK_KR!V:V,parametry!G53),"") ->  | D56: =IF(A56<>"",SUMIFS(JPK_KR!AE:AE,JPK_KR!V:V,parametry!G53),"") ->  | E56: =IF(A56<>"",SUMIFS(JPK_KR!AF:AF,JPK_KR!V:V,parametry!G53),"") ->  | F56: =IF(A56<>"",SUMIFS(JPK_KR!AG:AG,JPK_KR!V:V,parametry!G53),"") ->  | G56: =IF(A56<>"",SUMIFS(JPK_KR!AH:AH,JPK_KR!V:V,parametry!G53),"") ->  | H56: =IF(A56<>"",SUMIFS(JPK_KR!AI:AI,JPK_KR!V:V,parametry!G53),"") ->  | I56: =IF(A56<>"",SUMIFS(JPK_KR!AJ:AJ,JPK_KR!V:V,parametry!G53),"") ->  | J56: =IF(A56<>"",SUMIFS(JPK_KR!AK:AK,JPK_KR!V:V,parametry!G53),"") -> 
A57: =IF(parametry!I54<>"",parametry!I54,"") ->  | B57: =IF(A57<>"",parametry!J54,"") ->  | C57: =IF(A57<>"",SUMIFS(JPK_KR!AD:AD,JPK_KR!V:V,parametry!G54),"") ->  | D57: =IF(A57<>"",SUMIFS(JPK_KR!AE:AE,JPK_KR!V:V,parametry!G54),"") ->  | E57: =IF(A57<>"",SUMIFS(JPK_KR!AF:AF,JPK_KR!V:V,parametry!G54),"") ->  | F57: =IF(A57<>"",SUMIFS(JPK_KR!AG:AG,JPK_KR!V:V,parametry!G54),"") ->  | G57: =IF(A57<>"",SUMIFS(JPK_KR!AH:AH,JPK_KR!V:V,parametry!G54),"") ->  | H57: =IF(A57<>"",SUMIFS(JPK_KR!AI:AI,JPK_KR!V:V,parametry!G54),"") ->  | I57: =IF(A57<>"",SUMIFS(JPK_KR!AJ:AJ,JPK_KR!V:V,parametry!G54),"") ->  | J57: =IF(A57<>"",SUMIFS(JPK_KR!AK:AK,JPK_KR!V:V,parametry!G54),"") -> 
A58: =IF(parametry!I55<>"",parametry!I55,"") ->  | B58: =IF(A58<>"",parametry!J55,"") ->  | C58: =IF(A58<>"",SUMIFS(JPK_KR!AD:AD,JPK_KR!V:V,parametry!G55),"") ->  | D58: =IF(A58<>"",SUMIFS(JPK_KR!AE:AE,JPK_KR!V:V,parametry!G55),"") ->  | E58: =IF(A58<>"",SUMIFS(JPK_KR!AF:AF,JPK_KR!V:V,parametry!G55),"") ->  | F58: =IF(A58<>"",SUMIFS(JPK_KR!AG:AG,JPK_KR!V:V,parametry!G55),"") ->  | G58: =IF(A58<>"",SUMIFS(JPK_KR!AH:AH,JPK_KR!V:V,parametry!G55),"") ->  | H58: =IF(A58<>"",SUMIFS(JPK_KR!AI:AI,JPK_KR!V:V,parametry!G55),"") ->  | I58: =IF(A58<>"",SUMIFS(JPK_KR!AJ:AJ,JPK_KR!V:V,parametry!G55),"") ->  | J58: =IF(A58<>"",SUMIFS(JPK_KR!AK:AK,JPK_KR!V:V,parametry!G55),"") -> 
A59: =IF(parametry!I56<>"",parametry!I56,"") ->  | B59: =IF(A59<>"",parametry!J56,"") ->  | C59: =IF(A59<>"",SUMIFS(JPK_KR!AD:AD,JPK_KR!V:V,parametry!G56),"") ->  | D59: =IF(A59<>"",SUMIFS(JPK_KR!AE:AE,JPK_KR!V:V,parametry!G56),"") ->  | E59: =IF(A59<>"",SUMIFS(JPK_KR!AF:AF,JPK_KR!V:V,parametry!G56),"") ->  | F59: =IF(A59<>"",SUMIFS(JPK_KR!AG:AG,JPK_KR!V:V,parametry!G56),"") ->  | G59: =IF(A59<>"",SUMIFS(JPK_KR!AH:AH,JPK_KR!V:V,parametry!G56),"") ->  | H59: =IF(A59<>"",SUMIFS(JPK_KR!AI:AI,JPK_KR!V:V,parametry!G56),"") ->  | I59: =IF(A59<>"",SUMIFS(JPK_KR!AJ:AJ,JPK_KR!V:V,parametry!G56),"") ->  | J59: =IF(A59<>"",SUMIFS(JPK_KR!AK:AK,JPK_KR!V:V,parametry!G56),"") -> 
A60: =IF(parametry!I57<>"",parametry!I57,"") ->  | B60: =IF(A60<>"",parametry!J57,"") ->  | C60: =IF(A60<>"",SUMIFS(JPK_KR!AD:AD,JPK_KR!V:V,parametry!G57),"") ->  | D60: =IF(A60<>"",SUMIFS(JPK_KR!AE:AE,JPK_KR!V:V,parametry!G57),"") ->  | E60: =IF(A60<>"",SUMIFS(JPK_KR!AF:AF,JPK_KR!V:V,parametry!G57),"") ->  | F60: =IF(A60<>"",SUMIFS(JPK_KR!AG:AG,JPK_KR!V:V,parametry!G57),"") ->  | G60: =IF(A60<>"",SUMIFS(JPK_KR!AH:AH,JPK_KR!V:V,parametry!G57),"") ->  | H60: =IF(A60<>"",SUMIFS(JPK_KR!AI:AI,JPK_KR!V:V,parametry!G57),"") ->  | I60: =IF(A60<>"",SUMIFS(JPK_KR!AJ:AJ,JPK_KR!V:V,parametry!G57),"") ->  | J60: =IF(A60<>"",SUMIFS(JPK_KR!AK:AK,JPK_KR!V:V,parametry!G57),"") -> 
A61: =IF(parametry!I58<>"",parametry!I58,"") ->  | B61: =IF(A61<>"",parametry!J58,"") ->  | C61: =IF(A61<>"",SUMIFS(JPK_KR!AD:AD,JPK_KR!V:V,parametry!G58),"") ->  | D61: =IF(A61<>"",SUMIFS(JPK_KR!AE:AE,JPK_KR!V:V,parametry!G58),"") ->  | E61: =IF(A61<>"",SUMIFS(JPK_KR!AF:AF,JPK_KR!V:V,parametry!G58),"") ->  | F61: =IF(A61<>"",SUMIFS(JPK_KR!AG:AG,JPK_KR!V:V,parametry!G58),"") ->  | G61: =IF(A61<>"",SUMIFS(JPK_KR!AH:AH,JPK_KR!V:V,parametry!G58),"") ->  | H61: =IF(A61<>"",SUMIFS(JPK_KR!AI:AI,JPK_KR!V:V,parametry!G58),"") ->  | I61: =IF(A61<>"",SUMIFS(JPK_KR!AJ:AJ,JPK_KR!V:V,parametry!G58),"") ->  | J61: =IF(A61<>"",SUMIFS(JPK_KR!AK:AK,JPK_KR!V:V,parametry!G58),"") -> 
A62: =IF(parametry!I59<>"",parametry!I59,"") ->  | B62: =IF(A62<>"",parametry!J59,"") ->  | C62: =IF(A62<>"",SUMIFS(JPK_KR!AD:AD,JPK_KR!V:V,parametry!G59),"") ->  | D62: =IF(A62<>"",SUMIFS(JPK_KR!AE:AE,JPK_KR!V:V,parametry!G59),"") ->  | E62: =IF(A62<>"",SUMIFS(JPK_KR!AF:AF,JPK_KR!V:V,parametry!G59),"") ->  | F62: =IF(A62<>"",SUMIFS(JPK_KR!AG:AG,JPK_KR!V:V,parametry!G59),"") ->  | G62: =IF(A62<>"",SUMIFS(JPK_KR!AH:AH,JPK_KR!V:V,parametry!G59),"") ->  | H62: =IF(A62<>"",SUMIFS(JPK_KR!AI:AI,JPK_KR!V:V,parametry!G59),"") ->  | I62: =IF(A62<>"",SUMIFS(JPK_KR!AJ:AJ,JPK_KR!V:V,parametry!G59),"") ->  | J62: =IF(A62<>"",SUMIFS(JPK_KR!AK:AK,JPK_KR!V:V,parametry!G59),"") -> 
A63: =IF(parametry!I60<>"",parametry!I60,"") ->  | B63: =IF(A63<>"",parametry!J60,"") ->  | C63: =IF(A63<>"",SUMIFS(JPK_KR!AD:AD,JPK_KR!V:V,parametry!G60),"") ->  | D63: =IF(A63<>"",SUMIFS(JPK_KR!AE:AE,JPK_KR!V:V,parametry!G60),"") ->  | E63: =IF(A63<>"",SUMIFS(JPK_KR!AF:AF,JPK_KR!V:V,parametry!G60),"") ->  | F63: =IF(A63<>"",SUMIFS(JPK_KR!AG:AG,JPK_KR!V:V,parametry!G60),"") ->  | G63: =IF(A63<>"",SUMIFS(JPK_KR!AH:AH,JPK_KR!V:V,parametry!G60),"") ->  | H63: =IF(A63<>"",SUMIFS(JPK_KR!AI:AI,JPK_KR!V:V,parametry!G60),"") ->  | I63: =IF(A63<>"",SUMIFS(JPK_KR!AJ:AJ,JPK_KR!V:V,parametry!G60),"") ->  | J63: =IF(A63<>"",SUMIFS(JPK_KR!AK:AK,JPK_KR!V:V,parametry!G60),"") -> 
A64: =IF(parametry!I61<>"",parametry!I61,"") ->  | B64: =IF(A64<>"",parametry!J61,"") ->  | C64: =IF(A64<>"",SUMIFS(JPK_KR!AD:AD,JPK_KR!V:V,parametry!G61),"") ->  | D64: =IF(A64<>"",SUMIFS(JPK_KR!AE:AE,JPK_KR!V:V,parametry!G61),"") ->  | E64: =IF(A64<>"",SUMIFS(JPK_KR!AF:AF,JPK_KR!V:V,parametry!G61),"") ->  | F64: =IF(A64<>"",SUMIFS(JPK_KR!AG:AG,JPK_KR!V:V,parametry!G61),"") ->  | G64: =IF(A64<>"",SUMIFS(JPK_KR!AH:AH,JPK_KR!V:V,parametry!G61),"") ->  | H64: =IF(A64<>"",SUMIFS(JPK_KR!AI:AI,JPK_KR!V:V,parametry!G61),"") ->  | I64: =IF(A64<>"",SUMIFS(JPK_KR!AJ:AJ,JPK_KR!V:V,parametry!G61),"") ->  | J64: =IF(A64<>"",SUMIFS(JPK_KR!AK:AK,JPK_KR!V:V,parametry!G61),"") -> 
A65: =IF(parametry!I62<>"",parametry!I62,"") ->  | B65: =IF(A65<>"",parametry!J62,"") ->  | C65: =IF(A65<>"",SUMIFS(JPK_KR!AD:AD,JPK_KR!V:V,parametry!G62),"") ->  | D65: =IF(A65<>"",SUMIFS(JPK_KR!AE:AE,JPK_KR!V:V,parametry!G62),"") ->  | E65: =IF(A65<>"",SUMIFS(JPK_KR!AF:AF,JPK_KR!V:V,parametry!G62),"") ->  | F65: =IF(A65<>"",SUMIFS(JPK_KR!AG:AG,JPK_KR!V:V,parametry!G62),"") ->  | G65: =IF(A65<>"",SUMIFS(JPK_KR!AH:AH,JPK_KR!V:V,parametry!G62),"") ->  | H65: =IF(A65<>"",SUMIFS(JPK_KR!AI:AI,JPK_KR!V:V,parametry!G62),"") ->  | I65: =IF(A65<>"",SUMIFS(JPK_KR!AJ:AJ,JPK_KR!V:V,parametry!G62),"") ->  | J65: =IF(A65<>"",SUMIFS(JPK_KR!AK:AK,JPK_KR!V:V,parametry!G62),"") -> 
A66: =IF(parametry!I63<>"",parametry!I63,"") ->  | B66: =IF(A66<>"",parametry!J63,"") ->  | C66: =IF(A66<>"",SUMIFS(JPK_KR!AD:AD,JPK_KR!V:V,parametry!G63),"") ->  | D66: =IF(A66<>"",SUMIFS(JPK_KR!AE:AE,JPK_KR!V:V,parametry!G63),"") ->  | E66: =IF(A66<>"",SUMIFS(JPK_KR!AF:AF,JPK_KR!V:V,parametry!G63),"") ->  | F66: =IF(A66<>"",SUMIFS(JPK_KR!AG:AG,JPK_KR!V:V,parametry!G63),"") ->  | G66: =IF(A66<>"",SUMIFS(JPK_KR!AH:AH,JPK_KR!V:V,parametry!G63),"") ->  | H66: =IF(A66<>"",SUMIFS(JPK_KR!AI:AI,JPK_KR!V:V,parametry!G63),"") ->  | I66: =IF(A66<>"",SUMIFS(JPK_KR!AJ:AJ,JPK_KR!V:V,parametry!G63),"") ->  | J66: =IF(A66<>"",SUMIFS(JPK_KR!AK:AK,JPK_KR!V:V,parametry!G63),"") -> 
A67: =IF(parametry!I64<>"",parametry!I64,"") ->  | B67: =IF(A67<>"",parametry!J64,"") ->  | C67: =IF(A67<>"",SUMIFS(JPK_KR!AD:AD,JPK_KR!V:V,parametry!G64),"") ->  | D67: =IF(A67<>"",SUMIFS(JPK_KR!AE:AE,JPK_KR!V:V,parametry!G64),"") ->  | E67: =IF(A67<>"",SUMIFS(JPK_KR!AF:AF,JPK_KR!V:V,parametry!G64),"") ->  | F67: =IF(A67<>"",SUMIFS(JPK_KR!AG:AG,JPK_KR!V:V,parametry!G64),"") ->  | G67: =IF(A67<>"",SUMIFS(JPK_KR!AH:AH,JPK_KR!V:V,parametry!G64),"") ->  | H67: =IF(A67<>"",SUMIFS(JPK_KR!AI:AI,JPK_KR!V:V,parametry!G64),"") ->  | I67: =IF(A67<>"",SUMIFS(JPK_KR!AJ:AJ,JPK_KR!V:V,parametry!G64),"") ->  | J67: =IF(A67<>"",SUMIFS(JPK_KR!AK:AK,JPK_KR!V:V,parametry!G64),"") -> 
A68: =IF(parametry!I65<>"",parametry!I65,"") ->  | B68: =IF(A68<>"",parametry!J65,"") ->  | C68: =IF(A68<>"",SUMIFS(JPK_KR!AD:AD,JPK_KR!V:V,parametry!G65),"") ->  | D68: =IF(A68<>"",SUMIFS(JPK_KR!AE:AE,JPK_KR!V:V,parametry!G65),"") ->  | E68: =IF(A68<>"",SUMIFS(JPK_KR!AF:AF,JPK_KR!V:V,parametry!G65),"") ->  | F68: =IF(A68<>"",SUMIFS(JPK_KR!AG:AG,JPK_KR!V:V,parametry!G65),"") ->  | G68: =IF(A68<>"",SUMIFS(JPK_KR!AH:AH,JPK_KR!V:V,parametry!G65),"") ->  | H68: =IF(A68<>"",SUMIFS(JPK_KR!AI:AI,JPK_KR!V:V,parametry!G65),"") ->  | I68: =IF(A68<>"",SUMIFS(JPK_KR!AJ:AJ,JPK_KR!V:V,parametry!G65),"") ->  | J68: =IF(A68<>"",SUMIFS(JPK_KR!AK:AK,JPK_KR!V:V,parametry!G65),"") -> 
A69: =IF(parametry!I66<>"",parametry!I66,"") ->  | B69: =IF(A69<>"",parametry!J66,"") ->  | C69: =IF(A69<>"",SUMIFS(JPK_KR!AD:AD,JPK_KR!V:V,parametry!G66),"") ->  | D69: =IF(A69<>"",SUMIFS(JPK_KR!AE:AE,JPK_KR!V:V,parametry!G66),"") ->  | E69: =IF(A69<>"",SUMIFS(JPK_KR!AF:AF,JPK_KR!V:V,parametry!G66),"") ->  | F69: =IF(A69<>"",SUMIFS(JPK_KR!AG:AG,JPK_KR!V:V,parametry!G66),"") ->  | G69: =IF(A69<>"",SUMIFS(JPK_KR!AH:AH,JPK_KR!V:V,parametry!G66),"") ->  | H69: =IF(A69<>"",SUMIFS(JPK_KR!AI:AI,JPK_KR!V:V,parametry!G66),"") ->  | I69: =IF(A69<>"",SUMIFS(JPK_KR!AJ:AJ,JPK_KR!V:V,parametry!G66),"") ->  | J69: =IF(A69<>"",SUMIFS(JPK_KR!AK:AK,JPK_KR!V:V,parametry!G66),"") -> 
A70: =IF(parametry!I67<>"",parametry!I67,"") ->  | B70: =IF(A70<>"",parametry!J67,"") ->  | C70: =IF(A70<>"",SUMIFS(JPK_KR!AD:AD,JPK_KR!V:V,parametry!G67),"") ->  | D70: =IF(A70<>"",SUMIFS(JPK_KR!AE:AE,JPK_KR!V:V,parametry!G67),"") ->  | E70: =IF(A70<>"",SUMIFS(JPK_KR!AF:AF,JPK_KR!V:V,parametry!G67),"") ->  | F70: =IF(A70<>"",SUMIFS(JPK_KR!AG:AG,JPK_KR!V:V,parametry!G67),"") ->  | G70: =IF(A70<>"",SUMIFS(JPK_KR!AH:AH,JPK_KR!V:V,parametry!G67),"") ->  | H70: =IF(A70<>"",SUMIFS(JPK_KR!AI:AI,JPK_KR!V:V,parametry!G67),"") ->  | I70: =IF(A70<>"",SUMIFS(JPK_KR!AJ:AJ,JPK_KR!V:V,parametry!G67),"") ->  | J70: =IF(A70<>"",SUMIFS(JPK_KR!AK:AK,JPK_KR!V:V,parametry!G67),"") -> 
A71: =IF(parametry!I68<>"",parametry!I68,"") ->  | B71: =IF(A71<>"",parametry!J68,"") ->  | C71: =IF(A71<>"",SUMIFS(JPK_KR!AD:AD,JPK_KR!V:V,parametry!G68),"") ->  | D71: =IF(A71<>"",SUMIFS(JPK_KR!AE:AE,JPK_KR!V:V,parametry!G68),"") ->  | E71: =IF(A71<>"",SUMIFS(JPK_KR!AF:AF,JPK_KR!V:V,parametry!G68),"") ->  | F71: =IF(A71<>"",SUMIFS(JPK_KR!AG:AG,JPK_KR!V:V,parametry!G68),"") ->  | G71: =IF(A71<>"",SUMIFS(JPK_KR!AH:AH,JPK_KR!V:V,parametry!G68),"") ->  | H71: =IF(A71<>"",SUMIFS(JPK_KR!AI:AI,JPK_KR!V:V,parametry!G68),"") ->  | I71: =IF(A71<>"",SUMIFS(JPK_KR!AJ:AJ,JPK_KR!V:V,parametry!G68),"") ->  | J71: =IF(A71<>"",SUMIFS(JPK_KR!AK:AK,JPK_KR!V:V,parametry!G68),"") -> 
A72: =IF(parametry!I69<>"",parametry!I69,"") ->  | B72: =IF(A72<>"",parametry!J69,"") ->  | C72: =IF(A72<>"",SUMIFS(JPK_KR!AD:AD,JPK_KR!V:V,parametry!G69),"") ->  | D72: =IF(A72<>"",SUMIFS(JPK_KR!AE:AE,JPK_KR!V:V,parametry!G69),"") ->  | E72: =IF(A72<>"",SUMIFS(JPK_KR!AF:AF,JPK_KR!V:V,parametry!G69),"") ->  | F72: =IF(A72<>"",SUMIFS(JPK_KR!AG:AG,JPK_KR!V:V,parametry!G69),"") ->  | G72: =IF(A72<>"",SUMIFS(JPK_KR!AH:AH,JPK_KR!V:V,parametry!G69),"") ->  | H72: =IF(A72<>"",SUMIFS(JPK_KR!AI:AI,JPK_KR!V:V,parametry!G69),"") ->  | I72: =IF(A72<>"",SUMIFS(JPK_KR!AJ:AJ,JPK_KR!V:V,parametry!G69),"") ->  | J72: =IF(A72<>"",SUMIFS(JPK_KR!AK:AK,JPK_KR!V:V,parametry!G69),"") -> 
A73: =IF(parametry!I70<>"",parametry!I70,"") ->  | B73: =IF(A73<>"",parametry!J70,"") ->  | C73: =IF(A73<>"",SUMIFS(JPK_KR!AD:AD,JPK_KR!V:V,parametry!G70),"") ->  | D73: =IF(A73<>"",SUMIFS(JPK_KR!AE:AE,JPK_KR!V:V,parametry!G70),"") ->  | E73: =IF(A73<>"",SUMIFS(JPK_KR!AF:AF,JPK_KR!V:V,parametry!G70),"") ->  | F73: =IF(A73<>"",SUMIFS(JPK_KR!AG:AG,JPK_KR!V:V,parametry!G70),"") ->  | G73: =IF(A73<>"",SUMIFS(JPK_KR!AH:AH,JPK_KR!V:V,parametry!G70),"") ->  | H73: =IF(A73<>"",SUMIFS(JPK_KR!AI:AI,JPK_KR!V:V,parametry!G70),"") ->  | I73: =IF(A73<>"",SUMIFS(JPK_KR!AJ:AJ,JPK_KR!V:V,parametry!G70),"") ->  | J73: =IF(A73<>"",SUMIFS(JPK_KR!AK:AK,JPK_KR!V:V,parametry!G70),"") -> 
A74: =IF(parametry!I71<>"",parametry!I71,"") ->  | B74: =IF(A74<>"",parametry!J71,"") ->  | C74: =IF(A74<>"",SUMIFS(JPK_KR!AD:AD,JPK_KR!V:V,parametry!G71),"") ->  | D74: =IF(A74<>"",SUMIFS(JPK_KR!AE:AE,JPK_KR!V:V,parametry!G71),"") ->  | E74: =IF(A74<>"",SUMIFS(JPK_KR!AF:AF,JPK_KR!V:V,parametry!G71),"") ->  | F74: =IF(A74<>"",SUMIFS(JPK_KR!AG:AG,JPK_KR!V:V,parametry!G71),"") ->  | G74: =IF(A74<>"",SUMIFS(JPK_KR!AH:AH,JPK_KR!V:V,parametry!G71),"") ->  | H74: =IF(A74<>"",SUMIFS(JPK_KR!AI:AI,JPK_KR!V:V,parametry!G71),"") ->  | I74: =IF(A74<>"",SUMIFS(JPK_KR!AJ:AJ,JPK_KR!V:V,parametry!G71),"") ->  | J74: =IF(A74<>"",SUMIFS(JPK_KR!AK:AK,JPK_KR!V:V,parametry!G71),"") -> 
A75: =IF(parametry!I72<>"",parametry!I72,"") ->  | B75: =IF(A75<>"",parametry!J72,"") ->  | C75: =IF(A75<>"",SUMIFS(JPK_KR!AD:AD,JPK_KR!V:V,parametry!G72),"") ->  | D75: =IF(A75<>"",SUMIFS(JPK_KR!AE:AE,JPK_KR!V:V,parametry!G72),"") ->  | E75: =IF(A75<>"",SUMIFS(JPK_KR!AF:AF,JPK_KR!V:V,parametry!G72),"") ->  | F75: =IF(A75<>"",SUMIFS(JPK_KR!AG:AG,JPK_KR!V:V,parametry!G72),"") ->  | G75: =IF(A75<>"",SUMIFS(JPK_KR!AH:AH,JPK_KR!V:V,parametry!G72),"") ->  | H75: =IF(A75<>"",SUMIFS(JPK_KR!AI:AI,JPK_KR!V:V,parametry!G72),"") ->  | I75: =IF(A75<>"",SUMIFS(JPK_KR!AJ:AJ,JPK_KR!V:V,parametry!G72),"") ->  | J75: =IF(A75<>"",SUMIFS(JPK_KR!AK:AK,JPK_KR!V:V,parametry!G72),"") -> 
A76: =IF(parametry!I73<>"",parametry!I73,"") ->  | B76: =IF(A76<>"",parametry!J73,"") ->  | C76: =IF(A76<>"",SUMIFS(JPK_KR!AD:AD,JPK_KR!V:V,parametry!G73),"") ->  | D76: =IF(A76<>"",SUMIFS(JPK_KR!AE:AE,JPK_KR!V:V,parametry!G73),"") ->  | E76: =IF(A76<>"",SUMIFS(JPK_KR!AF:AF,JPK_KR!V:V,parametry!G73),"") ->  | F76: =IF(A76<>"",SUMIFS(JPK_KR!AG:AG,JPK_KR!V:V,parametry!G73),"") ->  | G76: =IF(A76<>"",SUMIFS(JPK_KR!AH:AH,JPK_KR!V:V,parametry!G73),"") ->  | H76: =IF(A76<>"",SUMIFS(JPK_KR!AI:AI,JPK_KR!V:V,parametry!G73),"") ->  | I76: =IF(A76<>"",SUMIFS(JPK_KR!AJ:AJ,JPK_KR!V:V,parametry!G73),"") ->  | J76: =IF(A76<>"",SUMIFS(JPK_KR!AK:AK,JPK_KR!V:V,parametry!G73),"") -> 
A77: =IF(parametry!I74<>"",parametry!I74,"") ->  | B77: =IF(A77<>"",parametry!J74,"") ->  | C77: =IF(A77<>"",SUMIFS(JPK_KR!AD:AD,JPK_KR!V:V,parametry!G74),"") ->  | D77: =IF(A77<>"",SUMIFS(JPK_KR!AE:AE,JPK_KR!V:V,parametry!G74),"") ->  | E77: =IF(A77<>"",SUMIFS(JPK_KR!AF:AF,JPK_KR!V:V,parametry!G74),"") ->  | F77: =IF(A77<>"",SUMIFS(JPK_KR!AG:AG,JPK_KR!V:V,parametry!G74),"") ->  | G77: =IF(A77<>"",SUMIFS(JPK_KR!AH:AH,JPK_KR!V:V,parametry!G74),"") ->  | H77: =IF(A77<>"",SUMIFS(JPK_KR!AI:AI,JPK_KR!V:V,parametry!G74),"") ->  | I77: =IF(A77<>"",SUMIFS(JPK_KR!AJ:AJ,JPK_KR!V:V,parametry!G74),"") ->  | J77: =IF(A77<>"",SUMIFS(JPK_KR!AK:AK,JPK_KR!V:V,parametry!G74),"") -> 
A78: =IF(parametry!I75<>"",parametry!I75,"") ->  | B78: =IF(A78<>"",parametry!J75,"") ->  | C78: =IF(A78<>"",SUMIFS(JPK_KR!AD:AD,JPK_KR!V:V,parametry!G75),"") ->  | D78: =IF(A78<>"",SUMIFS(JPK_KR!AE:AE,JPK_KR!V:V,parametry!G75),"") ->  | E78: =IF(A78<>"",SUMIFS(JPK_KR!AF:AF,JPK_KR!V:V,parametry!G75),"") ->  | F78: =IF(A78<>"",SUMIFS(JPK_KR!AG:AG,JPK_KR!V:V,parametry!G75),"") ->  | G78: =IF(A78<>"",SUMIFS(JPK_KR!AH:AH,JPK_KR!V:V,parametry!G75),"") ->  | H78: =IF(A78<>"",SUMIFS(JPK_KR!AI:AI,JPK_KR!V:V,parametry!G75),"") ->  | I78: =IF(A78<>"",SUMIFS(JPK_KR!AJ:AJ,JPK_KR!V:V,parametry!G75),"") ->  | J78: =IF(A78<>"",SUMIFS(JPK_KR!AK:AK,JPK_KR!V:V,parametry!G75),"") -> 
A79: =IF(parametry!I76<>"",parametry!I76,"") ->  | B79: =IF(A79<>"",parametry!J76,"") ->  | C79: =IF(A79<>"",SUMIFS(JPK_KR!AD:AD,JPK_KR!V:V,parametry!G76),"") ->  | D79: =IF(A79<>"",SUMIFS(JPK_KR!AE:AE,JPK_KR!V:V,parametry!G76),"") ->  | E79: =IF(A79<>"",SUMIFS(JPK_KR!AF:AF,JPK_KR!V:V,parametry!G76),"") ->  | F79: =IF(A79<>"",SUMIFS(JPK_KR!AG:AG,JPK_KR!V:V,parametry!G76),"") ->  | G79: =IF(A79<>"",SUMIFS(JPK_KR!AH:AH,JPK_KR!V:V,parametry!G76),"") ->  | H79: =IF(A79<>"",SUMIFS(JPK_KR!AI:AI,JPK_KR!V:V,parametry!G76),"") ->  | I79: =IF(A79<>"",SUMIFS(JPK_KR!AJ:AJ,JPK_KR!V:V,parametry!G76),"") ->  | J79: =IF(A79<>"",SUMIFS(JPK_KR!AK:AK,JPK_KR!V:V,parametry!G76),"") -> 
A80: =IF(parametry!I77<>"",parametry!I77,"") ->  | B80: =IF(A80<>"",parametry!J77,"") ->  | C80: =IF(A80<>"",SUMIFS(JPK_KR!AD:AD,JPK_KR!V:V,parametry!G77),"") ->  | D80: =IF(A80<>"",SUMIFS(JPK_KR!AE:AE,JPK_KR!V:V,parametry!G77),"") ->  | E80: =IF(A80<>"",SUMIFS(JPK_KR!AF:AF,JPK_KR!V:V,parametry!G77),"") ->  | F80: =IF(A80<>"",SUMIFS(JPK_KR!AG:AG,JPK_KR!V:V,parametry!G77),"") ->  | G80: =IF(A80<>"",SUMIFS(JPK_KR!AH:AH,JPK_KR!V:V,parametry!G77),"") ->  | H80: =IF(A80<>"",SUMIFS(JPK_KR!AI:AI,JPK_KR!V:V,parametry!G77),"") ->  | I80: =IF(A80<>"",SUMIFS(JPK_KR!AJ:AJ,JPK_KR!V:V,parametry!G77),"") ->  | J80: =IF(A80<>"",SUMIFS(JPK_KR!AK:AK,JPK_KR!V:V,parametry!G77),"") -> 
A81: =IF(parametry!I78<>"",parametry!I78,"") ->  | B81: =IF(A81<>"",parametry!J78,"") ->  | C81: =IF(A81<>"",SUMIFS(JPK_KR!AD:AD,JPK_KR!V:V,parametry!G78),"") ->  | D81: =IF(A81<>"",SUMIFS(JPK_KR!AE:AE,JPK_KR!V:V,parametry!G78),"") ->  | E81: =IF(A81<>"",SUMIFS(JPK_KR!AF:AF,JPK_KR!V:V,parametry!G78),"") ->  | F81: =IF(A81<>"",SUMIFS(JPK_KR!AG:AG,JPK_KR!V:V,parametry!G78),"") ->  | G81: =IF(A81<>"",SUMIFS(JPK_KR!AH:AH,JPK_KR!V:V,parametry!G78),"") ->  | H81: =IF(A81<>"",SUMIFS(JPK_KR!AI:AI,JPK_KR!V:V,parametry!G78),"") ->  | I81: =IF(A81<>"",SUMIFS(JPK_KR!AJ:AJ,JPK_KR!V:V,parametry!G78),"") ->  | J81: =IF(A81<>"",SUMIFS(JPK_KR!AK:AK,JPK_KR!V:V,parametry!G78),"") -> 
A82: =IF(parametry!I79<>"",parametry!I79,"") ->  | B82: =IF(A82<>"",parametry!J79,"") ->  | C82: =IF(A82<>"",SUMIFS(JPK_KR!AD:AD,JPK_KR!V:V,parametry!G79),"") ->  | D82: =IF(A82<>"",SUMIFS(JPK_KR!AE:AE,JPK_KR!V:V,parametry!G79),"") ->  | E82: =IF(A82<>"",SUMIFS(JPK_KR!AF:AF,JPK_KR!V:V,parametry!G79),"") ->  | F82: =IF(A82<>"",SUMIFS(JPK_KR!AG:AG,JPK_KR!V:V,parametry!G79),"") ->  | G82: =IF(A82<>"",SUMIFS(JPK_KR!AH:AH,JPK_KR!V:V,parametry!G79),"") ->  | H82: =IF(A82<>"",SUMIFS(JPK_KR!AI:AI,JPK_KR!V:V,parametry!G79),"") ->  | I82: =IF(A82<>"",SUMIFS(JPK_KR!AJ:AJ,JPK_KR!V:V,parametry!G79),"") ->  | J82: =IF(A82<>"",SUMIFS(JPK_KR!AK:AK,JPK_KR!V:V,parametry!G79),"") -> 
A83: =IF(parametry!I80<>"",parametry!I80,"") ->  | B83: =IF(A83<>"",parametry!J80,"") ->  | C83: =IF(A83<>"",SUMIFS(JPK_KR!AD:AD,JPK_KR!V:V,parametry!G80),"") ->  | D83: =IF(A83<>"",SUMIFS(JPK_KR!AE:AE,JPK_KR!V:V,parametry!G80),"") ->  | E83: =IF(A83<>"",SUMIFS(JPK_KR!AF:AF,JPK_KR!V:V,parametry!G80),"") ->  | F83: =IF(A83<>"",SUMIFS(JPK_KR!AG:AG,JPK_KR!V:V,parametry!G80),"") ->  | G83: =IF(A83<>"",SUMIFS(JPK_KR!AH:AH,JPK_KR!V:V,parametry!G80),"") ->  | H83: =IF(A83<>"",SUMIFS(JPK_KR!AI:AI,JPK_KR!V:V,parametry!G80),"") ->  | I83: =IF(A83<>"",SUMIFS(JPK_KR!AJ:AJ,JPK_KR!V:V,parametry!G80),"") ->  | J83: =IF(A83<>"",SUMIFS(JPK_KR!AK:AK,JPK_KR!V:V,parametry!G80),"") -> 
A84: =IF(parametry!I81<>"",parametry!I81,"") ->  | B84: =IF(A84<>"",parametry!J81,"") ->  | C84: =IF(A84<>"",SUMIFS(JPK_KR!AD:AD,JPK_KR!V:V,parametry!G81),"") ->  | D84: =IF(A84<>"",SUMIFS(JPK_KR!AE:AE,JPK_KR!V:V,parametry!G81),"") ->  | E84: =IF(A84<>"",SUMIFS(JPK_KR!AF:AF,JPK_KR!V:V,parametry!G81),"") ->  | F84: =IF(A84<>"",SUMIFS(JPK_KR!AG:AG,JPK_KR!V:V,parametry!G81),"") ->  | G84: =IF(A84<>"",SUMIFS(JPK_KR!AH:AH,JPK_KR!V:V,parametry!G81),"") ->  | H84: =IF(A84<>"",SUMIFS(JPK_KR!AI:AI,JPK_KR!V:V,parametry!G81),"") ->  | I84: =IF(A84<>"",SUMIFS(JPK_KR!AJ:AJ,JPK_KR!V:V,parametry!G81),"") ->  | J84: =IF(A84<>"",SUMIFS(JPK_KR!AK:AK,JPK_KR!V:V,parametry!G81),"") -> 
A85: =IF(parametry!I82<>"",parametry!I82,"") ->  | B85: =IF(A85<>"",parametry!J82,"") ->  | C85: =IF(A85<>"",SUMIFS(JPK_KR!AD:AD,JPK_KR!V:V,parametry!G82),"") ->  | D85: =IF(A85<>"",SUMIFS(JPK_KR!AE:AE,JPK_KR!V:V,parametry!G82),"") ->  | E85: =IF(A85<>"",SUMIFS(JPK_KR!AF:AF,JPK_KR!V:V,parametry!G82),"") ->  | F85: =IF(A85<>"",SUMIFS(JPK_KR!AG:AG,JPK_KR!V:V,parametry!G82),"") ->  | G85: =IF(A85<>"",SUMIFS(JPK_KR!AH:AH,JPK_KR!V:V,parametry!G82),"") ->  | H85: =IF(A85<>"",SUMIFS(JPK_KR!AI:AI,JPK_KR!V:V,parametry!G82),"") ->  | I85: =IF(A85<>"",SUMIFS(JPK_KR!AJ:AJ,JPK_KR!V:V,parametry!G82),"") ->  | J85: =IF(A85<>"",SUMIFS(JPK_KR!AK:AK,JPK_KR!V:V,parametry!G82),"") -> 
A86: =IF(parametry!I83<>"",parametry!I83,"") ->  | B86: =IF(A86<>"",parametry!J83,"") ->  | C86: =IF(A86<>"",SUMIFS(JPK_KR!AD:AD,JPK_KR!V:V,parametry!G83),"") ->  | D86: =IF(A86<>"",SUMIFS(JPK_KR!AE:AE,JPK_KR!V:V,parametry!G83),"") ->  | E86: =IF(A86<>"",SUMIFS(JPK_KR!AF:AF,JPK_KR!V:V,parametry!G83),"") ->  | F86: =IF(A86<>"",SUMIFS(JPK_KR!AG:AG,JPK_KR!V:V,parametry!G83),"") ->  | G86: =IF(A86<>"",SUMIFS(JPK_KR!AH:AH,JPK_KR!V:V,parametry!G83),"") ->  | H86: =IF(A86<>"",SUMIFS(JPK_KR!AI:AI,JPK_KR!V:V,parametry!G83),"") ->  | I86: =IF(A86<>"",SUMIFS(JPK_KR!AJ:AJ,JPK_KR!V:V,parametry!G83),"") ->  | J86: =IF(A86<>"",SUMIFS(JPK_KR!AK:AK,JPK_KR!V:V,parametry!G83),"") -> 
A87: =IF(parametry!I84<>"",parametry!I84,"") ->  | B87: =IF(A87<>"",parametry!J84,"") ->  | C87: =IF(A87<>"",SUMIFS(JPK_KR!AD:AD,JPK_KR!V:V,parametry!G84),"") ->  | D87: =IF(A87<>"",SUMIFS(JPK_KR!AE:AE,JPK_KR!V:V,parametry!G84),"") ->  | E87: =IF(A87<>"",SUMIFS(JPK_KR!AF:AF,JPK_KR!V:V,parametry!G84),"") ->  | F87: =IF(A87<>"",SUMIFS(JPK_KR!AG:AG,JPK_KR!V:V,parametry!G84),"") ->  | G87: =IF(A87<>"",SUMIFS(JPK_KR!AH:AH,JPK_KR!V:V,parametry!G84),"") ->  | H87: =IF(A87<>"",SUMIFS(JPK_KR!AI:AI,JPK_KR!V:V,parametry!G84),"") ->  | I87: =IF(A87<>"",SUMIFS(JPK_KR!AJ:AJ,JPK_KR!V:V,parametry!G84),"") ->  | J87: =IF(A87<>"",SUMIFS(JPK_KR!AK:AK,JPK_KR!V:V,parametry!G84),"") -> 
A88: =IF(parametry!I85<>"",parametry!I85,"") ->  | B88: =IF(A88<>"",parametry!J85,"") ->  | C88: =IF(A88<>"",SUMIFS(JPK_KR!AD:AD,JPK_KR!V:V,parametry!G85),"") ->  | D88: =IF(A88<>"",SUMIFS(JPK_KR!AE:AE,JPK_KR!V:V,parametry!G85),"") ->  | E88: =IF(A88<>"",SUMIFS(JPK_KR!AF:AF,JPK_KR!V:V,parametry!G85),"") ->  | F88: =IF(A88<>"",SUMIFS(JPK_KR!AG:AG,JPK_KR!V:V,parametry!G85),"") ->  | G88: =IF(A88<>"",SUMIFS(JPK_KR!AH:AH,JPK_KR!V:V,parametry!G85),"") ->  | H88: =IF(A88<>"",SUMIFS(JPK_KR!AI:AI,JPK_KR!V:V,parametry!G85),"") ->  | I88: =IF(A88<>"",SUMIFS(JPK_KR!AJ:AJ,JPK_KR!V:V,parametry!G85),"") ->  | J88: =IF(A88<>"",SUMIFS(JPK_KR!AK:AK,JPK_KR!V:V,parametry!G85),"") -> 
A89: =IF(parametry!I86<>"",parametry!I86,"") ->  | B89: =IF(A89<>"",parametry!J86,"") ->  | C89: =IF(A89<>"",SUMIFS(JPK_KR!AD:AD,JPK_KR!V:V,parametry!G86),"") ->  | D89: =IF(A89<>"",SUMIFS(JPK_KR!AE:AE,JPK_KR!V:V,parametry!G86),"") ->  | E89: =IF(A89<>"",SUMIFS(JPK_KR!AF:AF,JPK_KR!V:V,parametry!G86),"") ->  | F89: =IF(A89<>"",SUMIFS(JPK_KR!AG:AG,JPK_KR!V:V,parametry!G86),"") ->  | G89: =IF(A89<>"",SUMIFS(JPK_KR!AH:AH,JPK_KR!V:V,parametry!G86),"") ->  | H89: =IF(A89<>"",SUMIFS(JPK_KR!AI:AI,JPK_KR!V:V,parametry!G86),"") ->  | I89: =IF(A89<>"",SUMIFS(JPK_KR!AJ:AJ,JPK_KR!V:V,parametry!G86),"") ->  | J89: =IF(A89<>"",SUMIFS(JPK_KR!AK:AK,JPK_KR!V:V,parametry!G86),"") -> 
A90: =IF(parametry!I87<>"",parametry!I87,"") ->  | B90: =IF(A90<>"",parametry!J87,"") ->  | C90: =IF(A90<>"",SUMIFS(JPK_KR!AD:AD,JPK_KR!V:V,parametry!G87),"") ->  | D90: =IF(A90<>"",SUMIFS(JPK_KR!AE:AE,JPK_KR!V:V,parametry!G87),"") ->  | E90: =IF(A90<>"",SUMIFS(JPK_KR!AF:AF,JPK_KR!V:V,parametry!G87),"") ->  | F90: =IF(A90<>"",SUMIFS(JPK_KR!AG:AG,JPK_KR!V:V,parametry!G87),"") ->  | G90: =IF(A90<>"",SUMIFS(JPK_KR!AH:AH,JPK_KR!V:V,parametry!G87),"") ->  | H90: =IF(A90<>"",SUMIFS(JPK_KR!AI:AI,JPK_KR!V:V,parametry!G87),"") ->  | I90: =IF(A90<>"",SUMIFS(JPK_KR!AJ:AJ,JPK_KR!V:V,parametry!G87),"") ->  | J90: =IF(A90<>"",SUMIFS(JPK_KR!AK:AK,JPK_KR!V:V,parametry!G87),"") -> 
A91: =IF(parametry!I88<>"",parametry!I88,"") ->  | B91: =IF(A91<>"",parametry!J88,"") ->  | C91: =IF(A91<>"",SUMIFS(JPK_KR!AD:AD,JPK_KR!V:V,parametry!G88),"") ->  | D91: =IF(A91<>"",SUMIFS(JPK_KR!AE:AE,JPK_KR!V:V,parametry!G88),"") ->  | E91: =IF(A91<>"",SUMIFS(JPK_KR!AF:AF,JPK_KR!V:V,parametry!G88),"") ->  | F91: =IF(A91<>"",SUMIFS(JPK_KR!AG:AG,JPK_KR!V:V,parametry!G88),"") ->  | G91: =IF(A91<>"",SUMIFS(JPK_KR!AH:AH,JPK_KR!V:V,parametry!G88),"") ->  | H91: =IF(A91<>"",SUMIFS(JPK_KR!AI:AI,JPK_KR!V:V,parametry!G88),"") ->  | I91: =IF(A91<>"",SUMIFS(JPK_KR!AJ:AJ,JPK_KR!V:V,parametry!G88),"") ->  | J91: =IF(A91<>"",SUMIFS(JPK_KR!AK:AK,JPK_KR!V:V,parametry!G88),"") -> 
A92: =IF(parametry!I89<>"",parametry!I89,"") ->  | B92: =IF(A92<>"",parametry!J89,"") ->  | C92: =IF(A92<>"",SUMIFS(JPK_KR!AD:AD,JPK_KR!V:V,parametry!G89),"") ->  | D92: =IF(A92<>"",SUMIFS(JPK_KR!AE:AE,JPK_KR!V:V,parametry!G89),"") ->  | E92: =IF(A92<>"",SUMIFS(JPK_KR!AF:AF,JPK_KR!V:V,parametry!G89),"") ->  | F92: =IF(A92<>"",SUMIFS(JPK_KR!AG:AG,JPK_KR!V:V,parametry!G89),"") ->  | G92: =IF(A92<>"",SUMIFS(JPK_KR!AH:AH,JPK_KR!V:V,parametry!G89),"") ->  | H92: =IF(A92<>"",SUMIFS(JPK_KR!AI:AI,JPK_KR!V:V,parametry!G89),"") ->  | I92: =IF(A92<>"",SUMIFS(JPK_KR!AJ:AJ,JPK_KR!V:V,parametry!G89),"") ->  | J92: =IF(A92<>"",SUMIFS(JPK_KR!AK:AK,JPK_KR!V:V,parametry!G89),"") -> 
A93: =IF(parametry!I90<>"",parametry!I90,"") ->  | B93: =IF(A93<>"",parametry!J90,"") ->  | C93: =IF(A93<>"",SUMIFS(JPK_KR!AD:AD,JPK_KR!V:V,parametry!G90),"") ->  | D93: =IF(A93<>"",SUMIFS(JPK_KR!AE:AE,JPK_KR!V:V,parametry!G90),"") ->  | E93: =IF(A93<>"",SUMIFS(JPK_KR!AF:AF,JPK_KR!V:V,parametry!G90),"") ->  | F93: =IF(A93<>"",SUMIFS(JPK_KR!AG:AG,JPK_KR!V:V,parametry!G90),"") ->  | G93: =IF(A93<>"",SUMIFS(JPK_KR!AH:AH,JPK_KR!V:V,parametry!G90),"") ->  | H93: =IF(A93<>"",SUMIFS(JPK_KR!AI:AI,JPK_KR!V:V,parametry!G90),"") ->  | I93: =IF(A93<>"",SUMIFS(JPK_KR!AJ:AJ,JPK_KR!V:V,parametry!G90),"") ->  | J93: =IF(A93<>"",SUMIFS(JPK_KR!AK:AK,JPK_KR!V:V,parametry!G90),"") -> 
A94: =IF(parametry!I91<>"",parametry!I91,"") ->  | B94: =IF(A94<>"",parametry!J91,"") ->  | C94: =IF(A94<>"",SUMIFS(JPK_KR!AD:AD,JPK_KR!V:V,parametry!G91),"") ->  | D94: =IF(A94<>"",SUMIFS(JPK_KR!AE:AE,JPK_KR!V:V,parametry!G91),"") ->  | E94: =IF(A94<>"",SUMIFS(JPK_KR!AF:AF,JPK_KR!V:V,parametry!G91),"") ->  | F94: =IF(A94<>"",SUMIFS(JPK_KR!AG:AG,JPK_KR!V:V,parametry!G91),"") ->  | G94: =IF(A94<>"",SUMIFS(JPK_KR!AH:AH,JPK_KR!V:V,parametry!G91),"") ->  | H94: =IF(A94<>"",SUMIFS(JPK_KR!AI:AI,JPK_KR!V:V,parametry!G91),"") ->  | I94: =IF(A94<>"",SUMIFS(JPK_KR!AJ:AJ,JPK_KR!V:V,parametry!G91),"") ->  | J94: =IF(A94<>"",SUMIFS(JPK_KR!AK:AK,JPK_KR!V:V,parametry!G91),"") -> 
A95: =IF(parametry!I92<>"",parametry!I92,"") ->  | B95: =IF(A95<>"",parametry!J92,"") ->  | C95: =IF(A95<>"",SUMIFS(JPK_KR!AD:AD,JPK_KR!V:V,parametry!G92),"") ->  | D95: =IF(A95<>"",SUMIFS(JPK_KR!AE:AE,JPK_KR!V:V,parametry!G92),"") ->  | E95: =IF(A95<>"",SUMIFS(JPK_KR!AF:AF,JPK_KR!V:V,parametry!G92),"") ->  | F95: =IF(A95<>"",SUMIFS(JPK_KR!AG:AG,JPK_KR!V:V,parametry!G92),"") ->  | G95: =IF(A95<>"",SUMIFS(JPK_KR!AH:AH,JPK_KR!V:V,parametry!G92),"") ->  | H95: =IF(A95<>"",SUMIFS(JPK_KR!AI:AI,JPK_KR!V:V,parametry!G92),"") ->  | I95: =IF(A95<>"",SUMIFS(JPK_KR!AJ:AJ,JPK_KR!V:V,parametry!G92),"") ->  | J95: =IF(A95<>"",SUMIFS(JPK_KR!AK:AK,JPK_KR!V:V,parametry!G92),"") -> 
A96: =IF(parametry!I93<>"",parametry!I93,"") ->  | B96: =IF(A96<>"",parametry!J93,"") ->  | C96: =IF(A96<>"",SUMIFS(JPK_KR!AD:AD,JPK_KR!V:V,parametry!G93),"") ->  | D96: =IF(A96<>"",SUMIFS(JPK_KR!AE:AE,JPK_KR!V:V,parametry!G93),"") ->  | E96: =IF(A96<>"",SUMIFS(JPK_KR!AF:AF,JPK_KR!V:V,parametry!G93),"") ->  | F96: =IF(A96<>"",SUMIFS(JPK_KR!AG:AG,JPK_KR!V:V,parametry!G93),"") ->  | G96: =IF(A96<>"",SUMIFS(JPK_KR!AH:AH,JPK_KR!V:V,parametry!G93),"") ->  | H96: =IF(A96<>"",SUMIFS(JPK_KR!AI:AI,JPK_KR!V:V,parametry!G93),"") ->  | I96: =IF(A96<>"",SUMIFS(JPK_KR!AJ:AJ,JPK_KR!V:V,parametry!G93),"") ->  | J96: =IF(A96<>"",SUMIFS(JPK_KR!AK:AK,JPK_KR!V:V,parametry!G93),"") -> 
A97: =IF(parametry!I94<>"",parametry!I94,"") ->  | B97: =IF(A97<>"",parametry!J94,"") ->  | C97: =IF(A97<>"",SUMIFS(JPK_KR!AD:AD,JPK_KR!V:V,parametry!G94),"") ->  | D97: =IF(A97<>"",SUMIFS(JPK_KR!AE:AE,JPK_KR!V:V,parametry!G94),"") ->  | E97: =IF(A97<>"",SUMIFS(JPK_KR!AF:AF,JPK_KR!V:V,parametry!G94),"") ->  | F97: =IF(A97<>"",SUMIFS(JPK_KR!AG:AG,JPK_KR!V:V,parametry!G94),"") ->  | G97: =IF(A97<>"",SUMIFS(JPK_KR!AH:AH,JPK_KR!V:V,parametry!G94),"") ->  | H97: =IF(A97<>"",SUMIFS(JPK_KR!AI:AI,JPK_KR!V:V,parametry!G94),"") ->  | I97: =IF(A97<>"",SUMIFS(JPK_KR!AJ:AJ,JPK_KR!V:V,parametry!G94),"") ->  | J97: =IF(A97<>"",SUMIFS(JPK_KR!AK:AK,JPK_KR!V:V,parametry!G94),"") -> 
A98: =IF(parametry!I95<>"",parametry!I95,"") ->  | B98: =IF(A98<>"",parametry!J95,"") ->  | C98: =IF(A98<>"",SUMIFS(JPK_KR!AD:AD,JPK_KR!V:V,parametry!G95),"") ->  | D98: =IF(A98<>"",SUMIFS(JPK_KR!AE:AE,JPK_KR!V:V,parametry!G95),"") ->  | E98: =IF(A98<>"",SUMIFS(JPK_KR!AF:AF,JPK_KR!V:V,parametry!G95),"") ->  | F98: =IF(A98<>"",SUMIFS(JPK_KR!AG:AG,JPK_KR!V:V,parametry!G95),"") ->  | G98: =IF(A98<>"",SUMIFS(JPK_KR!AH:AH,JPK_KR!V:V,parametry!G95),"") ->  | H98: =IF(A98<>"",SUMIFS(JPK_KR!AI:AI,JPK_KR!V:V,parametry!G95),"") ->  | I98: =IF(A98<>"",SUMIFS(JPK_KR!AJ:AJ,JPK_KR!V:V,parametry!G95),"") ->  | J98: =IF(A98<>"",SUMIFS(JPK_KR!AK:AK,JPK_KR!V:V,parametry!G95),"") -> 
A99: =IF(parametry!I96<>"",parametry!I96,"") ->  | B99: =IF(A99<>"",parametry!J96,"") ->  | C99: =IF(A99<>"",SUMIFS(JPK_KR!AD:AD,JPK_KR!V:V,parametry!G96),"") ->  | D99: =IF(A99<>"",SUMIFS(JPK_KR!AE:AE,JPK_KR!V:V,parametry!G96),"") ->  | E99: =IF(A99<>"",SUMIFS(JPK_KR!AF:AF,JPK_KR!V:V,parametry!G96),"") ->  | F99: =IF(A99<>"",SUMIFS(JPK_KR!AG:AG,JPK_KR!V:V,parametry!G96),"") ->  | G99: =IF(A99<>"",SUMIFS(JPK_KR!AH:AH,JPK_KR!V:V,parametry!G96),"") ->  | H99: =IF(A99<>"",SUMIFS(JPK_KR!AI:AI,JPK_KR!V:V,parametry!G96),"") ->  | I99: =IF(A99<>"",SUMIFS(JPK_KR!AJ:AJ,JPK_KR!V:V,parametry!G96),"") ->  | J99: =IF(A99<>"",SUMIFS(JPK_KR!AK:AK,JPK_KR!V:V,parametry!G96),"") -> 
A100: =IF(parametry!I97<>"",parametry!I97,"") ->  | B100: =IF(A100<>"",parametry!J97,"") ->  | C100: =IF(A100<>"",SUMIFS(JPK_KR!AD:AD,JPK_KR!V:V,parametry!G97),"") ->  | D100: =IF(A100<>"",SUMIFS(JPK_KR!AE:AE,JPK_KR!V:V,parametry!G97),"") ->  | E100: =IF(A100<>"",SUMIFS(JPK_KR!AF:AF,JPK_KR!V:V,parametry!G97),"") ->  | F100: =IF(A100<>"",SUMIFS(JPK_KR!AG:AG,JPK_KR!V:V,parametry!G97),"") ->  | G100: =IF(A100<>"",SUMIFS(JPK_KR!AH:AH,JPK_KR!V:V,parametry!G97),"") ->  | H100: =IF(A100<>"",SUMIFS(JPK_KR!AI:AI,JPK_KR!V:V,parametry!G97),"") ->  | I100: =IF(A100<>"",SUMIFS(JPK_KR!AJ:AJ,JPK_KR!V:V,parametry!G97),"") ->  | J100: =IF(A100<>"",SUMIFS(JPK_KR!AK:AK,JPK_KR!V:V,parametry!G97),"") -> 
A101: =IF(parametry!I98<>"",parametry!I98,"") ->  | B101: =IF(A101<>"",parametry!J98,"") ->  | C101: =IF(A101<>"",SUMIFS(JPK_KR!AD:AD,JPK_KR!V:V,parametry!G98),"") ->  | D101: =IF(A101<>"",SUMIFS(JPK_KR!AE:AE,JPK_KR!V:V,parametry!G98),"") ->  | E101: =IF(A101<>"",SUMIFS(JPK_KR!AF:AF,JPK_KR!V:V,parametry!G98),"") ->  | F101: =IF(A101<>"",SUMIFS(JPK_KR!AG:AG,JPK_KR!V:V,parametry!G98),"") ->  | G101: =IF(A101<>"",SUMIFS(JPK_KR!AH:AH,JPK_KR!V:V,parametry!G98),"") ->  | H101: =IF(A101<>"",SUMIFS(JPK_KR!AI:AI,JPK_KR!V:V,parametry!G98),"") ->  | I101: =IF(A101<>"",SUMIFS(JPK_KR!AJ:AJ,JPK_KR!V:V,parametry!G98),"") ->  | J101: =IF(A101<>"",SUMIFS(JPK_KR!AK:AK,JPK_KR!V:V,parametry!G98),"") -> 
A102: =IF(parametry!I99<>"",parametry!I99,"") ->  | B102: =IF(A102<>"",parametry!J99,"") ->  | C102: =IF(A102<>"",SUMIFS(JPK_KR!AD:AD,JPK_KR!V:V,parametry!G99),"") ->  | D102: =IF(A102<>"",SUMIFS(JPK_KR!AE:AE,JPK_KR!V:V,parametry!G99),"") ->  | E102: =IF(A102<>"",SUMIFS(JPK_KR!AF:AF,JPK_KR!V:V,parametry!G99),"") ->  | F102: =IF(A102<>"",SUMIFS(JPK_KR!AG:AG,JPK_KR!V:V,parametry!G99),"") ->  | G102: =IF(A102<>"",SUMIFS(JPK_KR!AH:AH,JPK_KR!V:V,parametry!G99),"") ->  | H102: =IF(A102<>"",SUMIFS(JPK_KR!AI:AI,JPK_KR!V:V,parametry!G99),"") ->  | I102: =IF(A102<>"",SUMIFS(JPK_KR!AJ:AJ,JPK_KR!V:V,parametry!G99),"") ->  | J102: =IF(A102<>"",SUMIFS(JPK_KR!AK:AK,JPK_KR!V:V,parametry!G99),"") -> 
A103: =IF(parametry!I100<>"",parametry!I100,"") ->  | B103: =IF(A103<>"",parametry!J100,"") ->  | C103: =IF(A103<>"",SUMIFS(JPK_KR!AD:AD,JPK_KR!V:V,parametry!G100),"") ->  | D103: =IF(A103<>"",SUMIFS(JPK_KR!AE:AE,JPK_KR!V:V,parametry!G100),"") ->  | E103: =IF(A103<>"",SUMIFS(JPK_KR!AF:AF,JPK_KR!V:V,parametry!G100),"") ->  | F103: =IF(A103<>"",SUMIFS(JPK_KR!AG:AG,JPK_KR!V:V,parametry!G100),"") ->  | G103: =IF(A103<>"",SUMIFS(JPK_KR!AH:AH,JPK_KR!V:V,parametry!G100),"") ->  | H103: =IF(A103<>"",SUMIFS(JPK_KR!AI:AI,JPK_KR!V:V,parametry!G100),"") ->  | I103: =IF(A103<>"",SUMIFS(JPK_KR!AJ:AJ,JPK_KR!V:V,parametry!G100),"") ->  | J103: =IF(A103<>"",SUMIFS(JPK_KR!AK:AK,JPK_KR!V:V,parametry!G100),"") -> 
A104: =IF(parametry!I101<>"",parametry!I101,"") ->  | B104: =IF(A104<>"",parametry!J101,"") ->  | C104: =IF(A104<>"",SUMIFS(JPK_KR!AD:AD,JPK_KR!V:V,parametry!G101),"") ->  | D104: =IF(A104<>"",SUMIFS(JPK_KR!AE:AE,JPK_KR!V:V,parametry!G101),"") ->  | E104: =IF(A104<>"",SUMIFS(JPK_KR!AF:AF,JPK_KR!V:V,parametry!G101),"") ->  | F104: =IF(A104<>"",SUMIFS(JPK_KR!AG:AG,JPK_KR!V:V,parametry!G101),"") ->  | G104: =IF(A104<>"",SUMIFS(JPK_KR!AH:AH,JPK_KR!V:V,parametry!G101),"") ->  | H104: =IF(A104<>"",SUMIFS(JPK_KR!AI:AI,JPK_KR!V:V,parametry!G101),"") ->  | I104: =IF(A104<>"",SUMIFS(JPK_KR!AJ:AJ,JPK_KR!V:V,parametry!G101),"") ->  | J104: =IF(A104<>"",SUMIFS(JPK_KR!AK:AK,JPK_KR!V:V,parametry!G101),"") -> 
A105: =IF(parametry!I102<>"",parametry!I102,"") ->  | B105: =IF(A105<>"",parametry!J102,"") ->  | C105: =IF(A105<>"",SUMIFS(JPK_KR!AD:AD,JPK_KR!V:V,parametry!G102),"") ->  | D105: =IF(A105<>"",SUMIFS(JPK_KR!AE:AE,JPK_KR!V:V,parametry!G102),"") ->  | E105: =IF(A105<>"",SUMIFS(JPK_KR!AF:AF,JPK_KR!V:V,parametry!G102),"") ->  | F105: =IF(A105<>"",SUMIFS(JPK_KR!AG:AG,JPK_KR!V:V,parametry!G102),"") ->  | G105: =IF(A105<>"",SUMIFS(JPK_KR!AH:AH,JPK_KR!V:V,parametry!G102),"") ->  | H105: =IF(A105<>"",SUMIFS(JPK_KR!AI:AI,JPK_KR!V:V,parametry!G102),"") ->  | I105: =IF(A105<>"",SUMIFS(JPK_KR!AJ:AJ,JPK_KR!V:V,parametry!G102),"") ->  | J105: =IF(A105<>"",SUMIFS(JPK_KR!AK:AK,JPK_KR!V:V,parametry!G102),"") -> 
A106: =IF(parametry!I103<>"",parametry!I103,"") ->  | B106: =IF(A106<>"",parametry!J103,"") ->  | C106: =IF(A106<>"",SUMIFS(JPK_KR!AD:AD,JPK_KR!V:V,parametry!G103),"") ->  | D106: =IF(A106<>"",SUMIFS(JPK_KR!AE:AE,JPK_KR!V:V,parametry!G103),"") ->  | E106: =IF(A106<>"",SUMIFS(JPK_KR!AF:AF,JPK_KR!V:V,parametry!G103),"") ->  | F106: =IF(A106<>"",SUMIFS(JPK_KR!AG:AG,JPK_KR!V:V,parametry!G103),"") ->  | G106: =IF(A106<>"",SUMIFS(JPK_KR!AH:AH,JPK_KR!V:V,parametry!G103),"") ->  | H106: =IF(A106<>"",SUMIFS(JPK_KR!AI:AI,JPK_KR!V:V,parametry!G103),"") ->  | I106: =IF(A106<>"",SUMIFS(JPK_KR!AJ:AJ,JPK_KR!V:V,parametry!G103),"") ->  | J106: =IF(A106<>"",SUMIFS(JPK_KR!AK:AK,JPK_KR!V:V,parametry!G103),"") -> 
A107: =IF(parametry!I104<>"",parametry!I104,"") ->  | B107: =IF(A107<>"",parametry!J104,"") ->  | C107: =IF(A107<>"",SUMIFS(JPK_KR!AD:AD,JPK_KR!V:V,parametry!G104),"") ->  | D107: =IF(A107<>"",SUMIFS(JPK_KR!AE:AE,JPK_KR!V:V,parametry!G104),"") ->  | E107: =IF(A107<>"",SUMIFS(JPK_KR!AF:AF,JPK_KR!V:V,parametry!G104),"") ->  | F107: =IF(A107<>"",SUMIFS(JPK_KR!AG:AG,JPK_KR!V:V,parametry!G104),"") ->  | G107: =IF(A107<>"",SUMIFS(JPK_KR!AH:AH,JPK_KR!V:V,parametry!G104),"") ->  | H107: =IF(A107<>"",SUMIFS(JPK_KR!AI:AI,JPK_KR!V:V,parametry!G104),"") ->  | I107: =IF(A107<>"",SUMIFS(JPK_KR!AJ:AJ,JPK_KR!V:V,parametry!G104),"") ->  | J107: =IF(A107<>"",SUMIFS(JPK_KR!AK:AK,JPK_KR!V:V,parametry!G104),"") -> 
A108: =IF(parametry!I105<>"",parametry!I105,"") ->  | B108: =IF(A108<>"",parametry!J105,"") ->  | C108: =IF(A108<>"",SUMIFS(JPK_KR!AD:AD,JPK_KR!V:V,parametry!G105),"") ->  | D108: =IF(A108<>"",SUMIFS(JPK_KR!AE:AE,JPK_KR!V:V,parametry!G105),"") ->  | E108: =IF(A108<>"",SUMIFS(JPK_KR!AF:AF,JPK_KR!V:V,parametry!G105),"") ->  | F108: =IF(A108<>"",SUMIFS(JPK_KR!AG:AG,JPK_KR!V:V,parametry!G105),"") ->  | G108: =IF(A108<>"",SUMIFS(JPK_KR!AH:AH,JPK_KR!V:V,parametry!G105),"") ->  | H108: =IF(A108<>"",SUMIFS(JPK_KR!AI:AI,JPK_KR!V:V,parametry!G105),"") ->  | I108: =IF(A108<>"",SUMIFS(JPK_KR!AJ:AJ,JPK_KR!V:V,parametry!G105),"") ->  | J108: =IF(A108<>"",SUMIFS(JPK_KR!AK:AK,JPK_KR!V:V,parametry!G105),"") -> 
A109: =IF(parametry!I106<>"",parametry!I106,"") ->  | B109: =IF(A109<>"",parametry!J106,"") ->  | C109: =IF(A109<>"",SUMIFS(JPK_KR!AD:AD,JPK_KR!V:V,parametry!G106),"") ->  | D109: =IF(A109<>"",SUMIFS(JPK_KR!AE:AE,JPK_KR!V:V,parametry!G106),"") ->  | E109: =IF(A109<>"",SUMIFS(JPK_KR!AF:AF,JPK_KR!V:V,parametry!G106),"") ->  | F109: =IF(A109<>"",SUMIFS(JPK_KR!AG:AG,JPK_KR!V:V,parametry!G106),"") ->  | G109: =IF(A109<>"",SUMIFS(JPK_KR!AH:AH,JPK_KR!V:V,parametry!G106),"") ->  | H109: =IF(A109<>"",SUMIFS(JPK_KR!AI:AI,JPK_KR!V:V,parametry!G106),"") ->  | I109: =IF(A109<>"",SUMIFS(JPK_KR!AJ:AJ,JPK_KR!V:V,parametry!G106),"") ->  | J109: =IF(A109<>"",SUMIFS(JPK_KR!AK:AK,JPK_KR!V:V,parametry!G106),"") -> 
A110: =IF(parametry!I107<>"",parametry!I107,"") ->  | B110: =IF(A110<>"",parametry!J107,"") ->  | C110: =IF(A110<>"",SUMIFS(JPK_KR!AD:AD,JPK_KR!V:V,parametry!G107),"") ->  | D110: =IF(A110<>"",SUMIFS(JPK_KR!AE:AE,JPK_KR!V:V,parametry!G107),"") ->  | E110: =IF(A110<>"",SUMIFS(JPK_KR!AF:AF,JPK_KR!V:V,parametry!G107),"") ->  | F110: =IF(A110<>"",SUMIFS(JPK_KR!AG:AG,JPK_KR!V:V,parametry!G107),"") ->  | G110: =IF(A110<>"",SUMIFS(JPK_KR!AH:AH,JPK_KR!V:V,parametry!G107),"") ->  | H110: =IF(A110<>"",SUMIFS(JPK_KR!AI:AI,JPK_KR!V:V,parametry!G107),"") ->  | I110: =IF(A110<>"",SUMIFS(JPK_KR!AJ:AJ,JPK_KR!V:V,parametry!G107),"") ->  | J110: =IF(A110<>"",SUMIFS(JPK_KR!AK:AK,JPK_KR!V:V,parametry!G107),"") -> 
A111: =IF(parametry!I108<>"",parametry!I108,"") ->  | B111: =IF(A111<>"",parametry!J108,"") ->  | C111: =IF(A111<>"",SUMIFS(JPK_KR!AD:AD,JPK_KR!V:V,parametry!G108),"") ->  | D111: =IF(A111<>"",SUMIFS(JPK_KR!AE:AE,JPK_KR!V:V,parametry!G108),"") ->  | E111: =IF(A111<>"",SUMIFS(JPK_KR!AF:AF,JPK_KR!V:V,parametry!G108),"") ->  | F111: =IF(A111<>"",SUMIFS(JPK_KR!AG:AG,JPK_KR!V:V,parametry!G108),"") ->  | G111: =IF(A111<>"",SUMIFS(JPK_KR!AH:AH,JPK_KR!V:V,parametry!G108),"") ->  | H111: =IF(A111<>"",SUMIFS(JPK_KR!AI:AI,JPK_KR!V:V,parametry!G108),"") ->  | I111: =IF(A111<>"",SUMIFS(JPK_KR!AJ:AJ,JPK_KR!V:V,parametry!G108),"") ->  | J111: =IF(A111<>"",SUMIFS(JPK_KR!AK:AK,JPK_KR!V:V,parametry!G108),"") -> 
A112: =IF(parametry!I109<>"",parametry!I109,"") ->  | B112: =IF(A112<>"",parametry!J109,"") ->  | C112: =IF(A112<>"",SUMIFS(JPK_KR!AD:AD,JPK_KR!V:V,parametry!G109),"") ->  | D112: =IF(A112<>"",SUMIFS(JPK_KR!AE:AE,JPK_KR!V:V,parametry!G109),"") ->  | E112: =IF(A112<>"",SUMIFS(JPK_KR!AF:AF,JPK_KR!V:V,parametry!G109),"") ->  | F112: =IF(A112<>"",SUMIFS(JPK_KR!AG:AG,JPK_KR!V:V,parametry!G109),"") ->  | G112: =IF(A112<>"",SUMIFS(JPK_KR!AH:AH,JPK_KR!V:V,parametry!G109),"") ->  | H112: =IF(A112<>"",SUMIFS(JPK_KR!AI:AI,JPK_KR!V:V,parametry!G109),"") ->  | I112: =IF(A112<>"",SUMIFS(JPK_KR!AJ:AJ,JPK_KR!V:V,parametry!G109),"") ->  | J112: =IF(A112<>"",SUMIFS(JPK_KR!AK:AK,JPK_KR!V:V,parametry!G109),"") -> 
A113: =IF(parametry!I110<>"",parametry!I110,"") ->  | B113: =IF(A113<>"",parametry!J110,"") ->  | C113: =IF(A113<>"",SUMIFS(JPK_KR!AD:AD,JPK_KR!V:V,parametry!G110),"") ->  | D113: =IF(A113<>"",SUMIFS(JPK_KR!AE:AE,JPK_KR!V:V,parametry!G110),"") ->  | E113: =IF(A113<>"",SUMIFS(JPK_KR!AF:AF,JPK_KR!V:V,parametry!G110),"") ->  | F113: =IF(A113<>"",SUMIFS(JPK_KR!AG:AG,JPK_KR!V:V,parametry!G110),"") ->  | G113: =IF(A113<>"",SUMIFS(JPK_KR!AH:AH,JPK_KR!V:V,parametry!G110),"") ->  | H113: =IF(A113<>"",SUMIFS(JPK_KR!AI:AI,JPK_KR!V:V,parametry!G110),"") ->  | I113: =IF(A113<>"",SUMIFS(JPK_KR!AJ:AJ,JPK_KR!V:V,parametry!G110),"") ->  | J113: =IF(A113<>"",SUMIFS(JPK_KR!AK:AK,JPK_KR!V:V,parametry!G110),"") -> 
A114: =IF(parametry!I111<>"",parametry!I111,"") ->  | B114: =IF(A114<>"",parametry!J111,"") ->  | C114: =IF(A114<>"",SUMIFS(JPK_KR!AD:AD,JPK_KR!V:V,parametry!G111),"") ->  | D114: =IF(A114<>"",SUMIFS(JPK_KR!AE:AE,JPK_KR!V:V,parametry!G111),"") ->  | E114: =IF(A114<>"",SUMIFS(JPK_KR!AF:AF,JPK_KR!V:V,parametry!G111),"") ->  | F114: =IF(A114<>"",SUMIFS(JPK_KR!AG:AG,JPK_KR!V:V,parametry!G111),"") ->  | G114: =IF(A114<>"",SUMIFS(JPK_KR!AH:AH,JPK_KR!V:V,parametry!G111),"") ->  | H114: =IF(A114<>"",SUMIFS(JPK_KR!AI:AI,JPK_KR!V:V,parametry!G111),"") ->  | I114: =IF(A114<>"",SUMIFS(JPK_KR!AJ:AJ,JPK_KR!V:V,parametry!G111),"") ->  | J114: =IF(A114<>"",SUMIFS(JPK_KR!AK:AK,JPK_KR!V:V,parametry!G111),"") -> 
A115: =IF(parametry!I112<>"",parametry!I112,"") ->  | B115: =IF(A115<>"",parametry!J112,"") ->  | C115: =IF(A115<>"",SUMIFS(JPK_KR!AD:AD,JPK_KR!V:V,parametry!G112),"") ->  | D115: =IF(A115<>"",SUMIFS(JPK_KR!AE:AE,JPK_KR!V:V,parametry!G112),"") ->  | E115: =IF(A115<>"",SUMIFS(JPK_KR!AF:AF,JPK_KR!V:V,parametry!G112),"") ->  | F115: =IF(A115<>"",SUMIFS(JPK_KR!AG:AG,JPK_KR!V:V,parametry!G112),"") ->  | G115: =IF(A115<>"",SUMIFS(JPK_KR!AH:AH,JPK_KR!V:V,parametry!G112),"") ->  | H115: =IF(A115<>"",SUMIFS(JPK_KR!AI:AI,JPK_KR!V:V,parametry!G112),"") ->  | I115: =IF(A115<>"",SUMIFS(JPK_KR!AJ:AJ,JPK_KR!V:V,parametry!G112),"") ->  | J115: =IF(A115<>"",SUMIFS(JPK_KR!AK:AK,JPK_KR!V:V,parametry!G112),"") -> 
A116: =IF(parametry!I113<>"",parametry!I113,"") ->  | B116: =IF(A116<>"",parametry!J113,"") ->  | C116: =IF(A116<>"",SUMIFS(JPK_KR!AD:AD,JPK_KR!V:V,parametry!G113),"") ->  | D116: =IF(A116<>"",SUMIFS(JPK_KR!AE:AE,JPK_KR!V:V,parametry!G113),"") ->  | E116: =IF(A116<>"",SUMIFS(JPK_KR!AF:AF,JPK_KR!V:V,parametry!G113),"") ->  | F116: =IF(A116<>"",SUMIFS(JPK_KR!AG:AG,JPK_KR!V:V,parametry!G113),"") ->  | G116: =IF(A116<>"",SUMIFS(JPK_KR!AH:AH,JPK_KR!V:V,parametry!G113),"") ->  | H116: =IF(A116<>"",SUMIFS(JPK_KR!AI:AI,JPK_KR!V:V,parametry!G113),"") ->  | I116: =IF(A116<>"",SUMIFS(JPK_KR!AJ:AJ,JPK_KR!V:V,parametry!G113),"") ->  | J116: =IF(A116<>"",SUMIFS(JPK_KR!AK:AK,JPK_KR!V:V,parametry!G113),"") -> 
A117: =IF(parametry!I114<>"",parametry!I114,"") ->  | B117: =IF(A117<>"",parametry!J114,"") ->  | C117: =IF(A117<>"",SUMIFS(JPK_KR!AD:AD,JPK_KR!V:V,parametry!G114),"") ->  | D117: =IF(A117<>"",SUMIFS(JPK_KR!AE:AE,JPK_KR!V:V,parametry!G114),"") ->  | E117: =IF(A117<>"",SUMIFS(JPK_KR!AF:AF,JPK_KR!V:V,parametry!G114),"") ->  | F117: =IF(A117<>"",SUMIFS(JPK_KR!AG:AG,JPK_KR!V:V,parametry!G114),"") ->  | G117: =IF(A117<>"",SUMIFS(JPK_KR!AH:AH,JPK_KR!V:V,parametry!G114),"") ->  | H117: =IF(A117<>"",SUMIFS(JPK_KR!AI:AI,JPK_KR!V:V,parametry!G114),"") ->  | I117: =IF(A117<>"",SUMIFS(JPK_KR!AJ:AJ,JPK_KR!V:V,parametry!G114),"") ->  | J117: =IF(A117<>"",SUMIFS(JPK_KR!AK:AK,JPK_KR!V:V,parametry!G114),"") -> 
A118: =IF(parametry!I115<>"",parametry!I115,"") ->  | B118: =IF(A118<>"",parametry!J115,"") ->  | C118: =IF(A118<>"",SUMIFS(JPK_KR!AD:AD,JPK_KR!V:V,parametry!G115),"") ->  | D118: =IF(A118<>"",SUMIFS(JPK_KR!AE:AE,JPK_KR!V:V,parametry!G115),"") ->  | E118: =IF(A118<>"",SUMIFS(JPK_KR!AF:AF,JPK_KR!V:V,parametry!G115),"") ->  | F118: =IF(A118<>"",SUMIFS(JPK_KR!AG:AG,JPK_KR!V:V,parametry!G115),"") ->  | G118: =IF(A118<>"",SUMIFS(JPK_KR!AH:AH,JPK_KR!V:V,parametry!G115),"") ->  | H118: =IF(A118<>"",SUMIFS(JPK_KR!AI:AI,JPK_KR!V:V,parametry!G115),"") ->  | I118: =IF(A118<>"",SUMIFS(JPK_KR!AJ:AJ,JPK_KR!V:V,parametry!G115),"") ->  | J118: =IF(A118<>"",SUMIFS(JPK_KR!AK:AK,JPK_KR!V:V,parametry!G115),"") -> 
A119: =IF(parametry!I116<>"",parametry!I116,"") ->  | B119: =IF(A119<>"",parametry!J116,"") ->  | C119: =IF(A119<>"",SUMIFS(JPK_KR!AD:AD,JPK_KR!V:V,parametry!G116),"") ->  | D119: =IF(A119<>"",SUMIFS(JPK_KR!AE:AE,JPK_KR!V:V,parametry!G116),"") ->  | E119: =IF(A119<>"",SUMIFS(JPK_KR!AF:AF,JPK_KR!V:V,parametry!G116),"") ->  | F119: =IF(A119<>"",SUMIFS(JPK_KR!AG:AG,JPK_KR!V:V,parametry!G116),"") ->  | G119: =IF(A119<>"",SUMIFS(JPK_KR!AH:AH,JPK_KR!V:V,parametry!G116),"") ->  | H119: =IF(A119<>"",SUMIFS(JPK_KR!AI:AI,JPK_KR!V:V,parametry!G116),"") ->  | I119: =IF(A119<>"",SUMIFS(JPK_KR!AJ:AJ,JPK_KR!V:V,parametry!G116),"") ->  | J119: =IF(A119<>"",SUMIFS(JPK_KR!AK:AK,JPK_KR!V:V,parametry!G116),"") -> 
A120: =IF(parametry!I117<>"",parametry!I117,"") ->  | B120: =IF(A120<>"",parametry!J117,"") ->  | C120: =IF(A120<>"",SUMIFS(JPK_KR!AD:AD,JPK_KR!V:V,parametry!G117),"") ->  | D120: =IF(A120<>"",SUMIFS(JPK_KR!AE:AE,JPK_KR!V:V,parametry!G117),"") ->  | E120: =IF(A120<>"",SUMIFS(JPK_KR!AF:AF,JPK_KR!V:V,parametry!G117),"") ->  | F120: =IF(A120<>"",SUMIFS(JPK_KR!AG:AG,JPK_KR!V:V,parametry!G117),"") ->  | G120: =IF(A120<>"",SUMIFS(JPK_KR!AH:AH,JPK_KR!V:V,parametry!G117),"") ->  | H120: =IF(A120<>"",SUMIFS(JPK_KR!AI:AI,JPK_KR!V:V,parametry!G117),"") ->  | I120: =IF(A120<>"",SUMIFS(JPK_KR!AJ:AJ,JPK_KR!V:V,parametry!G117),"") ->  | J120: =IF(A120<>"",SUMIFS(JPK_KR!AK:AK,JPK_KR!V:V,parametry!G117),"") -> 
A121: =IF(parametry!I118<>"",parametry!I118,"") ->  | B121: =IF(A121<>"",parametry!J118,"") ->  | C121: =IF(A121<>"",SUMIFS(JPK_KR!AD:AD,JPK_KR!V:V,parametry!G118),"") ->  | D121: =IF(A121<>"",SUMIFS(JPK_KR!AE:AE,JPK_KR!V:V,parametry!G118),"") ->  | E121: =IF(A121<>"",SUMIFS(JPK_KR!AF:AF,JPK_KR!V:V,parametry!G118),"") ->  | F121: =IF(A121<>"",SUMIFS(JPK_KR!AG:AG,JPK_KR!V:V,parametry!G118),"") ->  | G121: =IF(A121<>"",SUMIFS(JPK_KR!AH:AH,JPK_KR!V:V,parametry!G118),"") ->  | H121: =IF(A121<>"",SUMIFS(JPK_KR!AI:AI,JPK_KR!V:V,parametry!G118),"") ->  | I121: =IF(A121<>"",SUMIFS(JPK_KR!AJ:AJ,JPK_KR!V:V,parametry!G118),"") ->  | J121: =IF(A121<>"",SUMIFS(JPK_KR!AK:AK,JPK_KR!V:V,parametry!G118),"") -> 
A122: =IF(parametry!I119<>"",parametry!I119,"") ->  | B122: =IF(A122<>"",parametry!J119,"") ->  | C122: =IF(A122<>"",SUMIFS(JPK_KR!AD:AD,JPK_KR!V:V,parametry!G119),"") ->  | D122: =IF(A122<>"",SUMIFS(JPK_KR!AE:AE,JPK_KR!V:V,parametry!G119),"") ->  | E122: =IF(A122<>"",SUMIFS(JPK_KR!AF:AF,JPK_KR!V:V,parametry!G119),"") ->  | F122: =IF(A122<>"",SUMIFS(JPK_KR!AG:AG,JPK_KR!V:V,parametry!G119),"") ->  | G122: =IF(A122<>"",SUMIFS(JPK_KR!AH:AH,JPK_KR!V:V,parametry!G119),"") ->  | H122: =IF(A122<>"",SUMIFS(JPK_KR!AI:AI,JPK_KR!V:V,parametry!G119),"") ->  | I122: =IF(A122<>"",SUMIFS(JPK_KR!AJ:AJ,JPK_KR!V:V,parametry!G119),"") ->  | J122: =IF(A122<>"",SUMIFS(JPK_KR!AK:AK,JPK_KR!V:V,parametry!G119),"") -> 
A123: =IF(parametry!I120<>"",parametry!I120,"") ->  | B123: =IF(A123<>"",parametry!J120,"") ->  | C123: =IF(A123<>"",SUMIFS(JPK_KR!AD:AD,JPK_KR!V:V,parametry!G120),"") ->  | D123: =IF(A123<>"",SUMIFS(JPK_KR!AE:AE,JPK_KR!V:V,parametry!G120),"") ->  | E123: =IF(A123<>"",SUMIFS(JPK_KR!AF:AF,JPK_KR!V:V,parametry!G120),"") ->  | F123: =IF(A123<>"",SUMIFS(JPK_KR!AG:AG,JPK_KR!V:V,parametry!G120),"") ->  | G123: =IF(A123<>"",SUMIFS(JPK_KR!AH:AH,JPK_KR!V:V,parametry!G120),"") ->  | H123: =IF(A123<>"",SUMIFS(JPK_KR!AI:AI,JPK_KR!V:V,parametry!G120),"") ->  | I123: =IF(A123<>"",SUMIFS(JPK_KR!AJ:AJ,JPK_KR!V:V,parametry!G120),"") ->  | J123: =IF(A123<>"",SUMIFS(JPK_KR!AK:AK,JPK_KR!V:V,parametry!G120),"") -> 
A124: =IF(parametry!I121<>"",parametry!I121,"") ->  | B124: =IF(A124<>"",parametry!J121,"") ->  | C124: =IF(A124<>"",SUMIFS(JPK_KR!AD:AD,JPK_KR!V:V,parametry!G121),"") ->  | D124: =IF(A124<>"",SUMIFS(JPK_KR!AE:AE,JPK_KR!V:V,parametry!G121),"") ->  | E124: =IF(A124<>"",SUMIFS(JPK_KR!AF:AF,JPK_KR!V:V,parametry!G121),"") ->  | F124: =IF(A124<>"",SUMIFS(JPK_KR!AG:AG,JPK_KR!V:V,parametry!G121),"") ->  | G124: =IF(A124<>"",SUMIFS(JPK_KR!AH:AH,JPK_KR!V:V,parametry!G121),"") ->  | H124: =IF(A124<>"",SUMIFS(JPK_KR!AI:AI,JPK_KR!V:V,parametry!G121),"") ->  | I124: =IF(A124<>"",SUMIFS(JPK_KR!AJ:AJ,JPK_KR!V:V,parametry!G121),"") ->  | J124: =IF(A124<>"",SUMIFS(JPK_KR!AK:AK,JPK_KR!V:V,parametry!G121),"") -> 
A125: =IF(parametry!I122<>"",parametry!I122,"") ->  | B125: =IF(A125<>"",parametry!J122,"") ->  | C125: =IF(A125<>"",SUMIFS(JPK_KR!AD:AD,JPK_KR!V:V,parametry!G122),"") ->  | D125: =IF(A125<>"",SUMIFS(JPK_KR!AE:AE,JPK_KR!V:V,parametry!G122),"") ->  | E125: =IF(A125<>"",SUMIFS(JPK_KR!AF:AF,JPK_KR!V:V,parametry!G122),"") ->  | F125: =IF(A125<>"",SUMIFS(JPK_KR!AG:AG,JPK_KR!V:V,parametry!G122),"") ->  | G125: =IF(A125<>"",SUMIFS(JPK_KR!AH:AH,JPK_KR!V:V,parametry!G122),"") ->  | H125: =IF(A125<>"",SUMIFS(JPK_KR!AI:AI,JPK_KR!V:V,parametry!G122),"") ->  | I125: =IF(A125<>"",SUMIFS(JPK_KR!AJ:AJ,JPK_KR!V:V,parametry!G122),"") ->  | J125: =IF(A125<>"",SUMIFS(JPK_KR!AK:AK,JPK_KR!V:V,parametry!G122),"") -> 
A126: =IF(parametry!I123<>"",parametry!I123,"") ->  | B126: =IF(A126<>"",parametry!J123,"") ->  | C126: =IF(A126<>"",SUMIFS(JPK_KR!AD:AD,JPK_KR!V:V,parametry!G123),"") ->  | D126: =IF(A126<>"",SUMIFS(JPK_KR!AE:AE,JPK_KR!V:V,parametry!G123),"") ->  | E126: =IF(A126<>"",SUMIFS(JPK_KR!AF:AF,JPK_KR!V:V,parametry!G123),"") ->  | F126: =IF(A126<>"",SUMIFS(JPK_KR!AG:AG,JPK_KR!V:V,parametry!G123),"") ->  | G126: =IF(A126<>"",SUMIFS(JPK_KR!AH:AH,JPK_KR!V:V,parametry!G123),"") ->  | H126: =IF(A126<>"",SUMIFS(JPK_KR!AI:AI,JPK_KR!V:V,parametry!G123),"") ->  | I126: =IF(A126<>"",SUMIFS(JPK_KR!AJ:AJ,JPK_KR!V:V,parametry!G123),"") ->  | J126: =IF(A126<>"",SUMIFS(JPK_KR!AK:AK,JPK_KR!V:V,parametry!G123),"") -> 
A127: =IF(parametry!I124<>"",parametry!I124,"") ->  | B127: =IF(A127<>"",parametry!J124,"") ->  | C127: =IF(A127<>"",SUMIFS(JPK_KR!AD:AD,JPK_KR!V:V,parametry!G124),"") ->  | D127: =IF(A127<>"",SUMIFS(JPK_KR!AE:AE,JPK_KR!V:V,parametry!G124),"") ->  | E127: =IF(A127<>"",SUMIFS(JPK_KR!AF:AF,JPK_KR!V:V,parametry!G124),"") ->  | F127: =IF(A127<>"",SUMIFS(JPK_KR!AG:AG,JPK_KR!V:V,parametry!G124),"") ->  | G127: =IF(A127<>"",SUMIFS(JPK_KR!AH:AH,JPK_KR!V:V,parametry!G124),"") ->  | H127: =IF(A127<>"",SUMIFS(JPK_KR!AI:AI,JPK_KR!V:V,parametry!G124),"") ->  | I127: =IF(A127<>"",SUMIFS(JPK_KR!AJ:AJ,JPK_KR!V:V,parametry!G124),"") ->  | J127: =IF(A127<>"",SUMIFS(JPK_KR!AK:AK,JPK_KR!V:V,parametry!G124),"") -> 
A128: =IF(parametry!I125<>"",parametry!I125,"") ->  | B128: =IF(A128<>"",parametry!J125,"") ->  | C128: =IF(A128<>"",SUMIFS(JPK_KR!AD:AD,JPK_KR!V:V,parametry!G125),"") ->  | D128: =IF(A128<>"",SUMIFS(JPK_KR!AE:AE,JPK_KR!V:V,parametry!G125),"") ->  | E128: =IF(A128<>"",SUMIFS(JPK_KR!AF:AF,JPK_KR!V:V,parametry!G125),"") ->  | F128: =IF(A128<>"",SUMIFS(JPK_KR!AG:AG,JPK_KR!V:V,parametry!G125),"") ->  | G128: =IF(A128<>"",SUMIFS(JPK_KR!AH:AH,JPK_KR!V:V,parametry!G125),"") ->  | H128: =IF(A128<>"",SUMIFS(JPK_KR!AI:AI,JPK_KR!V:V,parametry!G125),"") ->  | I128: =IF(A128<>"",SUMIFS(JPK_KR!AJ:AJ,JPK_KR!V:V,parametry!G125),"") ->  | J128: =IF(A128<>"",SUMIFS(JPK_KR!AK:AK,JPK_KR!V:V,parametry!G125),"") -> 
A129: =IF(parametry!I126<>"",parametry!I126,"") ->  | B129: =IF(A129<>"",parametry!J126,"") ->  | C129: =IF(A129<>"",SUMIFS(JPK_KR!AD:AD,JPK_KR!V:V,parametry!G126),"") ->  | D129: =IF(A129<>"",SUMIFS(JPK_KR!AE:AE,JPK_KR!V:V,parametry!G126),"") ->  | E129: =IF(A129<>"",SUMIFS(JPK_KR!AF:AF,JPK_KR!V:V,parametry!G126),"") ->  | F129: =IF(A129<>"",SUMIFS(JPK_KR!AG:AG,JPK_KR!V:V,parametry!G126),"") ->  | G129: =IF(A129<>"",SUMIFS(JPK_KR!AH:AH,JPK_KR!V:V,parametry!G126),"") ->  | H129: =IF(A129<>"",SUMIFS(JPK_KR!AI:AI,JPK_KR!V:V,parametry!G126),"") ->  | I129: =IF(A129<>"",SUMIFS(JPK_KR!AJ:AJ,JPK_KR!V:V,parametry!G126),"") ->  | J129: =IF(A129<>"",SUMIFS(JPK_KR!AK:AK,JPK_KR!V:V,parametry!G126),"") -> 
A130: =IF(parametry!I127<>"",parametry!I127,"") ->  | B130: =IF(A130<>"",parametry!J127,"") ->  | C130: =IF(A130<>"",SUMIFS(JPK_KR!AD:AD,JPK_KR!V:V,parametry!G127),"") ->  | D130: =IF(A130<>"",SUMIFS(JPK_KR!AE:AE,JPK_KR!V:V,parametry!G127),"") ->  | E130: =IF(A130<>"",SUMIFS(JPK_KR!AF:AF,JPK_KR!V:V,parametry!G127),"") ->  | F130: =IF(A130<>"",SUMIFS(JPK_KR!AG:AG,JPK_KR!V:V,parametry!G127),"") ->  | G130: =IF(A130<>"",SUMIFS(JPK_KR!AH:AH,JPK_KR!V:V,parametry!G127),"") ->  | H130: =IF(A130<>"",SUMIFS(JPK_KR!AI:AI,JPK_KR!V:V,parametry!G127),"") ->  | I130: =IF(A130<>"",SUMIFS(JPK_KR!AJ:AJ,JPK_KR!V:V,parametry!G127),"") ->  | J130: =IF(A130<>"",SUMIFS(JPK_KR!AK:AK,JPK_KR!V:V,parametry!G127),"") -> 
A131: =IF(parametry!I128<>"",parametry!I128,"") ->  | B131: =IF(A131<>"",parametry!J128,"") ->  | C131: =IF(A131<>"",SUMIFS(JPK_KR!AD:AD,JPK_KR!V:V,parametry!G128),"") ->  | D131: =IF(A131<>"",SUMIFS(JPK_KR!AE:AE,JPK_KR!V:V,parametry!G128),"") ->  | E131: =IF(A131<>"",SUMIFS(JPK_KR!AF:AF,JPK_KR!V:V,parametry!G128),"") ->  | F131: =IF(A131<>"",SUMIFS(JPK_KR!AG:AG,JPK_KR!V:V,parametry!G128),"") ->  | G131: =IF(A131<>"",SUMIFS(JPK_KR!AH:AH,JPK_KR!V:V,parametry!G128),"") ->  | H131: =IF(A131<>"",SUMIFS(JPK_KR!AI:AI,JPK_KR!V:V,parametry!G128),"") ->  | I131: =IF(A131<>"",SUMIFS(JPK_KR!AJ:AJ,JPK_KR!V:V,parametry!G128),"") ->  | J131: =IF(A131<>"",SUMIFS(JPK_KR!AK:AK,JPK_KR!V:V,parametry!G128),"") -> 
A132: =IF(parametry!I129<>"",parametry!I129,"") ->  | B132: =IF(A132<>"",parametry!J129,"") ->  | C132: =IF(A132<>"",SUMIFS(JPK_KR!AD:AD,JPK_KR!V:V,parametry!G129),"") ->  | D132: =IF(A132<>"",SUMIFS(JPK_KR!AE:AE,JPK_KR!V:V,parametry!G129),"") ->  | E132: =IF(A132<>"",SUMIFS(JPK_KR!AF:AF,JPK_KR!V:V,parametry!G129),"") ->  | F132: =IF(A132<>"",SUMIFS(JPK_KR!AG:AG,JPK_KR!V:V,parametry!G129),"") ->  | G132: =IF(A132<>"",SUMIFS(JPK_KR!AH:AH,JPK_KR!V:V,parametry!G129),"") ->  | H132: =IF(A132<>"",SUMIFS(JPK_KR!AI:AI,JPK_KR!V:V,parametry!G129),"") ->  | I132: =IF(A132<>"",SUMIFS(JPK_KR!AJ:AJ,JPK_KR!V:V,parametry!G129),"") ->  | J132: =IF(A132<>"",SUMIFS(JPK_KR!AK:AK,JPK_KR!V:V,parametry!G129),"") -> 
A133: =IF(parametry!I130<>"",parametry!I130,"") ->  | B133: =IF(A133<>"",parametry!J130,"") ->  | C133: =IF(A133<>"",SUMIFS(JPK_KR!AD:AD,JPK_KR!V:V,parametry!G130),"") ->  | D133: =IF(A133<>"",SUMIFS(JPK_KR!AE:AE,JPK_KR!V:V,parametry!G130),"") ->  | E133: =IF(A133<>"",SUMIFS(JPK_KR!AF:AF,JPK_KR!V:V,parametry!G130),"") ->  | F133: =IF(A133<>"",SUMIFS(JPK_KR!AG:AG,JPK_KR!V:V,parametry!G130),"") ->  | G133: =IF(A133<>"",SUMIFS(JPK_KR!AH:AH,JPK_KR!V:V,parametry!G130),"") ->  | H133: =IF(A133<>"",SUMIFS(JPK_KR!AI:AI,JPK_KR!V:V,parametry!G130),"") ->  | I133: =IF(A133<>"",SUMIFS(JPK_KR!AJ:AJ,JPK_KR!V:V,parametry!G130),"") ->  | J133: =IF(A133<>"",SUMIFS(JPK_KR!AK:AK,JPK_KR!V:V,parametry!G130),"") -> 
A134: =IF(parametry!I131<>"",parametry!I131,"") ->  | B134: =IF(A134<>"",parametry!J131,"") ->  | C134: =IF(A134<>"",SUMIFS(JPK_KR!AD:AD,JPK_KR!V:V,parametry!G131),"") ->  | D134: =IF(A134<>"",SUMIFS(JPK_KR!AE:AE,JPK_KR!V:V,parametry!G131),"") ->  | E134: =IF(A134<>"",SUMIFS(JPK_KR!AF:AF,JPK_KR!V:V,parametry!G131),"") ->  | F134: =IF(A134<>"",SUMIFS(JPK_KR!AG:AG,JPK_KR!V:V,parametry!G131),"") ->  | G134: =IF(A134<>"",SUMIFS(JPK_KR!AH:AH,JPK_KR!V:V,parametry!G131),"") ->  | H134: =IF(A134<>"",SUMIFS(JPK_KR!AI:AI,JPK_KR!V:V,parametry!G131),"") ->  | I134: =IF(A134<>"",SUMIFS(JPK_KR!AJ:AJ,JPK_KR!V:V,parametry!G131),"") ->  | J134: =IF(A134<>"",SUMIFS(JPK_KR!AK:AK,JPK_KR!V:V,parametry!G131),"") -> 
A135: =IF(parametry!I132<>"",parametry!I132,"") ->  | B135: =IF(A135<>"",parametry!J132,"") ->  | C135: =IF(A135<>"",SUMIFS(JPK_KR!AD:AD,JPK_KR!V:V,parametry!G132),"") ->  | D135: =IF(A135<>"",SUMIFS(JPK_KR!AE:AE,JPK_KR!V:V,parametry!G132),"") ->  | E135: =IF(A135<>"",SUMIFS(JPK_KR!AF:AF,JPK_KR!V:V,parametry!G132),"") ->  | F135: =IF(A135<>"",SUMIFS(JPK_KR!AG:AG,JPK_KR!V:V,parametry!G132),"") ->  | G135: =IF(A135<>"",SUMIFS(JPK_KR!AH:AH,JPK_KR!V:V,parametry!G132),"") ->  | H135: =IF(A135<>"",SUMIFS(JPK_KR!AI:AI,JPK_KR!V:V,parametry!G132),"") ->  | I135: =IF(A135<>"",SUMIFS(JPK_KR!AJ:AJ,JPK_KR!V:V,parametry!G132),"") ->  | J135: =IF(A135<>"",SUMIFS(JPK_KR!AK:AK,JPK_KR!V:V,parametry!G132),"") -> 
A136: =IF(parametry!I133<>"",parametry!I133,"") ->  | B136: =IF(A136<>"",parametry!J133,"") ->  | C136: =IF(A136<>"",SUMIFS(JPK_KR!AD:AD,JPK_KR!V:V,parametry!G133),"") ->  | D136: =IF(A136<>"",SUMIFS(JPK_KR!AE:AE,JPK_KR!V:V,parametry!G133),"") ->  | E136: =IF(A136<>"",SUMIFS(JPK_KR!AF:AF,JPK_KR!V:V,parametry!G133),"") ->  | F136: =IF(A136<>"",SUMIFS(JPK_KR!AG:AG,JPK_KR!V:V,parametry!G133),"") ->  | G136: =IF(A136<>"",SUMIFS(JPK_KR!AH:AH,JPK_KR!V:V,parametry!G133),"") ->  | H136: =IF(A136<>"",SUMIFS(JPK_KR!AI:AI,JPK_KR!V:V,parametry!G133),"") ->  | I136: =IF(A136<>"",SUMIFS(JPK_KR!AJ:AJ,JPK_KR!V:V,parametry!G133),"") ->  | J136: =IF(A136<>"",SUMIFS(JPK_KR!AK:AK,JPK_KR!V:V,parametry!G133),"") -> 
A137: =IF(parametry!I134<>"",parametry!I134,"") ->  | B137: =IF(A137<>"",parametry!J134,"") ->  | C137: =IF(A137<>"",SUMIFS(JPK_KR!AD:AD,JPK_KR!V:V,parametry!G134),"") ->  | D137: =IF(A137<>"",SUMIFS(JPK_KR!AE:AE,JPK_KR!V:V,parametry!G134),"") ->  | E137: =IF(A137<>"",SUMIFS(JPK_KR!AF:AF,JPK_KR!V:V,parametry!G134),"") ->  | F137: =IF(A137<>"",SUMIFS(JPK_KR!AG:AG,JPK_KR!V:V,parametry!G134),"") ->  | G137: =IF(A137<>"",SUMIFS(JPK_KR!AH:AH,JPK_KR!V:V,parametry!G134),"") ->  | H137: =IF(A137<>"",SUMIFS(JPK_KR!AI:AI,JPK_KR!V:V,parametry!G134),"") ->  | I137: =IF(A137<>"",SUMIFS(JPK_KR!AJ:AJ,JPK_KR!V:V,parametry!G134),"") ->  | J137: =IF(A137<>"",SUMIFS(JPK_KR!AK:AK,JPK_KR!V:V,parametry!G134),"") -> 
A138: =IF(parametry!I135<>"",parametry!I135,"") ->  | B138: =IF(A138<>"",parametry!J135,"") ->  | C138: =IF(A138<>"",SUMIFS(JPK_KR!AD:AD,JPK_KR!V:V,parametry!G135),"") ->  | D138: =IF(A138<>"",SUMIFS(JPK_KR!AE:AE,JPK_KR!V:V,parametry!G135),"") ->  | E138: =IF(A138<>"",SUMIFS(JPK_KR!AF:AF,JPK_KR!V:V,parametry!G135),"") ->  | F138: =IF(A138<>"",SUMIFS(JPK_KR!AG:AG,JPK_KR!V:V,parametry!G135),"") ->  | G138: =IF(A138<>"",SUMIFS(JPK_KR!AH:AH,JPK_KR!V:V,parametry!G135),"") ->  | H138: =IF(A138<>"",SUMIFS(JPK_KR!AI:AI,JPK_KR!V:V,parametry!G135),"") ->  | I138: =IF(A138<>"",SUMIFS(JPK_KR!AJ:AJ,JPK_KR!V:V,parametry!G135),"") ->  | J138: =IF(A138<>"",SUMIFS(JPK_KR!AK:AK,JPK_KR!V:V,parametry!G135),"") -> 
A139: =IF(parametry!I136<>"",parametry!I136,"") ->  | B139: =IF(A139<>"",parametry!J136,"") ->  | C139: =IF(A139<>"",SUMIFS(JPK_KR!AD:AD,JPK_KR!V:V,parametry!G136),"") ->  | D139: =IF(A139<>"",SUMIFS(JPK_KR!AE:AE,JPK_KR!V:V,parametry!G136),"") ->  | E139: =IF(A139<>"",SUMIFS(JPK_KR!AF:AF,JPK_KR!V:V,parametry!G136),"") ->  | F139: =IF(A139<>"",SUMIFS(JPK_KR!AG:AG,JPK_KR!V:V,parametry!G136),"") ->  | G139: =IF(A139<>"",SUMIFS(JPK_KR!AH:AH,JPK_KR!V:V,parametry!G136),"") ->  | H139: =IF(A139<>"",SUMIFS(JPK_KR!AI:AI,JPK_KR!V:V,parametry!G136),"") ->  | I139: =IF(A139<>"",SUMIFS(JPK_KR!AJ:AJ,JPK_KR!V:V,parametry!G136),"") ->  | J139: =IF(A139<>"",SUMIFS(JPK_KR!AK:AK,JPK_KR!V:V,parametry!G136),"") -> 
A140: =IF(parametry!I137<>"",parametry!I137,"") ->  | B140: =IF(A140<>"",parametry!J137,"") ->  | C140: =IF(A140<>"",SUMIFS(JPK_KR!AD:AD,JPK_KR!V:V,parametry!G137),"") ->  | D140: =IF(A140<>"",SUMIFS(JPK_KR!AE:AE,JPK_KR!V:V,parametry!G137),"") ->  | E140: =IF(A140<>"",SUMIFS(JPK_KR!AF:AF,JPK_KR!V:V,parametry!G137),"") ->  | F140: =IF(A140<>"",SUMIFS(JPK_KR!AG:AG,JPK_KR!V:V,parametry!G137),"") ->  | G140: =IF(A140<>"",SUMIFS(JPK_KR!AH:AH,JPK_KR!V:V,parametry!G137),"") ->  | H140: =IF(A140<>"",SUMIFS(JPK_KR!AI:AI,JPK_KR!V:V,parametry!G137),"") ->  | I140: =IF(A140<>"",SUMIFS(JPK_KR!AJ:AJ,JPK_KR!V:V,parametry!G137),"") ->  | J140: =IF(A140<>"",SUMIFS(JPK_KR!AK:AK,JPK_KR!V:V,parametry!G137),"") -> 
A141: =IF(parametry!I138<>"",parametry!I138,"") ->  | B141: =IF(A141<>"",parametry!J138,"") ->  | C141: =IF(A141<>"",SUMIFS(JPK_KR!AD:AD,JPK_KR!V:V,parametry!G138),"") ->  | D141: =IF(A141<>"",SUMIFS(JPK_KR!AE:AE,JPK_KR!V:V,parametry!G138),"") ->  | E141: =IF(A141<>"",SUMIFS(JPK_KR!AF:AF,JPK_KR!V:V,parametry!G138),"") ->  | F141: =IF(A141<>"",SUMIFS(JPK_KR!AG:AG,JPK_KR!V:V,parametry!G138),"") ->  | G141: =IF(A141<>"",SUMIFS(JPK_KR!AH:AH,JPK_KR!V:V,parametry!G138),"") ->  | H141: =IF(A141<>"",SUMIFS(JPK_KR!AI:AI,JPK_KR!V:V,parametry!G138),"") ->  | I141: =IF(A141<>"",SUMIFS(JPK_KR!AJ:AJ,JPK_KR!V:V,parametry!G138),"") ->  | J141: =IF(A141<>"",SUMIFS(JPK_KR!AK:AK,JPK_KR!V:V,parametry!G138),"") -> 
A142: =IF(parametry!I139<>"",parametry!I139,"") ->  | B142: =IF(A142<>"",parametry!J139,"") ->  | C142: =IF(A142<>"",SUMIFS(JPK_KR!AD:AD,JPK_KR!V:V,parametry!G139),"") ->  | D142: =IF(A142<>"",SUMIFS(JPK_KR!AE:AE,JPK_KR!V:V,parametry!G139),"") ->  | E142: =IF(A142<>"",SUMIFS(JPK_KR!AF:AF,JPK_KR!V:V,parametry!G139),"") ->  | F142: =IF(A142<>"",SUMIFS(JPK_KR!AG:AG,JPK_KR!V:V,parametry!G139),"") ->  | G142: =IF(A142<>"",SUMIFS(JPK_KR!AH:AH,JPK_KR!V:V,parametry!G139),"") ->  | H142: =IF(A142<>"",SUMIFS(JPK_KR!AI:AI,JPK_KR!V:V,parametry!G139),"") ->  | I142: =IF(A142<>"",SUMIFS(JPK_KR!AJ:AJ,JPK_KR!V:V,parametry!G139),"") ->  | J142: =IF(A142<>"",SUMIFS(JPK_KR!AK:AK,JPK_KR!V:V,parametry!G139),"") -> 
A143: =IF(parametry!I140<>"",parametry!I140,"") ->  | B143: =IF(A143<>"",parametry!J140,"") ->  | C143: =IF(A143<>"",SUMIFS(JPK_KR!AD:AD,JPK_KR!V:V,parametry!G140),"") ->  | D143: =IF(A143<>"",SUMIFS(JPK_KR!AE:AE,JPK_KR!V:V,parametry!G140),"") ->  | E143: =IF(A143<>"",SUMIFS(JPK_KR!AF:AF,JPK_KR!V:V,parametry!G140),"") ->  | F143: =IF(A143<>"",SUMIFS(JPK_KR!AG:AG,JPK_KR!V:V,parametry!G140),"") ->  | G143: =IF(A143<>"",SUMIFS(JPK_KR!AH:AH,JPK_KR!V:V,parametry!G140),"") ->  | H143: =IF(A143<>"",SUMIFS(JPK_KR!AI:AI,JPK_KR!V:V,parametry!G140),"") ->  | I143: =IF(A143<>"",SUMIFS(JPK_KR!AJ:AJ,JPK_KR!V:V,parametry!G140),"") ->  | J143: =IF(A143<>"",SUMIFS(JPK_KR!AK:AK,JPK_KR!V:V,parametry!G140),"") -> 
A144: =IF(parametry!I141<>"",parametry!I141,"") ->  | B144: =IF(A144<>"",parametry!J141,"") ->  | C144: =IF(A144<>"",SUMIFS(JPK_KR!AD:AD,JPK_KR!V:V,parametry!G141),"") ->  | D144: =IF(A144<>"",SUMIFS(JPK_KR!AE:AE,JPK_KR!V:V,parametry!G141),"") ->  | E144: =IF(A144<>"",SUMIFS(JPK_KR!AF:AF,JPK_KR!V:V,parametry!G141),"") ->  | F144: =IF(A144<>"",SUMIFS(JPK_KR!AG:AG,JPK_KR!V:V,parametry!G141),"") ->  | G144: =IF(A144<>"",SUMIFS(JPK_KR!AH:AH,JPK_KR!V:V,parametry!G141),"") ->  | H144: =IF(A144<>"",SUMIFS(JPK_KR!AI:AI,JPK_KR!V:V,parametry!G141),"") ->  | I144: =IF(A144<>"",SUMIFS(JPK_KR!AJ:AJ,JPK_KR!V:V,parametry!G141),"") ->  | J144: =IF(A144<>"",SUMIFS(JPK_KR!AK:AK,JPK_KR!V:V,parametry!G141),"") -> 
A145: =IF(parametry!I142<>"",parametry!I142,"") ->  | B145: =IF(A145<>"",parametry!J142,"") ->  | C145: =IF(A145<>"",SUMIFS(JPK_KR!AD:AD,JPK_KR!V:V,parametry!G142),"") ->  | D145: =IF(A145<>"",SUMIFS(JPK_KR!AE:AE,JPK_KR!V:V,parametry!G142),"") ->  | E145: =IF(A145<>"",SUMIFS(JPK_KR!AF:AF,JPK_KR!V:V,parametry!G142),"") ->  | F145: =IF(A145<>"",SUMIFS(JPK_KR!AG:AG,JPK_KR!V:V,parametry!G142),"") ->  | G145: =IF(A145<>"",SUMIFS(JPK_KR!AH:AH,JPK_KR!V:V,parametry!G142),"") ->  | H145: =IF(A145<>"",SUMIFS(JPK_KR!AI:AI,JPK_KR!V:V,parametry!G142),"") ->  | I145: =IF(A145<>"",SUMIFS(JPK_KR!AJ:AJ,JPK_KR!V:V,parametry!G142),"") ->  | J145: =IF(A145<>"",SUMIFS(JPK_KR!AK:AK,JPK_KR!V:V,parametry!G142),"") -> 
A146: =IF(parametry!I143<>"",parametry!I143,"") ->  | B146: =IF(A146<>"",parametry!J143,"") ->  | C146: =IF(A146<>"",SUMIFS(JPK_KR!AD:AD,JPK_KR!V:V,parametry!G143),"") ->  | D146: =IF(A146<>"",SUMIFS(JPK_KR!AE:AE,JPK_KR!V:V,parametry!G143),"") ->  | E146: =IF(A146<>"",SUMIFS(JPK_KR!AF:AF,JPK_KR!V:V,parametry!G143),"") ->  | F146: =IF(A146<>"",SUMIFS(JPK_KR!AG:AG,JPK_KR!V:V,parametry!G143),"") ->  | G146: =IF(A146<>"",SUMIFS(JPK_KR!AH:AH,JPK_KR!V:V,parametry!G143),"") ->  | H146: =IF(A146<>"",SUMIFS(JPK_KR!AI:AI,JPK_KR!V:V,parametry!G143),"") ->  | I146: =IF(A146<>"",SUMIFS(JPK_KR!AJ:AJ,JPK_KR!V:V,parametry!G143),"") ->  | J146: =IF(A146<>"",SUMIFS(JPK_KR!AK:AK,JPK_KR!V:V,parametry!G143),"") -> 
A147: =IF(parametry!I144<>"",parametry!I144,"") ->  | B147: =IF(A147<>"",parametry!J144,"") ->  | C147: =IF(A147<>"",SUMIFS(JPK_KR!AD:AD,JPK_KR!V:V,parametry!G144),"") ->  | D147: =IF(A147<>"",SUMIFS(JPK_KR!AE:AE,JPK_KR!V:V,parametry!G144),"") ->  | E147: =IF(A147<>"",SUMIFS(JPK_KR!AF:AF,JPK_KR!V:V,parametry!G144),"") ->  | F147: =IF(A147<>"",SUMIFS(JPK_KR!AG:AG,JPK_KR!V:V,parametry!G144),"") ->  | G147: =IF(A147<>"",SUMIFS(JPK_KR!AH:AH,JPK_KR!V:V,parametry!G144),"") ->  | H147: =IF(A147<>"",SUMIFS(JPK_KR!AI:AI,JPK_KR!V:V,parametry!G144),"") ->  | I147: =IF(A147<>"",SUMIFS(JPK_KR!AJ:AJ,JPK_KR!V:V,parametry!G144),"") ->  | J147: =IF(A147<>"",SUMIFS(JPK_KR!AK:AK,JPK_KR!V:V,parametry!G144),"") -> 
A148: =IF(parametry!I145<>"",parametry!I145,"") ->  | B148: =IF(A148<>"",parametry!J145,"") ->  | C148: =IF(A148<>"",SUMIFS(JPK_KR!AD:AD,JPK_KR!V:V,parametry!G145),"") ->  | D148: =IF(A148<>"",SUMIFS(JPK_KR!AE:AE,JPK_KR!V:V,parametry!G145),"") ->  | E148: =IF(A148<>"",SUMIFS(JPK_KR!AF:AF,JPK_KR!V:V,parametry!G145),"") ->  | F148: =IF(A148<>"",SUMIFS(JPK_KR!AG:AG,JPK_KR!V:V,parametry!G145),"") ->  | G148: =IF(A148<>"",SUMIFS(JPK_KR!AH:AH,JPK_KR!V:V,parametry!G145),"") ->  | H148: =IF(A148<>"",SUMIFS(JPK_KR!AI:AI,JPK_KR!V:V,parametry!G145),"") ->  | I148: =IF(A148<>"",SUMIFS(JPK_KR!AJ:AJ,JPK_KR!V:V,parametry!G145),"") ->  | J148: =IF(A148<>"",SUMIFS(JPK_KR!AK:AK,JPK_KR!V:V,parametry!G145),"") -> 
A149: =IF(parametry!I146<>"",parametry!I146,"") ->  | B149: =IF(A149<>"",parametry!J146,"") ->  | C149: =IF(A149<>"",SUMIFS(JPK_KR!AD:AD,JPK_KR!V:V,parametry!G146),"") ->  | D149: =IF(A149<>"",SUMIFS(JPK_KR!AE:AE,JPK_KR!V:V,parametry!G146),"") ->  | E149: =IF(A149<>"",SUMIFS(JPK_KR!AF:AF,JPK_KR!V:V,parametry!G146),"") ->  | F149: =IF(A149<>"",SUMIFS(JPK_KR!AG:AG,JPK_KR!V:V,parametry!G146),"") ->  | G149: =IF(A149<>"",SUMIFS(JPK_KR!AH:AH,JPK_KR!V:V,parametry!G146),"") ->  | H149: =IF(A149<>"",SUMIFS(JPK_KR!AI:AI,JPK_KR!V:V,parametry!G146),"") ->  | I149: =IF(A149<>"",SUMIFS(JPK_KR!AJ:AJ,JPK_KR!V:V,parametry!G146),"") ->  | J149: =IF(A149<>"",SUMIFS(JPK_KR!AK:AK,JPK_KR!V:V,parametry!G146),"") -> 
A150: =IF(parametry!I147<>"",parametry!I147,"") ->  | B150: =IF(A150<>"",parametry!J147,"") ->  | C150: =IF(A150<>"",SUMIFS(JPK_KR!AD:AD,JPK_KR!V:V,parametry!G147),"") ->  | D150: =IF(A150<>"",SUMIFS(JPK_KR!AE:AE,JPK_KR!V:V,parametry!G147),"") ->  | E150: =IF(A150<>"",SUMIFS(JPK_KR!AF:AF,JPK_KR!V:V,parametry!G147),"") ->  | F150: =IF(A150<>"",SUMIFS(JPK_KR!AG:AG,JPK_KR!V:V,parametry!G147),"") ->  | G150: =IF(A150<>"",SUMIFS(JPK_KR!AH:AH,JPK_KR!V:V,parametry!G147),"") ->  | H150: =IF(A150<>"",SUMIFS(JPK_KR!AI:AI,JPK_KR!V:V,parametry!G147),"") ->  | I150: =IF(A150<>"",SUMIFS(JPK_KR!AJ:AJ,JPK_KR!V:V,parametry!G147),"") ->  | J150: =IF(A150<>"",SUMIFS(JPK_KR!AK:AK,JPK_KR!V:V,parametry!G147),"") -> 
A151: =IF(parametry!I148<>"",parametry!I148,"") ->  | B151: =IF(A151<>"",parametry!J148,"") ->  | C151: =IF(A151<>"",SUMIFS(JPK_KR!AD:AD,JPK_KR!V:V,parametry!G148),"") ->  | D151: =IF(A151<>"",SUMIFS(JPK_KR!AE:AE,JPK_KR!V:V,parametry!G148),"") ->  | E151: =IF(A151<>"",SUMIFS(JPK_KR!AF:AF,JPK_KR!V:V,parametry!G148),"") ->  | F151: =IF(A151<>"",SUMIFS(JPK_KR!AG:AG,JPK_KR!V:V,parametry!G148),"") ->  | G151: =IF(A151<>"",SUMIFS(JPK_KR!AH:AH,JPK_KR!V:V,parametry!G148),"") ->  | H151: =IF(A151<>"",SUMIFS(JPK_KR!AI:AI,JPK_KR!V:V,parametry!G148),"") ->  | I151: =IF(A151<>"",SUMIFS(JPK_KR!AJ:AJ,JPK_KR!V:V,parametry!G148),"") ->  | J151: =IF(A151<>"",SUMIFS(JPK_KR!AK:AK,JPK_KR!V:V,parametry!G148),"") -> 
A152: =IF(parametry!I149<>"",parametry!I149,"") ->  | B152: =IF(A152<>"",parametry!J149,"") ->  | C152: =IF(A152<>"",SUMIFS(JPK_KR!AD:AD,JPK_KR!V:V,parametry!G149),"") ->  | D152: =IF(A152<>"",SUMIFS(JPK_KR!AE:AE,JPK_KR!V:V,parametry!G149),"") ->  | E152: =IF(A152<>"",SUMIFS(JPK_KR!AF:AF,JPK_KR!V:V,parametry!G149),"") ->  | F152: =IF(A152<>"",SUMIFS(JPK_KR!AG:AG,JPK_KR!V:V,parametry!G149),"") ->  | G152: =IF(A152<>"",SUMIFS(JPK_KR!AH:AH,JPK_KR!V:V,parametry!G149),"") ->  | H152: =IF(A152<>"",SUMIFS(JPK_KR!AI:AI,JPK_KR!V:V,parametry!G149),"") ->  | I152: =IF(A152<>"",SUMIFS(JPK_KR!AJ:AJ,JPK_KR!V:V,parametry!G149),"") ->  | J152: =IF(A152<>"",SUMIFS(JPK_KR!AK:AK,JPK_KR!V:V,parametry!G149),"") -> 
A153: =IF(parametry!I150<>"",parametry!I150,"") ->  | B153: =IF(A153<>"",parametry!J150,"") ->  | C153: =IF(A153<>"",SUMIFS(JPK_KR!AD:AD,JPK_KR!V:V,parametry!G150),"") ->  | D153: =IF(A153<>"",SUMIFS(JPK_KR!AE:AE,JPK_KR!V:V,parametry!G150),"") ->  | E153: =IF(A153<>"",SUMIFS(JPK_KR!AF:AF,JPK_KR!V:V,parametry!G150),"") ->  | F153: =IF(A153<>"",SUMIFS(JPK_KR!AG:AG,JPK_KR!V:V,parametry!G150),"") ->  | G153: =IF(A153<>"",SUMIFS(JPK_KR!AH:AH,JPK_KR!V:V,parametry!G150),"") ->  | H153: =IF(A153<>"",SUMIFS(JPK_KR!AI:AI,JPK_KR!V:V,parametry!G150),"") ->  | I153: =IF(A153<>"",SUMIFS(JPK_KR!AJ:AJ,JPK_KR!V:V,parametry!G150),"") ->  | J153: =IF(A153<>"",SUMIFS(JPK_KR!AK:AK,JPK_KR!V:V,parametry!G150),"") -> 
A154: =IF(parametry!I151<>"",parametry!I151,"") ->  | B154: =IF(A154<>"",parametry!J151,"") ->  | C154: =IF(A154<>"",SUMIFS(JPK_KR!AD:AD,JPK_KR!V:V,parametry!G151),"") ->  | D154: =IF(A154<>"",SUMIFS(JPK_KR!AE:AE,JPK_KR!V:V,parametry!G151),"") ->  | E154: =IF(A154<>"",SUMIFS(JPK_KR!AF:AF,JPK_KR!V:V,parametry!G151),"") ->  | F154: =IF(A154<>"",SUMIFS(JPK_KR!AG:AG,JPK_KR!V:V,parametry!G151),"") ->  | G154: =IF(A154<>"",SUMIFS(JPK_KR!AH:AH,JPK_KR!V:V,parametry!G151),"") ->  | H154: =IF(A154<>"",SUMIFS(JPK_KR!AI:AI,JPK_KR!V:V,parametry!G151),"") ->  | I154: =IF(A154<>"",SUMIFS(JPK_KR!AJ:AJ,JPK_KR!V:V,parametry!G151),"") ->  | J154: =IF(A154<>"",SUMIFS(JPK_KR!AK:AK,JPK_KR!V:V,parametry!G151),"") -> 
A155: =IF(parametry!I152<>"",parametry!I152,"") ->  | B155: =IF(A155<>"",parametry!J152,"") ->  | C155: =IF(A155<>"",SUMIFS(JPK_KR!AD:AD,JPK_KR!V:V,parametry!G152),"") ->  | D155: =IF(A155<>"",SUMIFS(JPK_KR!AE:AE,JPK_KR!V:V,parametry!G152),"") ->  | E155: =IF(A155<>"",SUMIFS(JPK_KR!AF:AF,JPK_KR!V:V,parametry!G152),"") ->  | F155: =IF(A155<>"",SUMIFS(JPK_KR!AG:AG,JPK_KR!V:V,parametry!G152),"") ->  | G155: =IF(A155<>"",SUMIFS(JPK_KR!AH:AH,JPK_KR!V:V,parametry!G152),"") ->  | H155: =IF(A155<>"",SUMIFS(JPK_KR!AI:AI,JPK_KR!V:V,parametry!G152),"") ->  | I155: =IF(A155<>"",SUMIFS(JPK_KR!AJ:AJ,JPK_KR!V:V,parametry!G152),"") ->  | J155: =IF(A155<>"",SUMIFS(JPK_KR!AK:AK,JPK_KR!V:V,parametry!G152),"") -> 
A156: =IF(parametry!I153<>"",parametry!I153,"") ->  | B156: =IF(A156<>"",parametry!J153,"") ->  | C156: =IF(A156<>"",SUMIFS(JPK_KR!AD:AD,JPK_KR!V:V,parametry!G153),"") ->  | D156: =IF(A156<>"",SUMIFS(JPK_KR!AE:AE,JPK_KR!V:V,parametry!G153),"") ->  | E156: =IF(A156<>"",SUMIFS(JPK_KR!AF:AF,JPK_KR!V:V,parametry!G153),"") ->  | F156: =IF(A156<>"",SUMIFS(JPK_KR!AG:AG,JPK_KR!V:V,parametry!G153),"") ->  | G156: =IF(A156<>"",SUMIFS(JPK_KR!AH:AH,JPK_KR!V:V,parametry!G153),"") ->  | H156: =IF(A156<>"",SUMIFS(JPK_KR!AI:AI,JPK_KR!V:V,parametry!G153),"") ->  | I156: =IF(A156<>"",SUMIFS(JPK_KR!AJ:AJ,JPK_KR!V:V,parametry!G153),"") ->  | J156: =IF(A156<>"",SUMIFS(JPK_KR!AK:AK,JPK_KR!V:V,parametry!G153),"") -> 
A157: =IF(parametry!I154<>"",parametry!I154,"") ->  | B157: =IF(A157<>"",parametry!J154,"") ->  | C157: =IF(A157<>"",SUMIFS(JPK_KR!AD:AD,JPK_KR!V:V,parametry!G154),"") ->  | D157: =IF(A157<>"",SUMIFS(JPK_KR!AE:AE,JPK_KR!V:V,parametry!G154),"") ->  | E157: =IF(A157<>"",SUMIFS(JPK_KR!AF:AF,JPK_KR!V:V,parametry!G154),"") ->  | F157: =IF(A157<>"",SUMIFS(JPK_KR!AG:AG,JPK_KR!V:V,parametry!G154),"") ->  | G157: =IF(A157<>"",SUMIFS(JPK_KR!AH:AH,JPK_KR!V:V,parametry!G154),"") ->  | H157: =IF(A157<>"",SUMIFS(JPK_KR!AI:AI,JPK_KR!V:V,parametry!G154),"") ->  | I157: =IF(A157<>"",SUMIFS(JPK_KR!AJ:AJ,JPK_KR!V:V,parametry!G154),"") ->  | J157: =IF(A157<>"",SUMIFS(JPK_KR!AK:AK,JPK_KR!V:V,parametry!G154),"") -> 
A158: =IF(parametry!I155<>"",parametry!I155,"") ->  | B158: =IF(A158<>"",parametry!J155,"") ->  | C158: =IF(A158<>"",SUMIFS(JPK_KR!AD:AD,JPK_KR!V:V,parametry!G155),"") ->  | D158: =IF(A158<>"",SUMIFS(JPK_KR!AE:AE,JPK_KR!V:V,parametry!G155),"") ->  | E158: =IF(A158<>"",SUMIFS(JPK_KR!AF:AF,JPK_KR!V:V,parametry!G155),"") ->  | F158: =IF(A158<>"",SUMIFS(JPK_KR!AG:AG,JPK_KR!V:V,parametry!G155),"") ->  | G158: =IF(A158<>"",SUMIFS(JPK_KR!AH:AH,JPK_KR!V:V,parametry!G155),"") ->  | H158: =IF(A158<>"",SUMIFS(JPK_KR!AI:AI,JPK_KR!V:V,parametry!G155),"") ->  | I158: =IF(A158<>"",SUMIFS(JPK_KR!AJ:AJ,JPK_KR!V:V,parametry!G155),"") ->  | J158: =IF(A158<>"",SUMIFS(JPK_KR!AK:AK,JPK_KR!V:V,parametry!G155),"") -> 
A159: =IF(parametry!I156<>"",parametry!I156,"") ->  | B159: =IF(A159<>"",parametry!J156,"") ->  | C159: =IF(A159<>"",SUMIFS(JPK_KR!AD:AD,JPK_KR!V:V,parametry!G156),"") ->  | D159: =IF(A159<>"",SUMIFS(JPK_KR!AE:AE,JPK_KR!V:V,parametry!G156),"") ->  | E159: =IF(A159<>"",SUMIFS(JPK_KR!AF:AF,JPK_KR!V:V,parametry!G156),"") ->  | F159: =IF(A159<>"",SUMIFS(JPK_KR!AG:AG,JPK_KR!V:V,parametry!G156),"") ->  | G159: =IF(A159<>"",SUMIFS(JPK_KR!AH:AH,JPK_KR!V:V,parametry!G156),"") ->  | H159: =IF(A159<>"",SUMIFS(JPK_KR!AI:AI,JPK_KR!V:V,parametry!G156),"") ->  | I159: =IF(A159<>"",SUMIFS(JPK_KR!AJ:AJ,JPK_KR!V:V,parametry!G156),"") ->  | J159: =IF(A159<>"",SUMIFS(JPK_KR!AK:AK,JPK_KR!V:V,parametry!G156),"") -> 
A160: =IF(parametry!I157<>"",parametry!I157,"") ->  | B160: =IF(A160<>"",parametry!J157,"") ->  | C160: =IF(A160<>"",SUMIFS(JPK_KR!AD:AD,JPK_KR!V:V,parametry!G157),"") ->  | D160: =IF(A160<>"",SUMIFS(JPK_KR!AE:AE,JPK_KR!V:V,parametry!G157),"") ->  | E160: =IF(A160<>"",SUMIFS(JPK_KR!AF:AF,JPK_KR!V:V,parametry!G157),"") ->  | F160: =IF(A160<>"",SUMIFS(JPK_KR!AG:AG,JPK_KR!V:V,parametry!G157),"") ->  | G160: =IF(A160<>"",SUMIFS(JPK_KR!AH:AH,JPK_KR!V:V,parametry!G157),"") ->  | H160: =IF(A160<>"",SUMIFS(JPK_KR!AI:AI,JPK_KR!V:V,parametry!G157),"") ->  | I160: =IF(A160<>"",SUMIFS(JPK_KR!AJ:AJ,JPK_KR!V:V,parametry!G157),"") ->  | J160: =IF(A160<>"",SUMIFS(JPK_KR!AK:AK,JPK_KR!V:V,parametry!G157),"") -> 
A161: =IF(parametry!I158<>"",parametry!I158,"") ->  | B161: =IF(A161<>"",parametry!J158,"") ->  | C161: =IF(A161<>"",SUMIFS(JPK_KR!AD:AD,JPK_KR!V:V,parametry!G158),"") ->  | D161: =IF(A161<>"",SUMIFS(JPK_KR!AE:AE,JPK_KR!V:V,parametry!G158),"") ->  | E161: =IF(A161<>"",SUMIFS(JPK_KR!AF:AF,JPK_KR!V:V,parametry!G158),"") ->  | F161: =IF(A161<>"",SUMIFS(JPK_KR!AG:AG,JPK_KR!V:V,parametry!G158),"") ->  | G161: =IF(A161<>"",SUMIFS(JPK_KR!AH:AH,JPK_KR!V:V,parametry!G158),"") ->  | H161: =IF(A161<>"",SUMIFS(JPK_KR!AI:AI,JPK_KR!V:V,parametry!G158),"") ->  | I161: =IF(A161<>"",SUMIFS(JPK_KR!AJ:AJ,JPK_KR!V:V,parametry!G158),"") ->  | J161: =IF(A161<>"",SUMIFS(JPK_KR!AK:AK,JPK_KR!V:V,parametry!G158),"") -> 
A162: =IF(parametry!I159<>"",parametry!I159,"") ->  | B162: =IF(A162<>"",parametry!J159,"") ->  | C162: =IF(A162<>"",SUMIFS(JPK_KR!AD:AD,JPK_KR!V:V,parametry!G159),"") ->  | D162: =IF(A162<>"",SUMIFS(JPK_KR!AE:AE,JPK_KR!V:V,parametry!G159),"") ->  | E162: =IF(A162<>"",SUMIFS(JPK_KR!AF:AF,JPK_KR!V:V,parametry!G159),"") ->  | F162: =IF(A162<>"",SUMIFS(JPK_KR!AG:AG,JPK_KR!V:V,parametry!G159),"") ->  | G162: =IF(A162<>"",SUMIFS(JPK_KR!AH:AH,JPK_KR!V:V,parametry!G159),"") ->  | H162: =IF(A162<>"",SUMIFS(JPK_KR!AI:AI,JPK_KR!V:V,parametry!G159),"") ->  | I162: =IF(A162<>"",SUMIFS(JPK_KR!AJ:AJ,JPK_KR!V:V,parametry!G159),"") ->  | J162: =IF(A162<>"",SUMIFS(JPK_KR!AK:AK,JPK_KR!V:V,parametry!G159),"") -> 
A163: =IF(parametry!I160<>"",parametry!I160,"") ->  | B163: =IF(A163<>"",parametry!J160,"") ->  | C163: =IF(A163<>"",SUMIFS(JPK_KR!AD:AD,JPK_KR!V:V,parametry!G160),"") ->  | D163: =IF(A163<>"",SUMIFS(JPK_KR!AE:AE,JPK_KR!V:V,parametry!G160),"") ->  | E163: =IF(A163<>"",SUMIFS(JPK_KR!AF:AF,JPK_KR!V:V,parametry!G160),"") ->  | F163: =IF(A163<>"",SUMIFS(JPK_KR!AG:AG,JPK_KR!V:V,parametry!G160),"") ->  | G163: =IF(A163<>"",SUMIFS(JPK_KR!AH:AH,JPK_KR!V:V,parametry!G160),"") ->  | H163: =IF(A163<>"",SUMIFS(JPK_KR!AI:AI,JPK_KR!V:V,parametry!G160),"") ->  | I163: =IF(A163<>"",SUMIFS(JPK_KR!AJ:AJ,JPK_KR!V:V,parametry!G160),"") ->  | J163: =IF(A163<>"",SUMIFS(JPK_KR!AK:AK,JPK_KR!V:V,parametry!G160),"") -> 
A164: =IF(parametry!I161<>"",parametry!I161,"") ->  | B164: =IF(A164<>"",parametry!J161,"") ->  | C164: =IF(A164<>"",SUMIFS(JPK_KR!AD:AD,JPK_KR!V:V,parametry!G161),"") ->  | D164: =IF(A164<>"",SUMIFS(JPK_KR!AE:AE,JPK_KR!V:V,parametry!G161),"") ->  | E164: =IF(A164<>"",SUMIFS(JPK_KR!AF:AF,JPK_KR!V:V,parametry!G161),"") ->  | F164: =IF(A164<>"",SUMIFS(JPK_KR!AG:AG,JPK_KR!V:V,parametry!G161),"") ->  | G164: =IF(A164<>"",SUMIFS(JPK_KR!AH:AH,JPK_KR!V:V,parametry!G161),"") ->  | H164: =IF(A164<>"",SUMIFS(JPK_KR!AI:AI,JPK_KR!V:V,parametry!G161),"") ->  | I164: =IF(A164<>"",SUMIFS(JPK_KR!AJ:AJ,JPK_KR!V:V,parametry!G161),"") ->  | J164: =IF(A164<>"",SUMIFS(JPK_KR!AK:AK,JPK_KR!V:V,parametry!G161),"") -> 
A165: =IF(parametry!I162<>"",parametry!I162,"") ->  | B165: =IF(A165<>"",parametry!J162,"") ->  | C165: =IF(A165<>"",SUMIFS(JPK_KR!AD:AD,JPK_KR!V:V,parametry!G162),"") ->  | D165: =IF(A165<>"",SUMIFS(JPK_KR!AE:AE,JPK_KR!V:V,parametry!G162),"") ->  | E165: =IF(A165<>"",SUMIFS(JPK_KR!AF:AF,JPK_KR!V:V,parametry!G162),"") ->  | F165: =IF(A165<>"",SUMIFS(JPK_KR!AG:AG,JPK_KR!V:V,parametry!G162),"") ->  | G165: =IF(A165<>"",SUMIFS(JPK_KR!AH:AH,JPK_KR!V:V,parametry!G162),"") ->  | H165: =IF(A165<>"",SUMIFS(JPK_KR!AI:AI,JPK_KR!V:V,parametry!G162),"") ->  | I165: =IF(A165<>"",SUMIFS(JPK_KR!AJ:AJ,JPK_KR!V:V,parametry!G162),"") ->  | J165: =IF(A165<>"",SUMIFS(JPK_KR!AK:AK,JPK_KR!V:V,parametry!G162),"") -> 
A166: =IF(parametry!I163<>"",parametry!I163,"") ->  | B166: =IF(A166<>"",parametry!J163,"") ->  | C166: =IF(A166<>"",SUMIFS(JPK_KR!AD:AD,JPK_KR!V:V,parametry!G163),"") ->  | D166: =IF(A166<>"",SUMIFS(JPK_KR!AE:AE,JPK_KR!V:V,parametry!G163),"") ->  | E166: =IF(A166<>"",SUMIFS(JPK_KR!AF:AF,JPK_KR!V:V,parametry!G163),"") ->  | F166: =IF(A166<>"",SUMIFS(JPK_KR!AG:AG,JPK_KR!V:V,parametry!G163),"") ->  | G166: =IF(A166<>"",SUMIFS(JPK_KR!AH:AH,JPK_KR!V:V,parametry!G163),"") ->  | H166: =IF(A166<>"",SUMIFS(JPK_KR!AI:AI,JPK_KR!V:V,parametry!G163),"") ->  | I166: =IF(A166<>"",SUMIFS(JPK_KR!AJ:AJ,JPK_KR!V:V,parametry!G163),"") ->  | J166: =IF(A166<>"",SUMIFS(JPK_KR!AK:AK,JPK_KR!V:V,parametry!G163),"") -> 
A167: =IF(parametry!I164<>"",parametry!I164,"") ->  | B167: =IF(A167<>"",parametry!J164,"") ->  | C167: =IF(A167<>"",SUMIFS(JPK_KR!AD:AD,JPK_KR!V:V,parametry!G164),"") ->  | D167: =IF(A167<>"",SUMIFS(JPK_KR!AE:AE,JPK_KR!V:V,parametry!G164),"") ->  | E167: =IF(A167<>"",SUMIFS(JPK_KR!AF:AF,JPK_KR!V:V,parametry!G164),"") ->  | F167: =IF(A167<>"",SUMIFS(JPK_KR!AG:AG,JPK_KR!V:V,parametry!G164),"") ->  | G167: =IF(A167<>"",SUMIFS(JPK_KR!AH:AH,JPK_KR!V:V,parametry!G164),"") ->  | H167: =IF(A167<>"",SUMIFS(JPK_KR!AI:AI,JPK_KR!V:V,parametry!G164),"") ->  | I167: =IF(A167<>"",SUMIFS(JPK_KR!AJ:AJ,JPK_KR!V:V,parametry!G164),"") ->  | J167: =IF(A167<>"",SUMIFS(JPK_KR!AK:AK,JPK_KR!V:V,parametry!G164),"") -> 
A168: =IF(parametry!I165<>"",parametry!I165,"") ->  | B168: =IF(A168<>"",parametry!J165,"") ->  | C168: =IF(A168<>"",SUMIFS(JPK_KR!AD:AD,JPK_KR!V:V,parametry!G165),"") ->  | D168: =IF(A168<>"",SUMIFS(JPK_KR!AE:AE,JPK_KR!V:V,parametry!G165),"") ->  | E168: =IF(A168<>"",SUMIFS(JPK_KR!AF:AF,JPK_KR!V:V,parametry!G165),"") ->  | F168: =IF(A168<>"",SUMIFS(JPK_KR!AG:AG,JPK_KR!V:V,parametry!G165),"") ->  | G168: =IF(A168<>"",SUMIFS(JPK_KR!AH:AH,JPK_KR!V:V,parametry!G165),"") ->  | H168: =IF(A168<>"",SUMIFS(JPK_KR!AI:AI,JPK_KR!V:V,parametry!G165),"") ->  | I168: =IF(A168<>"",SUMIFS(JPK_KR!AJ:AJ,JPK_KR!V:V,parametry!G165),"") ->  | J168: =IF(A168<>"",SUMIFS(JPK_KR!AK:AK,JPK_KR!V:V,parametry!G165),"") -> 
A169: =IF(parametry!I166<>"",parametry!I166,"") ->  | B169: =IF(A169<>"",parametry!J166,"") ->  | C169: =IF(A169<>"",SUMIFS(JPK_KR!AD:AD,JPK_KR!V:V,parametry!G166),"") ->  | D169: =IF(A169<>"",SUMIFS(JPK_KR!AE:AE,JPK_KR!V:V,parametry!G166),"") ->  | E169: =IF(A169<>"",SUMIFS(JPK_KR!AF:AF,JPK_KR!V:V,parametry!G166),"") ->  | F169: =IF(A169<>"",SUMIFS(JPK_KR!AG:AG,JPK_KR!V:V,parametry!G166),"") ->  | G169: =IF(A169<>"",SUMIFS(JPK_KR!AH:AH,JPK_KR!V:V,parametry!G166),"") ->  | H169: =IF(A169<>"",SUMIFS(JPK_KR!AI:AI,JPK_KR!V:V,parametry!G166),"") ->  | I169: =IF(A169<>"",SUMIFS(JPK_KR!AJ:AJ,JPK_KR!V:V,parametry!G166),"") ->  | J169: =IF(A169<>"",SUMIFS(JPK_KR!AK:AK,JPK_KR!V:V,parametry!G166),"") -> 
A170: =IF(parametry!I167<>"",parametry!I167,"") ->  | B170: =IF(A170<>"",parametry!J167,"") ->  | C170: =IF(A170<>"",SUMIFS(JPK_KR!AD:AD,JPK_KR!V:V,parametry!G167),"") ->  | D170: =IF(A170<>"",SUMIFS(JPK_KR!AE:AE,JPK_KR!V:V,parametry!G167),"") ->  | E170: =IF(A170<>"",SUMIFS(JPK_KR!AF:AF,JPK_KR!V:V,parametry!G167),"") ->  | F170: =IF(A170<>"",SUMIFS(JPK_KR!AG:AG,JPK_KR!V:V,parametry!G167),"") ->  | G170: =IF(A170<>"",SUMIFS(JPK_KR!AH:AH,JPK_KR!V:V,parametry!G167),"") ->  | H170: =IF(A170<>"",SUMIFS(JPK_KR!AI:AI,JPK_KR!V:V,parametry!G167),"") ->  | I170: =IF(A170<>"",SUMIFS(JPK_KR!AJ:AJ,JPK_KR!V:V,parametry!G167),"") ->  | J170: =IF(A170<>"",SUMIFS(JPK_KR!AK:AK,JPK_KR!V:V,parametry!G167),"") -> 
A171: =IF(parametry!I168<>"",parametry!I168,"") ->  | B171: =IF(A171<>"",parametry!J168,"") ->  | C171: =IF(A171<>"",SUMIFS(JPK_KR!AD:AD,JPK_KR!V:V,parametry!G168),"") ->  | D171: =IF(A171<>"",SUMIFS(JPK_KR!AE:AE,JPK_KR!V:V,parametry!G168),"") ->  | E171: =IF(A171<>"",SUMIFS(JPK_KR!AF:AF,JPK_KR!V:V,parametry!G168),"") ->  | F171: =IF(A171<>"",SUMIFS(JPK_KR!AG:AG,JPK_KR!V:V,parametry!G168),"") ->  | G171: =IF(A171<>"",SUMIFS(JPK_KR!AH:AH,JPK_KR!V:V,parametry!G168),"") ->  | H171: =IF(A171<>"",SUMIFS(JPK_KR!AI:AI,JPK_KR!V:V,parametry!G168),"") ->  | I171: =IF(A171<>"",SUMIFS(JPK_KR!AJ:AJ,JPK_KR!V:V,parametry!G168),"") ->  | J171: =IF(A171<>"",SUMIFS(JPK_KR!AK:AK,JPK_KR!V:V,parametry!G168),"") -> 
A172: =IF(parametry!I169<>"",parametry!I169,"") ->  | B172: =IF(A172<>"",parametry!J169,"") ->  | C172: =IF(A172<>"",SUMIFS(JPK_KR!AD:AD,JPK_KR!V:V,parametry!G169),"") ->  | D172: =IF(A172<>"",SUMIFS(JPK_KR!AE:AE,JPK_KR!V:V,parametry!G169),"") ->  | E172: =IF(A172<>"",SUMIFS(JPK_KR!AF:AF,JPK_KR!V:V,parametry!G169),"") ->  | F172: =IF(A172<>"",SUMIFS(JPK_KR!AG:AG,JPK_KR!V:V,parametry!G169),"") ->  | G172: =IF(A172<>"",SUMIFS(JPK_KR!AH:AH,JPK_KR!V:V,parametry!G169),"") ->  | H172: =IF(A172<>"",SUMIFS(JPK_KR!AI:AI,JPK_KR!V:V,parametry!G169),"") ->  | I172: =IF(A172<>"",SUMIFS(JPK_KR!AJ:AJ,JPK_KR!V:V,parametry!G169),"") ->  | J172: =IF(A172<>"",SUMIFS(JPK_KR!AK:AK,JPK_KR!V:V,parametry!G169),"") -> 
A173: =IF(parametry!I170<>"",parametry!I170,"") ->  | B173: =IF(A173<>"",parametry!J170,"") ->  | C173: =IF(A173<>"",SUMIFS(JPK_KR!AD:AD,JPK_KR!V:V,parametry!G170),"") ->  | D173: =IF(A173<>"",SUMIFS(JPK_KR!AE:AE,JPK_KR!V:V,parametry!G170),"") ->  | E173: =IF(A173<>"",SUMIFS(JPK_KR!AF:AF,JPK_KR!V:V,parametry!G170),"") ->  | F173: =IF(A173<>"",SUMIFS(JPK_KR!AG:AG,JPK_KR!V:V,parametry!G170),"") ->  | G173: =IF(A173<>"",SUMIFS(JPK_KR!AH:AH,JPK_KR!V:V,parametry!G170),"") ->  | H173: =IF(A173<>"",SUMIFS(JPK_KR!AI:AI,JPK_KR!V:V,parametry!G170),"") ->  | I173: =IF(A173<>"",SUMIFS(JPK_KR!AJ:AJ,JPK_KR!V:V,parametry!G170),"") ->  | J173: =IF(A173<>"",SUMIFS(JPK_KR!AK:AK,JPK_KR!V:V,parametry!G170),"") -> 
A174: =IF(parametry!I171<>"",parametry!I171,"") ->  | B174: =IF(A174<>"",parametry!J171,"") ->  | C174: =IF(A174<>"",SUMIFS(JPK_KR!AD:AD,JPK_KR!V:V,parametry!G171),"") ->  | D174: =IF(A174<>"",SUMIFS(JPK_KR!AE:AE,JPK_KR!V:V,parametry!G171),"") ->  | E174: =IF(A174<>"",SUMIFS(JPK_KR!AF:AF,JPK_KR!V:V,parametry!G171),"") ->  | F174: =IF(A174<>"",SUMIFS(JPK_KR!AG:AG,JPK_KR!V:V,parametry!G171),"") ->  | G174: =IF(A174<>"",SUMIFS(JPK_KR!AH:AH,JPK_KR!V:V,parametry!G171),"") ->  | H174: =IF(A174<>"",SUMIFS(JPK_KR!AI:AI,JPK_KR!V:V,parametry!G171),"") ->  | I174: =IF(A174<>"",SUMIFS(JPK_KR!AJ:AJ,JPK_KR!V:V,parametry!G171),"") ->  | J174: =IF(A174<>"",SUMIFS(JPK_KR!AK:AK,JPK_KR!V:V,parametry!G171),"") -> 
A175: =IF(parametry!I172<>"",parametry!I172,"") ->  | B175: =IF(A175<>"",parametry!J172,"") ->  | C175: =IF(A175<>"",SUMIFS(JPK_KR!AD:AD,JPK_KR!V:V,parametry!G172),"") ->  | D175: =IF(A175<>"",SUMIFS(JPK_KR!AE:AE,JPK_KR!V:V,parametry!G172),"") ->  | E175: =IF(A175<>"",SUMIFS(JPK_KR!AF:AF,JPK_KR!V:V,parametry!G172),"") ->  | F175: =IF(A175<>"",SUMIFS(JPK_KR!AG:AG,JPK_KR!V:V,parametry!G172),"") ->  | G175: =IF(A175<>"",SUMIFS(JPK_KR!AH:AH,JPK_KR!V:V,parametry!G172),"") ->  | H175: =IF(A175<>"",SUMIFS(JPK_KR!AI:AI,JPK_KR!V:V,parametry!G172),"") ->  | I175: =IF(A175<>"",SUMIFS(JPK_KR!AJ:AJ,JPK_KR!V:V,parametry!G172),"") ->  | J175: =IF(A175<>"",SUMIFS(JPK_KR!AK:AK,JPK_KR!V:V,parametry!G172),"") -> 
A176: =IF(parametry!I173<>"",parametry!I173,"") ->  | B176: =IF(A176<>"",parametry!J173,"") ->  | C176: =IF(A176<>"",SUMIFS(JPK_KR!AD:AD,JPK_KR!V:V,parametry!G173),"") ->  | D176: =IF(A176<>"",SUMIFS(JPK_KR!AE:AE,JPK_KR!V:V,parametry!G173),"") ->  | E176: =IF(A176<>"",SUMIFS(JPK_KR!AF:AF,JPK_KR!V:V,parametry!G173),"") ->  | F176: =IF(A176<>"",SUMIFS(JPK_KR!AG:AG,JPK_KR!V:V,parametry!G173),"") ->  | G176: =IF(A176<>"",SUMIFS(JPK_KR!AH:AH,JPK_KR!V:V,parametry!G173),"") ->  | H176: =IF(A176<>"",SUMIFS(JPK_KR!AI:AI,JPK_KR!V:V,parametry!G173),"") ->  | I176: =IF(A176<>"",SUMIFS(JPK_KR!AJ:AJ,JPK_KR!V:V,parametry!G173),"") ->  | J176: =IF(A176<>"",SUMIFS(JPK_KR!AK:AK,JPK_KR!V:V,parametry!G173),"") -> 
A177: =IF(parametry!I174<>"",parametry!I174,"") ->  | B177: =IF(A177<>"",parametry!J174,"") ->  | C177: =IF(A177<>"",SUMIFS(JPK_KR!AD:AD,JPK_KR!V:V,parametry!G174),"") ->  | D177: =IF(A177<>"",SUMIFS(JPK_KR!AE:AE,JPK_KR!V:V,parametry!G174),"") ->  | E177: =IF(A177<>"",SUMIFS(JPK_KR!AF:AF,JPK_KR!V:V,parametry!G174),"") ->  | F177: =IF(A177<>"",SUMIFS(JPK_KR!AG:AG,JPK_KR!V:V,parametry!G174),"") ->  | G177: =IF(A177<>"",SUMIFS(JPK_KR!AH:AH,JPK_KR!V:V,parametry!G174),"") ->  | H177: =IF(A177<>"",SUMIFS(JPK_KR!AI:AI,JPK_KR!V:V,parametry!G174),"") ->  | I177: =IF(A177<>"",SUMIFS(JPK_KR!AJ:AJ,JPK_KR!V:V,parametry!G174),"") ->  | J177: =IF(A177<>"",SUMIFS(JPK_KR!AK:AK,JPK_KR!V:V,parametry!G174),"") -> 
A178: =IF(parametry!I175<>"",parametry!I175,"") ->  | B178: =IF(A178<>"",parametry!J175,"") ->  | C178: =IF(A178<>"",SUMIFS(JPK_KR!AD:AD,JPK_KR!V:V,parametry!G175),"") ->  | D178: =IF(A178<>"",SUMIFS(JPK_KR!AE:AE,JPK_KR!V:V,parametry!G175),"") ->  | E178: =IF(A178<>"",SUMIFS(JPK_KR!AF:AF,JPK_KR!V:V,parametry!G175),"") ->  | F178: =IF(A178<>"",SUMIFS(JPK_KR!AG:AG,JPK_KR!V:V,parametry!G175),"") ->  | G178: =IF(A178<>"",SUMIFS(JPK_KR!AH:AH,JPK_KR!V:V,parametry!G175),"") ->  | H178: =IF(A178<>"",SUMIFS(JPK_KR!AI:AI,JPK_KR!V:V,parametry!G175),"") ->  | I178: =IF(A178<>"",SUMIFS(JPK_KR!AJ:AJ,JPK_KR!V:V,parametry!G175),"") ->  | J178: =IF(A178<>"",SUMIFS(JPK_KR!AK:AK,JPK_KR!V:V,parametry!G175),"") -> 
A179: =IF(parametry!I176<>"",parametry!I176,"") ->  | B179: =IF(A179<>"",parametry!J176,"") ->  | C179: =IF(A179<>"",SUMIFS(JPK_KR!AD:AD,JPK_KR!V:V,parametry!G176),"") ->  | D179: =IF(A179<>"",SUMIFS(JPK_KR!AE:AE,JPK_KR!V:V,parametry!G176),"") ->  | E179: =IF(A179<>"",SUMIFS(JPK_KR!AF:AF,JPK_KR!V:V,parametry!G176),"") ->  | F179: =IF(A179<>"",SUMIFS(JPK_KR!AG:AG,JPK_KR!V:V,parametry!G176),"") ->  | G179: =IF(A179<>"",SUMIFS(JPK_KR!AH:AH,JPK_KR!V:V,parametry!G176),"") ->  | H179: =IF(A179<>"",SUMIFS(JPK_KR!AI:AI,JPK_KR!V:V,parametry!G176),"") ->  | I179: =IF(A179<>"",SUMIFS(JPK_KR!AJ:AJ,JPK_KR!V:V,parametry!G176),"") ->  | J179: =IF(A179<>"",SUMIFS(JPK_KR!AK:AK,JPK_KR!V:V,parametry!G176),"") -> 
A180: =IF(parametry!I177<>"",parametry!I177,"") ->  | B180: =IF(A180<>"",parametry!J177,"") ->  | C180: =IF(A180<>"",SUMIFS(JPK_KR!AD:AD,JPK_KR!V:V,parametry!G177),"") ->  | D180: =IF(A180<>"",SUMIFS(JPK_KR!AE:AE,JPK_KR!V:V,parametry!G177),"") ->  | E180: =IF(A180<>"",SUMIFS(JPK_KR!AF:AF,JPK_KR!V:V,parametry!G177),"") ->  | F180: =IF(A180<>"",SUMIFS(JPK_KR!AG:AG,JPK_KR!V:V,parametry!G177),"") ->  | G180: =IF(A180<>"",SUMIFS(JPK_KR!AH:AH,JPK_KR!V:V,parametry!G177),"") ->  | H180: =IF(A180<>"",SUMIFS(JPK_KR!AI:AI,JPK_KR!V:V,parametry!G177),"") ->  | I180: =IF(A180<>"",SUMIFS(JPK_KR!AJ:AJ,JPK_KR!V:V,parametry!G177),"") ->  | J180: =IF(A180<>"",SUMIFS(JPK_KR!AK:AK,JPK_KR!V:V,parametry!G177),"") -> 
A181: =IF(parametry!I178<>"",parametry!I178,"") ->  | B181: =IF(A181<>"",parametry!J178,"") ->  | C181: =IF(A181<>"",SUMIFS(JPK_KR!AD:AD,JPK_KR!V:V,parametry!G178),"") ->  | D181: =IF(A181<>"",SUMIFS(JPK_KR!AE:AE,JPK_KR!V:V,parametry!G178),"") ->  | E181: =IF(A181<>"",SUMIFS(JPK_KR!AF:AF,JPK_KR!V:V,parametry!G178),"") ->  | F181: =IF(A181<>"",SUMIFS(JPK_KR!AG:AG,JPK_KR!V:V,parametry!G178),"") ->  | G181: =IF(A181<>"",SUMIFS(JPK_KR!AH:AH,JPK_KR!V:V,parametry!G178),"") ->  | H181: =IF(A181<>"",SUMIFS(JPK_KR!AI:AI,JPK_KR!V:V,parametry!G178),"") ->  | I181: =IF(A181<>"",SUMIFS(JPK_KR!AJ:AJ,JPK_KR!V:V,parametry!G178),"") ->  | J181: =IF(A181<>"",SUMIFS(JPK_KR!AK:AK,JPK_KR!V:V,parametry!G178),"") -> 
A182: =IF(parametry!I179<>"",parametry!I179,"") ->  | B182: =IF(A182<>"",parametry!J179,"") ->  | C182: =IF(A182<>"",SUMIFS(JPK_KR!AD:AD,JPK_KR!V:V,parametry!G179),"") ->  | D182: =IF(A182<>"",SUMIFS(JPK_KR!AE:AE,JPK_KR!V:V,parametry!G179),"") ->  | E182: =IF(A182<>"",SUMIFS(JPK_KR!AF:AF,JPK_KR!V:V,parametry!G179),"") ->  | F182: =IF(A182<>"",SUMIFS(JPK_KR!AG:AG,JPK_KR!V:V,parametry!G179),"") ->  | G182: =IF(A182<>"",SUMIFS(JPK_KR!AH:AH,JPK_KR!V:V,parametry!G179),"") ->  | H182: =IF(A182<>"",SUMIFS(JPK_KR!AI:AI,JPK_KR!V:V,parametry!G179),"") ->  | I182: =IF(A182<>"",SUMIFS(JPK_KR!AJ:AJ,JPK_KR!V:V,parametry!G179),"") ->  | J182: =IF(A182<>"",SUMIFS(JPK_KR!AK:AK,JPK_KR!V:V,parametry!G179),"") -> 
A183: =IF(parametry!I180<>"",parametry!I180,"") ->  | B183: =IF(A183<>"",parametry!J180,"") ->  | C183: =IF(A183<>"",SUMIFS(JPK_KR!AD:AD,JPK_KR!V:V,parametry!G180),"") ->  | D183: =IF(A183<>"",SUMIFS(JPK_KR!AE:AE,JPK_KR!V:V,parametry!G180),"") ->  | E183: =IF(A183<>"",SUMIFS(JPK_KR!AF:AF,JPK_KR!V:V,parametry!G180),"") ->  | F183: =IF(A183<>"",SUMIFS(JPK_KR!AG:AG,JPK_KR!V:V,parametry!G180),"") ->  | G183: =IF(A183<>"",SUMIFS(JPK_KR!AH:AH,JPK_KR!V:V,parametry!G180),"") ->  | H183: =IF(A183<>"",SUMIFS(JPK_KR!AI:AI,JPK_KR!V:V,parametry!G180),"") ->  | I183: =IF(A183<>"",SUMIFS(JPK_KR!AJ:AJ,JPK_KR!V:V,parametry!G180),"") ->  | J183: =IF(A183<>"",SUMIFS(JPK_KR!AK:AK,JPK_KR!V:V,parametry!G180),"") -> 
A184: =IF(parametry!I181<>"",parametry!I181,"") ->  | B184: =IF(A184<>"",parametry!J181,"") ->  | C184: =IF(A184<>"",SUMIFS(JPK_KR!AD:AD,JPK_KR!V:V,parametry!G181),"") ->  | D184: =IF(A184<>"",SUMIFS(JPK_KR!AE:AE,JPK_KR!V:V,parametry!G181),"") ->  | E184: =IF(A184<>"",SUMIFS(JPK_KR!AF:AF,JPK_KR!V:V,parametry!G181),"") ->  | F184: =IF(A184<>"",SUMIFS(JPK_KR!AG:AG,JPK_KR!V:V,parametry!G181),"") ->  | G184: =IF(A184<>"",SUMIFS(JPK_KR!AH:AH,JPK_KR!V:V,parametry!G181),"") ->  | H184: =IF(A184<>"",SUMIFS(JPK_KR!AI:AI,JPK_KR!V:V,parametry!G181),"") ->  | I184: =IF(A184<>"",SUMIFS(JPK_KR!AJ:AJ,JPK_KR!V:V,parametry!G181),"") ->  | J184: =IF(A184<>"",SUMIFS(JPK_KR!AK:AK,JPK_KR!V:V,parametry!G181),"") -> 
A185: =IF(parametry!I182<>"",parametry!I182,"") ->  | B185: =IF(A185<>"",parametry!J182,"") ->  | C185: =IF(A185<>"",SUMIFS(JPK_KR!AD:AD,JPK_KR!V:V,parametry!G182),"") ->  | D185: =IF(A185<>"",SUMIFS(JPK_KR!AE:AE,JPK_KR!V:V,parametry!G182),"") ->  | E185: =IF(A185<>"",SUMIFS(JPK_KR!AF:AF,JPK_KR!V:V,parametry!G182),"") ->  | F185: =IF(A185<>"",SUMIFS(JPK_KR!AG:AG,JPK_KR!V:V,parametry!G182),"") ->  | G185: =IF(A185<>"",SUMIFS(JPK_KR!AH:AH,JPK_KR!V:V,parametry!G182),"") ->  | H185: =IF(A185<>"",SUMIFS(JPK_KR!AI:AI,JPK_KR!V:V,parametry!G182),"") ->  | I185: =IF(A185<>"",SUMIFS(JPK_KR!AJ:AJ,JPK_KR!V:V,parametry!G182),"") ->  | J185: =IF(A185<>"",SUMIFS(JPK_KR!AK:AK,JPK_KR!V:V,parametry!G182),"") -> 
A186: =IF(parametry!I183<>"",parametry!I183,"") ->  | B186: =IF(A186<>"",parametry!J183,"") ->  | C186: =IF(A186<>"",SUMIFS(JPK_KR!AD:AD,JPK_KR!V:V,parametry!G183),"") ->  | D186: =IF(A186<>"",SUMIFS(JPK_KR!AE:AE,JPK_KR!V:V,parametry!G183),"") ->  | E186: =IF(A186<>"",SUMIFS(JPK_KR!AF:AF,JPK_KR!V:V,parametry!G183),"") ->  | F186: =IF(A186<>"",SUMIFS(JPK_KR!AG:AG,JPK_KR!V:V,parametry!G183),"") ->  | G186: =IF(A186<>"",SUMIFS(JPK_KR!AH:AH,JPK_KR!V:V,parametry!G183),"") ->  | H186: =IF(A186<>"",SUMIFS(JPK_KR!AI:AI,JPK_KR!V:V,parametry!G183),"") ->  | I186: =IF(A186<>"",SUMIFS(JPK_KR!AJ:AJ,JPK_KR!V:V,parametry!G183),"") ->  | J186: =IF(A186<>"",SUMIFS(JPK_KR!AK:AK,JPK_KR!V:V,parametry!G183),"") -> 
A187: =IF(parametry!I184<>"",parametry!I184,"") ->  | B187: =IF(A187<>"",parametry!J184,"") ->  | C187: =IF(A187<>"",SUMIFS(JPK_KR!AD:AD,JPK_KR!V:V,parametry!G184),"") ->  | D187: =IF(A187<>"",SUMIFS(JPK_KR!AE:AE,JPK_KR!V:V,parametry!G184),"") ->  | E187: =IF(A187<>"",SUMIFS(JPK_KR!AF:AF,JPK_KR!V:V,parametry!G184),"") ->  | F187: =IF(A187<>"",SUMIFS(JPK_KR!AG:AG,JPK_KR!V:V,parametry!G184),"") ->  | G187: =IF(A187<>"",SUMIFS(JPK_KR!AH:AH,JPK_KR!V:V,parametry!G184),"") ->  | H187: =IF(A187<>"",SUMIFS(JPK_KR!AI:AI,JPK_KR!V:V,parametry!G184),"") ->  | I187: =IF(A187<>"",SUMIFS(JPK_KR!AJ:AJ,JPK_KR!V:V,parametry!G184),"") ->  | J187: =IF(A187<>"",SUMIFS(JPK_KR!AK:AK,JPK_KR!V:V,parametry!G184),"") -> 
A188: =IF(parametry!I185<>"",parametry!I185,"") ->  | B188: =IF(A188<>"",parametry!J185,"") ->  | C188: =IF(A188<>"",SUMIFS(JPK_KR!AD:AD,JPK_KR!V:V,parametry!G185),"") ->  | D188: =IF(A188<>"",SUMIFS(JPK_KR!AE:AE,JPK_KR!V:V,parametry!G185),"") ->  | E188: =IF(A188<>"",SUMIFS(JPK_KR!AF:AF,JPK_KR!V:V,parametry!G185),"") ->  | F188: =IF(A188<>"",SUMIFS(JPK_KR!AG:AG,JPK_KR!V:V,parametry!G185),"") ->  | G188: =IF(A188<>"",SUMIFS(JPK_KR!AH:AH,JPK_KR!V:V,parametry!G185),"") ->  | H188: =IF(A188<>"",SUMIFS(JPK_KR!AI:AI,JPK_KR!V:V,parametry!G185),"") ->  | I188: =IF(A188<>"",SUMIFS(JPK_KR!AJ:AJ,JPK_KR!V:V,parametry!G185),"") ->  | J188: =IF(A188<>"",SUMIFS(JPK_KR!AK:AK,JPK_KR!V:V,parametry!G185),"") -> 
A189: =IF(parametry!I186<>"",parametry!I186,"") ->  | B189: =IF(A189<>"",parametry!J186,"") ->  | C189: =IF(A189<>"",SUMIFS(JPK_KR!AD:AD,JPK_KR!V:V,parametry!G186),"") ->  | D189: =IF(A189<>"",SUMIFS(JPK_KR!AE:AE,JPK_KR!V:V,parametry!G186),"") ->  | E189: =IF(A189<>"",SUMIFS(JPK_KR!AF:AF,JPK_KR!V:V,parametry!G186),"") ->  | F189: =IF(A189<>"",SUMIFS(JPK_KR!AG:AG,JPK_KR!V:V,parametry!G186),"") ->  | G189: =IF(A189<>"",SUMIFS(JPK_KR!AH:AH,JPK_KR!V:V,parametry!G186),"") ->  | H189: =IF(A189<>"",SUMIFS(JPK_KR!AI:AI,JPK_KR!V:V,parametry!G186),"") ->  | I189: =IF(A189<>"",SUMIFS(JPK_KR!AJ:AJ,JPK_KR!V:V,parametry!G186),"") ->  | J189: =IF(A189<>"",SUMIFS(JPK_KR!AK:AK,JPK_KR!V:V,parametry!G186),"") -> 
A190: =IF(parametry!I187<>"",parametry!I187,"") ->  | B190: =IF(A190<>"",parametry!J187,"") ->  | C190: =IF(A190<>"",SUMIFS(JPK_KR!AD:AD,JPK_KR!V:V,parametry!G187),"") ->  | D190: =IF(A190<>"",SUMIFS(JPK_KR!AE:AE,JPK_KR!V:V,parametry!G187),"") ->  | E190: =IF(A190<>"",SUMIFS(JPK_KR!AF:AF,JPK_KR!V:V,parametry!G187),"") ->  | F190: =IF(A190<>"",SUMIFS(JPK_KR!AG:AG,JPK_KR!V:V,parametry!G187),"") ->  | G190: =IF(A190<>"",SUMIFS(JPK_KR!AH:AH,JPK_KR!V:V,parametry!G187),"") ->  | H190: =IF(A190<>"",SUMIFS(JPK_KR!AI:AI,JPK_KR!V:V,parametry!G187),"") ->  | I190: =IF(A190<>"",SUMIFS(JPK_KR!AJ:AJ,JPK_KR!V:V,parametry!G187),"") ->  | J190: =IF(A190<>"",SUMIFS(JPK_KR!AK:AK,JPK_KR!V:V,parametry!G187),"") -> 
A191: =IF(parametry!I188<>"",parametry!I188,"") ->  | B191: =IF(A191<>"",parametry!J188,"") ->  | C191: =IF(A191<>"",SUMIFS(JPK_KR!AD:AD,JPK_KR!V:V,parametry!G188),"") ->  | D191: =IF(A191<>"",SUMIFS(JPK_KR!AE:AE,JPK_KR!V:V,parametry!G188),"") ->  | E191: =IF(A191<>"",SUMIFS(JPK_KR!AF:AF,JPK_KR!V:V,parametry!G188),"") ->  | F191: =IF(A191<>"",SUMIFS(JPK_KR!AG:AG,JPK_KR!V:V,parametry!G188),"") ->  | G191: =IF(A191<>"",SUMIFS(JPK_KR!AH:AH,JPK_KR!V:V,parametry!G188),"") ->  | H191: =IF(A191<>"",SUMIFS(JPK_KR!AI:AI,JPK_KR!V:V,parametry!G188),"") ->  | I191: =IF(A191<>"",SUMIFS(JPK_KR!AJ:AJ,JPK_KR!V:V,parametry!G188),"") ->  | J191: =IF(A191<>"",SUMIFS(JPK_KR!AK:AK,JPK_KR!V:V,parametry!G188),"") -> 
A192: =IF(parametry!I189<>"",parametry!I189,"") ->  | B192: =IF(A192<>"",parametry!J189,"") ->  | C192: =IF(A192<>"",SUMIFS(JPK_KR!AD:AD,JPK_KR!V:V,parametry!G189),"") ->  | D192: =IF(A192<>"",SUMIFS(JPK_KR!AE:AE,JPK_KR!V:V,parametry!G189),"") ->  | E192: =IF(A192<>"",SUMIFS(JPK_KR!AF:AF,JPK_KR!V:V,parametry!G189),"") ->  | F192: =IF(A192<>"",SUMIFS(JPK_KR!AG:AG,JPK_KR!V:V,parametry!G189),"") ->  | G192: =IF(A192<>"",SUMIFS(JPK_KR!AH:AH,JPK_KR!V:V,parametry!G189),"") ->  | H192: =IF(A192<>"",SUMIFS(JPK_KR!AI:AI,JPK_KR!V:V,parametry!G189),"") ->  | I192: =IF(A192<>"",SUMIFS(JPK_KR!AJ:AJ,JPK_KR!V:V,parametry!G189),"") ->  | J192: =IF(A192<>"",SUMIFS(JPK_KR!AK:AK,JPK_KR!V:V,parametry!G189),"") -> 
A193: =IF(parametry!I190<>"",parametry!I190,"") ->  | B193: =IF(A193<>"",parametry!J190,"") ->  | C193: =IF(A193<>"",SUMIFS(JPK_KR!AD:AD,JPK_KR!V:V,parametry!G190),"") ->  | D193: =IF(A193<>"",SUMIFS(JPK_KR!AE:AE,JPK_KR!V:V,parametry!G190),"") ->  | E193: =IF(A193<>"",SUMIFS(JPK_KR!AF:AF,JPK_KR!V:V,parametry!G190),"") ->  | F193: =IF(A193<>"",SUMIFS(JPK_KR!AG:AG,JPK_KR!V:V,parametry!G190),"") ->  | G193: =IF(A193<>"",SUMIFS(JPK_KR!AH:AH,JPK_KR!V:V,parametry!G190),"") ->  | H193: =IF(A193<>"",SUMIFS(JPK_KR!AI:AI,JPK_KR!V:V,parametry!G190),"") ->  | I193: =IF(A193<>"",SUMIFS(JPK_KR!AJ:AJ,JPK_KR!V:V,parametry!G190),"") ->  | J193: =IF(A193<>"",SUMIFS(JPK_KR!AK:AK,JPK_KR!V:V,parametry!G190),"") -> 
A194: =IF(parametry!I191<>"",parametry!I191,"") ->  | B194: =IF(A194<>"",parametry!J191,"") ->  | C194: =IF(A194<>"",SUMIFS(JPK_KR!AD:AD,JPK_KR!V:V,parametry!G191),"") ->  | D194: =IF(A194<>"",SUMIFS(JPK_KR!AE:AE,JPK_KR!V:V,parametry!G191),"") ->  | E194: =IF(A194<>"",SUMIFS(JPK_KR!AF:AF,JPK_KR!V:V,parametry!G191),"") ->  | F194: =IF(A194<>"",SUMIFS(JPK_KR!AG:AG,JPK_KR!V:V,parametry!G191),"") ->  | G194: =IF(A194<>"",SUMIFS(JPK_KR!AH:AH,JPK_KR!V:V,parametry!G191),"") ->  | H194: =IF(A194<>"",SUMIFS(JPK_KR!AI:AI,JPK_KR!V:V,parametry!G191),"") ->  | I194: =IF(A194<>"",SUMIFS(JPK_KR!AJ:AJ,JPK_KR!V:V,parametry!G191),"") ->  | J194: =IF(A194<>"",SUMIFS(JPK_KR!AK:AK,JPK_KR!V:V,parametry!G191),"") -> 
A195: =IF(parametry!I192<>"",parametry!I192,"") ->  | B195: =IF(A195<>"",parametry!J192,"") ->  | C195: =IF(A195<>"",SUMIFS(JPK_KR!AD:AD,JPK_KR!V:V,parametry!G192),"") ->  | D195: =IF(A195<>"",SUMIFS(JPK_KR!AE:AE,JPK_KR!V:V,parametry!G192),"") ->  | E195: =IF(A195<>"",SUMIFS(JPK_KR!AF:AF,JPK_KR!V:V,parametry!G192),"") ->  | F195: =IF(A195<>"",SUMIFS(JPK_KR!AG:AG,JPK_KR!V:V,parametry!G192),"") ->  | G195: =IF(A195<>"",SUMIFS(JPK_KR!AH:AH,JPK_KR!V:V,parametry!G192),"") ->  | H195: =IF(A195<>"",SUMIFS(JPK_KR!AI:AI,JPK_KR!V:V,parametry!G192),"") ->  | I195: =IF(A195<>"",SUMIFS(JPK_KR!AJ:AJ,JPK_KR!V:V,parametry!G192),"") ->  | J195: =IF(A195<>"",SUMIFS(JPK_KR!AK:AK,JPK_KR!V:V,parametry!G192),"") -> 
A196: =IF(parametry!I193<>"",parametry!I193,"") ->  | B196: =IF(A196<>"",parametry!J193,"") ->  | C196: =IF(A196<>"",SUMIFS(JPK_KR!AD:AD,JPK_KR!V:V,parametry!G193),"") ->  | D196: =IF(A196<>"",SUMIFS(JPK_KR!AE:AE,JPK_KR!V:V,parametry!G193),"") ->  | E196: =IF(A196<>"",SUMIFS(JPK_KR!AF:AF,JPK_KR!V:V,parametry!G193),"") ->  | F196: =IF(A196<>"",SUMIFS(JPK_KR!AG:AG,JPK_KR!V:V,parametry!G193),"") ->  | G196: =IF(A196<>"",SUMIFS(JPK_KR!AH:AH,JPK_KR!V:V,parametry!G193),"") ->  | H196: =IF(A196<>"",SUMIFS(JPK_KR!AI:AI,JPK_KR!V:V,parametry!G193),"") ->  | I196: =IF(A196<>"",SUMIFS(JPK_KR!AJ:AJ,JPK_KR!V:V,parametry!G193),"") ->  | J196: =IF(A196<>"",SUMIFS(JPK_KR!AK:AK,JPK_KR!V:V,parametry!G193),"") -> 
A197: =IF(parametry!I194<>"",parametry!I194,"") ->  | B197: =IF(A197<>"",parametry!J194,"") ->  | C197: =IF(A197<>"",SUMIFS(JPK_KR!AD:AD,JPK_KR!V:V,parametry!G194),"") ->  | D197: =IF(A197<>"",SUMIFS(JPK_KR!AE:AE,JPK_KR!V:V,parametry!G194),"") ->  | E197: =IF(A197<>"",SUMIFS(JPK_KR!AF:AF,JPK_KR!V:V,parametry!G194),"") ->  | F197: =IF(A197<>"",SUMIFS(JPK_KR!AG:AG,JPK_KR!V:V,parametry!G194),"") ->  | G197: =IF(A197<>"",SUMIFS(JPK_KR!AH:AH,JPK_KR!V:V,parametry!G194),"") ->  | H197: =IF(A197<>"",SUMIFS(JPK_KR!AI:AI,JPK_KR!V:V,parametry!G194),"") ->  | I197: =IF(A197<>"",SUMIFS(JPK_KR!AJ:AJ,JPK_KR!V:V,parametry!G194),"") ->  | J197: =IF(A197<>"",SUMIFS(JPK_KR!AK:AK,JPK_KR!V:V,parametry!G194),"") -> 
A198: =IF(parametry!I195<>"",parametry!I195,"") ->  | B198: =IF(A198<>"",parametry!J195,"") ->  | C198: =IF(A198<>"",SUMIFS(JPK_KR!AD:AD,JPK_KR!V:V,parametry!G195),"") ->  | D198: =IF(A198<>"",SUMIFS(JPK_KR!AE:AE,JPK_KR!V:V,parametry!G195),"") ->  | E198: =IF(A198<>"",SUMIFS(JPK_KR!AF:AF,JPK_KR!V:V,parametry!G195),"") ->  | F198: =IF(A198<>"",SUMIFS(JPK_KR!AG:AG,JPK_KR!V:V,parametry!G195),"") ->  | G198: =IF(A198<>"",SUMIFS(JPK_KR!AH:AH,JPK_KR!V:V,parametry!G195),"") ->  | H198: =IF(A198<>"",SUMIFS(JPK_KR!AI:AI,JPK_KR!V:V,parametry!G195),"") ->  | I198: =IF(A198<>"",SUMIFS(JPK_KR!AJ:AJ,JPK_KR!V:V,parametry!G195),"") ->  | J198: =IF(A198<>"",SUMIFS(JPK_KR!AK:AK,JPK_KR!V:V,parametry!G195),"") -> 
A199: =IF(parametry!I196<>"",parametry!I196,"") ->  | B199: =IF(A199<>"",parametry!J196,"") ->  | C199: =IF(A199<>"",SUMIFS(JPK_KR!AD:AD,JPK_KR!V:V,parametry!G196),"") ->  | D199: =IF(A199<>"",SUMIFS(JPK_KR!AE:AE,JPK_KR!V:V,parametry!G196),"") ->  | E199: =IF(A199<>"",SUMIFS(JPK_KR!AF:AF,JPK_KR!V:V,parametry!G196),"") ->  | F199: =IF(A199<>"",SUMIFS(JPK_KR!AG:AG,JPK_KR!V:V,parametry!G196),"") ->  | G199: =IF(A199<>"",SUMIFS(JPK_KR!AH:AH,JPK_KR!V:V,parametry!G196),"") ->  | H199: =IF(A199<>"",SUMIFS(JPK_KR!AI:AI,JPK_KR!V:V,parametry!G196),"") ->  | I199: =IF(A199<>"",SUMIFS(JPK_KR!AJ:AJ,JPK_KR!V:V,parametry!G196),"") ->  | J199: =IF(A199<>"",SUMIFS(JPK_KR!AK:AK,JPK_KR!V:V,parametry!G196),"") -> 
A200: =IF(parametry!I197<>"",parametry!I197,"") ->  | B200: =IF(A200<>"",parametry!J197,"") ->  | C200: =IF(A200<>"",SUMIFS(JPK_KR!AD:AD,JPK_KR!V:V,parametry!G197),"") ->  | D200: =IF(A200<>"",SUMIFS(JPK_KR!AE:AE,JPK_KR!V:V,parametry!G197),"") ->  | E200: =IF(A200<>"",SUMIFS(JPK_KR!AF:AF,JPK_KR!V:V,parametry!G197),"") ->  | F200: =IF(A200<>"",SUMIFS(JPK_KR!AG:AG,JPK_KR!V:V,parametry!G197),"") ->  | G200: =IF(A200<>"",SUMIFS(JPK_KR!AH:AH,JPK_KR!V:V,parametry!G197),"") ->  | H200: =IF(A200<>"",SUMIFS(JPK_KR!AI:AI,JPK_KR!V:V,parametry!G197),"") ->  | I200: =IF(A200<>"",SUMIFS(JPK_KR!AJ:AJ,JPK_KR!V:V,parametry!G197),"") ->  | J200: =IF(A200<>"",SUMIFS(JPK_KR!AK:AK,JPK_KR!V:V,parametry!G197),"") -> 
... 4800 more rows

Sheet Plan kont
A1: ns1:DataOd | B1: 2018-01-01
A2: ns1:DataDo | B2: 2018-01-31
A4: ns1:KodKategorii | B4: ns1:KodKonta | C4: ns1:OpisKonta
A5: 70 | B5: 070-5 | C5: Umorzenie środków trwałych/Inne środki trwałe
A6: 201 | B6: 201-3-1-5 | C6: Rozrachunki krajowe z odbiorcami z tytułu dostaw i usług/Rozrachunki należności od pozostałych jednostek/Należności od pozostałych jednostek płatne do 12 miesięcy/ANT Consulting Magdalena Chomuszko
A7: 202 | B7: 202-3-1-2 | C7: Rozrachunki krajowe z dostawcami z tytułu dostaw i usług/Rozrachunki zobowiązań wobec pozostałych jednostek/Zobowiązania wobec pozostałych jednostek płatne do 12 miesięcy/ORANGE POLSKA SPÓŁKA AKCYJNA
B8: 202-3-1-4 | C8: Rozrachunki krajowe z dostawcami z tytułu dostaw i usług/Rozrachunki zobowiązań wobec pozostałych jednostek/Zobowiązania wobec pozostałych jednostek płatne do 12 miesięcy/TOYOTA LEASING POLSKA SPÓŁKA Z OGRANICZONĄ ODPOWIEDZIALNOŚCIĄ
B9: 202-3-1-6 | C9: Rozrachunki krajowe z dostawcami z tytułu dostaw i usług/Rozrachunki zobowiązań wobec pozostałych jednostek/Zobowiązania wobec pozostałych jednostek płatne do 12 miesięcy/WARSAW - APARTMENTS SADYBA WILANÓW SPÓŁKA Z OGRANICZONĄ ODPOWIEDZIALNOŚCIĄ
A10: 220 | B10: 220-3 | C10: Rozrachunki publicznoprawne/ZUS
A11: 221 | B11: 221-1 | C11: Rozrachunki z tytułu VAT/Rozliczenie należnego VAT
B12: 221-2 | C12: Rozrachunki z tytułu VAT/Rozliczenie naliczonego VAT
A13: 230 | B13: 230 | C13: Rozrachunki z tytułu wypłat wynagrodzeń
A14: 401 | B14: 401-1-1 | C14: Amortyzacja/Amortyzacja środków trwałych/Amortyzacja śr. tw. stanowiąca koszty uzyskania przychodu
B15: 401-1-2 | C15: Amortyzacja/Amortyzacja środków trwałych/Amortyzacja śr. tr. nie stanowiąca kosztów uzyskania prz.
A16: 403 | B16: 403-1-1 | C16: Usługi obce/KUP/Usługi telekomunikacyjne
B17: 403-1-7 | C17: Usługi obce/KUP/leasing
B18: 403-1-8 | C18: Usługi obce/KUP/czynsz
A19: 405 | B19: 405-1 | C19: Wynagrodzenia/KUP
B20: 405-2 | C20: Wynagrodzenia/NKUP
A21: 406 | B21: 406-1-1 | C21: Ubezpieczenia społeczne i inne świadczenia /KUP/składki na ub. emerytalne
B22: 406-2-1 | C22: Ubezpieczenia społeczne i inne świadczenia /NKUP/składki na ub. emerytalne
A23: 702 | B23: 702-2 | C23: Sprzedaż usług działalności podstawowej/Sprzedaż do pozostałych jednostek
A24: (puste) | B24: (puste) | C24: (puste)
A25: Suma końcowa

Sheet ZOiS
A1: ns1:DataOd | B1: 2018-01-01 | C1: ilość wierszy | D1: =100000-COUNTBLANK(A5:A100000) -> 25
A2: ns1:DataDo | B2: 2018-01-31
A4: ns1:KodKonta | B4: ns1:BilansOtwarciaWinien | C4: ns1:BilansOtwarciaMa | D4: ns1:ObrotyWinien | E4: ns1:ObrotyMa | F4: ns1:ObrotyWinienNarast | G4: ns1:ObrotyMaNarast | H4: ns1:SaldoWinien | I4: ns1:SaldoMa | J4: Sum of ns1:SumaKwotOperacji | L4: kontrola
A5: 070-5 | B5: 0 | C5: 0 | D5: 0 | E5: 1443 | F5: 0 | G5: 1443 | H5: 0 | I5: 1443 | J5: 52453.93 | L5: =SUM(D:D) -> 52478.93
A6: 201-3-1-5 | B6: 0 | C6: 0 | D6: 34304.7 | E6: 0 | F6: 34304.7 | G6: 0 | H6: 34304.7 | I6: 0 | J6: 52453.93 | L6: =L5-JPK_KR!AZ2 -> 25 | M6: =IF(L6=0,"OK","BŁĄD") -> BŁĄD
A7: 202-3-1-2 | B7: 0 | C7: 0 | D7: 0 | E7: 616.23 | F7: 0 | G7: 616.23 | H7: 0 | I7: 616.23 | J7: 52453.93
A8: 202-3-1-4 | B8: 0 | C8: 0 | D8: 0 | E8: 1430 | F8: 0 | G8: 1430 | H8: 0 | I8: 1430 | J8: 52453.93 | L8: BO Wn | M8: =SUM(B5:B1000) -> 0
A9: 202-3-1-6 | B9: 0 | C9: 0 | D9: 0 | E9: 1476 | F9: 0 | G9: 1476 | H9: 0 | I9: 1476 | J9: 52453.93 | L9: BO Ma | M9: =SUM(C5:C1000) -> 0
A10: 220-3 | B10: 0 | C10: 0 | D10: 0 | E10: 1286 | F10: 0 | G10: 1286 | H10: 0 | I10: 1286 | J10: 52453.93 | L10: Obr Wn | M10: =SUM(D5:D1000) -> 52453.93
A11: 221-1 | B11: 0 | C11: 0 | D11: 0 | E11: 6414.7 | F11: 0 | G11: 6414.7 | H11: 0 | I11: 6414.7 | J11: 52453.93 | L11: Obr Ma | M11: =SUM(E5:E1000) -> 52453.93
A12: 221-2 | B12: 0 | C12: 0 | D12: 658.63 | E12: 0 | F12: 658.63 | G12: 0 | H12: 658.63 | I12: 0 | J12: 52453.93 | L12: Obr N Wn | M12: =SUM(F5:F1000) -> 52453.93
A13: 230 | B13: 0 | C13: 0 | D13: 0 | E13: 11898 | F13: 0 | G13: 11898 | H13: 0 | I13: 11898 | J13: 52453.93 | L13: Obr N Ma | M13: =SUM(G5:G1000) -> 52453.93
A14: 401-1-1 | B14: 0 | C14: 0 | D14: 1234 | E14: 0 | F14: 1234 | G14: 0 | H14: 1234 | I14: 0 | J14: 52453.93 | L14: Saldo Wn | M14: =SUM(H5:H1000) -> 52453.93
A15: 401-1-2 | B15: 0 | C15: 0 | D15: 209 | E15: 0 | F15: 209 | G15: 0 | H15: 209 | I15: 0 | J15: 52453.93 | L15: Saldo Ma | M15: =SUM(I5:I1000) -> 52453.93
A16: 403-1-1 | B16: 0 | C16: 0 | D16: 501 | E16: 0 | F16: 501 | G16: 0 | H16: 501 | I16: 0 | J16: 52453.93
A17: 403-1-7 | B17: 0 | C17: 0 | D17: 1162.6 | E17: 0 | F17: 1162.6 | G17: 0 | H17: 1162.6 | I17: 0 | J17: 52453.93
A18: 403-1-8 | B18: 0 | C18: 0 | D18: 1200 | E18: 0 | F18: 1200 | G18: 0 | H18: 1200 | I18: 0 | J18: 52453.93
A19: 405-1 | B19: 0 | C19: 0 | D19: 10900 | E19: 0 | F19: 10900 | G19: 0 | H19: 10900 | I19: 0 | J19: 52453.93
A20: 405-2 | B20: 0 | C20: 0 | D20: 998 | E20: 0 | F20: 998 | G20: 0 | H20: 998 | I20: 0 | J20: 52453.93
A21: 406-1-1 | B21: 0 | C21: 0 | D21: 1170 | E21: 0 | F21: 1170 | G21: 0 | H21: 1170 | I21: 0 | J21: 52453.93
A22: 406-2-1 | B22: 0 | C22: 0 | D22: 116 | E22: 0 | F22: 116 | G22: 0 | H22: 116 | I22: 0 | J22: 52453.93
A23: 702-2 | B23: 0 | C23: 0 | D23: 0 | E23: 27890 | F23: 0 | G23: 27890 | H23: 0 | I23: 27890 | J23: 52453.93
A24: (puste) | B24: (puste) | C24: (puste) | D24: (puste) | E24: (puste) | F24: (puste) | G24: (puste) | H24: (puste) | I24: (puste) | J24: 1783433.62
A25: Suma końcowa | J25: 2780058.29

Sheet RZiS
A1: =JPK_KR!L2 -> Firma TESTOWA | C1: =JPK_KR!K2 -> 1231234455 | AG1: =IF(JPK_KR!X1="wynikowe",JPK_KR!V1,"") -> 
A2: .............................................. | C2: (Numer Identyfikacji Podatkowej) | S2: KONTROLA | AG2: =IF(JPK_KR!X2="wynikowe",JPK_KR!V2,"") -> 
A3: (Nazwa jednostki) | S3: Suma Wn | T3: Suma Ma | AG3: =IF(JPK_KR!X3="wynikowe",JPK_KR!V3,"") -> 
B4: Rachunek zysków i strat - wariant porównawczy | S4: =SUM('RZiS control'!C:C) -> 17490.6 | T4: =SUM('RZiS control'!D:D) -> 27890 | AG4: =IF(JPK_KR!X4="wynikowe",JPK_KR!V4,"") -> 
R5: pozostało: | S5: =ROUND(SUM('RZiS control'!C:C)-SUMIFS(JPK_KR!AJ:AJ,JPK_KR!V:V,RZiS!E19)-SUMIFS(JPK_KR!AJ:AJ,JPK_KR!V:V,RZiS!E20)-SUMIFS(JPK_KR!AJ:AJ,JPK_KR!V:V,RZiS!E21)-SUMIFS(JPK_KR!AJ:AJ,JPK_KR!V:V,RZiS!E22)-SUMIFS(JPK_KR!AJ:AJ,JPK_KR!V:V,RZiS!E23)-SUMIFS(JPK_KR!AJ:AJ,JPK_KR!V:V,RZiS!E24)-SUMIFS(JPK_KR!AJ:AJ,JPK_KR!V:V,RZiS!E25)-SUMIFS(JPK_KR!AJ:AJ,JPK_KR!V:V,RZiS!E26)-(SUMIFS(JPK_KR!AJ:AJ,JPK_KR!V:V,E29)-(SUMIFS(JPK_KR!AJ:AJ,JPK_KR!V:V,E30)))-SUMIFS(JPK_KR!AJ:AJ,JPK_KR!V:V,E31)-SUMIFS(JPK_KR!AJ:AJ,JPK_KR!V:V,RZiS!E33)-SUMIFS(JPK_KR!AJ:AJ,JPK_KR!V:V,RZiS!E34)-SUMIFS(JPK_KR!AJ:AJ,JPK_KR!V:V,RZiS!E35)-SUMIFS(JPK_KR!AJ:AJ,JPK_KR!V:V,E38)-SUMIFS(JPK_KR!AJ:AJ,JPK_KR!V:V,E39)-SUMIFS(JPK_KR!AJ:AJ,JPK_KR!V:V,E40)-SUMIFS(JPK_KR!AJ:AJ,JPK_KR!V:V,E41)-SUMIFS(JPK_KR!AJ:AJ,JPK_KR!V:V,E42)-SUMIFS(JPK_KR!AJ:AJ,JPK_KR!V:V,E15)-SUMIFS(JPK_KR!AJ:AJ,JPK_KR!V:V,I15)-SUMIFS(JPK_KR!AJ:AJ,JPK_KR!V:V,M15)-SUMIFS(JPK_KR!AJ:AJ,JPK_KR!V:V,RZiS!E44)-SUMIFS(JPK_KR!AJ:AJ,JPK_KR!V:V,RZiS!E45)-SUMIFS(JPK_KR!AJ:AJ,JPK_KR!V:V,RZiS!E46)-SUMIFS(JPK_KR!AJ:AJ,JPK_KR!V:V,RZiS!E47)-SUMIFS(JPK_KR!AJ:AJ,JPK_KR!V:V,RZiS!E49)-SUMIFS(JPK_KR!AJ:AJ,JPK_KR!V:V,RZiS!E50)-SUMIFS(JPK_KR!AJ:AJ,JPK_KR!V:V,E14)-SUMIFS(JPK_KR!AJ:AJ,JPK_KR!V:V,E16)-SUMIFS(JPK_KR!AJ:AJ,JPK_KR!V:V,E17)-SUMIFS(JPK_KR!AJ:AJ,JPK_KR!V:V,RZiS!E49)-SUMIFS(JPK_KR!AJ:AJ,JPK_KR!V:V,RZiS!E50)-SUMIFS(JPK_KR!AJ:AJ,JPK_KR!V:V,RZiS!I47)-SUMIFS(JPK_KR!AJ:AJ,JPK_KR!V:V,M47)-SUMIFS(JPK_KR!AJ:AJ,JPK_KR!V:V,M14),2) -> 0 | T5: =SUM('RZiS control'!D:D)-SUMIFS(JPK_KR!AK:AK,JPK_KR!V:V,G14)-SUMIFS(JPK_KR!AK:AK,JPK_KR!V:V,G15)-SUMIFS(JPK_KR!AK:AK,JPK_KR!V:V,K15)-SUMIFS(JPK_KR!AK:AK,JPK_KR!V:V,O15)-SUMIFS(JPK_KR!AK:AK,JPK_KR!V:V,G16)-SUMIFS(JPK_KR!AK:AK,JPK_KR!V:V,G17)-SUMIFS(JPK_KR!AK:AK,JPK_KR!V:V,G19)-SUMIFS(JPK_KR!AK:AK,JPK_KR!V:V,G20)-SUMIFS(JPK_KR!AK:AK,JPK_KR!V:V,G21)-SUMIFS(JPK_KR!AK:AK,JPK_KR!V:V,G22)-SUMIFS(JPK_KR!AK:AK,JPK_KR!V:V,G23)-SUMIFS(JPK_KR!AK:AK,JPK_KR!V:V,G24)-SUMIFS(JPK_KR!AK:AK,JPK_KR!V:V,G25)-SUMIFS(JPK_KR!AK:AK,JPK_KR!V:V,G26)-SUMIFS(JPK_KR!AK:AK,JPK_KR!V:V,RZiS!G29)-SUMIFS(JPK_KR!AK:AK,JPK_KR!V:V,RZiS!G30)-SUMIFS(JPK_KR!AK:AK,JPK_KR!V:V,RZiS!G31)-SUMIFS(JPK_KR!AK:AK,JPK_KR!V:V,G33)-SUMIFS(JPK_KR!AK:AK,JPK_KR!V:V,G34)-SUMIFS(JPK_KR!AK:AK,JPK_KR!V:V,G35)-SUMIFS(JPK_KR!AK:AK,JPK_KR!V:V,RZiS!G38)-SUMIFS(JPK_KR!AK:AK,JPK_KR!V:V,RZiS!G39)-SUMIFS(JPK_KR!AK:AK,JPK_KR!V:V,RZiS!G40)-SUMIFS(JPK_KR!AK:AK,JPK_KR!V:V,RZiS!G41)-SUMIFS(JPK_KR!AK:AK,JPK_KR!V:V,RZiS!G42)-SUMIFS(JPK_KR!AK:AK,JPK_KR!V:V,G44)-SUMIFS(JPK_KR!AK:AK,JPK_KR!V:V,G45)-SUMIFS(JPK_KR!AK:AK,JPK_KR!V:V,G46)-SUMIFS(JPK_KR!AK:AK,JPK_KR!V:V,G47)-SUMIFS(JPK_KR!AK:AK,JPK_KR!V:V,G49)-SUMIFS(JPK_KR!AK:AK,JPK_KR!V:V,G50)-(SUMIFS(JPK_KR!AK:AK,JPK_KR!V:V,G50)--(SUMIFS(JPK_KR!AK:AK,JPK_KR!V:V,K47)-SUMIFS(JPK_KR!AK:AK,JPK_KR!V:V,RZiS!O47))) -> 0 | AG5: =IF(JPK_KR!X5="wynikowe",JPK_KR!V5,"") -> 
A6: za okres | B6: ='Magazyn Danych'!D14 -> 2018-01-01 | AG6: =IF(JPK_KR!X6="wynikowe",JPK_KR!V6,"") -> 
B7: ='Magazyn Danych'!F14 -> 2018-01-31 | AG7: =IF(JPK_KR!X7="wynikowe",JPK_KR!V7,"") -> 
AG9: =IF(JPK_KR!X8="wynikowe",JPK_KR!V8,"") -> 
A10: Pozycja | B10: Wyszczególnienie | C10: Kwota za okres obrotowy | AG10: =IF(JPK_KR!X9="wynikowe",JPK_KR!V9,"") -> 
AG11: =IF(JPK_KR!X10="wynikowe",JPK_KR!V10,"") -> 
A12: 1 | B12: 2 | C12: 4 | AG12: =IF(JPK_KR!X72452="wynikowe",JPK_KR!V72452,"") -> 
A13: A. | B13: Przychody netto ze sprzedaży i zrównane z nimi, w tym: - od jednostek powiązanych | C13: =SUM(C14:C17) -> 27890 | AG13: =IF(JPK_KR!X72453="wynikowe",JPK_KR!V72453,"") -> 
A14: I. | B14: Przychody netto ze sprzedaży produktów | C14: =SUMIFS(JPK_KR!AK:AK,JPK_KR!V:V,G14)-SUMIFS(JPK_KR!AJ:AJ,JPK_KR!V:V,E14) -> 27890 | D14: Wn | F14: Ma | G14: 702* | L14: Wn | M14: 501* | N14: Ma | AG14: =IF(JPK_KR!X72454="wynikowe",JPK_KR!V72454,"") -> 
A15: II. | B15: Zmiana stanu produktów (zwiększenie - wartość dodatnia, zmniejszenie - wartość ujemna) | C15: =ROUND(SUMIFS(JPK_KR!AK:AK,JPK_KR!V:V,G15)-SUMIFS(JPK_KR!AJ:AJ,JPK_KR!V:V,E15)-(SUMIFS(JPK_KR!AJ:AJ,JPK_KR!V:V,I15)-SUMIFS(JPK_KR!AK:AK,JPK_KR!V:V,K15))-(SUMIFS(JPK_KR!AJ:AJ,JPK_KR!V:V,M15)-SUMIFS(JPK_KR!AK:AK,JPK_KR!V:V,O15))-(SUMIFS(JPK_KR!AJ:AJ,JPK_KR!V:V,M14)-SUMIFS(JPK_KR!AK:AK,JPK_KR!V:V,O14)),2) -> 0 | D15: Wn | F15: Ma | G15: 490 | H15: Wn | I15: 550* | J15: Ma | L15: Wn | M15: 502* | N15: Ma | AG15: =IF(JPK_KR!X72455="wynikowe",JPK_KR!V72455,"") -> 
A16: III | B16: Koszt wytworzenia produktów na własne potrzeby jednostki | C16: =SUMIFS(JPK_KR!AK:AK,JPK_KR!V:V,G16)-SUMIFS(JPK_KR!AJ:AJ,JPK_KR!V:V,E16) -> 0 | D16: Wn | F16: Ma | AG16: =IF(JPK_KR!X72456="wynikowe",JPK_KR!V72456,"") -> 
A17: IV | B17: Przychody netto ze sprzedaży towarów i materiałów | C17: =SUMIFS(JPK_KR!AK:AK,JPK_KR!V:V,G17)-SUMIFS(JPK_KR!AJ:AJ,JPK_KR!V:V,E17) -> 0 | D17: Wn | F17: Ma | AG17: =IF(JPK_KR!X72457="wynikowe",JPK_KR!V72457,"") -> 
A18: B. | B18: Koszty działalności operacyjnej | C18: =SUM(C19:C26) -> 17490.6
A19: I | B19: Amortyzacja | C19: =SUMIFS(JPK_KR!AJ:AJ,JPK_KR!V:V,RZiS!E19)-(SUMIFS(JPK_KR!AK:AK,JPK_KR!V:V,G19)) -> 1443 | D19: Wn | E19: 401* | F19: Ma
A20: II | B20: Zużycie materiałów i energii | C20: =SUMIFS(JPK_KR!AJ:AJ,JPK_KR!V:V,RZiS!E20)-(SUMIFS(JPK_KR!AK:AK,JPK_KR!V:V,G20)) -> 0 | D20: Wn | F20: Ma
A21: III | B21: Usługi obce | C21: =SUMIFS(JPK_KR!AJ:AJ,JPK_KR!V:V,RZiS!E21)-(SUMIFS(JPK_KR!AK:AK,JPK_KR!V:V,G21)) -> 2863.6 | D21: Wn | E21: 403* | F21: Ma
A22: IV | B22: Podatki i opłaty, w tym: - podatek akcyzowy | C22: =SUMIFS(JPK_KR!AJ:AJ,JPK_KR!V:V,RZiS!E22)-(SUMIFS(JPK_KR!AK:AK,JPK_KR!V:V,G22)) -> 0 | D22: Wn | F22: Ma
A23: V | B23: Wynagrodzenia | C23: =SUMIFS(JPK_KR!AJ:AJ,JPK_KR!V:V,RZiS!E23)-(SUMIFS(JPK_KR!AK:AK,JPK_KR!V:V,G23)) -> 11898 | D23: Wn | E23: 405* | F23: Ma
A24: VI | B24: Ubezpieczenia społeczne i inne świadczenia | C24: =SUMIFS(JPK_KR!AJ:AJ,JPK_KR!V:V,RZiS!E24)-(SUMIFS(JPK_KR!AK:AK,JPK_KR!V:V,G24)) -> 1286 | D24: Wn | E24: 406* | F24: Ma
A25: VII | B25: Pozostałe koszty rodzajowe | C25: =SUMIFS(JPK_KR!AJ:AJ,JPK_KR!V:V,RZiS!E25)-(SUMIFS(JPK_KR!AK:AK,JPK_KR!V:V,G25)) -> 0 | D25: Wn | F25: Ma
A26: VIII | B26: Wartość sprzedanych towarów i materiałów | C26: =SUMIFS(JPK_KR!AJ:AJ,JPK_KR!V:V,RZiS!E26)-(SUMIFS(JPK_KR!AK:AK,JPK_KR!V:V,G26)) -> 0 | D26: Wn | E26: 741* | F26: Ma
A27: C. | B27: Zysk (strata) na sprzedaży (A-B) | C27: =C13-C18 -> 10399.4
A28: D. | B28: Pozostałe przychody operacyjne | C28: =SUM(C29:C31) -> 0
A29: I | B29: Zysk ze zbycia niefinansowych aktywów trwałych | C29: =SUMIFS(JPK_KR!AK:AK,JPK_KR!V:V,RZiS!G29)-(SUMIFS(JPK_KR!AJ:AJ,JPK_KR!V:V,E29)) -> 0 | D29: Wn | F29: Ma | AG29: =IF(JPK_KR!X72469="wynikowe",JPK_KR!V72469,"") -> 
A30: II | B30: Dotacje | C30: =SUMIFS(JPK_KR!AK:AK,JPK_KR!V:V,RZiS!G30)-(SUMIFS(JPK_KR!AJ:AJ,JPK_KR!V:V,E30)) -> 0 | D30: Wn | F30: Ma | AG30: =IF(JPK_KR!X72470="wynikowe",JPK_KR!V72470,"") -> 
A31: III | B31: Inne przychody operacyjne | C31: =SUMIFS(JPK_KR!AK:AK,JPK_KR!V:V,RZiS!G31)-(SUMIFS(JPK_KR!AJ:AJ,JPK_KR!V:V,E31)) -> 0 | D31: Wn | F31: Ma | AG31: =IF(JPK_KR!X72471="wynikowe",JPK_KR!V72471,"") -> 
A32: E | B32: Pozostałe koszty operacyjne | C32: =SUM(C33:C35) -> 0 | AG32: =IF(JPK_KR!X72472="wynikowe",JPK_KR!V72472,"") -> 
A33: I | B33: Strata ze zbycia niefinansowych aktywów trwałych | C33: =SUMIFS(JPK_KR!AJ:AJ,JPK_KR!V:V,RZiS!E33)-(SUMIFS(JPK_KR!AK:AK,JPK_KR!V:V,G33)) -> 0 | D33: Wn | E33: 761* | F33: Ma | AG33: =IF(JPK_KR!X72473="wynikowe",JPK_KR!V72473,"") -> 
A34: II | B34: Aktualizacja wartości aktywów niefinansowych | C34: =SUMIFS(JPK_KR!AJ:AJ,JPK_KR!V:V,RZiS!E34)-(SUMIFS(JPK_KR!AK:AK,JPK_KR!V:V,G34)) -> 0 | D34: Wn | F34: Ma | AG34: =IF(JPK_KR!X72474="wynikowe",JPK_KR!V72474,"") -> 
A35: III | B35: Inne koszty operacyjne | C35: =SUMIFS(JPK_KR!AJ:AJ,JPK_KR!V:V,E35)-(SUMIFS(JPK_KR!AK:AK,JPK_KR!V:V,G35)) -> 0 | D35: Wn | F35: Ma | AG35: =IF(JPK_KR!X72475="wynikowe",JPK_KR!V72475,"") -> 
A36: F | B36: Zysk (strata) na działalności operacyjnej (C+D-E) | C36: =C27+C28-C32 -> 10399.4 | AG36: =IF(JPK_KR!X72476="wynikowe",JPK_KR!V72476,"") -> 
A37: G | B37: Przychody finansowe | C37: =SUM(C38:C42) -> 0 | AG37: =IF(JPK_KR!X72477="wynikowe",JPK_KR!V72477,"") -> 
A38: I | B38: Dywidendy i udziały w zyskach, w tym: - od jednostek powiązanych | C38: =SUMIFS(JPK_KR!AK:AK,JPK_KR!V:V,RZiS!G38)-(SUMIFS(JPK_KR!AJ:AJ,JPK_KR!V:V,E38)) -> 0 | D38: Wn | F38: Ma | AG38: =IF(JPK_KR!X72478="wynikowe",JPK_KR!V72478,"") -> 
A39: II | B39: Odsetki, w tym: - od jednostek powiązanych | C39: =SUMIFS(JPK_KR!AK:AK,JPK_KR!V:V,RZiS!G39)-(SUMIFS(JPK_KR!AJ:AJ,JPK_KR!V:V,E39)) -> 0 | D39: Wn | F39: Ma | AG39: =IF(JPK_KR!X72479="wynikowe",JPK_KR!V72479,"") -> 
A40: III | B40: Zysk ze zbycia inwestycji | C40: =SUMIFS(JPK_KR!AK:AK,JPK_KR!V:V,RZiS!G40)-(SUMIFS(JPK_KR!AJ:AJ,JPK_KR!V:V,E40)) -> 0 | D40: Wn | F40: Ma | AG40: =IF(JPK_KR!X72480="wynikowe",JPK_KR!V72480,"") -> 
A41: IV | B41: Aktualizacja wartości inwestycji | C41: =SUMIFS(JPK_KR!AK:AK,JPK_KR!V:V,RZiS!G41)-(SUMIFS(JPK_KR!AJ:AJ,JPK_KR!V:V,E41)) -> 0 | D41: Wn | F41: Ma | AG41: =IF(JPK_KR!X72481="wynikowe",JPK_KR!V72481,"") -> 
A42: V | B42: Inne | C42: =SUMIFS(JPK_KR!AK:AK,JPK_KR!V:V,RZiS!G42)-(SUMIFS(JPK_KR!AJ:AJ,JPK_KR!V:V,E42)) -> 0 | D42: Wn | F42: Ma | G42: 756 | AG42: =IF(JPK_KR!X72482="wynikowe",JPK_KR!V72482,"") -> 
A43: H | B43: Koszty finansowe | C43: =SUM(C44:C47) -> 0 | AG43: =IF(JPK_KR!X72483="wynikowe",JPK_KR!V72483,"") -> 
A44: I | B44: Odsetki, w tym: - dla jednostek powiązanych | C44: =SUMIFS(JPK_KR!AJ:AJ,JPK_KR!V:V,RZiS!E44)-(SUMIFS(JPK_KR!AK:AK,JPK_KR!V:V,G44)) -> 0 | D44: Wn | F44: Ma | AG44: =IF(JPK_KR!X72484="wynikowe",JPK_KR!V72484,"") -> 
A45: II | B45: Strata ze zbycia inwestycji | C45: =SUMIFS(JPK_KR!AJ:AJ,JPK_KR!V:V,RZiS!E45)-(SUMIFS(JPK_KR!AK:AK,JPK_KR!V:V,G45)) -> 0 | D45: Wn | F45: Ma | AG45: =IF(JPK_KR!X72485="wynikowe",JPK_KR!V72485,"") -> 
A46: III | B46: Aktualizacja wartości inwestycji | C46: =SUMIFS(JPK_KR!AJ:AJ,JPK_KR!V:V,RZiS!E46)-(SUMIFS(JPK_KR!AK:AK,JPK_KR!V:V,G46)) -> 0 | D46: Wn | F46: Ma | AG46: =IF(JPK_KR!X72486="wynikowe",JPK_KR!V72486,"") -> 
A47: IV | B47: Inne | C47: =SUMIFS(JPK_KR!AJ:AJ,JPK_KR!V:V,RZiS!E47)-(SUMIFS(JPK_KR!AK:AK,JPK_KR!V:V,G47))+SUMIFS(JPK_KR!AJ:AJ,JPK_KR!V:V,RZiS!I47)-(SUMIFS(JPK_KR!AK:AK,JPK_KR!V:V,K47)+SUMIFS(JPK_KR!AK:AK,JPK_KR!V:V,RZiS!O47)-(SUMIFS(JPK_KR!AJ:AJ,JPK_KR!V:V,M47))) -> 0 | D47: Wn | E47: 759 | F47: Ma | H47: Wn | J47: Ma | L47: Wn | N47: Ma | AG47: =IF(JPK_KR!X72487="wynikowe",JPK_KR!AA72487,"") -> 
A48: I | B48: Zysk (strata) brutto (F+G-H) | C48: =C36+C37-C43 -> 10399.4 | AG48: =IF(JPK_KR!X72488="wynikowe",JPK_KR!AA72488,"") -> 
A49: J | B49: Podatek dochodowy | C49: =SUMIFS(JPK_KR!AJ:AJ,JPK_KR!V:V,RZiS!E49)-(SUMIFS(JPK_KR!AK:AK,JPK_KR!V:V,G49)) -> 0 | D49: Wn | F49: Ma | AG49: =IF(JPK_KR!X72489="wynikowe",JPK_KR!AA72489,"") -> 
A50: K | B50: Pozostałe obowiązkowe zmniejszenia zysku (zwiększenia straty) | C50: =SUMIFS(JPK_KR!AJ:AJ,JPK_KR!V:V,RZiS!E50)-(SUMIFS(JPK_KR!AK:AK,JPK_KR!V:V,G50)) -> 0 | D50: Wn | F50: Ma | AG50: =IF(JPK_KR!X72490="wynikowe",JPK_KR!AA72490,"") -> 
A51: L | B51: Zysk (strata) netto (I-J-K) | C51: =C48-C49 -> 10399.4 | AG51: =IF(JPK_KR!X72491="wynikowe",JPK_KR!AA72491,"") -> 
AG52: =IF(JPK_KR!X72492="wynikowe",JPK_KR!V72492,"") -> 
A53: Data sporządzenia: | AG53: =IF(JPK_KR!X72493="wynikowe",JPK_KR!V72493,"") -> 
AG54: =IF(JPK_KR!X72494="wynikowe",JPK_KR!V72494,"") -> 
AG55: =IF(JPK_KR!X72495="wynikowe",JPK_KR!V72495,"") -> 
AG56: =IF(JPK_KR!X72496="wynikowe",JPK_KR!V72496,"") -> 
AG57: =IF(JPK_KR!X72497="wynikowe",JPK_KR!V72497,"") -> 
AG58: =IF(JPK_KR!X72837="wynikowe",JPK_KR!V72837,"") -> 
AG59: =IF(JPK_KR!X72838="wynikowe",JPK_KR!V72838,"") -> 
AG60: =IF(JPK_KR!X72839="wynikowe",JPK_KR!V72839,"") -> 
AG61: =IF(JPK_KR!X72840="wynikowe",JPK_KR!V72840,"") -> 
AG62: =IF(JPK_KR!X72841="wynikowe",JPK_KR!V72841,"") -> 
AG63: =IF(JPK_KR!X72842="wynikowe",JPK_KR!V72842,"") -> 
AG64: =IF(JPK_KR!X72843="wynikowe",JPK_KR!V72843,"") -> 
AG65: =IF(JPK_KR!X72844="wynikowe",JPK_KR!V72844,"") -> 
AG66: =IF(JPK_KR!X72845="wynikowe",JPK_KR!V72845,"") -> 
AG67: =IF(JPK_KR!X72846="wynikowe",JPK_KR!V72846,"") -> 
AG68: =IF(JPK_KR!X72847="wynikowe",JPK_KR!V72847,"") -> 
AG69: =IF(JPK_KR!X72848="wynikowe",JPK_KR!V72848,"") -> 
AG70: =IF(JPK_KR!X72849="wynikowe",JPK_KR!V72849,"") -> 
AG71: =IF(JPK_KR!X72850="wynikowe",JPK_KR!V72850,"") -> 
AG72: =IF(JPK_KR!X72851="wynikowe",JPK_KR!V72851,"") -> 
AG73: =IF(JPK_KR!X72852="wynikowe",JPK_KR!V72852,"") -> 
AG74: =IF(JPK_KR!X72853="wynikowe",JPK_KR!V72853,"") -> 
AG75: =IF(JPK_KR!X72854="wynikowe",JPK_KR!V72854,"") -> 
AG76: =IF(JPK_KR!X72855="wynikowe",JPK_KR!V72855,"") -> 
AG77: =IF(JPK_KR!X72856="wynikowe",JPK_KR!V72856,"") -> 
AG78: =IF(JPK_KR!X72857="wynikowe",JPK_KR!V72857,"") -> 
AG79: =IF(JPK_KR!X72858="wynikowe",JPK_KR!V72858,"") -> 
AG80: =IF(JPK_KR!X72859="wynikowe",JPK_KR!V72859,"") -> 
AG81: =IF(JPK_KR!X72860="wynikowe",JPK_KR!V72860,"") -> 
AG82: =IF(JPK_KR!X72861="wynikowe",JPK_KR!V72861,"") -> 
AG83: =IF(JPK_KR!X72862="wynikowe",JPK_KR!V72862,"") -> 
AG84: =IF(JPK_KR!X72863="wynikowe",JPK_KR!V72863,"") -> 
AG85: =IF(JPK_KR!X72864="wynikowe",JPK_KR!V72864,"") -> 
AG86: =IF(JPK_KR!X72865="wynikowe",JPK_KR!V72865,"") -> 
AG87: =IF(JPK_KR!X72866="wynikowe",JPK_KR!V72866,"") -> 
AG88: =IF(JPK_KR!X72867="wynikowe",JPK_KR!V72867,"") -> 
AG89: =IF(JPK_KR!X72868="wynikowe",JPK_KR!V72868,"") -> 
AG90: =IF(JPK_KR!X72869="wynikowe",JPK_KR!V72869,"") -> 
AG91: =IF(JPK_KR!X72870="wynikowe",JPK_KR!V72870,"") -> 
AG92: =IF(JPK_KR!X72871="wynikowe",JPK_KR!V72871,"") -> 
AG93: =IF(JPK_KR!X72872="wynikowe",JPK_KR!V72872,"") -> 
AG94: =IF(JPK_KR!X72873="wynikowe",JPK_KR!V72873,"") -> 
AG95: =IF(JPK_KR!X72874="wynikowe",JPK_KR!V72874,"") -> 
AG96: =IF(JPK_KR!X72875="wynikowe",JPK_KR!V72875,"") -> 
AG97: =IF(JPK_KR!X72876="wynikowe",JPK_KR!V72876,"") -> 
AG98: =IF(JPK_KR!X72877="wynikowe",JPK_KR!V72877,"") -> 
AG99: =IF(JPK_KR!X72878="wynikowe",JPK_KR!V72878,"") -> 
AG100: =IF(JPK_KR!X72879="wynikowe",JPK_KR!V72879,"") -> 
AG101: =IF(JPK_KR!X72880="wynikowe",JPK_KR!V72880,"") -> 
AG102: =IF(JPK_KR!X72881="wynikowe",JPK_KR!V72881,"") -> 
AG103: =IF(JPK_KR!X72882="wynikowe",JPK_KR!V72882,"") -> 
AG104: =IF(JPK_KR!X72883="wynikowe",JPK_KR!V72883,"") -> 
AG105: =IF(JPK_KR!X72884="wynikowe",JPK_KR!V72884,"") -> 
AG106: =IF(JPK_KR!X72885="wynikowe",JPK_KR!V72885,"") -> 
AG107: =IF(JPK_KR!X72886="wynikowe",JPK_KR!V72886,"") -> 
AG108: =IF(JPK_KR!X72887="wynikowe",JPK_KR!V72887,"") -> 
AG109: =IF(JPK_KR!X72888="wynikowe",JPK_KR!V72888,"") -> 
AG110: =IF(JPK_KR!X72889="wynikowe",JPK_KR!V72889,"") -> 
AG111: =IF(JPK_KR!X72890="wynikowe",JPK_KR!V72890,"") -> 
AG112: =IF(JPK_KR!X72891="wynikowe",JPK_KR!V72891,"") -> 
AG113: =IF(JPK_KR!X72892="wynikowe",JPK_KR!V72892,"") -> 
T114: =IF('RZiS control'!A109<>"",'RZiS control'!A109,"") ->  | AG114: =IF(JPK_KR!X72893="wynikowe",JPK_KR!V72893,"") -> 
T115: =IF('RZiS control'!A110<>"",'RZiS control'!A110,"") ->  | AG115: =IF(JPK_KR!X72894="wynikowe",JPK_KR!V72894,"") -> 
T116: =IF('RZiS control'!A111<>"",'RZiS control'!A111,"") ->  | AG116: =IF(JPK_KR!X72895="wynikowe",JPK_KR!V72895,"") -> 
T117: =IF('RZiS control'!A112<>"",'RZiS control'!A112,"") ->  | AG117: =IF(JPK_KR!X72896="wynikowe",JPK_KR!V72896,"") -> 
T118: =IF('RZiS control'!A113<>"",'RZiS control'!A113,"") ->  | AG118: =IF(JPK_KR!X72897="wynikowe",JPK_KR!V72897,"") -> 
T119: =IF('RZiS control'!A114<>"",'RZiS control'!A114,"") ->  | AG119: =IF(JPK_KR!X72898="wynikowe",JPK_KR!V72898,"") -> 
T120: =IF('RZiS control'!A115<>"",'RZiS control'!A115,"") ->  | AG120: =IF(JPK_KR!X72899="wynikowe",JPK_KR!V72899,"") -> 
T121: =IF('RZiS control'!A116<>"",'RZiS control'!A116,"") ->  | AG121: =IF(JPK_KR!X72900="wynikowe",JPK_KR!V72900,"") -> 
T122: =IF('RZiS control'!A117<>"",'RZiS control'!A117,"") ->  | AG122: =IF(JPK_KR!X72901="wynikowe",JPK_KR!V72901,"") -> 
T123: =IF('RZiS control'!A118<>"",'RZiS control'!A118,"") ->  | AG123: =IF(JPK_KR!X72902="wynikowe",JPK_KR!V72902,"") -> 
T124: =IF('RZiS control'!A119<>"",'RZiS control'!A119,"") ->  | AG124: =IF(JPK_KR!X72903="wynikowe",JPK_KR!V72903,"") -> 
T125: =IF('RZiS control'!A120<>"",'RZiS control'!A120,"") ->  | AG125: =IF(JPK_KR!X72904="wynikowe",JPK_KR!V72904,"") -> 
T126: =IF('RZiS control'!A121<>"",'RZiS control'!A121,"") ->  | AG126: =IF(JPK_KR!X72905="wynikowe",JPK_KR!V72905,"") -> 
T127: =IF('RZiS control'!A122<>"",'RZiS control'!A122,"") ->  | AG127: =IF(JPK_KR!X72906="wynikowe",JPK_KR!V72906,"") -> 
T128: =IF('RZiS control'!A123<>"",'RZiS control'!A123,"") ->  | AG128: =IF(JPK_KR!X72907="wynikowe",JPK_KR!V72907,"") -> 
T129: =IF('RZiS control'!A124<>"",'RZiS control'!A124,"") ->  | AG129: =IF(JPK_KR!X72908="wynikowe",JPK_KR!V72908,"") -> 
T130: =IF('RZiS control'!A125<>"",'RZiS control'!A125,"") ->  | AG130: =IF(JPK_KR!X72909="wynikowe",JPK_KR!V72909,"") -> 
T131: =IF('RZiS control'!A126<>"",'RZiS control'!A126,"") ->  | AG131: =IF(JPK_KR!X72910="wynikowe",JPK_KR!V72910,"") -> 
T132: =IF('RZiS control'!A127<>"",'RZiS control'!A127,"") ->  | AG132: =IF(JPK_KR!X72911="wynikowe",JPK_KR!V72911,"") -> 
T133: =IF('RZiS control'!A128<>"",'RZiS control'!A128,"") ->  | AG133: =IF(JPK_KR!X72912="wynikowe",JPK_KR!V72912,"") -> 
T134: =IF('RZiS control'!A129<>"",'RZiS control'!A129,"") ->  | AG134: =IF(JPK_KR!X72913="wynikowe",JPK_KR!V72913,"") -> 
T135: =IF('RZiS control'!A130<>"",'RZiS control'!A130,"") ->  | AG135: =IF(JPK_KR!X72914="wynikowe",JPK_KR!V72914,"") -> 
T136: =IF('RZiS control'!A131<>"",'RZiS control'!A131,"") ->  | AG136: =IF(JPK_KR!X72915="wynikowe",JPK_KR!V72915,"") -> 
T137: =IF('RZiS control'!A132<>"",'RZiS control'!A132,"") ->  | AG137: =IF(JPK_KR!X72916="wynikowe",JPK_KR!V72916,"") -> 
T138: =IF('RZiS control'!A133<>"",'RZiS control'!A133,"") ->  | AG138: =IF(JPK_KR!X72917="wynikowe",JPK_KR!V72917,"") -> 
T139: =IF('RZiS control'!A134<>"",'RZiS control'!A134,"") ->  | AG139: =IF(JPK_KR!X72918="wynikowe",JPK_KR!V72918,"") -> 
T140: =IF('RZiS control'!A135<>"",'RZiS control'!A135,"") ->  | AG140: =IF(JPK_KR!X72919="wynikowe",JPK_KR!V72919,"") -> 
T141: =IF('RZiS control'!A136<>"",'RZiS control'!A136,"") ->  | AG141: =IF(JPK_KR!X72920="wynikowe",JPK_KR!V72920,"") -> 
T142: =IF('RZiS control'!A137<>"",'RZiS control'!A137,"") ->  | AG142: =IF(JPK_KR!X72921="wynikowe",JPK_KR!V72921,"") -> 
T143: =IF('RZiS control'!A138<>"",'RZiS control'!A138,"") ->  | AG143: =IF(JPK_KR!X72922="wynikowe",JPK_KR!V72922,"") -> 
T144: =IF('RZiS control'!A139<>"",'RZiS control'!A139,"") ->  | AG144: =IF(JPK_KR!X72923="wynikowe",JPK_KR!V72923,"") -> 
T145: =IF('RZiS control'!A140<>"",'RZiS control'!A140,"") ->  | AG145: =IF(JPK_KR!X72924="wynikowe",JPK_KR!V72924,"") -> 
T146: =IF('RZiS control'!A141<>"",'RZiS control'!A141,"") ->  | AG146: =IF(JPK_KR!X72925="wynikowe",JPK_KR!V72925,"") -> 
T147: =IF('RZiS control'!A142<>"",'RZiS control'!A142,"") ->  | AG147: =IF(JPK_KR!X72926="wynikowe",JPK_KR!V72926,"") -> 
T148: =IF('RZiS control'!A143<>"",'RZiS control'!A143,"") ->  | AG148: =IF(JPK_KR!X72927="wynikowe",JPK_KR!V72927,"") -> 
T149: =IF('RZiS control'!A144<>"",'RZiS control'!A144,"") ->  | AG149: =IF(JPK_KR!X72928="wynikowe",JPK_KR!V72928,"") -> 
T150: =IF('RZiS control'!A145<>"",'RZiS control'!A145,"") ->  | AG150: =IF(JPK_KR!X72929="wynikowe",JPK_KR!V72929,"") -> 
T151: =IF('RZiS control'!A146<>"",'RZiS control'!A146,"") ->  | AG151: =IF(JPK_KR!X72930="wynikowe",JPK_KR!V72930,"") -> 
T152: =IF('RZiS control'!A147<>"",'RZiS control'!A147,"") ->  | AG152: =IF(JPK_KR!X72931="wynikowe",JPK_KR!V72931,"") -> 
T153: =IF('RZiS control'!A148<>"",'RZiS control'!A148,"") ->  | AG153: =IF(JPK_KR!X72932="wynikowe",JPK_KR!V72932,"") -> 
T154: =IF('RZiS control'!A149<>"",'RZiS control'!A149,"") ->  | AG154: =IF(JPK_KR!X72933="wynikowe",JPK_KR!V72933,"") -> 
T155: =IF('RZiS control'!A150<>"",'RZiS control'!A150,"") ->  | AG155: =IF(JPK_KR!X72934="wynikowe",JPK_KR!V72934,"") -> 
T156: =IF('RZiS control'!A151<>"",'RZiS control'!A151,"") ->  | AG156: =IF(JPK_KR!X72935="wynikowe",JPK_KR!V72935,"") -> 
T157: =IF('RZiS control'!A152<>"",'RZiS control'!A152,"") ->  | AG157: =IF(JPK_KR!X72936="wynikowe",JPK_KR!V72936,"") -> 
T158: =IF('RZiS control'!A153<>"",'RZiS control'!A153,"") ->  | AG158: =IF(JPK_KR!X72937="wynikowe",JPK_KR!V72937,"") -> 
T159: =IF('RZiS control'!A154<>"",'RZiS control'!A154,"") ->  | AG159: =IF(JPK_KR!X72938="wynikowe",JPK_KR!V72938,"") -> 
T160: =IF('RZiS control'!A155<>"",'RZiS control'!A155,"") ->  | AG160: =IF(JPK_KR!X72939="wynikowe",JPK_KR!V72939,"") -> 
T161: =IF('RZiS control'!A156<>"",'RZiS control'!A156,"") ->  | AG161: =IF(JPK_KR!X72940="wynikowe",JPK_KR!V72940,"") -> 
T162: =IF('RZiS control'!A157<>"",'RZiS control'!A157,"") ->  | AG162: =IF(JPK_KR!X72941="wynikowe",JPK_KR!V72941,"") -> 
T163: =IF('RZiS control'!A158<>"",'RZiS control'!A158,"") ->  | AG163: =IF(JPK_KR!X72942="wynikowe",JPK_KR!V72942,"") -> 
T164: =IF('RZiS control'!A159<>"",'RZiS control'!A159,"") ->  | AG164: =IF(JPK_KR!X72943="wynikowe",JPK_KR!V72943,"") -> 
T165: =IF('RZiS control'!A160<>"",'RZiS control'!A160,"") ->  | AG165: =IF(JPK_KR!X72944="wynikowe",JPK_KR!V72944,"") -> 
T166: =IF('RZiS control'!A161<>"",'RZiS control'!A161,"") ->  | AG166: =IF(JPK_KR!X72945="wynikowe",JPK_KR!V72945,"") -> 
T167: =IF('RZiS control'!A162<>"",'RZiS control'!A162,"") ->  | AG167: =IF(JPK_KR!X72946="wynikowe",JPK_KR!V72946,"") -> 
T168: =IF('RZiS control'!A163<>"",'RZiS control'!A163,"") ->  | AG168: =IF(JPK_KR!X72947="wynikowe",JPK_KR!V72947,"") -> 
T169: =IF('RZiS control'!A164<>"",'RZiS control'!A164,"") ->  | AG169: =IF(JPK_KR!X72948="wynikowe",JPK_KR!V72948,"") -> 
T170: =IF('RZiS control'!A165<>"",'RZiS control'!A165,"") ->  | AG170: =IF(JPK_KR!X72949="wynikowe",JPK_KR!V72949,"") -> 
T171: =IF('RZiS control'!A166<>"",'RZiS control'!A166,"") ->  | AG171: =IF(JPK_KR!X72950="wynikowe",JPK_KR!V72950,"") -> 
T172: =IF('RZiS control'!A167<>"",'RZiS control'!A167,"") ->  | AG172: =IF(JPK_KR!X72951="wynikowe",JPK_KR!V72951,"") -> 
T173: =IF('RZiS control'!A168<>"",'RZiS control'!A168,"") ->  | AG173: =IF(JPK_KR!X72952="wynikowe",JPK_KR!V72952,"") -> 
T174: =IF('RZiS control'!A169<>"",'RZiS control'!A169,"") ->  | AG174: =IF(JPK_KR!X72953="wynikowe",JPK_KR!V72953,"") -> 
T175: =IF('RZiS control'!A170<>"",'RZiS control'!A170,"") ->  | AG175: =IF(JPK_KR!X72954="wynikowe",JPK_KR!V72954,"") -> 
T176: =IF('RZiS control'!A171<>"",'RZiS control'!A171,"") ->  | AG176: =IF(JPK_KR!X72955="wynikowe",JPK_KR!V72955,"") -> 
T177: =IF('RZiS control'!A172<>"",'RZiS control'!A172,"") ->  | AG177: =IF(JPK_KR!X72956="wynikowe",JPK_KR!V72956,"") -> 
T178: =IF('RZiS control'!A173<>"",'RZiS control'!A173,"") ->  | AG178: =IF(JPK_KR!X72957="wynikowe",JPK_KR!V72957,"") -> 
T179: =IF('RZiS control'!A174<>"",'RZiS control'!A174,"") ->  | AG179: =IF(JPK_KR!X72958="wynikowe",JPK_KR!V72958,"") -> 
T180: =IF('RZiS control'!A175<>"",'RZiS control'!A175,"") ->  | AG180: =IF(JPK_KR!X72959="wynikowe",JPK_KR!V72959,"") -> 
T181: =IF('RZiS control'!A176<>"",'RZiS control'!A176,"") ->  | AG181: =IF(JPK_KR!X72960="wynikowe",JPK_KR!V72960,"") -> 
T182: =IF('RZiS control'!A177<>"",'RZiS control'!A177,"") ->  | AG182: =IF(JPK_KR!X72961="wynikowe",JPK_KR!V72961,"") -> 
T183: =IF('RZiS control'!A178<>"",'RZiS control'!A178,"") ->  | AG183: =IF(JPK_KR!X72962="wynikowe",JPK_KR!V72962,"") -> 
T184: =IF('RZiS control'!A179<>"",'RZiS control'!A179,"") ->  | AG184: =IF(JPK_KR!X72963="wynikowe",JPK_KR!V72963,"") -> 
T185: =IF('RZiS control'!A180<>"",'RZiS control'!A180,"") ->  | AG185: =IF(JPK_KR!X72964="wynikowe",JPK_KR!V72964,"") -> 
T186: =IF('RZiS control'!A181<>"",'RZiS control'!A181,"") ->  | AG186: =IF(JPK_KR!X72965="wynikowe",JPK_KR!V72965,"") -> 
T187: =IF('RZiS control'!A182<>"",'RZiS control'!A182,"") ->  | AG187: =IF(JPK_KR!X72966="wynikowe",JPK_KR!V72966,"") -> 
T188: =IF('RZiS control'!A183<>"",'RZiS control'!A183,"") ->  | AG188: =IF(JPK_KR!X72967="wynikowe",JPK_KR!V72967,"") -> 
T189: =IF('RZiS control'!A184<>"",'RZiS control'!A184,"") ->  | AG189: =IF(JPK_KR!X72968="wynikowe",JPK_KR!V72968,"") -> 
T190: =IF('RZiS control'!A185<>"",'RZiS control'!A185,"") ->  | AG190: =IF(JPK_KR!X72969="wynikowe",JPK_KR!V72969,"") -> 
T191: =IF('RZiS control'!A186<>"",'RZiS control'!A186,"") ->  | AG191: =IF(JPK_KR!X72970="wynikowe",JPK_KR!V72970,"") -> 
T192: =IF('RZiS control'!A187<>"",'RZiS control'!A187,"") ->  | AG192: =IF(JPK_KR!X72971="wynikowe",JPK_KR!V72971,"") -> 
T193: =IF('RZiS control'!A188<>"",'RZiS control'!A188,"") ->  | AG193: =IF(JPK_KR!X72972="wynikowe",JPK_KR!V72972,"") -> 
T194: =IF('RZiS control'!A189<>"",'RZiS control'!A189,"") ->  | AG194: =IF(JPK_KR!X72973="wynikowe",JPK_KR!V72973,"") -> 
T195: =IF('RZiS control'!A190<>"",'RZiS control'!A190,"") ->  | AG195: =IF(JPK_KR!X72974="wynikowe",JPK_KR!V72974,"") -> 
T196: =IF('RZiS control'!A191<>"",'RZiS control'!A191,"") ->  | AG196: =IF(JPK_KR!X72975="wynikowe",JPK_KR!V72975,"") -> 
T197: =IF('RZiS control'!A192<>"",'RZiS control'!A192,"") ->  | AG197: =IF(JPK_KR!X72976="wynikowe",JPK_KR!V72976,"") -> 
T198: =IF('RZiS control'!A193<>"",'RZiS control'!A193,"") ->  | AG198: =IF(JPK_KR!X72977="wynikowe",JPK_KR!V72977,"") -> 
T199: =IF('RZiS control'!A194<>"",'RZiS control'!A194,"") ->  | AG199: =IF(JPK_KR!X72978="wynikowe",JPK_KR!V72978,"") -> 
T200: =IF('RZiS control'!A195<>"",'RZiS control'!A195,"") ->  | AG200: =IF(JPK_KR!X72979="wynikowe",JPK_KR!V72979,"") -> 
AG201: =IF(JPK_KR!X72980="wynikowe",JPK_KR!V72980,"") -> 
... 2049 more rows

Sheet RZiS control (hidden)
A1: ns1:TypKonta | B1: wynikowe
A3: ns1:KodKonta | B3: ns1:KodKategorii | C3: ns1:SaldoWinien | D3: ns1:SaldoMa
A4: 401-1-1 | B4: 401 | C4: 1234 | D4: 0
A5: 401-1-2 | B5: 401 | C5: 209 | D5: 0
A6: 403-1-1 | B6: 403 | C6: 501 | D6: 0
A7: 403-1-7 | B7: 403 | C7: 1162.6 | D7: 0
A8: 403-1-8 | B8: 403 | C8: 1200 | D8: 0
A9: 405-1 | B9: 405 | C9: 10900 | D9: 0
A10: 405-2 | B10: 405 | C10: 998 | D10: 0
A11: 406-1-1 | B11: 406 | C11: 1170 | D11: 0
A12: 406-2-1 | B12: 406 | C12: 116 | D12: 0
A13: 702-2 | B13: 702 | C13: 0 | D13: 27890

Sheet Bilans
A1: =JPK_KR!L2 -> Firma TESTOWA
A2: .............................................. | B2: =Table1[[#This Row],[ns2:NIP]] -> 1231234455
A3: (Nazwa jednostki) | B3: (Numer Identyfikacji Podatkowej)
O4: KONTROLA
O5: Suma Wn | P5: Suma Ma
A6: BILANS SPORZĄDZONY NA DZIEŃ | B6: =JPK_KR!H2 -> 2018-01-31 | O6: =ROUND(SUM('Bilans control'!B:B),2) -> 34963.33 | P6: =SUM('Bilans control'!C:C) -> 24563.93
N7: pozostało: | O7: =ROUND(SUM('Bilans control'!B:B)-SUMIFS(JPK_KR!AJ:AJ,JPK_KR!V:V,D12)-SUMIFS(JPK_KR!AJ:AJ,JPK_KR!V:V,D13)-SUMIFS(JPK_KR!AJ:AJ,JPK_KR!V:V,D14)-SUMIFS(JPK_KR!AJ:AJ,JPK_KR!V:V,D15)-SUMIFS(JPK_KR!AJ:AJ,JPK_KR!V:V,D18)-SUMIFS(JPK_KR!AJ:AJ,JPK_KR!V:V,D19)-SUMIFS(JPK_KR!AJ:AJ,JPK_KR!V:V,D20)-SUMIFS(JPK_KR!AJ:AJ,JPK_KR!V:V,D21)-SUMIFS(JPK_KR!AJ:AJ,JPK_KR!V:V,D22)-SUMIFS(JPK_KR!AJ:AJ,JPK_KR!V:V,D23)-SUMIFS(JPK_KR!AJ:AJ,JPK_KR!V:V,D24)-SUMIFS(JPK_KR!AJ:AJ,JPK_KR!V:V,D26)-SUMIFS(JPK_KR!AJ:AJ,JPK_KR!V:V,D27)-SUMIFS(JPK_KR!AJ:AJ,JPK_KR!V:V,D28)-SUMIFS(JPK_KR!AJ:AJ,JPK_KR!V:V,D30)-SUMIFS(JPK_KR!AJ:AJ,JPK_KR!V:V,D31)-SUMIFS(JPK_KR!AJ:AJ,JPK_KR!V:V,D34)-SUMIFS(JPK_KR!AJ:AJ,JPK_KR!V:V,D35)-SUMIFS(JPK_KR!AJ:AJ,JPK_KR!V:V,D36)-SUMIFS(JPK_KR!AJ:AJ,JPK_KR!V:V,D37)-SUMIFS(JPK_KR!AJ:AJ,JPK_KR!V:V,D39)-SUMIFS(JPK_KR!AJ:AJ,JPK_KR!V:V,D40)-SUMIFS(JPK_KR!AJ:AJ,JPK_KR!V:V,D41)-SUMIFS(JPK_KR!AJ:AJ,JPK_KR!V:V,D42)-SUMIFS(JPK_KR!AJ:AJ,JPK_KR!V:V,D43)-SUMIFS(JPK_KR!AJ:AJ,JPK_KR!V:V,D45)-SUMIFS(JPK_KR!AJ:AJ,JPK_KR!V:V,D46)-SUMIFS(JPK_KR!AJ:AJ,JPK_KR!V:V,D49)-SUMIFS(JPK_KR!AJ:AJ,JPK_KR!V:V,D50)-SUMIFS(JPK_KR!AJ:AJ,JPK_KR!V:V,D51)-SUMIFS(JPK_KR!AJ:AJ,JPK_KR!V:V,D52)-SUMIFS(JPK_KR!AJ:AJ,JPK_KR!V:V,D53)-SUMIFS(JPK_KR!AJ:AJ,JPK_KR!V:V,D57)-SUMIFS(JPK_KR!AJ:AJ,JPK_KR!V:V,D58)-SUMIFS(JPK_KR!AJ:AJ,JPK_KR!V:V,D59)-SUMIFS(JPK_KR!AJ:AJ,JPK_KR!V:V,D62)-SUMIFS(JPK_KR!AJ:AJ,JPK_KR!V:V,D63)-SUMIFS(JPK_KR!AJ:AJ,JPK_KR!V:V,D64)-SUMIFS(JPK_KR!AJ:AJ,JPK_KR!V:V,D67)-SUMIFS(JPK_KR!AJ:AJ,JPK_KR!V:V,D68)-SUMIFS(JPK_KR!AJ:AJ,JPK_KR!V:V,D69)-SUMIFS(JPK_KR!AJ:AJ,JPK_KR!V:V,D70)-SUMIFS(JPK_KR!AJ:AJ,JPK_KR!V:V,D71)-SUMIFS(JPK_KR!AJ:AJ,JPK_KR!V:V,D75)-SUMIFS(JPK_KR!AJ:AJ,JPK_KR!V:V,D76)-SUMIFS(JPK_KR!AJ:AJ,JPK_KR!V:V,D77)-SUMIFS(JPK_KR!AJ:AJ,JPK_KR!V:V,D78)-SUMIFS(JPK_KR!AJ:AJ,JPK_KR!V:V,D80)-SUMIFS(JPK_KR!AJ:AJ,JPK_KR!V:V,D81)-SUMIFS(JPK_KR!AJ:AJ,JPK_KR!V:V,D82)-SUMIFS(JPK_KR!AJ:AJ,JPK_KR!V:V,D83)-SUMIFS(JPK_KR!AJ:AJ,JPK_KR!V:V,D85)-SUMIFS(JPK_KR!AJ:AJ,JPK_KR!V:V,H85)-SUMIFS(JPK_KR!AJ:AJ,JPK_KR!V:V,L85)-SUMIFS(JPK_KR!AJ:AJ,JPK_KR!V:V,H84)-SUMIFS(JPK_KR!AJ:AJ,JPK_KR!V:V,D86)-SUMIFS(JPK_KR!AJ:AJ,JPK_KR!V:V,D87)-SUMIFS(JPK_KR!AJ:AJ,JPK_KR!V:V,D88)-SUMIFS(JPK_KR!AJ:AJ,JPK_KR!V:V,D89)-SUMIFS(JPK_KR!AJ:AJ,JPK_KR!V:V,H89)-SUMIFS(JPK_KR!AJ:AJ,JPK_KR!V:V,H67)-SUMIFS(JPK_KR!AJ:AJ,JPK_KR!V:V,H70)-SUMIFS(JPK_KR!AJ:AJ,JPK_KR!V:V,H46),2) -> 0 | P7: =SUM('Bilans control'!C:C)-SUMIFS(JPK_KR!AK:AK,JPK_KR!V:V,F12)-SUMIFS(JPK_KR!AK:AK,JPK_KR!V:V,F13)-SUMIFS(JPK_KR!AK:AK,JPK_KR!V:V,F14)-SUMIFS(JPK_KR!AK:AK,JPK_KR!V:V,F15)-SUMIFS(JPK_KR!AK:AK,JPK_KR!V:V,F18)-SUMIFS(JPK_KR!AK:AK,JPK_KR!V:V,F19)-SUMIFS(JPK_KR!AK:AK,JPK_KR!V:V,F20)-SUMIFS(JPK_KR!AK:AK,JPK_KR!V:V,F21)-SUMIFS(JPK_KR!AK:AK,JPK_KR!V:V,F22)-SUMIFS(JPK_KR!AK:AK,JPK_KR!V:V,F23)-SUMIFS(JPK_KR!AK:AK,JPK_KR!V:V,F24)-SUMIFS(JPK_KR!AK:AK,JPK_KR!V:V,D49)-SUMIFS(JPK_KR!AK:AK,JPK_KR!V:V,D50)-SUMIFS(JPK_KR!AK:AK,JPK_KR!V:V,D51)-SUMIFS(JPK_KR!AK:AK,JPK_KR!V:V,D52)-SUMIFS(JPK_KR!AK:AK,JPK_KR!V:V,D53)-SUMIFS(JPK_KR!AK:AK,JPK_KR!V:V,F57)-SUMIFS(JPK_KR!AK:AK,JPK_KR!V:V,F58)-SUMIFS(JPK_KR!AK:AK,JPK_KR!V:V,F59)-SUMIFS(JPK_KR!AK:AK,JPK_KR!V:V,F67)-SUMIFS(JPK_KR!AK:AK,JPK_KR!V:V,J67)-SUMIFS(JPK_KR!AK:AK,JPK_KR!V:V,F71)-SUMIFS(JPK_KR!AK:AK,JPK_KR!V:V,F75)-SUMIFS(JPK_KR!AK:AK,JPK_KR!V:V,F76)-SUMIFS(JPK_KR!AK:AK,JPK_KR!V:V,F77)-SUMIFS(JPK_KR!AK:AK,JPK_KR!V:V,F78)-SUMIFS(JPK_KR!AK:AK,JPK_KR!V:V,F80)-SUMIFS(JPK_KR!AK:AK,JPK_KR!V:V,F81)-SUMIFS(JPK_KR!AK:AK,JPK_KR!V:V,F82)-SUMIFS(JPK_KR!AK:AK,JPK_KR!V:V,F83)-SUMIFS(JPK_KR!AK:AK,JPK_KR!V:V,F85)-SUMIFS(JPK_KR!AK:AK,JPK_KR!V:V,J85)-SUMIFS(JPK_KR!AK:AK,JPK_KR!V:V,N85)-SUMIFS(JPK_KR!AK:AK,JPK_KR!V:V,J84)-SUMIFS(JPK_KR!AK:AK,JPK_KR!V:V,F86)-SUMIFS(JPK_KR!AK:AK,JPK_KR!V:V,F87)-SUMIFS(JPK_KR!AK:AK,JPK_KR!V:V,F88)-SUMIFS(JPK_KR!AK:AK,JPK_KR!V:V,F89)-SUMIFS(JPK_KR!AK:AK,JPK_KR!V:V,J89)-SUMIFS(JPK_KR!AK:AK,JPK_KR!V:V,F90)-SUMIFS(JPK_KR!AK:AK,JPK_KR!V:V,F91)-SUMIFS(JPK_KR!AK:AK,JPK_KR!V:V,F98)-SUMIFS(JPK_KR!AK:AK,JPK_KR!V:V,F99)-SUMIFS(JPK_KR!AK:AK,JPK_KR!V:V,F100)-SUMIFS(JPK_KR!AK:AK,JPK_KR!V:V,F101)-SUMIFS(JPK_KR!AK:AK,JPK_KR!V:V,F102)-SUMIFS(JPK_KR!AK:AK,JPK_KR!V:V,F104)-SUMIFS(JPK_KR!AK:AK,JPK_KR!V:V,F105)-SUMIFS(JPK_KR!AK:AK,JPK_KR!V:V,F106)-SUMIFS(JPK_KR!AK:AK,JPK_KR!V:V,F107)-SUMIFS(JPK_KR!AK:AK,JPK_KR!V:V,F108)-SUMIFS(JPK_KR!AK:AK,JPK_KR!V:V,F111)-SUMIFS(JPK_KR!AK:AK,JPK_KR!V:V,F113)-SUMIFS(JPK_KR!AK:AK,JPK_KR!V:V,F114)-SUMIFS(JPK_KR!AK:AK,JPK_KR!V:V,F116)-SUMIFS(JPK_KR!AK:AK,JPK_KR!V:V,F117)-SUMIFS(JPK_KR!AK:AK,JPK_KR!V:V,F119)-SUMIFS(JPK_KR!AK:AK,JPK_KR!V:V,F120)-SUMIFS(JPK_KR!AK:AK,JPK_KR!V:V,F122)-SUMIFS(JPK_KR!AK:AK,JPK_KR!V:V,F123)-SUMIFS(JPK_KR!AK:AK,JPK_KR!V:V,F124)-SUMIFS(JPK_KR!AK:AK,JPK_KR!V:V,F125)-SUMIFS(JPK_KR!AK:AK,JPK_KR!V:V,F126)-SUMIFS(JPK_KR!AK:AK,JPK_KR!V:V,F130)-SUMIFS(JPK_KR!AK:AK,JPK_KR!V:V,F131)-SUMIFS(JPK_KR!AK:AK,JPK_KR!V:V,F132)-SUMIFS(JPK_KR!AK:AK,JPK_KR!V:V,F135)-SUMIFS(JPK_KR!AK:AK,JPK_KR!V:V,F137)-SUMIFS(JPK_KR!AK:AK,JPK_KR!V:V,F139)-SUMIFS(JPK_KR!AK:AK,JPK_KR!V:V,F140)-SUMIFS(JPK_KR!AK:AK,JPK_KR!V:V,F141)-SUMIFS(JPK_KR!AK:AK,JPK_KR!V:V,F143)-SUMIFS(JPK_KR!AK:AK,JPK_KR!V:V,J143)-SUMIFS(JPK_KR!AK:AK,JPK_KR!V:V,F144)-SUMIFS(JPK_KR!AK:AK,JPK_KR!V:V,F145)-SUMIFS(JPK_KR!AK:AK,JPK_KR!V:V,F146)-SUMIFS(JPK_KR!AK:AK,JPK_KR!V:V,F147)-SUMIFS(JPK_KR!AK:AK,JPK_KR!V:V,F148)-SUMIFS(JPK_KR!AK:AK,JPK_KR!V:V,F149)-SUMIFS(JPK_KR!AK:AK,JPK_KR!V:V,J149)-SUMIFS(JPK_KR!AK:AK,JPK_KR!V:V,F150)-SUMIFS(JPK_KR!AK:AK,JPK_KR!V:V,F152)-SUMIFS(JPK_KR!AK:AK,JPK_KR!V:V,F153)-SUMIFS(JPK_KR!AK:AK,JPK_KR!V:V,N149) -> 9.094947018e-13
A8: A K T Y W A | B8: Bieżący okres
A9: A. AKTYWA TRWAŁE | B9: =SUM(B11,B16,B25,B29,B44) -> -1443 | N9: BWF | O9: Aktywa | P9: Pasywa
A10: A. AKTYWA TRWAŁE | B10: =B11+B16+B25+B29+B44 -> -1443 | N10: =IF(RZiS!C50<0,RZiS!C51-RZiS!C50,RZiS!C51) -> 10399.4 | O10: =B92 -> 33520.33 | P10: =B154 -> 23120.93
A11: I. Wartości niematerialne i prawne | B11: =SUM(B12:B15) -> -1443
A12: 1. Koszty zakończonych prac rozwojowych | B12: =SUMIFS(JPK_KR!AJ:AJ,JPK_KR!V:V,D12)-SUMIFS(JPK_KR!AK:AK,JPK_KR!V:V,F12) -> -1443 | C12: Wn | E12: Ma | F12: 070* | O12: =IF(O10=(N10+P10),"A=P","BŁĄD") -> A=P
A13: 2. Wartość firmy | B13: =SUMIFS(JPK_KR!AJ:AJ,JPK_KR!V:V,D13)-SUMIFS(JPK_KR!AK:AK,JPK_KR!V:V,F13) -> 0 | C13: Wn | E13: Ma
A14: 3. Inne wartości niematerialne i prawne | B14: =SUMIFS(JPK_KR!AJ:AJ,JPK_KR!V:V,D14)-SUMIFS(JPK_KR!AK:AK,JPK_KR!V:V,F14) -> 0 | C14: Wn | E14: Ma | F14: 075-3
A15: 4. Zaliczki na wartości niematerialne i prawne | B15: =SUMIFS(JPK_KR!AJ:AJ,JPK_KR!V:V,D15)-SUMIFS(JPK_KR!AK:AK,JPK_KR!V:V,F15) -> 0 | C15: Wn | E15: Ma
A16: II. Rzeczowe aktywa trwałe | B16: =B17+B23+B24 -> 0
A17: 1. Środki trwałe | B17: =SUM(B18:B22) -> 0
A18: a. grunty (w tym prawo wieczystego użytkowania gruntu) | B18: =SUMIFS(JPK_KR!AJ:AJ,JPK_KR!V:V,D18)-SUMIFS(JPK_KR!AK:AK,JPK_KR!V:V,F18) -> 0 | C18: Wn | D18: 010-1 | E18: Ma | F18: 070-1
A19: b. budynki, lokale i obiekty inżynierii lądowej i wodnej | B19: =SUMIFS(JPK_KR!AJ:AJ,JPK_KR!V:V,D19)-SUMIFS(JPK_KR!AK:AK,JPK_KR!V:V,F19) -> 0 | C19: Wn | E19: Ma
A20: c. urządzenia techniczne i maszyny | B20: =SUMIFS(JPK_KR!AJ:AJ,JPK_KR!V:V,D20)-SUMIFS(JPK_KR!AK:AK,JPK_KR!V:V,F20) -> 0 | C20: Wn | D20: 070-3 | E20: Ma | F20: 010-3
A21: d. środki transportu | B21: =SUMIFS(JPK_KR!AJ:AJ,JPK_KR!V:V,D21)-SUMIFS(JPK_KR!AK:AK,JPK_KR!V:V,F21) -> 0 | C21: Wn | D21: 010-4 | E21: Ma | F21: 070-4
A22: e. inne środki trwałe | B22: =SUMIFS(JPK_KR!AJ:AJ,JPK_KR!V:V,D22)-SUMIFS(JPK_KR!AK:AK,JPK_KR!V:V,F22) -> 0 | C22: Wn | E22: Ma
A23: 2. Środki trwałe w budowie | B23: =SUMIFS(JPK_KR!AJ:AJ,JPK_KR!V:V,D23)-SUMIFS(JPK_KR!AK:AK,JPK_KR!V:V,F23) -> 0 | C23: Wn | E23: Ma
A24: 3. Zaliczki na środki trwałe w budowie | B24: =SUMIFS(JPK_KR!AJ:AJ,JPK_KR!V:V,D24)-SUMIFS(JPK_KR!AK:AK,JPK_KR!V:V,F24) -> 0 | C24: Wn | E24: Ma
A25: III. Należności długoterminowe | B25: =SUM(B26:B28) -> 0
A26: 1. Od jednostek powiązanych | B26: =SUMIFS(JPK_KR!AJ:AJ,JPK_KR!V:V,D26) -> 0 | C26: Wn | E26: Ma
A27: 2. Od pozostałych jednostek, w których jednostka posiada zaangazownaie w kapitale | B27: =SUMIFS(JPK_KR!AJ:AJ,JPK_KR!V:V,D27) -> 0 | C27: Wn | E27: Ma
A28: 3. Od pozostałych jednostek | B28: =SUMIFS(JPK_KR!AJ:AJ,JPK_KR!V:V,D28) -> 0 | C28: Wn | E28: Ma
A29: IV. Inwestycje długoterminowe | B29: =B30+B31+B32+B43 -> 0
A30: 1. Nieruchomości | B30: =SUMIFS(JPK_KR!AJ:AJ,JPK_KR!V:V,D30) -> 0 | C30: Wn | E30: Ma
A31: 2. Wartości niematerialne i prawne | B31: =SUMIFS(JPK_KR!AJ:AJ,JPK_KR!V:V,D31) -> 0 | C31: Wn | E31: Ma
A32: 3. Długoterminowe aktywa finansowe | B32: =B33+B38 -> 0
A33: a. w jednostkach powiązanych | B33: =SUM(B34:B37) -> 0
A34: - udziały lub akcje | B34: =SUMIFS(JPK_KR!AJ:AJ,JPK_KR!V:V,D34) -> 0 | C34: Wn | E34: Ma
A35: - inne papiery wartościowe | B35: =SUMIFS(JPK_KR!AJ:AJ,JPK_KR!V:V,D35) -> 0 | C35: Wn | E35: Ma
A36: - udzielone pożyczki | B36: =SUMIFS(JPK_KR!AJ:AJ,JPK_KR!V:V,D36) -> 0 | C36: Wn | E36: Ma
A37: - inne długoterminowe aktywa finansowe | B37: =SUMIFS(JPK_KR!AJ:AJ,JPK_KR!V:V,D37) -> 0 | C37: Wn | E37: Ma
A38: b. w pozostałych jednostkach | B38: =SUM(B39:B42) -> 0
A39: - udziały lub akcje | B39: =SUMIFS(JPK_KR!AJ:AJ,JPK_KR!V:V,D39) -> 0 | C39: Wn | E39: Ma
A40: - inne papiery wartościowe | B40: =SUMIFS(JPK_KR!AJ:AJ,JPK_KR!V:V,D40) -> 0 | C40: Wn | E40: Ma
A41: - udzielone pożyczki | B41: =SUMIFS(JPK_KR!AJ:AJ,JPK_KR!V:V,D41) -> 0 | C41: Wn | E41: Ma
A42: - inne długoterminowe aktywa finansowe | B42: =SUMIFS(JPK_KR!AJ:AJ,JPK_KR!V:V,D42) -> 0 | C42: Wn | E42: Ma
A43: 4. Inne inwestycje długoterminowe | B43: =SUMIFS(JPK_KR!AJ:AJ,JPK_KR!V:V,D43) -> 0 | C43: Wn | E43: Ma
A44: V. Długoterminowe rozliczenia międzyokresowe | B44: =SUM(B45:B46) -> 0
A45: 1. Aktywa z tytułu odroczonego podatku dochodowego | B45: =SUMIFS(JPK_KR!AJ:AJ,JPK_KR!V:V,D45) -> 0 | C45: Wn | E45: Ma
A46: 2. Inne rozliczenia międzyokresowe | B46: =SUMIFS(JPK_KR!AJ:AJ,JPK_KR!V:V,D46)+SUMIFS(JPK_KR!AJ:AJ,JPK_KR!V:V,H46) -> 0 | C46: Wn | E46: Ma | G46: Wn | I46: Ma
A47: B. AKTYWA OBROTOWE | B47: =B48+B54+B72+B89 -> 34963.33
A48: I. Zapasy | B48: =SUM(B49:B53) -> 0
A49: 1. Materiały | B49: =SUMIFS(JPK_KR!AJ:AJ,JPK_KR!V:V,D49)-SUMIFS(JPK_KR!AK:AK,JPK_KR!V:V,D49) -> 0 | C49: Wn | E49: Ma
A50: 2. Półprodukty i produkty w toku | B50: =SUMIFS(JPK_KR!AJ:AJ,JPK_KR!V:V,D50)-SUMIFS(JPK_KR!AK:AK,JPK_KR!V:V,D50) -> 0 | C50: Wn | E50: Ma
A51: 3. Produkty gotowe | B51: =SUMIFS(JPK_KR!AJ:AJ,JPK_KR!V:V,D51)-SUMIFS(JPK_KR!AK:AK,JPK_KR!V:V,D51) -> 0 | C51: Wn | E51: Ma
A52: 4. Towary | B52: =SUMIFS(JPK_KR!AJ:AJ,JPK_KR!V:V,D52)-SUMIFS(JPK_KR!AK:AK,JPK_KR!V:V,D52) -> 0 | C52: Wn | D52: 330* | E52: Ma
A53: 5. Zaliczki na poczet dostaw | B53: =SUMIFS(JPK_KR!AJ:AJ,JPK_KR!V:V,D53)-SUMIFS(JPK_KR!AK:AK,JPK_KR!V:V,D53) -> 0 | C53: Wn | E53: Ma
A54: II. Należności krótkoterminowe | B54: =B55+B60+B65 -> 34963.33
A55: 1. Należności od jednostek powiązanych | B55: =B56+B59 -> 0
A56: a. z tytułu dostaw i usług o okresie spłaty: | B56: =SUM(B57:B58) -> 0
A57: - do 12 miesięcy | B57: =SUMIFS(JPK_KR!AJ:AJ,JPK_KR!V:V,D57)-SUMIFS(JPK_KR!AK:AK,JPK_KR!V:V,F57) -> 0 | C57: Wn | E57: Ma
A58: - powyżej 12 miesięcy | B58: =SUMIFS(JPK_KR!AJ:AJ,JPK_KR!V:V,D58)-SUMIFS(JPK_KR!AK:AK,JPK_KR!V:V,F58) -> 0 | C58: Wn | E58: Ma
A59: b. inne | B59: =SUMIFS(JPK_KR!AJ:AJ,JPK_KR!V:V,D59)-SUMIFS(JPK_KR!AK:AK,JPK_KR!V:V,F59) -> 0 | C59: Wn | E59: Ma
A60: 2. Należności od jednostek powiązanych, w których jednostka posiada zaangażowanie w kapitale | B60: =B61+B64 -> 0
A61: a. z tytułu dostaw i usług o okresie spłaty: | B61: =SUM(B62:B63) -> 0
A62: - do 12 miesięcy | B62: =SUMIFS(JPK_KR!AJ:AJ,JPK_KR!V:V,D62) -> 0 | C62: Wn | E62: Ma
A63: - powyżej 12 miesięcy | B63: =SUMIFS(JPK_KR!AJ:AJ,JPK_KR!V:V,D63) -> 0 | C63: Wn | E63: Ma
A64: b. inne | B64: =SUMIFS(JPK_KR!AJ:AJ,JPK_KR!V:V,D64) -> 0 | C64: Wn | E64: Ma
A65: 3. Należności od pozostałych jednostek | B65: =B66+B69+B70+B71 -> 34963.33
A66: a. z tytułu dostaw i usług o okresie spłaty: | B66: =SUM(B67:B68) -> 34304.7
A67: - do 12 miesięcy | B67: =SUMIFS(JPK_KR!AJ:AJ,JPK_KR!V:V,D67)-SUMIFS(JPK_KR!AK:AK,JPK_KR!V:V,F67)+SUMIFS(JPK_KR!AJ:AJ,JPK_KR!V:V,H67)-SUMIFS(JPK_KR!AK:AK,JPK_KR!V:V,J67) -> 34304.7 | C67: Wn | D67: 201* | E67: Ma | G67: Wn | H67: 203* | I67: Ma
A68: - powyżej 12 miesięcy | B68: =SUMIFS(JPK_KR!AJ:AJ,JPK_KR!V:V,D68) -> 0 | C68: Wn | E68: Ma
A69: b. z tytułu podatków,dotacji, ceł, ubezp. społ. i zdrowotnych oraz inych tytułów publiczno-prawnych | B69: =SUMIFS(JPK_KR!AJ:AJ,JPK_KR!V:V,D69) -> 658.63 | C69: Wn | D69: 221* | E69: Ma
A70: c. inne | B70: =SUMIFS(JPK_KR!AJ:AJ,JPK_KR!V:V,D70)+SUMIFS(JPK_KR!AJ:AJ,JPK_KR!V:V,H70) -> 0 | C70: Wn | D70: 302* | E70: Ma | G70: Wn | I70: Ma
A71: d. dochodzone na drodze sądowej | B71: =SUMIFS(JPK_KR!AJ:AJ,JPK_KR!V:V,D71)-SUMIFS(JPK_KR!AK:AK,JPK_KR!V:V,F71) -> 0 | C71: Wn | E71: Ma
A72: III. Inwestycje krótkoterminowe | B72: =B73+B88 -> 0
A73: 1. Krótkoterminowe aktywa finansowe | B73: =B74+B79+B84 -> 0
A74: a. w jednostkach powiązanych | B74: =SUM(B75:B78) -> 0
A75: - udziały lub akcje | B75: =SUMIFS(JPK_KR!AJ:AJ,JPK_KR!V:V,D75)-SUMIFS(JPK_KR!AK:AK,JPK_KR!V:V,F75) -> 0 | C75: Wn | E75: Ma
A76: - inne papiery wartościowe | B76: =SUMIFS(JPK_KR!AJ:AJ,JPK_KR!V:V,D76)-SUMIFS(JPK_KR!AK:AK,JPK_KR!V:V,F76) -> 0 | C76: Wn | E76: Ma
A77: - udzielone pożyczki | B77: =SUMIFS(JPK_KR!AJ:AJ,JPK_KR!V:V,D77)-SUMIFS(JPK_KR!AK:AK,JPK_KR!V:V,F77) -> 0 | C77: Wn | E77: Ma
A78: - inne krótkoterminowe aktywa finansowe | B78: =SUMIFS(JPK_KR!AJ:AJ,JPK_KR!V:V,D78)-SUMIFS(JPK_KR!AK:AK,JPK_KR!V:V,F78) -> 0 | C78: Wn | E78: Ma
A79: b. w pozostałych jednostkach | B79: =SUM(B80:B83) -> 0
A80: - udziały lub akcje | B80: =SUMIFS(JPK_KR!AJ:AJ,JPK_KR!V:V,D80)-SUMIFS(JPK_KR!AK:AK,JPK_KR!V:V,F80) -> 0 | C80: Wn | E80: Ma
A81: - inne papiery wartościowe | B81: =SUMIFS(JPK_KR!AJ:AJ,JPK_KR!V:V,D81)-SUMIFS(JPK_KR!AK:AK,JPK_KR!V:V,F81) -> 0 | C81: Wn | E81: Ma
A82: - udzielone pożyczki | B82: =SUMIFS(JPK_KR!AJ:AJ,JPK_KR!V:V,D82)-SUMIFS(JPK_KR!AK:AK,JPK_KR!V:V,F82) -> 0 | C82: Wn | E82: Ma
A83: - inne krótkoterminowe aktywa finansowe | B83: =SUMIFS(JPK_KR!AJ:AJ,JPK_KR!V:V,D83)-SUMIFS(JPK_KR!AK:AK,JPK_KR!V:V,F83) -> 0 | C83: Wn | E83: Ma
A84: c. środki pieniężne i inne aktywa pieniężne | B84: =SUM(B85:B87) -> 0 | G84: Wn | I84: Ma
A85: - środki pieniężne w kasie i na rachunkach | B85: =SUMIFS(JPK_KR!AJ:AJ,JPK_KR!V:V,D85)-SUMIFS(JPK_KR!AK:AK,JPK_KR!V:V,F85)+SUMIFS(JPK_KR!AJ:AJ,JPK_KR!V:V,H85)-SUMIFS(JPK_KR!AK:AK,JPK_KR!V:V,J85)+SUMIFS(JPK_KR!AJ:AJ,JPK_KR!V:V,L85)-SUMIFS(JPK_KR!AK:AK,JPK_KR!V:V,N85)+SUMIFS(JPK_KR!AJ:AJ,JPK_KR!V:V,H84)-SUMIFS(JPK_KR!AK:AK,JPK_KR!V:V,J84) -> 0 | C85: Wn | E85: Ma | G85: Wn | I85: Ma | K85: Wn | M85: Ma
A86: - inne środki pieniężne | B86: =SUMIFS(JPK_KR!AJ:AJ,JPK_KR!V:V,D86)-SUMIFS(JPK_KR!AK:AK,JPK_KR!V:V,F86) -> 0 | C86: Wn | E86: Ma
A87: - inne aktywa pieniężne | B87: =SUMIFS(JPK_KR!AJ:AJ,JPK_KR!V:V,D87)-SUMIFS(JPK_KR!AK:AK,JPK_KR!V:V,F87) -> 0 | C87: Wn | E87: Ma
A88: 2. Inne inwestycje krótkoterminowe | B88: =SUMIFS(JPK_KR!AJ:AJ,JPK_KR!V:V,D88)-SUMIFS(JPK_KR!AK:AK,JPK_KR!V:V,F88) -> 0 | C88: Wn | E88: Ma
A89: IV. Krótkoterminowe rozliczenia międzyokresowe | B89: =SUMIFS(JPK_KR!AJ:AJ,JPK_KR!V:V,D89)-SUMIFS(JPK_KR!AK:AK,JPK_KR!V:V,F89)+SUMIFS(JPK_KR!AJ:AJ,JPK_KR!V:V,H89)-SUMIFS(JPK_KR!AK:AK,JPK_KR!V:V,J89) -> 0 | C89: Wn | E89: Ma | G89: Wn | I89: Ma
A90: C. Należne wpłaty na kapitał (fundusz) podstawowy | B90: =SUMIFS(JPK_KR!AJ:AJ,JPK_KR!V:V,D90)-SUMIFS(JPK_KR!AK:AK,JPK_KR!V:V,F90) -> 0 | C90: Wn | E90: Ma
A91: D. Udziału (akcje) własne | B91: =SUMIFS(JPK_KR!AJ:AJ,JPK_KR!V:V,D91)-SUMIFS(JPK_KR!AK:AK,JPK_KR!V:V,F91) -> 0 | C91: Wn | E91: Ma
A92: S U M A A K T Y W Ó W | B92: =B91+B90+B47+B10 -> 33520.33
A95: P A S Y W A | B95: =B8 -> Bieżący okres
A96: A. KAPITAŁ (FUNDUSZ) WŁASNY | B96: =SUM(B98:B108) -> 0
A97: A. KAPITAŁY | B97: =B98+B99+B101+B103+B106+B107+B108 -> 0
A98: I. Kapitał (fundusz) podstawowy | B98: =SUMIFS(JPK_KR!AK:AK,JPK_KR!V:V,F98)-SUMIFS(JPK_KR!AJ:AJ,JPK_KR!V:V,D98) -> 0 | C98: Wn | E98: Ma
A99: II. Kapitał (fundusz) zapasowy, w tym: | B99: =SUMIFS(JPK_KR!AK:AK,JPK_KR!V:V,F99)-SUMIFS(JPK_KR!AJ:AJ,JPK_KR!V:V,D99) -> 0 | C99: Wn | E99: Ma
A100: - nadwyżka wartości sprzedaży (wartości emisyjnej) nad wartością nominalną udziałów (akcji) | B100: =SUMIFS(JPK_KR!AK:AK,JPK_KR!V:V,F100)-SUMIFS(JPK_KR!AJ:AJ,JPK_KR!V:V,D100) -> 0 | C100: Wn | E100: Ma
A101: III. Kapitał (fundusz) z aktualizacji wyceny, w tym: | B101: =SUMIFS(JPK_KR!AK:AK,JPK_KR!V:V,F101)-SUMIFS(JPK_KR!AJ:AJ,JPK_KR!V:V,D101) -> 0 | C101: Wn | E101: Ma
A102: - z tytułu aktualizacji wartości godziwej | B102: =SUMIFS(JPK_KR!AK:AK,JPK_KR!V:V,F102)-SUMIFS(JPK_KR!AJ:AJ,JPK_KR!V:V,D102) -> 0 | C102: Wn | E102: Ma
A103: IV. Pozostałe kapitały (fundusze) rezerwowe, w tm: | B103: =SUM(B104:B105) -> 0
A104: - tworzone zgodnie z umową (statutem) spółki | B104: =SUMIFS(JPK_KR!AK:AK,JPK_KR!V:V,F104)-SUMIFS(JPK_KR!AJ:AJ,JPK_KR!V:V,D104) -> 0 | C104: Wn | E104: Ma
A105: - na udziały (akcje) własne | B105: =SUMIFS(JPK_KR!AK:AK,JPK_KR!V:V,F105)-SUMIFS(JPK_KR!AJ:AJ,JPK_KR!V:V,D105) -> 0 | C105: Wn | E105: Ma
A106: V. Zysk (strata) z lat ubiegłych | B106: =SUMIFS(JPK_KR!AK:AK,JPK_KR!V:V,F106)-SUMIFS(JPK_KR!AJ:AJ,JPK_KR!V:V,D106) -> 0 | C106: Wn | E106: Ma
A107: VI. Zysk (strata) netto | B107: =SUMIFS(JPK_KR!AK:AK,JPK_KR!V:V,F107)-SUMIFS(JPK_KR!AJ:AJ,JPK_KR!V:V,D107) -> 0 | C107: Wn | E107: Ma
A108: VII. Odpisy z zysku netto w ciągu roku obrotowego (wielkość ujemna) | B108: =SUMIFS(JPK_KR!AK:AK,JPK_KR!V:V,F108)-SUMIFS(JPK_KR!AJ:AJ,JPK_KR!V:V,D108) -> 0 | C108: Wn | E108: Ma
A109: B. ZOBOWIĄZANIA I REZERWY NA ZOBOWIĄZANIA | B109: =B110+B118+B127+B151 -> 23120.93
A110: I. Rezerwy na zobowiązania | B110: =B111+B112+B115 -> 0
A111: 1. Rezerwa z tytułu odroczonego podatku dochodowego | B111: =SUMIFS(JPK_KR!AK:AK,JPK_KR!V:V,F111)-SUMIFS(JPK_KR!AJ:AJ,JPK_KR!V:V,D111) -> 0 | C111: Wn | E111: Ma
A112: 2. Rezerwa na świadczenia emerytalne i podobne | B112: =SUM(B113:B114) -> 0
A113: - długoterminowa | B113: =SUMIFS(JPK_KR!AK:AK,JPK_KR!V:V,F113)-SUMIFS(JPK_KR!AJ:AJ,JPK_KR!V:V,D113) -> 0 | C113: Wn | E113: Ma
A114: - krótkoterminowa | B114: =SUMIFS(JPK_KR!AK:AK,JPK_KR!V:V,F114)-SUMIFS(JPK_KR!AJ:AJ,JPK_KR!V:V,D114) -> 0 | C114: Wn | E114: Ma
A115: 3. Pozostałe rezerwy | B115: =SUM(B116:B117) -> 0
A116: - długoterminowe | B116: =SUMIFS(JPK_KR!AK:AK,JPK_KR!V:V,F116)-SUMIFS(JPK_KR!AJ:AJ,JPK_KR!V:V,D116) -> 0 | C116: Wn | E116: Ma
A117: - krótkoterminowe | B117: =SUMIFS(JPK_KR!AK:AK,JPK_KR!V:V,F117)-SUMIFS(JPK_KR!AJ:AJ,JPK_KR!V:V,D117) -> 0 | C117: Wn | E117: Ma
A118: II. Zobowiązania długoterminowe | B118: =B119+B120+B121 -> 0
A119: 1. Wobec jednostek powiązanych | B119: =SUMIFS(JPK_KR!AK:AK,JPK_KR!V:V,F119)-SUMIFS(JPK_KR!AJ:AJ,JPK_KR!V:V,D119) -> 0 | C119: Wn | E119: Ma
A120: 2. Wobec pozostałych jednostek, w których jednostaka posiada zaangażownaie w kapitale | B120: =SUMIFS(JPK_KR!AK:AK,JPK_KR!V:V,F120)-SUMIFS(JPK_KR!AJ:AJ,JPK_KR!V:V,D120) -> 0 | C120: Wn | E120: Ma
A121: 3. Wobec pozostałych jednostek | B121: =SUM(B122:B126) -> 0
A122: a. kredyty i pożyczki | B122: =SUMIFS(JPK_KR!AK:AK,JPK_KR!V:V,F122)-SUMIFS(JPK_KR!AJ:AJ,JPK_KR!V:V,D122) -> 0 | C122: Wn | E122: Ma
A123: b. z tytułu emisji dłużnych papierów wartościowych | B123: =SUMIFS(JPK_KR!AK:AK,JPK_KR!V:V,F123)-SUMIFS(JPK_KR!AJ:AJ,JPK_KR!V:V,D123) -> 0 | C123: Wn | E123: Ma
A124: c. inne zobowiązania finansowe | B124: =SUMIFS(JPK_KR!AK:AK,JPK_KR!V:V,F124)-SUMIFS(JPK_KR!AJ:AJ,JPK_KR!V:V,D124) -> 0 | C124: Wn | E124: Ma
A125: d. zobowiązania wekslowe | B125: =SUMIFS(JPK_KR!AK:AK,JPK_KR!V:V,F125)-SUMIFS(JPK_KR!AJ:AJ,JPK_KR!V:V,D125) -> 0 | C125: Wn | E125: Ma
A126: e. inne | B126: =SUMIFS(JPK_KR!AK:AK,JPK_KR!V:V,F126)-SUMIFS(JPK_KR!AJ:AJ,JPK_KR!V:V,D126) -> 0 | C126: Wn | E126: Ma
A127: III. Zobowiązania krótkoterminowe | B127: =B128+B133+B138+B150 -> 23120.93
A128: 1. Wobec jednostek powiązanych | B128: =B129+B132 -> 0
A129: a. z tytułu dostaw i usług o okresie wymagalności: | B129: =SUM(B130:B131) -> 0
A130: - do 12 miesięcy | B130: =SUMIFS(JPK_KR!AK:AK,JPK_KR!V:V,F130)-SUMIFS(JPK_KR!AJ:AJ,JPK_KR!V:V,D130) -> 0 | C130: Wn | E130: Ma
A131: - powyżej 12 miesięcy | B131: =SUMIFS(JPK_KR!AK:AK,JPK_KR!V:V,F131)-SUMIFS(JPK_KR!AJ:AJ,JPK_KR!V:V,D131) -> 0 | C131: Wn | E131: Ma
A132: b. inne | B132: =SUMIFS(JPK_KR!AK:AK,JPK_KR!V:V,F132)-SUMIFS(JPK_KR!AJ:AJ,JPK_KR!V:V,D132) -> 0 | C132: Wn | E132: Ma
A133: 2. Wobec pozostałych jednostek, w których jednostak posiada zaangażownaie w kapitale | B133: =B134+B137 -> 0
A134: a. z tytułu dostaw i usług o okresie wymagalności: | B134: =SUM(B135:B136) -> 0
A135: - do 12 miesięcy | B135: =SUMIFS(JPK_KR!AK:AK,JPK_KR!V:V,F135)-SUMIFS(JPK_KR!AJ:AJ,JPK_KR!V:V,D135) -> 0 | C135: Wn | E135: Ma
A136: - powyżej 12 miesięcy | B136: =SUMIFS(JPK_KR!AK:AK,JPK_KR!V:V,F136)-SUMIFS(JPK_KR!AJ:AJ,JPK_KR!V:V,D136) -> 0 | C136: Wn | E136: Ma
A137: b. inne | B137: =SUMIFS(JPK_KR!AK:AK,JPK_KR!V:V,F137)-SUMIFS(JPK_KR!AJ:AJ,JPK_KR!V:V,D137) -> 0 | C137: Wn | E137: Ma
A138: 3. Wobec pozostałych jednostek | B138: =B139+B140+B141+B142+B145+B146+B147+B148+B149 -> 23120.93
A139: a. kredyty i pożyczki | B139: =SUMIFS(JPK_KR!AK:AK,JPK_KR!V:V,F139)-SUMIFS(JPK_KR!AJ:AJ,JPK_KR!V:V,D139) -> 0 | C139: Wn | E139: Ma
A140: b. z tytułu emisji dłużnych papierów wartościowych | B140: =SUMIFS(JPK_KR!AK:AK,JPK_KR!V:V,F140)-SUMIFS(JPK_KR!AJ:AJ,JPK_KR!V:V,D140) -> 0 | C140: Wn | E140: Ma
A141: c. inne zobowiązania finansowe | B141: =SUMIFS(JPK_KR!AK:AK,JPK_KR!V:V,F141)-SUMIFS(JPK_KR!AJ:AJ,JPK_KR!V:V,D141) -> 0
A142: d. z tytułu dostaw i usług o okresie wymagalności: | B142: =SUM(B143:B144) -> 3522.23
A143: - do 12 miesięcy | B143: =SUMIFS(JPK_KR!AK:AK,JPK_KR!V:V,F143)-SUMIFS(JPK_KR!AJ:AJ,JPK_KR!V:V,D143)+SUMIFS(JPK_KR!AK:AK,JPK_KR!V:V,J143)-SUMIFS(JPK_KR!AJ:AJ,JPK_KR!V:V,H143) -> 3522.23 | C143: Wn | E143: Ma | F143: 200 | G143: Wn | I143: Ma | J143: 202*
A144: - powyżej 12 miesięcy | B144: =SUMIFS(JPK_KR!AK:AK,JPK_KR!V:V,F144)-SUMIFS(JPK_KR!AJ:AJ,JPK_KR!V:V,D144) -> 0 | C144: Wn | E144: Ma | F144: 204*
A145: e. zaliczki otrzymane na dostawy | B145: =SUMIFS(JPK_KR!AK:AK,JPK_KR!V:V,F145)-SUMIFS(JPK_KR!AJ:AJ,JPK_KR!V:V,D145) -> 0 | C145: Wn | E145: Ma
A146: f. zobowiązania wekslowe | B146: =SUMIFS(JPK_KR!AK:AK,JPK_KR!V:V,F146)-SUMIFS(JPK_KR!AJ:AJ,JPK_KR!V:V,D146) -> 0 | C146: Wn | E146: Ma
A147: g. z tytułu podatków, ceł, ubezpieczeń społecznych i zdrowotnych oraz inych tytułów publiczno-prawnych | B147: =SUMIFS(JPK_KR!AK:AK,JPK_KR!V:V,F147)-SUMIFS(JPK_KR!AJ:AJ,JPK_KR!V:V,D147) -> 1286 | C147: Wn | E147: Ma | F147: 220*
A148: h. z tytułu wynagrodzeń | B148: =SUMIFS(JPK_KR!AK:AK,JPK_KR!V:V,F148)-SUMIFS(JPK_KR!AJ:AJ,JPK_KR!V:V,D148) -> 11898 | C148: Wn | E148: Ma | F148: 230*
A149: i. inne | B149: =SUMIFS(JPK_KR!AK:AK,JPK_KR!V:V,F149)-SUMIFS(JPK_KR!AJ:AJ,JPK_KR!V:V,D149)+SUMIFS(JPK_KR!AK:AK,JPK_KR!V:V,J149)-SUMIFS(JPK_KR!AJ:AJ,JPK_KR!V:V,H149)+SUMIFS(JPK_KR!AK:AK,JPK_KR!V:V,N149)-SUMIFS(JPK_KR!AJ:AJ,JPK_KR!V:V,L149) -> 6414.7 | C149: Wn | E149: Ma | F149: 221* | G149: Wn | I149: Ma | K149: Wn | M149: Ma
A150: 4. Fundusze specjalne | B150: =SUMIFS(JPK_KR!AK:AK,JPK_KR!V:V,F150)-SUMIFS(JPK_KR!AJ:AJ,JPK_KR!V:V,D150) -> 0 | C150: Wn | E150: Ma
A151: IV. Rozliczenia międzyokresowe | B151: =SUM(B152:B153) -> 0 | C151: Wn | E151: Ma
A152: 1. Ujemna wartość firmy | B152: =SUMIFS(JPK_KR!AK:AK,JPK_KR!V:V,F152)-SUMIFS(JPK_KR!AJ:AJ,JPK_KR!V:V,D152) -> 0 | C152: Wn | E152: Ma
A153: 2. Inne rozliczenia międzyokresowe | B153: =SUMIFS(JPK_KR!AK:AK,JPK_KR!V:V,F153)-SUMIFS(JPK_KR!AJ:AJ,JPK_KR!V:V,D153) -> 0 | C153: Wn | D153: 642* | E153: Ma | F153: 642*
A154: S U M A P A S Y W Ó W | B154: =B97+B109 -> 23120.93

Sheet Bilans control (hidden)
A1: ns1:TypKonta | B1: bilansowe
A3: ns1:KodKonta | B3: ns1:SaldoWinien | C3: ns1:SaldoMa
A4: 070-5 | B4: 0 | C4: 1443
A5: 201-3-1-5 | B5: 34304.7 | C5: 0
A6: 202-3-1-2 | B6: 0 | C6: 616.23
A7: 202-3-1-4 | B7: 0 | C7: 1430
A8: 202-3-1-6 | B8: 0 | C8: 1476
A9: 220-3 | B9: 0 | C9: 1286
A10: 221-1 | B10: 0 | C10: 6414.7
A11: 221-2 | B11: 658.63 | C11: 0
A12: 230 | B12: 0 | C12: 11898

Sheet CIT-8
A3: data od: | B3: =Table1[[#This Row],[ns1:DataOd]] -> 2018-01-01
A4: data do: | B4: =JPK_KR!H2 -> 2018-01-31
A5: kod US | B5: =JPK_KR!J2 -> 1234
A6: Dane identyfikacyjne
A7: Nazwa firmy: | B7: =JPK_KR!L2 -> Firma TESTOWA
A8: NIP podatnika: | B8: =JPK_KR!K2 -> 1231234455
A10: Przychody: | B10: =SUMIFS(JPK_KR!AK:AK,JPK_KR!W:W,"*P_*")-(SUMIFS(JPK_KR!AJ:AJ,JPK_KR!W:W,"*P_*")) -> 0
A11: Koszty wszystkie: | B11: =SUMIFS(JPK_KR!AJ:AJ,JPK_KR!W:W,"*K_*")-(SUMIFS(JPK_KR!AK:AK,JPK_KR!W:W,"*K_*")) -> 0
A12: Wynik | B12: =B10-B11 -> 0
A13: koszty NKUP: | B13: =SUMIFS(JPK_KR!AJ:AJ,JPK_KR!W:W,"*K_*NKUP*")-(SUMIFS(JPK_KR!AK:AK,JPK_KR!W:W,"K_*NKUP*")) -> 0
A14: przychody NKUP | B14: =SUMIFS(JPK_KR!AK:AK,JPK_KR!W:W,"P_*NKUP*")-(SUMIFS(JPK_KR!AJ:AJ,JPK_KR!W:W,"P_*NKUP*")) -> 0
A15: podatek "10" | B15: =SUMIFS(JPK_KR!AH:AH,JPK_KR!V:V,"*-10") -> 0
A16: dochód do podatku: | B16: =B12+B13 -> 0
A17: podatek: | B17: =IF(B16>0,B16*19%,0) -> 0
A18: zaliczka: | B18: =ROUND(B17-(SUMIFS(JPK_KR!AJ:AJ,JPK_KR!AA:AA,870)-SUMIFS(JPK_KR!AK:AK,JPK_KR!AA:AA,870)),0) -> 0

Sheet JPK_KR
A1: ns1:KodFormularza | B1: kodSystemowy | C1: wersjaSchemy | D1: ns1:WariantFormularza | E1: ns1:CelZlozenia | F1: ns1:DataWytworzeniaJPK | G1: ns1:DataOd | H1: ns1:DataDo | I1: ns1:DomyslnyKodWaluty | J1: ns1:KodUrzedu | K1: ns2:NIP | L1: ns2:PelnaNazwa | M1: ns2:KodKraju | N1: ns2:Wojewodztwo | O1: ns2:Powiat | P1: ns2:Gmina | Q1: ns2:NrDomu | R1: ns2:Miejscowosc | S1: ns2:KodPocztowy | T1: ns2:Poczta | U1: typ | V1: ns1:KodKonta | W1: ns1:OpisKonta | X1: ns1:TypKonta | Y1: ns1:KodZespolu | Z1: ns1:OpisZespolu | AA1: ns1:KodKategorii | AB1: ns1:OpisKategorii | AC1: ns1:OpisPodkategorii | AD1: ns1:BilansOtwarciaWinien | AE1: ns1:BilansOtwarciaMa | AF1: ns1:ObrotyWinien | AG1: ns1:ObrotyMa | AH1: ns1:ObrotyWinienNarast | AI1: ns1:ObrotyMaNarast | AJ1: ns1:SaldoWinien | AK1: ns1:SaldoMa | AL1: ns1:KodPodkategorii | AM1: typ2 | AN1: ns1:LpZapisuDziennika | AO1: ns1:NrZapisuDziennika | AP1: ns1:OpisDziennika | AQ1: ns1:NrDowoduKsiegowego | AR1: ns1:RodzajDowodu | AS1: ns1:DataOperacji | AT1: ns1:DataDowodu | AU1: ns1:DataKsiegowania | AV1: ns1:KodOperatora | AW1: ns1:OpisOperacji | AX1: ns1:DziennikKwotaOperacji | AY1: ns1:LiczbaWierszyDziennika | AZ1: ns1:SumaKwotOperacji | BA1: typ3 | BB1: ns1:LpZapisu | BC1: ns1:NrZapisu | BD1: ns1:KodKontaWinien | BE1: ns1:KwotaWinien | BF1: ns1:KwotaWinienWaluta | BG1: ns1:KodWalutyWinien | BH1: ns1:OpisZapisuWinien | BI1: ns1:KodKontaMa | BJ1: ns1:KwotaMa | BK1: ns1:KwotaMaWaluta | BL1: ns1:KodWalutyMa | BM1: ns1:OpisZapisuMa | BN1: ns1:LiczbaWierszyKontoZapisj | BO1: ns1:SumaWinien | BP1: ns1:SumaMa
A2: JPK_KR | B2: JPK_KR (1) | C2: 1-0 | D2: 1 | E2: 1 | F2: 2018-11-16T20:02:34 | G2: 2018-01-01 | H2: 2018-01-31 | I2: PLN | J2: 1234 | K2: 1231234455 | L2: Firma TESTOWA | M2: PL | N2: BRAK | O2: BRAK | P2: BRAK | Q2: BRAK | R2: BRAK | S2: BRAK | T2: BRAK | U2: G | V2: 070-5 | W2: Umorzenie środków trwałych/Inne środki trwałe | X2: bilansowe | Y2: 0 | Z2: Aktywa trwałe | AA2: 70 | AB2: Umorzenie środków trwałych | AC2: Inne środki trwałe | AD2: 0 | AE2: 0 | AF2: 0 | AG2: 1443 | AH2: 0 | AI2: 1443 | AJ2: 0 | AK2: 1443 | AL2: 5 | AY2: 10 | AZ2: 52453.93 | BN2: 24 | BO2: 52453.93 | BP2: 52453.93
A3: JPK_KR | B3: JPK_KR (1) | C3: 1-0 | D3: 1 | E3: 1 | F3: 2018-11-16T20:02:34 | G3: 2018-01-01 | H3: 2018-01-31 | I3: PLN | J3: 1234 | K3: 1231234455 | L3: Firma TESTOWA | M3: PL | N3: BRAK | O3: BRAK | P3: BRAK | Q3: BRAK | R3: BRAK | S3: BRAK | T3: BRAK | U3: G | V3: 201-3-1-5 | W3: Rozrachunki krajowe z odbiorcami z tytułu dostaw i usług/Rozrachunki należności od pozostałych jednostek/Należności od pozostałych jednostek płatne do 12 miesięcy/ANT Consulting Magdalena Chomuszko | X3: bilansowe | Y3: 2 | Z3: Rozrachunki i roszczenia | AA3: 201 | AB3: Rozrachunki krajowe z odbiorcami z tytułu dostaw i usług | AC3: ANT Consulting Magdalena Chomuszko | AD3: 0 | AE3: 0 | AF3: 34304.7 | AG3: 0 | AH3: 34304.7 | AI3: 0 | AJ3: 34304.7 | AK3: 0 | AL3: 3-1-5 | AY3: 10 | AZ3: 52453.93 | BN3: 24 | BO3: 52453.93 | BP3: 52453.93
A4: JPK_KR | B4: JPK_KR (1) | C4: 1-0 | D4: 1 | E4: 1 | F4: 2018-11-16T20:02:34 | G4: 2018-01-01 | H4: 2018-01-31 | I4: PLN | J4: 1234 | K4: 1231234455 | L4: Firma TESTOWA | M4: PL | N4: BRAK | O4: BRAK | P4: BRAK | Q4: BRAK | R4: BRAK | S4: BRAK | T4: BRAK | U4: G | V4: 202-3-1-2 | W4: Rozrachunki krajowe z dostawcami z tytułu dostaw i usług/Rozrachunki zobowiązań wobec pozostałych jednostek/Zobowiązania wobec pozostałych jednostek płatne do 12 miesięcy/ORANGE POLSKA SPÓŁKA AKCYJNA | X4: bilansowe | Y4: 2 | Z4: Rozrachunki i roszczenia | AA4: 202 | AB4: Rozrachunki krajowe z dostawcami z tytułu dostaw i usług | AC4: ORANGE POLSKA SPÓŁKA AKCYJNA | AD4: 0 | AE4: 0 | AF4: 0 | AG4: 616.23 | AH4: 0 | AI4: 616.23 | AJ4: 0 | AK4: 616.23 | AL4: 3-1-2 | AY4: 10 | AZ4: 52453.93 | BN4: 24 | BO4: 52453.93 | BP4: 52453.93
A5: JPK_KR | B5: JPK_KR (1) | C5: 1-0 | D5: 1 | E5: 1 | F5: 2018-11-16T20:02:34 | G5: 2018-01-01 | H5: 2018-01-31 | I5: PLN | J5: 1234 | K5: 1231234455 | L5: Firma TESTOWA | M5: PL | N5: BRAK | O5: BRAK | P5: BRAK | Q5: BRAK | R5: BRAK | S5: BRAK | T5: BRAK | U5: G | V5: 202-3-1-4 | W5: Rozrachunki krajowe z dostawcami z tytułu dostaw i usług/Rozrachunki zobowiązań wobec pozostałych jednostek/Zobowiązania wobec pozostałych jednostek płatne do 12 miesięcy/TOYOTA LEASING POLSKA SPÓŁKA Z OGRANICZONĄ ODPOWIEDZIALNOŚCIĄ | X5: bilansowe | Y5: 2 | Z5: Rozrachunki i roszczenia | AA5: 202 | AB5: Rozrachunki krajowe z dostawcami z tytułu dostaw i usług | AC5: TOYOTA LEASING POLSKA SPÓŁKA Z OGRANICZONĄ ODPOWIEDZIALNOŚCIĄ | AD5: 0 | AE5: 0 | AF5: 0 | AG5: 1430 | AH5: 0 | AI5: 1430 | AJ5: 0 | AK5: 1430 | AL5: 3-1-4 | AY5: 10 | AZ5: 52453.93 | BN5: 24 | BO5: 52453.93 | BP5: 52453.93
A6: JPK_KR | B6: JPK_KR (1) | C6: 1-0 | D6: 1 | E6: 1 | F6: 2018-11-16T20:02:34 | G6: 2018-01-01 | H6: 2018-01-31 | I6: PLN | J6: 1234 | K6: 1231234455 | L6: Firma TESTOWA | M6: PL | N6: BRAK | O6: BRAK | P6: BRAK | Q6: BRAK | R6: BRAK | S6: BRAK | T6: BRAK | U6: G | V6: 202-3-1-6 | W6: Rozrachunki krajowe z dostawcami z tytułu dostaw i usług/Rozrachunki zobowiązań wobec pozostałych jednostek/Zobowiązania wobec pozostałych jednostek płatne do 12 miesięcy/WARSAW - APARTMENTS SADYBA WILANÓW SPÓŁKA Z OGRANICZONĄ ODPOWIEDZIALNOŚCIĄ | X6: bilansowe | Y6: 2 | Z6: Rozrachunki i roszczenia | AA6: 202 | AB6: Rozrachunki krajowe z dostawcami z tytułu dostaw i usług | AC6: WARSAW - APARTMENTS SADYBA WILANÓW SPÓŁKA Z OGRANICZONĄ ODPOWIEDZIALNOŚCIĄ | AD6: 0 | AE6: 0 | AF6: 0 | AG6: 1476 | AH6: 0 | AI6: 1476 | AJ6: 0 | AK6: 1476 | AL6: 3-1-6 | AY6: 10 | AZ6: 52453.93 | BN6: 24 | BO6: 52453.93 | BP6: 52453.93
A7: JPK_KR | B7: JPK_KR (1) | C7: 1-0 | D7: 1 | E7: 1 | F7: 2018-11-16T20:02:34 | G7: 2018-01-01 | H7: 2018-01-31 | I7: PLN | J7: 1234 | K7: 1231234455 | L7: Firma TESTOWA | M7: PL | N7: BRAK | O7: BRAK | P7: BRAK | Q7: BRAK | R7: BRAK | S7: BRAK | T7: BRAK | U7: G | V7: 220-3 | W7: Rozrachunki publicznoprawne/ZUS | X7: bilansowe | Y7: 2 | Z7: Rozrachunki i roszczenia | AA7: 220 | AB7: Rozrachunki publicznoprawne | AC7: ZUS | AD7: 0 | AE7: 0 | AF7: 0 | AG7: 1286 | AH7: 0 | AI7: 1286 | AJ7: 0 | AK7: 1286 | AL7: 3 | AY7: 10 | AZ7: 52453.93 | BN7: 24 | BO7: 52453.93 | BP7: 52453.93
A8: JPK_KR | B8: JPK_KR (1) | C8: 1-0 | D8: 1 | E8: 1 | F8: 2018-11-16T20:02:34 | G8: 2018-01-01 | H8: 2018-01-31 | I8: PLN | J8: 1234 | K8: 1231234455 | L8: Firma TESTOWA | M8: PL | N8: BRAK | O8: BRAK | P8: BRAK | Q8: BRAK | R8: BRAK | S8: BRAK | T8: BRAK | U8: G | V8: 221-1 | W8: Rozrachunki z tytułu VAT/Rozliczenie należnego VAT | X8: bilansowe | Y8: 2 | Z8: Rozrachunki i roszczenia | AA8: 221 | AB8: Rozrachunki z tytułu VAT | AC8: Rozliczenie należnego VAT | AD8: 0 | AE8: 0 | AF8: 0 | AG8: 6414.7 | AH8: 0 | AI8: 6414.7 | AJ8: 0 | AK8: 6414.7 | AL8: 1 | AY8: 10 | AZ8: 52453.93 | BN8: 24 | BO8: 52453.93 | BP8: 52453.93
A9: JPK_KR | B9: JPK_KR (1) | C9: 1-0 | D9: 1 | E9: 1 | F9: 2018-11-16T20:02:34 | G9: 2018-01-01 | H9: 2018-01-31 | I9: PLN | J9: 1234 | K9: 1231234455 | L9: Firma TESTOWA | M9: PL | N9: BRAK | O9: BRAK | P9: BRAK | Q9: BRAK | R9: BRAK | S9: BRAK | T9: BRAK | U9: G | V9: 221-2 | W9: Rozrachunki z tytułu VAT/Rozliczenie naliczonego VAT | X9: bilansowe | Y9: 2 | Z9: Rozrachunki i roszczenia | AA9: 221 | AB9: Rozrachunki z tytułu VAT | AC9: Rozliczenie naliczonego VAT | AD9: 0 | AE9: 0 | AF9: 658.63 | AG9: 0 | AH9: 658.63 | AI9: 0 | AJ9: 658.63 | AK9: 0 | AL9: 2 | AY9: 10 | AZ9: 52453.93 | BN9: 24 | BO9: 52453.93 | BP9: 52453.93
A10: JPK_KR | B10: JPK_KR (1) | C10: 1-0 | D10: 1 | E10: 1 | F10: 2018-11-16T20:02:34 | G10: 2018-01-01 | H10: 2018-01-31 | I10: PLN | J10: 1234 | K10: 1231234455 | L10: Firma TESTOWA | M10: PL | N10: BRAK | O10: BRAK | P10: BRAK | Q10: BRAK | R10: BRAK | S10: BRAK | T10: BRAK | U10: G | V10: 230 | W10: Rozrachunki z tytułu wypłat wynagrodzeń | X10: bilansowe | Y10: 2 | Z10: Rozrachunki i roszczenia | AA10: 230 | AB10: Rozrachunki z tytułu wypłat wynagrodzeń | AC10: Rozrachunki z tytułu wypłat wynagrodzeń | AD10: 0 | AE10: 0 | AF10: 0 | AG10: 11898 | AH10: 0 | AI10: 11898 | AJ10: 0 | AK10: 11898 | AY10: 10 | AZ10: 52453.93 | BN10: 24 | BO10: 52453.93 | BP10: 52453.93
A11: JPK_KR | B11: JPK_KR (1) | C11: 1-0 | D11: 1 | E11: 1 | F11: 2018-11-16T20:02:34 | G11: 2018-01-01 | H11: 2018-01-31 | I11: PLN | J11: 1234 | K11: 1231234455 | L11: Firma TESTOWA | M11: PL | N11: BRAK | O11: BRAK | P11: BRAK | Q11: BRAK | R11: BRAK | S11: BRAK | T11: BRAK | U11: G | V11: 401-1-1 | W11: Amortyzacja/Amortyzacja środków trwałych/Amortyzacja śr. tw. stanowiąca koszty uzyskania przychodu | X11: wynikowe | Y11: 4 | Z11: Koszty według rodzajów i ich rozliczenie | AA11: 401 | AB11: Amortyzacja | AC11: Amortyzacja śr. tw. stanowiąca koszty uzyskania przychodu | AD11: 0 | AE11: 0 | AF11: 1234 | AG11: 0 | AH11: 1234 | AI11: 0 | AJ11: 1234 | AK11: 0 | AL11: 1-1 | AY11: 10 | AZ11: 52453.93 | BN11: 24 | BO11: 52453.93 | BP11: 52453.93
A12: JPK_KR | B12: JPK_KR (1) | C12: 1-0 | D12: 1 | E12: 1 | F12: 2018-11-16T20:02:34 | G12: 2018-01-01 | H12: 2018-01-31 | I12: PLN | J12: 1234 | K12: 1231234455 | L12: Firma TESTOWA | M12: PL | N12: BRAK | O12: BRAK | P12: BRAK | Q12: BRAK | R12: BRAK | S12: BRAK | T12: BRAK | U12: G | V12: 401-1-2 | W12: Amortyzacja/Amortyzacja środków trwałych/Amortyzacja śr. tr. nie stanowiąca kosztów uzyskania prz. | X12: wynikowe | Y12: 4 | Z12: Koszty według rodzajów i ich rozliczenie | AA12: 401 | AB12: Amortyzacja | AC12: Amortyzacja śr. tr. nie stanowiąca kosztów uzyskania prz. | AD12: 0 | AE12: 0 | AF12: 209 | AG12: 0 | AH12: 209 | AI12: 0 | AJ12: 209 | AK12: 0 | AL12: 1-2 | AY12: 10 | AZ12: 52453.93 | BN12: 24 | BO12: 52453.93 | BP12: 52453.93
A13: JPK_KR | B13: JPK_KR (1) | C13: 1-0 | D13: 1 | E13: 1 | F13: 2018-11-16T20:02:34 | G13: 2018-01-01 | H13: 2018-01-31 | I13: PLN | J13: 1234 | K13: 1231234455 | L13: Firma TESTOWA | M13: PL | N13: BRAK | O13: BRAK | P13: BRAK | Q13: BRAK | R13: BRAK | S13: BRAK | T13: BRAK | U13: G | V13: 403-1-1 | W13: Usługi obce/KUP/Usługi telekomunikacyjne | X13: wynikowe | Y13: 4 | Z13: Koszty według rodzajów i ich rozliczenie | AA13: 403 | AB13: Usługi obce | AC13: Usługi telekomunikacyjne | AD13: 0 | AE13: 0 | AF13: 501 | AG13: 0 | AH13: 501 | AI13: 0 | AJ13: 501 | AK13: 0 | AL13: 1-1 | AY13: 10 | AZ13: 52453.93 | BN13: 24 | BO13: 52453.93 | BP13: 52453.93
A14: JPK_KR | B14: JPK_KR (1) | C14: 1-0 | D14: 1 | E14: 1 | F14: 2018-11-16T20:02:34 | G14: 2018-01-01 | H14: 2018-01-31 | I14: PLN | J14: 1234 | K14: 1231234455 | L14: Firma TESTOWA | M14: PL | N14: BRAK | O14: BRAK | P14: BRAK | Q14: BRAK | R14: BRAK | S14: BRAK | T14: BRAK | U14: G | V14: 403-1-7 | W14: Usługi obce/KUP/leasing | X14: wynikowe | Y14: 4 | Z14: Koszty według rodzajów i ich rozliczenie | AA14: 403 | AB14: Usługi obce | AC14: leasing | AD14: 0 | AE14: 0 | AF14: 1162.6 | AG14: 0 | AH14: 1162.6 | AI14: 0 | AJ14: 1162.6 | AK14: 0 | AL14: 1-7 | AY14: 10 | AZ14: 52453.93 | BN14: 24 | BO14: 52453.93 | BP14: 52453.93
A15: JPK_KR | B15: JPK_KR (1) | C15: 1-0 | D15: 1 | E15: 1 | F15: 2018-11-16T20:02:34 | G15: 2018-01-01 | H15: 2018-01-31 | I15: PLN | J15: 1234 | K15: 1231234455 | L15: Firma TESTOWA | M15: PL | N15: BRAK | O15: BRAK | P15: BRAK | Q15: BRAK | R15: BRAK | S15: BRAK | T15: BRAK | U15: G | V15: 403-1-8 | W15: Usługi obce/KUP/czynsz | X15: wynikowe | Y15: 4 | Z15: Koszty według rodzajów i ich rozliczenie | AA15: 403 | AB15: Usługi obce | AC15: czynsz | AD15: 0 | AE15: 0 | AF15: 1200 | AG15: 0 | AH15: 1200 | AI15: 0 | AJ15: 1200 | AK15: 0 | AL15: 1-8 | AY15: 10 | AZ15: 52453.93 | BN15: 24 | BO15: 52453.93 | BP15: 52453.93
A16: JPK_KR | B16: JPK_KR (1) | C16: 1-0 | D16: 1 | E16: 1 | F16: 2018-11-16T20:02:34 | G16: 2018-01-01 | H16: 2018-01-31 | I16: PLN | J16: 1234 | K16: 1231234455 | L16: Firma TESTOWA | M16: PL | N16: BRAK | O16: BRAK | P16: BRAK | Q16: BRAK | R16: BRAK | S16: BRAK | T16: BRAK | U16: G | V16: 405-1 | W16: Wynagrodzenia/KUP | X16: wynikowe | Y16: 4 | Z16: Koszty według rodzajów i ich rozliczenie | AA16: 405 | AB16: Wynagrodzenia | AC16: KUP | AD16: 0 | AE16: 0 | AF16: 10900 | AG16: 0 | AH16: 10900 | AI16: 0 | AJ16: 10900 | AK16: 0 | AL16: 1 | AY16: 10 | AZ16: 52453.93 | BN16: 24 | BO16: 52453.93 | BP16: 52453.93
A17: JPK_KR | B17: JPK_KR (1) | C17: 1-0 | D17: 1 | E17: 1 | F17: 2018-11-16T20:02:34 | G17: 2018-01-01 | H17: 2018-01-31 | I17: PLN | J17: 1234 | K17: 1231234455 | L17: Firma TESTOWA | M17: PL | N17: BRAK | O17: BRAK | P17: BRAK | Q17: BRAK | R17: BRAK | S17: BRAK | T17: BRAK | U17: G | V17: 405-2 | W17: Wynagrodzenia/NKUP | X17: wynikowe | Y17: 4 | Z17: Koszty według rodzajów i ich rozliczenie | AA17: 405 | AB17: Wynagrodzenia | AC17: NKUP | AD17: 0 | AE17: 0 | AF17: 998 | AG17: 0 | AH17: 998 | AI17: 0 | AJ17: 998 | AK17: 0 | AL17: 2 | AY17: 10 | AZ17: 52453.93 | BN17: 24 | BO17: 52453.93 | BP17: 52453.93
A18: JPK_KR | B18: JPK_KR (1) | C18: 1-0 | D18: 1 | E18: 1 | F18: 2018-11-16T20:02:34 | G18: 2018-01-01 | H18: 2018-01-31 | I18: PLN | J18: 1234 | K18: 1231234455 | L18: Firma TESTOWA | M18: PL | N18: BRAK | O18: BRAK | P18: BRAK | Q18: BRAK | R18: BRAK | S18: BRAK | T18: BRAK | U18: G | V18: 406-1-1 | W18: Ubezpieczenia społeczne i inne świadczenia /KUP/składki na ub. emerytalne | X18: wynikowe | Y18: 4 | Z18: Koszty według rodzajów i ich rozliczenie | AA18: 406 | AB18: Ubezpieczenia społeczne i inne świadczenia | AC18: składki na ub. emerytalne | AD18: 0 | AE18: 0 | AF18: 1170 | AG18: 0 | AH18: 1170 | AI18: 0 | AJ18: 1170 | AK18: 0 | AL18: 1-1 | AY18: 10 | AZ18: 52453.93 | BN18: 24 | BO18: 52453.93 | BP18: 52453.93
A19: JPK_KR | B19: JPK_KR (1) | C19: 1-0 | D19: 1 | E19: 1 | F19: 2018-11-16T20:02:34 | G19: 2018-01-01 | H19: 2018-01-31 | I19: PLN | J19: 1234 | K19: 1231234455 | L19: Firma TESTOWA | M19: PL | N19: BRAK | O19: BRAK | P19: BRAK | Q19: BRAK | R19: BRAK | S19: BRAK | T19: BRAK | U19: G | V19: 406-2-1 | W19: Ubezpieczenia społeczne i inne świadczenia /NKUP/składki na ub. emerytalne | X19: wynikowe | Y19: 4 | Z19: Koszty według rodzajów i ich rozliczenie | AA19: 406 | AB19: Ubezpieczenia społeczne i inne świadczenia | AC19: składki na ub. emerytalne | AD19: 0 | AE19: 0 | AF19: 116 | AG19: 0 | AH19: 116 | AI19: 0 | AJ19: 116 | AK19: 0 | AL19: 2-1 | AY19: 10 | AZ19: 52453.93 | BN19: 24 | BO19: 52453.93 | BP19: 52453.93
A20: JPK_KR | B20: JPK_KR (1) | C20: 1-0 | D20: 1 | E20: 1 | F20: 2018-11-16T20:02:34 | G20: 2018-01-01 | H20: 2018-01-31 | I20: PLN | J20: 1234 | K20: 1231234455 | L20: Firma TESTOWA | M20: PL | N20: BRAK | O20: BRAK | P20: BRAK | Q20: BRAK | R20: BRAK | S20: BRAK | T20: BRAK | U20: G | V20: 702-2 | W20: Sprzedaż usług działalności podstawowej/Sprzedaż do pozostałych jednostek | X20: wynikowe | Y20: 7 | Z20: Przychody i koszty związane z ich osiąganiem | AA20: 702 | AB20: Sprzedaż usług działalności podstawowej | AC20: Sprzedaż do pozostałych jednostek | AD20: 0 | AE20: 0 | AF20: 0 | AG20: 27890 | AH20: 0 | AI20: 27890 | AJ20: 0 | AK20: 27890 | AL20: 2 | AY20: 10 | AZ20: 52453.93 | BN20: 24 | BO20: 52453.93 | BP20: 52453.93
A21: JPK_KR | B21: JPK_KR (1) | C21: 1-0 | D21: 1 | E21: 1 | F21: 2018-11-16T20:02:34 | G21: 2018-01-01 | H21: 2018-01-31 | I21: PLN | J21: 1234 | K21: 1231234455 | L21: Firma TESTOWA | M21: PL | N21: BRAK | O21: BRAK | P21: BRAK | Q21: BRAK | R21: BRAK | S21: BRAK | T21: BRAK | AM21: G | AN21: 1 | AO21: BUFOR/DP 1/01-18/Lp.1 | AP21: amortyzacja październik | AQ21: 1 | AR21: Dokument prosty | AS21: 2018-01-31 | AT21: 2018-01-31 | AU21: 2018-01-31 | AV21: Admin | AW21: amortyzacja październik | AX21: 1234 | AY21: 10 | AZ21: 52453.93 | BN21: 24 | BO21: 52453.93 | BP21: 52453.93
A22: JPK_KR | B22: JPK_KR (1) | C22: 1-0 | D22: 1 | E22: 1 | F22: 2018-11-16T20:02:34 | G22: 2018-01-01 | H22: 2018-01-31 | I22: PLN | J22: 1234 | K22: 1231234455 | L22: Firma TESTOWA | M22: PL | N22: BRAK | O22: BRAK | P22: BRAK | Q22: BRAK | R22: BRAK | S22: BRAK | T22: BRAK | AM22: G | AN22: 2 | AO22: BUFOR/DP 1/01-18/Lp.2 | AP22: amortyzacja październik | AQ22: 1 | AR22: Dokument prosty | AS22: 2018-01-31 | AT22: 2018-01-31 | AU22: 2018-01-31 | AV22: Admin | AW22: amortyzacja październik | AX22: 209 | AY22: 10 | AZ22: 52453.93 | BN22: 24 | BO22: 52453.93 | BP22: 52453.93
A23: JPK_KR | B23: JPK_KR (1) | C23: 1-0 | D23: 1 | E23: 1 | F23: 2018-11-16T20:02:34 | G23: 2018-01-01 | H23: 2018-01-31 | I23: PLN | J23: 1234 | K23: 1231234455 | L23: Firma TESTOWA | M23: PL | N23: BRAK | O23: BRAK | P23: BRAK | Q23: BRAK | R23: BRAK | S23: BRAK | T23: BRAK | AM23: G | AN23: 3 | AO23: BUFOR/DP 2/01-18/Lp.1 | AP23: wynagrodzenia | AQ23: 2 | AR23: Dokument prosty | AS23: 2018-01-31 | AT23: 2018-01-31 | AU23: 2018-01-31 | AV23: Admin | AW23: wynagrodzenia | AX23: 10900 | AY23: 10 | AZ23: 52453.93 | BN23: 24 | BO23: 52453.93 | BP23: 52453.93
A24: JPK_KR | B24: JPK_KR (1) | C24: 1-0 | D24: 1 | E24: 1 | F24: 2018-11-16T20:02:34 | G24: 2018-01-01 | H24: 2018-01-31 | I24: PLN | J24: 1234 | K24: 1231234455 | L24: Firma TESTOWA | M24: PL | N24: BRAK | O24: BRAK | P24: BRAK | Q24: BRAK | R24: BRAK | S24: BRAK | T24: BRAK | AM24: G | AN24: 4 | AO24: BUFOR/DP 2/01-18/Lp.2 | AP24: wynagrodzenia | AQ24: 2 | AR24: Dokument prosty | AS24: 2018-01-31 | AT24: 2018-01-31 | AU24: 2018-01-31 | AV24: Admin | AW24: wynagrodzenia | AX24: 998 | AY24: 10 | AZ24: 52453.93 | BN24: 24 | BO24: 52453.93 | BP24: 52453.93
A25: JPK_KR | B25: JPK_KR (1) | C25: 1-0 | D25: 1 | E25: 1 | F25: 2018-11-16T20:02:34 | G25: 2018-01-01 | H25: 2018-01-31 | I25: PLN | J25: 1234 | K25: 1231234455 | L25: Firma TESTOWA | M25: PL | N25: BRAK | O25: BRAK | P25: BRAK | Q25: BRAK | R25: BRAK | S25: BRAK | T25: BRAK | AM25: G | AN25: 5 | AO25: BUFOR/DP 2/01-18/Lp.3 | AP25: wynagrodzenia | AQ25: 2 | AR25: Dokument prosty | AS25: 2018-01-31 | AT25: 2018-01-31 | AU25: 2018-01-31 | AV25: Admin | AW25: wynagrodzenia | AX25: 1170 | AY25: 10 | AZ25: 52453.93 | BN25: 24 | BO25: 52453.93 | BP25: 52453.93
A26: JPK_KR | B26: JPK_KR (1) | C26: 1-0 | D26: 1 | E26: 1 | F26: 2018-11-16T20:02:34 | G26: 2018-01-01 | H26: 2018-01-31 | I26: PLN | J26: 1234 | K26: 1231234455 | L26: Firma TESTOWA | M26: PL | N26: BRAK | O26: BRAK | P26: BRAK | Q26: BRAK | R26: BRAK | S26: BRAK | T26: BRAK | AM26: G | AN26: 6 | AO26: BUFOR/DP 2/01-18/Lp.4 | AP26: wynagrodzenia | AQ26: 2 | AR26: Dokument prosty | AS26: 2018-01-31 | AT26: 2018-01-31 | AU26: 2018-01-31 | AV26: Admin | AW26: wynagrodzenia | AX26: 116 | AY26: 10 | AZ26: 52453.93 | BN26: 24 | BO26: 52453.93 | BP26: 52453.93
A27: JPK_KR | B27: JPK_KR (1) | C27: 1-0 | D27: 1 | E27: 1 | F27: 2018-11-16T20:02:34 | G27: 2018-01-01 | H27: 2018-01-31 | I27: PLN | J27: 1234 | K27: 1231234455 | L27: Firma TESTOWA | M27: PL | N27: BRAK | O27: BRAK | P27: BRAK | Q27: BRAK | R27: BRAK | S27: BRAK | T27: BRAK | AM27: G | AN27: 7 | AO27: BUFOR/FVZ 1/01-18/Lp.1 | AP27: czynsz | AQ27: 10 | AR27: Faktura VAT zakup | AS27: 2018-01-31 | AT27: 2018-01-31 | AU27: 2018-01-31 | AV27: Admin | AW27: czynsz | AX27: 1476 | AY27: 10 | AZ27: 52453.93 | BN27: 24 | BO27: 52453.93 | BP27: 52453.93
A28: JPK_KR | B28: JPK_KR (1) | C28: 1-0 | D28: 1 | E28: 1 | F28: 2018-11-16T20:02:34 | G28: 2018-01-01 | H28: 2018-01-31 | I28: PLN | J28: 1234 | K28: 1231234455 | L28: Firma TESTOWA | M28: PL | N28: BRAK | O28: BRAK | P28: BRAK | Q28: BRAK | R28: BRAK | S28: BRAK | T28: BRAK | AM28: G | AN28: 8 | AO28: BUFOR/FVZ 2/01-18/Lp.1 | AP28: faktura za telefony | AQ28: 121/01/2017 | AR28: Faktura VAT zakup | AS28: 2018-01-31 | AT28: 2018-01-31 | AU28: 2018-01-31 | AV28: Admin | AW28: faktura za telefony | AX28: 616.23 | AY28: 10 | AZ28: 52453.93 | BN28: 24 | BO28: 52453.93 | BP28: 52453.93
A29: JPK_KR | B29: JPK_KR (1) | C29: 1-0 | D29: 1 | E29: 1 | F29: 2018-11-16T20:02:34 | G29: 2018-01-01 | H29: 2018-01-31 | I29: PLN | J29: 1234 | K29: 1231234455 | L29: Firma TESTOWA | M29: PL | N29: BRAK | O29: BRAK | P29: BRAK | Q29: BRAK | R29: BRAK | S29: BRAK | T29: BRAK | AM29: G | AN29: 9 | AO29: BUFOR/FVZ 3/01-18/Lp.1 | AP29: rata leasingu | AQ29: 1/01 | AR29: Faktura VAT zakup | AS29: 2018-01-31 | AT29: 2018-01-31 | AU29: 2018-01-31 | AV29: Admin | AW29: rata leasingu | AX29: 1430 | AY29: 10 | AZ29: 52453.93 | BN29: 24 | BO29: 52453.93 | BP29: 52453.93
A30: JPK_KR | B30: JPK_KR (1) | C30: 1-0 | D30: 1 | E30: 1 | F30: 2018-11-16T20:02:34 | G30: 2018-01-01 | H30: 2018-01-31 | I30: PLN | J30: 1234 | K30: 1231234455 | L30: Firma TESTOWA | M30: PL | N30: BRAK | O30: BRAK | P30: BRAK | Q30: BRAK | R30: BRAK | S30: BRAK | T30: BRAK | AM30: G | AN30: 10 | AO30: BUFOR/FVS 1/01-18/Lp.1 | AP30: usługa | AQ30: 1/01 | AR30: Faktura VAT sprzedaż | AS30: 2018-01-31 | AT30: 2018-01-31 | AU30: 2018-01-31 | AV30: Admin | AW30: usługa | AX30: 34304.7 | AY30: 10 | AZ30: 52453.93 | BN30: 24 | BO30: 52453.93 | BP30: 52453.93
A31: JPK_KR | B31: JPK_KR (1) | C31: 1-0 | D31: 1 | E31: 1 | F31: 2018-11-16T20:02:34 | G31: 2018-01-01 | H31: 2018-01-31 | I31: PLN | J31: 1234 | K31: 1231234455 | L31: Firma TESTOWA | M31: PL | N31: BRAK | O31: BRAK | P31: BRAK | Q31: BRAK | R31: BRAK | S31: BRAK | T31: BRAK | AY31: 10 | AZ31: 52453.93 | BA31: G | BB31: 1 | BC31: BUFOR/DP 1/01-18/Lp.1 | BD31: 401-1-1 | BE31: 1234 | BH31: amortyzacja październik | BI31: - | BJ31: 0 | BN31: 24 | BO31: 52453.93 | BP31: 52453.93
A32: JPK_KR | B32: JPK_KR (1) | C32: 1-0 | D32: 1 | E32: 1 | F32: 2018-11-16T20:02:34 | G32: 2018-01-01 | H32: 2018-01-31 | I32: PLN | J32: 1234 | K32: 1231234455 | L32: Firma TESTOWA | M32: PL | N32: BRAK | O32: BRAK | P32: BRAK | Q32: BRAK | R32: BRAK | S32: BRAK | T32: BRAK | AY32: 10 | AZ32: 52453.93 | BA32: G | BB32: 2 | BC32: BUFOR/DP 1/01-18/Lp.1 | BD32: - | BE32: 0 | BI32: 070-5 | BJ32: 1234 | BM32: amortyzacja październik | BN32: 24 | BO32: 52453.93 | BP32: 52453.93
A33: JPK_KR | B33: JPK_KR (1) | C33: 1-0 | D33: 1 | E33: 1 | F33: 2018-11-16T20:02:34 | G33: 2018-01-01 | H33: 2018-01-31 | I33: PLN | J33: 1234 | K33: 1231234455 | L33: Firma TESTOWA | M33: PL | N33: BRAK | O33: BRAK | P33: BRAK | Q33: BRAK | R33: BRAK | S33: BRAK | T33: BRAK | AY33: 10 | AZ33: 52453.93 | BA33: G | BB33: 3 | BC33: BUFOR/DP 1/01-18/Lp.2 | BD33: 401-1-2 | BE33: 209 | BH33: amortyzacja październik | BI33: - | BJ33: 0 | BN33: 24 | BO33: 52453.93 | BP33: 52453.93
A34: JPK_KR | B34: JPK_KR (1) | C34: 1-0 | D34: 1 | E34: 1 | F34: 2018-11-16T20:02:34 | G34: 2018-01-01 | H34: 2018-01-31 | I34: PLN | J34: 1234 | K34: 1231234455 | L34: Firma TESTOWA | M34: PL | N34: BRAK | O34: BRAK | P34: BRAK | Q34: BRAK | R34: BRAK | S34: BRAK | T34: BRAK | AY34: 10 | AZ34: 52453.93 | BA34: G | BB34: 4 | BC34: BUFOR/DP 1/01-18/Lp.2 | BD34: - | BE34: 0 | BI34: 070-5 | BJ34: 209 | BM34: amortyzacja październik | BN34: 24 | BO34: 52453.93 | BP34: 52453.93
A35: JPK_KR | B35: JPK_KR (1) | C35: 1-0 | D35: 1 | E35: 1 | F35: 2018-11-16T20:02:34 | G35: 2018-01-01 | H35: 2018-01-31 | I35: PLN | J35: 1234 | K35: 1231234455 | L35: Firma TESTOWA | M35: PL | N35: BRAK | O35: BRAK | P35: BRAK | Q35: BRAK | R35: BRAK | S35: BRAK | T35: BRAK | AY35: 10 | AZ35: 52453.93 | BA35: G | BB35: 5 | BC35: BUFOR/DP 2/01-18/Lp.1 | BD35: 405-1 | BE35: 10900 | BH35: wynagrodzenia | BI35: - | BJ35: 0 | BN35: 24 | BO35: 52453.93 | BP35: 52453.93
A36: JPK_KR | B36: JPK_KR (1) | C36: 1-0 | D36: 1 | E36: 1 | F36: 2018-11-16T20:02:34 | G36: 2018-01-01 | H36: 2018-01-31 | I36: PLN | J36: 1234 | K36: 1231234455 | L36: Firma TESTOWA | M36: PL | N36: BRAK | O36: BRAK | P36: BRAK | Q36: BRAK | R36: BRAK | S36: BRAK | T36: BRAK | AY36: 10 | AZ36: 52453.93 | BA36: G | BB36: 6 | BC36: BUFOR/DP 2/01-18/Lp.1 | BD36: - | BE36: 0 | BI36: 230 | BJ36: 10900 | BM36: wynagrodzenia | BN36: 24 | BO36: 52453.93 | BP36: 52453.93
A37: JPK_KR | B37: JPK_KR (1) | C37: 1-0 | D37: 1 | E37: 1 | F37: 2018-11-16T20:02:34 | G37: 2018-01-01 | H37: 2018-01-31 | I37: PLN | J37: 1234 | K37: 1231234455 | L37: Firma TESTOWA | M37: PL | N37: BRAK | O37: BRAK | P37: BRAK | Q37: BRAK | R37: BRAK | S37: BRAK | T37: BRAK | AY37: 10 | AZ37: 52453.93 | BA37: G | BB37: 7 | BC37: BUFOR/DP 2/01-18/Lp.2 | BD37: 405-2 | BE37: 998 | BH37: wynagrodzenia | BI37: - | BJ37: 0 | BN37: 24 | BO37: 52453.93 | BP37: 52453.93
A38: JPK_KR | B38: JPK_KR (1) | C38: 1-0 | D38: 1 | E38: 1 | F38: 2018-11-16T20:02:34 | G38: 2018-01-01 | H38: 2018-01-31 | I38: PLN | J38: 1234 | K38: 1231234455 | L38: Firma TESTOWA | M38: PL | N38: BRAK | O38: BRAK | P38: BRAK | Q38: BRAK | R38: BRAK | S38: BRAK | T38: BRAK | AY38: 10 | AZ38: 52453.93 | BA38: G | BB38: 8 | BC38: BUFOR/DP 2/01-18/Lp.2 | BD38: - | BE38: 0 | BI38: 230 | BJ38: 998 | BM38: wynagrodzenia | BN38: 24 | BO38: 52453.93 | BP38: 52453.93
A39: JPK_KR | B39: JPK_KR (1) | C39: 1-0 | D39: 1 | E39: 1 | F39: 2018-11-16T20:02:34 | G39: 2018-01-01 | H39: 2018-01-31 | I39: PLN | J39: 1234 | K39: 1231234455 | L39: Firma TESTOWA | M39: PL | N39: BRAK | O39: BRAK | P39: BRAK | Q39: BRAK | R39: BRAK | S39: BRAK | T39: BRAK | AY39: 10 | AZ39: 52453.93 | BA39: G | BB39: 9 | BC39: BUFOR/DP 2/01-18/Lp.3 | BD39: 406-1-1 | BE39: 1170 | BH39: wynagrodzenia | BI39: - | BJ39: 0 | BN39: 24 | BO39: 52453.93 | BP39: 52453.93
A40: JPK_KR | B40: JPK_KR (1) | C40: 1-0 | D40: 1 | E40: 1 | F40: 2018-11-16T20:02:34 | G40: 2018-01-01 | H40: 2018-01-31 | I40: PLN | J40: 1234 | K40: 1231234455 | L40: Firma TESTOWA | M40: PL | N40: BRAK | O40: BRAK | P40: BRAK | Q40: BRAK | R40: BRAK | S40: BRAK | T40: BRAK | AY40: 10 | AZ40: 52453.93 | BA40: G | BB40: 10 | BC40: BUFOR/DP 2/01-18/Lp.3 | BD40: - | BE40: 0 | BI40: 220-3 | BJ40: 1170 | BM40: wynagrodzenia | BN40: 24 | BO40: 52453.93 | BP40: 52453.93
A41: JPK_KR | B41: JPK_KR (1) | C41: 1-0 | D41: 1 | E41: 1 | F41: 2018-11-16T20:02:34 | G41: 2018-01-01 | H41: 2018-01-31 | I41: PLN | J41: 1234 | K41: 1231234455 | L41: Firma TESTOWA | M41: PL | N41: BRAK | O41: BRAK | P41: BRAK | Q41: BRAK | R41: BRAK | S41: BRAK | T41: BRAK | AY41: 10 | AZ41: 52453.93 | BA41: G | BB41: 11 | BC41: BUFOR/DP 2/01-18/Lp.4 | BD41: 406-2-1 | BE41: 116 | BH41: wynagrodzenia | BI41: - | BJ41: 0 | BN41: 24 | BO41: 52453.93 | BP41: 52453.93
A42: JPK_KR | B42: JPK_KR (1) | C42: 1-0 | D42: 1 | E42: 1 | F42: 2018-11-16T20:02:34 | G42: 2018-01-01 | H42: 2018-01-31 | I42: PLN | J42: 1234 | K42: 1231234455 | L42: Firma TESTOWA | M42: PL | N42: BRAK | O42: BRAK | P42: BRAK | Q42: BRAK | R42: BRAK | S42: BRAK | T42: BRAK | AY42: 10 | AZ42: 52453.93 | BA42: G | BB42: 12 | BC42: BUFOR/DP 2/01-18/Lp.4 | BD42: - | BE42: 0 | BI42: 220-3 | BJ42: 116 | BM42: wynagrodzenia | BN42: 24 | BO42: 52453.93 | BP42: 52453.93
A43: JPK_KR | B43: JPK_KR (1) | C43: 1-0 | D43: 1 | E43: 1 | F43: 2018-11-16T20:02:34 | G43: 2018-01-01 | H43: 2018-01-31 | I43: PLN | J43: 1234 | K43: 1231234455 | L43: Firma TESTOWA | M43: PL | N43: BRAK | O43: BRAK | P43: BRAK | Q43: BRAK | R43: BRAK | S43: BRAK | T43: BRAK | AY43: 10 | AZ43: 52453.93 | BA43: G | BB43: 13 | BC43: BUFOR/FVZ 1/01-18/Lp.1 | BD43: 403-1-8 | BE43: 1200 | BH43: czynsz | BI43: - | BJ43: 0 | BN43: 24 | BO43: 52453.93 | BP43: 52453.93
A44: JPK_KR | B44: JPK_KR (1) | C44: 1-0 | D44: 1 | E44: 1 | F44: 2018-11-16T20:02:34 | G44: 2018-01-01 | H44: 2018-01-31 | I44: PLN | J44: 1234 | K44: 1231234455 | L44: Firma TESTOWA | M44: PL | N44: BRAK | O44: BRAK | P44: BRAK | Q44: BRAK | R44: BRAK | S44: BRAK | T44: BRAK | AY44: 10 | AZ44: 52453.93 | BA44: G | BB44: 14 | BC44: BUFOR/FVZ 1/01-18/Lp.1 | BD44: - | BE44: 0 | BI44: 202-3-1-6 | BJ44: 1476 | BM44: czynsz | BN44: 24 | BO44: 52453.93 | BP44: 52453.93
A45: JPK_KR | B45: JPK_KR (1) | C45: 1-0 | D45: 1 | E45: 1 | F45: 2018-11-16T20:02:34 | G45: 2018-01-01 | H45: 2018-01-31 | I45: PLN | J45: 1234 | K45: 1231234455 | L45: Firma TESTOWA | M45: PL | N45: BRAK | O45: BRAK | P45: BRAK | Q45: BRAK | R45: BRAK | S45: BRAK | T45: BRAK | AY45: 10 | AZ45: 52453.93 | BA45: G | BB45: 15 | BC45: BUFOR/FVZ 1/01-18/Lp.1 | BD45: 221-2 | BE45: 276 | BH45: czynsz | BI45: - | BJ45: 0 | BN45: 24 | BO45: 52453.93 | BP45: 52453.93
A46: JPK_KR | B46: JPK_KR (1) | C46: 1-0 | D46: 1 | E46: 1 | F46: 2018-11-16T20:02:34 | G46: 2018-01-01 | H46: 2018-01-31 | I46: PLN | J46: 1234 | K46: 1231234455 | L46: Firma TESTOWA | M46: PL | N46: BRAK | O46: BRAK | P46: BRAK | Q46: BRAK | R46: BRAK | S46: BRAK | T46: BRAK | AY46: 10 | AZ46: 52453.93 | BA46: G | BB46: 16 | BC46: BUFOR/FVZ 2/01-18/Lp.1 | BD46: 403-1-1 | BE46: 501 | BH46: faktura za telefony | BI46: - | BJ46: 0 | BN46: 24 | BO46: 52453.93 | BP46: 52453.93
A47: JPK_KR | B47: JPK_KR (1) | C47: 1-0 | D47: 1 | E47: 1 | F47: 2018-11-16T20:02:34 | G47: 2018-01-01 | H47: 2018-01-31 | I47: PLN | J47: 1234 | K47: 1231234455 | L47: Firma TESTOWA | M47: PL | N47: BRAK | O47: BRAK | P47: BRAK | Q47: BRAK | R47: BRAK | S47: BRAK | T47: BRAK | AY47: 10 | AZ47: 52453.93 | BA47: G | BB47: 17 | BC47: BUFOR/FVZ 2/01-18/Lp.1 | BD47: - | BE47: 0 | BI47: 202-3-1-2 | BJ47: 616.23 | BM47: faktura za telefony | BN47: 24 | BO47: 52453.93 | BP47: 52453.93
A48: JPK_KR | B48: JPK_KR (1) | C48: 1-0 | D48: 1 | E48: 1 | F48: 2018-11-16T20:02:34 | G48: 2018-01-01 | H48: 2018-01-31 | I48: PLN | J48: 1234 | K48: 1231234455 | L48: Firma TESTOWA | M48: PL | N48: BRAK | O48: BRAK | P48: BRAK | Q48: BRAK | R48: BRAK | S48: BRAK | T48: BRAK | AY48: 10 | AZ48: 52453.93 | BA48: G | BB48: 18 | BC48: BUFOR/FVZ 2/01-18/Lp.1 | BD48: 221-2 | BE48: 115.23 | BH48: faktura za telefony | BI48: - | BJ48: 0 | BN48: 24 | BO48: 52453.93 | BP48: 52453.93
A49: JPK_KR | B49: JPK_KR (1) | C49: 1-0 | D49: 1 | E49: 1 | F49: 2018-11-16T20:02:34 | G49: 2018-01-01 | H49: 2018-01-31 | I49: PLN | J49: 1234 | K49: 1231234455 | L49: Firma TESTOWA | M49: PL | N49: BRAK | O49: BRAK | P49: BRAK | Q49: BRAK | R49: BRAK | S49: BRAK | T49: BRAK | AY49: 10 | AZ49: 52453.93 | BA49: G | BB49: 19 | BC49: BUFOR/FVZ 3/01-18/Lp.1 | BD49: 403-1-7 | BE49: 1162.6 | BH49: rata leasingu | BI49: - | BJ49: 0 | BN49: 24 | BO49: 52453.93 | BP49: 52453.93
A50: JPK_KR | B50: JPK_KR (1) | C50: 1-0 | D50: 1 | E50: 1 | F50: 2018-11-16T20:02:34 | G50: 2018-01-01 | H50: 2018-01-31 | I50: PLN | J50: 1234 | K50: 1231234455 | L50: Firma TESTOWA | M50: PL | N50: BRAK | O50: BRAK | P50: BRAK | Q50: BRAK | R50: BRAK | S50: BRAK | T50: BRAK | AY50: 10 | AZ50: 52453.93 | BA50: G | BB50: 20 | BC50: BUFOR/FVZ 3/01-18/Lp.1 | BD50: - | BE50: 0 | BI50: 202-3-1-4 | BJ50: 1430 | BM50: rata leasingu | BN50: 24 | BO50: 52453.93 | BP50: 52453.93
A51: JPK_KR | B51: JPK_KR (1) | C51: 1-0 | D51: 1 | E51: 1 | F51: 2018-11-16T20:02:34 | G51: 2018-01-01 | H51: 2018-01-31 | I51: PLN | J51: 1234 | K51: 1231234455 | L51: Firma TESTOWA | M51: PL | N51: BRAK | O51: BRAK | P51: BRAK | Q51: BRAK | R51: BRAK | S51: BRAK | T51: BRAK | AY51: 10 | AZ51: 52453.93 | BA51: G | BB51: 21 | BC51: BUFOR/FVZ 3/01-18/Lp.1 | BD51: 221-2 | BE51: 267.4 | BH51: rata leasingu | BI51: - | BJ51: 0 | BN51: 24 | BO51: 52453.93 | BP51: 52453.93
A52: JPK_KR | B52: JPK_KR (1) | C52: 1-0 | D52: 1 | E52: 1 | F52: 2018-11-16T20:02:34 | G52: 2018-01-01 | H52: 2018-01-31 | I52: PLN | J52: 1234 | K52: 1231234455 | L52: Firma TESTOWA | M52: PL | N52: BRAK | O52: BRAK | P52: BRAK | Q52: BRAK | R52: BRAK | S52: BRAK | T52: BRAK | AY52: 10 | AZ52: 52453.93 | BA52: G | BB52: 22 | BC52: BUFOR/FVS 1/01-18/Lp.1 | BD52: 201-3-1-5 | BE52: 34304.7 | BH52: usługa | BI52: - | BJ52: 0 | BN52: 24 | BO52: 52453.93 | BP52: 52453.93
A53: JPK_KR | B53: JPK_KR (1) | C53: 1-0 | D53: 1 | E53: 1 | F53: 2018-11-16T20:02:34 | G53: 2018-01-01 | H53: 2018-01-31 | I53: PLN | J53: 1234 | K53: 1231234455 | L53: Firma TESTOWA | M53: PL | N53: BRAK | O53: BRAK | P53: BRAK | Q53: BRAK | R53: BRAK | S53: BRAK | T53: BRAK | AY53: 10 | AZ53: 52453.93 | BA53: G | BB53: 23 | BC53: BUFOR/FVS 1/01-18/Lp.1 | BD53: - | BE53: 0 | BI53: 702-2 | BJ53: 27890 | BM53: usługa | BN53: 24 | BO53: 52453.93 | BP53: 52453.93
A54: JPK_KR | B54: JPK_KR (1) | C54: 1-0 | D54: 1 | E54: 1 | F54: 2018-11-16T20:02:34 | G54: 2018-01-01 | H54: 2018-01-31 | I54: PLN | J54: 1234 | K54: 1231234455 | L54: Firma TESTOWA | M54: PL | N54: BRAK | O54: BRAK | P54: BRAK | Q54: BRAK | R54: BRAK | S54: BRAK | T54: BRAK | AY54: 10 | AZ54: 52453.93 | BA54: G | BB54: 24 | BC54: BUFOR/FVS 1/01-18/Lp.1 | BD54: - | BE54: 0 | BI54: 221-1 | BJ54: 6414.7 | BM54: usługa | BN54: 24 | BO54: 52453.93 | BP54: 52453.93

Sheet parametry
I1: konto | J1: nazwa konta | K1: nazwa konta | L1: syntetyka | N1: Analityka 1 | P1: Analityka 2 | R1: Analityka 3 | T1: Analityka 4 | V1: konto
A2: =IF('Plan kont'!B5<>"",'Plan kont'!B5,"") -> 070-5 | B2: 70 | C2: 5 | G2: 070* | H2: =IF(A2<>"",IF(U2<>"",L2&"-"&N2&"-"&P2&"-"&R2&"-"&T2,IF(S2<>"",L2&"-"&N2&"-"&P2&"-"&R2&"*",IF(Q2<>"",L2&"-"&N2&"-"&P2&"*",IF(O2<>"",L2&"-"&N2&"*",L2&"*")))),"") -> 070* | I2: 070 | J2: Umorzenie środków trwałych | K2: =IF(A2<>"",IF(W2="X",X2,IF(W2="Y",Y2,IF(W2="Z",Z2,IF(W2="AA",AA2,IF(W2="X-Y",X2&Y2,IF(W2="X-Z",X2&Z2,IF(W2="X-AA",X2&AA2,IF(W2="Y-Z",Y2&Z2,IF(W2="Y-AA",Y2&ZZ2,IF(W2="Z-AA",Z2&AA2,"")))))))))),"") -> Umorzenie środków trwałych | L2: =IF(B2<>"",IF(LEN(B2)=2,0&B2,B2),"") -> 070 | N2: =IF(C2<>"",C2,"") -> 5 | O2: =IFERROR(IF(VLOOKUP(L2,config!$A$2:$F$100,2,0)=0,"",VLOOKUP(L2,config!$A$2:$F$100,2,0)),"") ->  | P2: =IF(D2<>"",D2,"") ->  | Q2: =IFERROR(IF(VLOOKUP(L2,config!$A$2:$F$100,3,0)=0,"",VLOOKUP(L2,config!$A$2:$F$100,3,0)),"") ->  | R2: =IF(E2<>"",E2,"") ->  | S2: =IFERROR(IF(VLOOKUP(L2,config!$A$2:$F$100,4,0)=0,"",VLOOKUP(L2,config!$A$2:$F$100,4,0)),"") ->  | T2: =IF(F2<>"",F2,"") ->  | U2: =IFERROR(IF(VLOOKUP(L2,config!$A$2:$F$100,5,0)=0,"",VLOOKUP(L2,config!$A$2:$F$100,5,0)),"") ->  | V2: =IF(A2<>"",IF(AND(O2<>"",Q2<>"",S2<>"",U2<>""),L2&"-"&N2&"-"&P2&"-"&R2&"-"&T2,IF(AND(O2<>"",Q2<>"",S2<>""),L2&"-"&N2&"-"&P2&"-"&R2,IF(AND(Q2<>"",S2<>"",U2<>""),L2&"-"&P2&"-"&R2&"-"&T2,IF(AND(O2<>"",S2<>"",U2<>""),L2&"-"&N2&"-"&R2&"-"&T2,IF(AND(O2<>"",Q2<>"",U2<>""),L2&"-"&N2&"-"&P2&"-"&T2,IF(AND(O2<>"",Q2<>""),L2&"-"&N2&"-"&P2,IF(AND(O2<>"",S2<>""),L2&"-"&N2&"-"&R2,IF(AND(O2<>"",U2<>""),L2&"-"&N2&"-"&T2,IF(O2<>"",L2&"-"&N2,IF(AND(Q2<>"",S2<>""),L2&"-"&P2&"-"&R2,IF(AND(Q2<>"",U2<>""),L2&"-"&P2&"-"&T2,IF(AND(S2<>"",U2<>""),L2&"-"&R2&"-"&T2,IF(O2<>"",L2&"-"&N2,IF(Q2<>"",L2&"-"&P2,IF(U2<>"",L2&"-"&T2,IF(S2<>"",L2&"-"&R2,L2)))))))))))))))),"") -> 070 | W2: =IFERROR(IF(VLOOKUP(L2,config!$A$2:$F$100,6,0)=0,"",VLOOKUP(L2,config!$A$2:$F$100,6,0)),"") -> X | X2: Umorzenie środków trwałych | Y2: Inne środki trwałe | AH2: =IF('Plan kont'!B5<>"",'Plan kont'!C5,"") -> Umorzenie środków trwałych/Inne środki trwałe | BJ2: X
A3: =IF('Plan kont'!B6<>"",'Plan kont'!B6,"") -> 201-3-1-5 | B3: 201 | C3: 3 | D3: 1 | E3: 5 | G3: 201* | H3: =IF(A3<>"",IF(U3<>"",L3&"-"&N3&"-"&P3&"-"&R3&"-"&T3,IF(S3<>"",L3&"-"&N3&"-"&P3&"-"&R3&"*",IF(Q3<>"",L3&"-"&N3&"-"&P3&"*",IF(O3<>"",L3&"-"&N3&"*",L3&"*")))),"") -> 201* | I3: 201 | J3: Rozrachunki krajowe z odbiorcami z tytułu dostaw i usług | K3: =IF(A3<>"",IF(W3="X",X3,IF(W3="Y",Y3,IF(W3="Z",Z3,IF(W3="AA",AA3,IF(W3="X-Y",X3&Y3,IF(W3="X-Z",X3&Z3,IF(W3="X-AA",X3&AA3,IF(W3="Y-Z",Y3&Z3,IF(W3="Y-AA",Y3&ZZ3,IF(W3="Z-AA",Z3&AA3,"")))))))))),"") -> Rozrachunki krajowe z odbiorcami z tytułu dostaw i usług | L3: =IF(B3<>"",IF(LEN(B3)=2,0&B3,B3),"") -> 201 | N3: =IF(C3<>"",C3,"") -> 3 | O3: =IFERROR(IF(VLOOKUP(L3,config!$A$2:$F$100,2,0)=0,"",VLOOKUP(L3,config!$A$2:$F$100,2,0)),"") ->  | P3: =IF(D3<>"",D3,"") -> 1 | Q3: =IFERROR(IF(VLOOKUP(L3,config!$A$2:$F$100,3,0)=0,"",VLOOKUP(L3,config!$A$2:$F$100,3,0)),"") ->  | R3: =IF(E3<>"",E3,"") -> 5 | S3: =IFERROR(IF(VLOOKUP(L3,config!$A$2:$F$100,4,0)=0,"",VLOOKUP(L3,config!$A$2:$F$100,4,0)),"") ->  | T3: =IF(F3<>"",F3,"") ->  | U3: =IFERROR(IF(VLOOKUP(L3,config!$A$2:$F$100,5,0)=0,"",VLOOKUP(L3,config!$A$2:$F$100,5,0)),"") ->  | V3: =IF(A3<>"",IF(AND(O3<>"",Q3<>"",S3<>"",U3<>""),L3&"-"&N3&"-"&P3&"-"&R3&"-"&T3,IF(AND(O3<>"",Q3<>"",S3<>""),L3&"-"&N3&"-"&P3&"-"&R3,IF(AND(Q3<>"",S3<>"",U3<>""),L3&"-"&P3&"-"&R3&"-"&T3,IF(AND(O3<>"",S3<>"",U3<>""),L3&"-"&N3&"-"&R3&"-"&T3,IF(AND(O3<>"",Q3<>"",U3<>""),L3&"-"&N3&"-"&P3&"-"&T3,IF(AND(O3<>"",Q3<>""),L3&"-"&N3&"-"&P3,IF(AND(O3<>"",S3<>""),L3&"-"&N3&"-"&R3,IF(AND(O3<>"",U3<>""),L3&"-"&N3&"-"&T3,IF(O3<>"",L3&"-"&N3,IF(AND(Q3<>"",S3<>""),L3&"-"&P3&"-"&R3,IF(AND(Q3<>"",U3<>""),L3&"-"&P3&"-"&T3,IF(AND(S3<>"",U3<>""),L3&"-"&R3&"-"&T3,IF(O3<>"",L3&"-"&N3,IF(Q3<>"",L3&"-"&P3,IF(U3<>"",L3&"-"&T3,IF(S3<>"",L3&"-"&R3,L3)))))))))))))))),"") -> 201 | W3: =IFERROR(IF(VLOOKUP(L3,config!$A$2:$F$100,6,0)=0,"",VLOOKUP(L3,config!$A$2:$F$100,6,0)),"") -> X | X3: Rozrachunki krajowe z odbiorcami z tytułu dostaw i usług | Y3: Rozrachunki należności od pozostałych jednostek | Z3: Należności od pozostałych jednostek płatne do 12 miesięcy | AA3: ANT Consulting Magdalena Chomuszko | AH3: =IF('Plan kont'!B6<>"",'Plan kont'!C6,"") -> Rozrachunki krajowe z odbiorcami z tytułu dostaw i usług/Rozrachunki należności od pozostałych jednostek/Należności od pozostałych jednostek płatne do 12 miesięcy/ANT Consulting Magdalena Chomuszko | BJ3: Y | BL3: x
A4: =IF('Plan kont'!B7<>"",'Plan kont'!B7,"") -> 202-3-1-2 | B4: 202 | C4: 3 | D4: 1 | E4: 2 | G4: 202* | H4: 202* | I4: 202 | J4: Rozrachunki krajowe z dostawcami z tytułu dostaw i usług | K4: Rozrachunki krajowe z dostawcami z tytułu dostaw i usług | L4: 202 | N4: 3 | O4: =IFERROR(IF(VLOOKUP(L4,config!$A$2:$F$100,2,0)=0,"",VLOOKUP(L4,config!$A$2:$F$100,2,0)),"") ->  | P4: 1 | Q4: =IFERROR(IF(VLOOKUP(L4,config!$A$2:$F$100,3,0)=0,"",VLOOKUP(L4,config!$A$2:$F$100,3,0)),"") ->  | R4: 2 | S4: =IFERROR(IF(VLOOKUP(L4,config!$A$2:$F$100,4,0)=0,"",VLOOKUP(L4,config!$A$2:$F$100,4,0)),"") ->  | U4: =IFERROR(IF(VLOOKUP(L4,config!$A$2:$F$100,5,0)=0,"",VLOOKUP(L4,config!$A$2:$F$100,5,0)),"") ->  | V4: 202 | W4: =IFERROR(IF(VLOOKUP(L4,config!$A$2:$F$100,6,0)=0,"",VLOOKUP(L4,config!$A$2:$F$100,6,0)),"") -> X | X4: Rozrachunki krajowe z dostawcami z tytułu dostaw i usług | Y4: Rozrachunki zobowiązań wobec pozostałych jednostek | Z4: Zobowiązania wobec pozostałych jednostek płatne do 12 miesięcy | AA4: ORANGE POLSKA SPÓŁKA AKCYJNA | AH4: =IF('Plan kont'!B7<>"",'Plan kont'!C7,"") -> Rozrachunki krajowe z dostawcami z tytułu dostaw i usług/Rozrachunki zobowiązań wobec pozostałych jednostek/Zobowiązania wobec pozostałych jednostek płatne do 12 miesięcy/ORANGE POLSKA SPÓŁKA AKCYJNA | BJ4: Z
A5: =IF('Plan kont'!B8<>"",'Plan kont'!B8,"") -> 202-3-1-4 | B5: 202 | C5: 3 | D5: 1 | E5: 4 | G5: 220* | H5: 202* | I5: 220 | J5: Rozrachunki publicznoprawne | K5: Rozrachunki krajowe z dostawcami z tytułu dostaw i usług | L5: 202 | N5: 3 | O5: =IFERROR(IF(VLOOKUP(L5,config!$A$2:$F$100,2,0)=0,"",VLOOKUP(L5,config!$A$2:$F$100,2,0)),"") ->  | P5: 1 | Q5: =IFERROR(IF(VLOOKUP(L5,config!$A$2:$F$100,3,0)=0,"",VLOOKUP(L5,config!$A$2:$F$100,3,0)),"") ->  | R5: 4 | S5: =IFERROR(IF(VLOOKUP(L5,config!$A$2:$F$100,4,0)=0,"",VLOOKUP(L5,config!$A$2:$F$100,4,0)),"") ->  | U5: =IFERROR(IF(VLOOKUP(L5,config!$A$2:$F$100,5,0)=0,"",VLOOKUP(L5,config!$A$2:$F$100,5,0)),"") ->  | V5: 202 | W5: =IFERROR(IF(VLOOKUP(L5,config!$A$2:$F$100,6,0)=0,"",VLOOKUP(L5,config!$A$2:$F$100,6,0)),"") -> X | X5: Rozrachunki krajowe z dostawcami z tytułu dostaw i usług | Y5: Rozrachunki zobowiązań wobec pozostałych jednostek | Z5: Zobowiązania wobec pozostałych jednostek płatne do 12 miesięcy | AA5: TOYOTA LEASING POLSKA SPÓŁKA Z OGRANICZONĄ ODPOWIEDZIALNOŚCIĄ | AH5: =IF('Plan kont'!B8<>"",'Plan kont'!C8,"") -> Rozrachunki krajowe z dostawcami z tytułu dostaw i usług/Rozrachunki zobowiązań wobec pozostałych jednostek/Zobowiązania wobec pozostałych jednostek płatne do 12 miesięcy/TOYOTA LEASING POLSKA SPÓŁKA Z OGRANICZONĄ ODPOWIEDZIALNOŚCIĄ | BJ5: AA
A6: =IF('Plan kont'!B9<>"",'Plan kont'!B9,"") -> 202-3-1-6 | B6: 202 | C6: 3 | D6: 1 | E6: 6 | G6: 221-1* | H6: 202* | I6: 221-1 | J6: Rozliczenie należnego VAT | K6: Rozrachunki krajowe z dostawcami z tytułu dostaw i usług | L6: 202 | N6: 3 | O6: =IFERROR(IF(VLOOKUP(L6,config!$A$2:$F$100,2,0)=0,"",VLOOKUP(L6,config!$A$2:$F$100,2,0)),"") ->  | P6: 1 | Q6: =IFERROR(IF(VLOOKUP(L6,config!$A$2:$F$100,3,0)=0,"",VLOOKUP(L6,config!$A$2:$F$100,3,0)),"") ->  | R6: 6 | S6: =IFERROR(IF(VLOOKUP(L6,config!$A$2:$F$100,4,0)=0,"",VLOOKUP(L6,config!$A$2:$F$100,4,0)),"") ->  | U6: =IFERROR(IF(VLOOKUP(L6,config!$A$2:$F$100,5,0)=0,"",VLOOKUP(L6,config!$A$2:$F$100,5,0)),"") ->  | V6: 202 | W6: =IFERROR(IF(VLOOKUP(L6,config!$A$2:$F$100,6,0)=0,"",VLOOKUP(L6,config!$A$2:$F$100,6,0)),"") -> X | X6: Rozrachunki krajowe z dostawcami z tytułu dostaw i usług | Y6: Rozrachunki zobowiązań wobec pozostałych jednostek | Z6: Zobowiązania wobec pozostałych jednostek płatne do 12 miesięcy | AA6: WARSAW - APARTMENTS SADYBA WILANÓW SPÓŁKA Z OGRANICZONĄ ODPOWIEDZIALNOŚCIĄ | AH6: =IF('Plan kont'!B9<>"",'Plan kont'!C9,"") -> Rozrachunki krajowe z dostawcami z tytułu dostaw i usług/Rozrachunki zobowiązań wobec pozostałych jednostek/Zobowiązania wobec pozostałych jednostek płatne do 12 miesięcy/WARSAW - APARTMENTS SADYBA WILANÓW SPÓŁKA Z OGRANICZONĄ ODPOWIEDZIALNOŚCIĄ | BJ6: X-Y
A7: =IF('Plan kont'!B10<>"",'Plan kont'!B10,"") -> 220-3 | B7: 220 | C7: 3 | G7: 221-2* | H7: 220* | I7: 221-2 | J7: Rozliczenie naliczonego VAT | K7: Rozrachunki publicznoprawne | L7: 220 | N7: 3 | O7: =IFERROR(IF(VLOOKUP(L7,config!$A$2:$F$100,2,0)=0,"",VLOOKUP(L7,config!$A$2:$F$100,2,0)),"") ->  | Q7: =IFERROR(IF(VLOOKUP(L7,config!$A$2:$F$100,3,0)=0,"",VLOOKUP(L7,config!$A$2:$F$100,3,0)),"") ->  | S7: =IFERROR(IF(VLOOKUP(L7,config!$A$2:$F$100,4,0)=0,"",VLOOKUP(L7,config!$A$2:$F$100,4,0)),"") ->  | U7: =IFERROR(IF(VLOOKUP(L7,config!$A$2:$F$100,5,0)=0,"",VLOOKUP(L7,config!$A$2:$F$100,5,0)),"") ->  | V7: 220 | W7: =IFERROR(IF(VLOOKUP(L7,config!$A$2:$F$100,6,0)=0,"",VLOOKUP(L7,config!$A$2:$F$100,6,0)),"") -> X | X7: Rozrachunki publicznoprawne | Y7: ZUS | AH7: =IF('Plan kont'!B10<>"",'Plan kont'!C10,"") -> Rozrachunki publicznoprawne/ZUS | BJ7: X-Z
A8: =IF('Plan kont'!B11<>"",'Plan kont'!B11,"") -> 221-1 | B8: 221 | C8: 1 | G8: 230* | H8: 221-1* | I8: 230 | J8: Rozrachunki z tytułu wypłat wynagrodzeń | K8: Rozliczenie należnego VAT | L8: 221 | N8: 1 | O8: =IFERROR(IF(VLOOKUP(L8,config!$A$2:$F$100,2,0)=0,"",VLOOKUP(L8,config!$A$2:$F$100,2,0)),"") -> x | Q8: =IFERROR(IF(VLOOKUP(L8,config!$A$2:$F$100,3,0)=0,"",VLOOKUP(L8,config!$A$2:$F$100,3,0)),"") ->  | S8: =IFERROR(IF(VLOOKUP(L8,config!$A$2:$F$100,4,0)=0,"",VLOOKUP(L8,config!$A$2:$F$100,4,0)),"") ->  | U8: =IFERROR(IF(VLOOKUP(L8,config!$A$2:$F$100,5,0)=0,"",VLOOKUP(L8,config!$A$2:$F$100,5,0)),"") ->  | V8: 221-1 | W8: =IFERROR(IF(VLOOKUP(L8,config!$A$2:$F$100,6,0)=0,"",VLOOKUP(L8,config!$A$2:$F$100,6,0)),"") -> Y | X8: Rozrachunki z tytułu VAT | Y8: Rozliczenie należnego VAT | AH8: =IF('Plan kont'!B11<>"",'Plan kont'!C11,"") -> Rozrachunki z tytułu VAT/Rozliczenie należnego VAT | BJ8: X-AA
A9: =IF('Plan kont'!B12<>"",'Plan kont'!B12,"") -> 221-2 | B9: 221 | C9: 2 | G9: 401-1* | H9: 221-2* | I9: 401-1 | J9: Amortyzacja | K9: Rozliczenie naliczonego VAT | L9: 221 | N9: 2 | O9: =IFERROR(IF(VLOOKUP(L9,config!$A$2:$F$100,2,0)=0,"",VLOOKUP(L9,config!$A$2:$F$100,2,0)),"") -> x | Q9: =IFERROR(IF(VLOOKUP(L9,config!$A$2:$F$100,3,0)=0,"",VLOOKUP(L9,config!$A$2:$F$100,3,0)),"") ->  | S9: =IFERROR(IF(VLOOKUP(L9,config!$A$2:$F$100,4,0)=0,"",VLOOKUP(L9,config!$A$2:$F$100,4,0)),"") ->  | U9: =IFERROR(IF(VLOOKUP(L9,config!$A$2:$F$100,5,0)=0,"",VLOOKUP(L9,config!$A$2:$F$100,5,0)),"") ->  | V9: 221-2 | W9: =IFERROR(IF(VLOOKUP(L9,config!$A$2:$F$100,6,0)=0,"",VLOOKUP(L9,config!$A$2:$F$100,6,0)),"") -> Y | X9: Rozrachunki z tytułu VAT | Y9: Rozliczenie naliczonego VAT | AH9: =IF('Plan kont'!B12<>"",'Plan kont'!C12,"") -> Rozrachunki z tytułu VAT/Rozliczenie naliczonego VAT | BJ9: Y-Z
A10: =IF('Plan kont'!B13<>"",'Plan kont'!B13,"") -> 230 | B10: 230 | G10: 403-1-1* | H10: 230* | I10: 403-1 | J10: Usługi obceUsługi telekomunikacyjne | K10: Rozrachunki z tytułu wypłat wynagrodzeń | L10: 230 | O10: =IFERROR(IF(VLOOKUP(L10,config!$A$2:$F$100,2,0)=0,"",VLOOKUP(L10,config!$A$2:$F$100,2,0)),"") ->  | Q10: =IFERROR(IF(VLOOKUP(L10,config!$A$2:$F$100,3,0)=0,"",VLOOKUP(L10,config!$A$2:$F$100,3,0)),"") ->  | S10: =IFERROR(IF(VLOOKUP(L10,config!$A$2:$F$100,4,0)=0,"",VLOOKUP(L10,config!$A$2:$F$100,4,0)),"") ->  | U10: =IFERROR(IF(VLOOKUP(L10,config!$A$2:$F$100,5,0)=0,"",VLOOKUP(L10,config!$A$2:$F$100,5,0)),"") ->  | V10: 230 | W10: =IFERROR(IF(VLOOKUP(L10,config!$A$2:$F$100,6,0)=0,"",VLOOKUP(L10,config!$A$2:$F$100,6,0)),"") -> X | X10: Rozrachunki z tytułu wypłat wynagrodzeń | AH10: =IF('Plan kont'!B13<>"",'Plan kont'!C13,"") -> Rozrachunki z tytułu wypłat wynagrodzeń | BJ10: Z-AA
A11: =IF('Plan kont'!B14<>"",'Plan kont'!B14,"") -> 401-1-1 | B11: 401 | C11: 1 | D11: 1 | G11: 403-1-7* | H11: 401-1* | I11: 403-7 | J11: Usługi obceleasing | K11: =IF(A11<>"",IF(W11="X",X11,IF(W11="Y",Y11,IF(W11="Z",Z11,IF(W11="AA",AA11,IF(W11="X-Y",X11&Y11,IF(W11="X-Z",X11&Z11,IF(W11="X-AA",X11&AA11,IF(W11="Y-Z",Y11&Z11,IF(W11="Y-AA",Y11&ZZ11,IF(W11="Z-AA",Z11&AA11,"")))))))))),"") -> Amortyzacja | L11: 401 | N11: 1 | O11: =IFERROR(IF(VLOOKUP(L11,config!$A$2:$F$100,2,0)=0,"",VLOOKUP(L11,config!$A$2:$F$100,2,0)),"") -> x | P11: 1 | Q11: =IFERROR(IF(VLOOKUP(L11,config!$A$2:$F$100,3,0)=0,"",VLOOKUP(L11,config!$A$2:$F$100,3,0)),"") ->  | S11: =IFERROR(IF(VLOOKUP(L11,config!$A$2:$F$100,4,0)=0,"",VLOOKUP(L11,config!$A$2:$F$100,4,0)),"") ->  | U11: =IFERROR(IF(VLOOKUP(L11,config!$A$2:$F$100,5,0)=0,"",VLOOKUP(L11,config!$A$2:$F$100,5,0)),"") ->  | V11: 401-1 | W11: =IFERROR(IF(VLOOKUP(L11,config!$A$2:$F$100,6,0)=0,"",VLOOKUP(L11,config!$A$2:$F$100,6,0)),"") -> X | X11: Amortyzacja | Y11: Amortyzacja środków trwałych | Z11: Amortyzacja śr. tw. stanowiąca koszty uzyskania przychodu | AH11: =IF('Plan kont'!B14<>"",'Plan kont'!C14,"") -> Amortyzacja/Amortyzacja środków trwałych/Amortyzacja śr. tw. stanowiąca koszty uzyskania przychodu | BJ11: Y-AA
A12: =IF('Plan kont'!B15<>"",'Plan kont'!B15,"") -> 401-1-2 | B12: 401 | C12: 1 | D12: 2 | G12: 403-1-8* | H12: 401-1* | I12: 403-8 | J12: Usługi obceczynsz | K12: Amortyzacja | L12: 401 | N12: 1 | O12: =IFERROR(IF(VLOOKUP(L12,config!$A$2:$F$100,2,0)=0,"",VLOOKUP(L12,config!$A$2:$F$100,2,0)),"") -> x | P12: 2 | Q12: =IFERROR(IF(VLOOKUP(L12,config!$A$2:$F$100,3,0)=0,"",VLOOKUP(L12,config!$A$2:$F$100,3,0)),"") ->  | S12: =IFERROR(IF(VLOOKUP(L12,config!$A$2:$F$100,4,0)=0,"",VLOOKUP(L12,config!$A$2:$F$100,4,0)),"") ->  | U12: =IFERROR(IF(VLOOKUP(L12,config!$A$2:$F$100,5,0)=0,"",VLOOKUP(L12,config!$A$2:$F$100,5,0)),"") ->  | V12: 401-1 | W12: =IFERROR(IF(VLOOKUP(L12,config!$A$2:$F$100,6,0)=0,"",VLOOKUP(L12,config!$A$2:$F$100,6,0)),"") -> X | X12: Amortyzacja | Y12: Amortyzacja środków trwałych | Z12: Amortyzacja śr. tr. nie stanowiąca kosztów uzyskania prz. | AH12: =IF('Plan kont'!B15<>"",'Plan kont'!C15,"") -> Amortyzacja/Amortyzacja środków trwałych/Amortyzacja śr. tr. nie stanowiąca kosztów uzyskania prz.
A13: =IF('Plan kont'!B16<>"",'Plan kont'!B16,"") -> 403-1-1 | B13: 403 | C13: 1 | D13: 1 | G13: 405* | H13: 403-1-1* | I13: 405 | J13: Wynagrodzenia | K13: Usługi obceUsługi telekomunikacyjne | L13: 403 | N13: 1 | O13: =IFERROR(IF(VLOOKUP(L13,config!$A$2:$F$100,2,0)=0,"",VLOOKUP(L13,config!$A$2:$F$100,2,0)),"") ->  | P13: 1 | Q13: =IFERROR(IF(VLOOKUP(L13,config!$A$2:$F$100,3,0)=0,"",VLOOKUP(L13,config!$A$2:$F$100,3,0)),"") -> x | S13: =IFERROR(IF(VLOOKUP(L13,config!$A$2:$F$100,4,0)=0,"",VLOOKUP(L13,config!$A$2:$F$100,4,0)),"") ->  | U13: =IFERROR(IF(VLOOKUP(L13,config!$A$2:$F$100,5,0)=0,"",VLOOKUP(L13,config!$A$2:$F$100,5,0)),"") ->  | V13: 403-1 | W13: =IFERROR(IF(VLOOKUP(L13,config!$A$2:$F$100,6,0)=0,"",VLOOKUP(L13,config!$A$2:$F$100,6,0)),"") -> X-Z | X13: Usługi obce | Y13: KUP | Z13: Usługi telekomunikacyjne | AH13: =IF('Plan kont'!B16<>"",'Plan kont'!C16,"") -> Usługi obce/KUP/Usługi telekomunikacyjne
A14: =IF('Plan kont'!B17<>"",'Plan kont'!B17,"") -> 403-1-7 | B14: 403 | C14: 1 | D14: 7 | G14: 406* | H14: 403-1-7* | I14: 406 | J14: Ubezpieczenia społeczne i inne świadczenia | K14: Usługi obceleasing | L14: 403 | N14: 1 | O14: =IFERROR(IF(VLOOKUP(L14,config!$A$2:$F$100,2,0)=0,"",VLOOKUP(L14,config!$A$2:$F$100,2,0)),"") ->  | P14: 7 | Q14: =IFERROR(IF(VLOOKUP(L14,config!$A$2:$F$100,3,0)=0,"",VLOOKUP(L14,config!$A$2:$F$100,3,0)),"") -> x | S14: =IFERROR(IF(VLOOKUP(L14,config!$A$2:$F$100,4,0)=0,"",VLOOKUP(L14,config!$A$2:$F$100,4,0)),"") ->  | U14: =IFERROR(IF(VLOOKUP(L14,config!$A$2:$F$100,5,0)=0,"",VLOOKUP(L14,config!$A$2:$F$100,5,0)),"") ->  | V14: 403-7 | W14: =IFERROR(IF(VLOOKUP(L14,config!$A$2:$F$100,6,0)=0,"",VLOOKUP(L14,config!$A$2:$F$100,6,0)),"") -> X-Z | X14: Usługi obce | Y14: KUP | Z14: leasing | AH14: =IF('Plan kont'!B17<>"",'Plan kont'!C17,"") -> Usługi obce/KUP/leasing
A15: =IF('Plan kont'!B18<>"",'Plan kont'!B18,"") -> 403-1-8 | B15: 403 | C15: 1 | D15: 8 | G15: 702* | H15: 403-1-8* | I15: 702 | J15: Sprzedaż usług działalności podstawowej | K15: Usługi obceczynsz | L15: 403 | N15: 1 | O15: =IFERROR(IF(VLOOKUP(L15,config!$A$2:$F$100,2,0)=0,"",VLOOKUP(L15,config!$A$2:$F$100,2,0)),"") ->  | P15: 8 | Q15: =IFERROR(IF(VLOOKUP(L15,config!$A$2:$F$100,3,0)=0,"",VLOOKUP(L15,config!$A$2:$F$100,3,0)),"") -> x | S15: =IFERROR(IF(VLOOKUP(L15,config!$A$2:$F$100,4,0)=0,"",VLOOKUP(L15,config!$A$2:$F$100,4,0)),"") ->  | U15: =IFERROR(IF(VLOOKUP(L15,config!$A$2:$F$100,5,0)=0,"",VLOOKUP(L15,config!$A$2:$F$100,5,0)),"") ->  | V15: 403-8 | W15: =IFERROR(IF(VLOOKUP(L15,config!$A$2:$F$100,6,0)=0,"",VLOOKUP(L15,config!$A$2:$F$100,6,0)),"") -> X-Z | X15: Usługi obce | Y15: KUP | Z15: czynsz | AH15: =IF('Plan kont'!B18<>"",'Plan kont'!C18,"") -> Usługi obce/KUP/czynsz
A16: =IF('Plan kont'!B19<>"",'Plan kont'!B19,"") -> 405-1 | B16: 405 | C16: 1 | G16: (puste)* | H16: 405* | I16: (puste) | K16: Wynagrodzenia | L16: 405 | N16: 1 | O16: =IFERROR(IF(VLOOKUP(L16,config!$A$2:$F$100,2,0)=0,"",VLOOKUP(L16,config!$A$2:$F$100,2,0)),"") ->  | Q16: =IFERROR(IF(VLOOKUP(L16,config!$A$2:$F$100,3,0)=0,"",VLOOKUP(L16,config!$A$2:$F$100,3,0)),"") ->  | S16: =IFERROR(IF(VLOOKUP(L16,config!$A$2:$F$100,4,0)=0,"",VLOOKUP(L16,config!$A$2:$F$100,4,0)),"") ->  | U16: =IFERROR(IF(VLOOKUP(L16,config!$A$2:$F$100,5,0)=0,"",VLOOKUP(L16,config!$A$2:$F$100,5,0)),"") ->  | V16: 405 | W16: =IFERROR(IF(VLOOKUP(L16,config!$A$2:$F$100,6,0)=0,"",VLOOKUP(L16,config!$A$2:$F$100,6,0)),"") -> X | X16: Wynagrodzenia | Y16: KUP | AH16: =IF('Plan kont'!B19<>"",'Plan kont'!C19,"") -> Wynagrodzenia/KUP
A17: =IF('Plan kont'!B20<>"",'Plan kont'!B20,"") -> 405-2 | B17: 405 | C17: 2 | H17: 405* | K17: Wynagrodzenia | L17: 405 | N17: 2 | O17: =IFERROR(IF(VLOOKUP(L17,config!$A$2:$F$100,2,0)=0,"",VLOOKUP(L17,config!$A$2:$F$100,2,0)),"") ->  | Q17: =IFERROR(IF(VLOOKUP(L17,config!$A$2:$F$100,3,0)=0,"",VLOOKUP(L17,config!$A$2:$F$100,3,0)),"") ->  | S17: =IFERROR(IF(VLOOKUP(L17,config!$A$2:$F$100,4,0)=0,"",VLOOKUP(L17,config!$A$2:$F$100,4,0)),"") ->  | U17: =IFERROR(IF(VLOOKUP(L17,config!$A$2:$F$100,5,0)=0,"",VLOOKUP(L17,config!$A$2:$F$100,5,0)),"") ->  | V17: 405 | W17: =IFERROR(IF(VLOOKUP(L17,config!$A$2:$F$100,6,0)=0,"",VLOOKUP(L17,config!$A$2:$F$100,6,0)),"") -> X | X17: Wynagrodzenia | Y17: NKUP | AH17: =IF('Plan kont'!B20<>"",'Plan kont'!C20,"") -> Wynagrodzenia/NKUP
A18: =IF('Plan kont'!B21<>"",'Plan kont'!B21,"") -> 406-1-1 | B18: 406 | C18: 1 | D18: 1 | H18: 406* | K18: Ubezpieczenia społeczne i inne świadczenia | L18: 406 | N18: 1 | O18: =IFERROR(IF(VLOOKUP(L18,config!$A$2:$F$100,2,0)=0,"",VLOOKUP(L18,config!$A$2:$F$100,2,0)),"") ->  | P18: 1 | Q18: =IFERROR(IF(VLOOKUP(L18,config!$A$2:$F$100,3,0)=0,"",VLOOKUP(L18,config!$A$2:$F$100,3,0)),"") ->  | S18: =IFERROR(IF(VLOOKUP(L18,config!$A$2:$F$100,4,0)=0,"",VLOOKUP(L18,config!$A$2:$F$100,4,0)),"") ->  | U18: =IFERROR(IF(VLOOKUP(L18,config!$A$2:$F$100,5,0)=0,"",VLOOKUP(L18,config!$A$2:$F$100,5,0)),"") ->  | V18: 406 | W18: =IFERROR(IF(VLOOKUP(L18,config!$A$2:$F$100,6,0)=0,"",VLOOKUP(L18,config!$A$2:$F$100,6,0)),"") -> X | X18: Ubezpieczenia społeczne i inne świadczenia | Y18: KUP | Z18: składki na ub. emerytalne | AH18: =IF('Plan kont'!B21<>"",'Plan kont'!C21,"") -> Ubezpieczenia społeczne i inne świadczenia /KUP/składki na ub. emerytalne
A19: =IF('Plan kont'!B22<>"",'Plan kont'!B22,"") -> 406-2-1 | B19: 406 | C19: 2 | D19: 1 | H19: 406* | K19: Ubezpieczenia społeczne i inne świadczenia | L19: 406 | N19: 2 | O19: =IFERROR(IF(VLOOKUP(L19,config!$A$2:$F$100,2,0)=0,"",VLOOKUP(L19,config!$A$2:$F$100,2,0)),"") ->  | P19: 1 | Q19: =IFERROR(IF(VLOOKUP(L19,config!$A$2:$F$100,3,0)=0,"",VLOOKUP(L19,config!$A$2:$F$100,3,0)),"") ->  | S19: =IFERROR(IF(VLOOKUP(L19,config!$A$2:$F$100,4,0)=0,"",VLOOKUP(L19,config!$A$2:$F$100,4,0)),"") ->  | U19: =IFERROR(IF(VLOOKUP(L19,config!$A$2:$F$100,5,0)=0,"",VLOOKUP(L19,config!$A$2:$F$100,5,0)),"") ->  | V19: 406 | W19: =IFERROR(IF(VLOOKUP(L19,config!$A$2:$F$100,6,0)=0,"",VLOOKUP(L19,config!$A$2:$F$100,6,0)),"") -> X | X19: Ubezpieczenia społeczne i inne świadczenia | Y19: NKUP | Z19: składki na ub. emerytalne | AH19: =IF('Plan kont'!B22<>"",'Plan kont'!C22,"") -> Ubezpieczenia społeczne i inne świadczenia /NKUP/składki na ub. emerytalne
A20: =IF('Plan kont'!B23<>"",'Plan kont'!B23,"") -> 702-2 | B20: 702 | C20: 2 | H20: 702* | K20: =IF(A20<>"",IF(W20="X",X20,IF(W20="Y",Y20,IF(W20="Z",Z20,IF(W20="AA",AA20,IF(W20="X-Y",X20&Y20,IF(W20="X-Z",X20&Z20,IF(W20="X-AA",X20&AA20,IF(W20="Y-Z",Y20&Z20,IF(W20="Y-AA",Y20&ZZ20,IF(W20="Z-AA",Z20&AA20,"")))))))))),"") -> Sprzedaż usług działalności podstawowej | L20: 702 | N20: 2 | O20: =IFERROR(IF(VLOOKUP(L20,config!$A$2:$F$100,2,0)=0,"",VLOOKUP(L20,config!$A$2:$F$100,2,0)),"") ->  | Q20: =IFERROR(IF(VLOOKUP(L20,config!$A$2:$F$100,3,0)=0,"",VLOOKUP(L20,config!$A$2:$F$100,3,0)),"") ->  | S20: =IFERROR(IF(VLOOKUP(L20,config!$A$2:$F$100,4,0)=0,"",VLOOKUP(L20,config!$A$2:$F$100,4,0)),"") ->  | U20: =IFERROR(IF(VLOOKUP(L20,config!$A$2:$F$100,5,0)=0,"",VLOOKUP(L20,config!$A$2:$F$100,5,0)),"") ->  | V20: 702 | W20: =IFERROR(IF(VLOOKUP(L20,config!$A$2:$F$100,6,0)=0,"",VLOOKUP(L20,config!$A$2:$F$100,6,0)),"") -> X | X20: Sprzedaż usług działalności podstawowej | Y20: Sprzedaż do pozostałych jednostek | AH20: =IF('Plan kont'!B23<>"",'Plan kont'!C23,"") -> Sprzedaż usług działalności podstawowej/Sprzedaż do pozostałych jednostek
A21: =IF('Plan kont'!B24<>"",'Plan kont'!B24,"") -> (puste) | B21: (puste) | H21: (puste)* | L21: (puste) | O21: =IFERROR(IF(VLOOKUP(L21,config!$A$2:$F$100,2,0)=0,"",VLOOKUP(L21,config!$A$2:$F$100,2,0)),"") ->  | Q21: =IFERROR(IF(VLOOKUP(L21,config!$A$2:$F$100,3,0)=0,"",VLOOKUP(L21,config!$A$2:$F$100,3,0)),"") ->  | S21: =IFERROR(IF(VLOOKUP(L21,config!$A$2:$F$100,4,0)=0,"",VLOOKUP(L21,config!$A$2:$F$100,4,0)),"") ->  | U21: =IFERROR(IF(VLOOKUP(L21,config!$A$2:$F$100,5,0)=0,"",VLOOKUP(L21,config!$A$2:$F$100,5,0)),"") ->  | V21: (puste) | W21: =IFERROR(IF(VLOOKUP(L21,config!$A$2:$F$100,6,0)=0,"",VLOOKUP(L21,config!$A$2:$F$100,6,0)),"") ->  | X21: (puste) | AH21: =IF('Plan kont'!B24<>"",'Plan kont'!C24,"") -> (puste)
A22: =IF('Plan kont'!B25<>"",'Plan kont'!B25,"") ->  | O22: =IFERROR(IF(VLOOKUP(L22,config!$A$2:$F$100,2,0)=0,"",VLOOKUP(L22,config!$A$2:$F$100,2,0)),"") ->  | Q22: =IFERROR(IF(VLOOKUP(L22,config!$A$2:$F$100,3,0)=0,"",VLOOKUP(L22,config!$A$2:$F$100,3,0)),"") ->  | S22: =IFERROR(IF(VLOOKUP(L22,config!$A$2:$F$100,4,0)=0,"",VLOOKUP(L22,config!$A$2:$F$100,4,0)),"") ->  | U22: =IFERROR(IF(VLOOKUP(L22,config!$A$2:$F$100,5,0)=0,"",VLOOKUP(L22,config!$A$2:$F$100,5,0)),"") ->  | W22: =IFERROR(IF(VLOOKUP(L22,config!$A$2:$F$100,6,0)=0,"",VLOOKUP(L22,config!$A$2:$F$100,6,0)),"") ->  | AH22: =IF('Plan kont'!B25<>"",'Plan kont'!C25,"") -> 
A23: =IF('Plan kont'!B26<>"",'Plan kont'!B26,"") ->  | O23: =IFERROR(IF(VLOOKUP(L23,config!$A$2:$F$100,2,0)=0,"",VLOOKUP(L23,config!$A$2:$F$100,2,0)),"") ->  | Q23: =IFERROR(IF(VLOOKUP(L23,config!$A$2:$F$100,3,0)=0,"",VLOOKUP(L23,config!$A$2:$F$100,3,0)),"") ->  | S23: =IFERROR(IF(VLOOKUP(L23,config!$A$2:$F$100,4,0)=0,"",VLOOKUP(L23,config!$A$2:$F$100,4,0)),"") ->  | U23: =IFERROR(IF(VLOOKUP(L23,config!$A$2:$F$100,5,0)=0,"",VLOOKUP(L23,config!$A$2:$F$100,5,0)),"") ->  | W23: =IFERROR(IF(VLOOKUP(L23,config!$A$2:$F$100,6,0)=0,"",VLOOKUP(L23,config!$A$2:$F$100,6,0)),"") ->  | AH23: =IF('Plan kont'!B26<>"",'Plan kont'!C26,"") -> 
A24: =IF('Plan kont'!B27<>"",'Plan kont'!B27,"") ->  | O24: =IFERROR(IF(VLOOKUP(L24,config!$A$2:$F$100,2,0)=0,"",VLOOKUP(L24,config!$A$2:$F$100,2,0)),"") ->  | Q24: =IFERROR(IF(VLOOKUP(L24,config!$A$2:$F$100,3,0)=0,"",VLOOKUP(L24,config!$A$2:$F$100,3,0)),"") ->  | S24: =IFERROR(IF(VLOOKUP(L24,config!$A$2:$F$100,4,0)=0,"",VLOOKUP(L24,config!$A$2:$F$100,4,0)),"") ->  | U24: =IFERROR(IF(VLOOKUP(L24,config!$A$2:$F$100,5,0)=0,"",VLOOKUP(L24,config!$A$2:$F$100,5,0)),"") ->  | W24: =IFERROR(IF(VLOOKUP(L24,config!$A$2:$F$100,6,0)=0,"",VLOOKUP(L24,config!$A$2:$F$100,6,0)),"") ->  | AH24: =IF('Plan kont'!B27<>"",'Plan kont'!C27,"") -> 
A25: =IF('Plan kont'!B28<>"",'Plan kont'!B28,"") ->  | O25: =IFERROR(IF(VLOOKUP(L25,config!$A$2:$F$100,2,0)=0,"",VLOOKUP(L25,config!$A$2:$F$100,2,0)),"") ->  | Q25: =IFERROR(IF(VLOOKUP(L25,config!$A$2:$F$100,3,0)=0,"",VLOOKUP(L25,config!$A$2:$F$100,3,0)),"") ->  | S25: =IFERROR(IF(VLOOKUP(L25,config!$A$2:$F$100,4,0)=0,"",VLOOKUP(L25,config!$A$2:$F$100,4,0)),"") ->  | U25: =IFERROR(IF(VLOOKUP(L25,config!$A$2:$F$100,5,0)=0,"",VLOOKUP(L25,config!$A$2:$F$100,5,0)),"") ->  | W25: =IFERROR(IF(VLOOKUP(L25,config!$A$2:$F$100,6,0)=0,"",VLOOKUP(L25,config!$A$2:$F$100,6,0)),"") ->  | AH25: =IF('Plan kont'!B28<>"",'Plan kont'!C28,"") -> 
A26: =IF('Plan kont'!B29<>"",'Plan kont'!B29,"") ->  | O26: =IFERROR(IF(VLOOKUP(L26,config!$A$2:$F$100,2,0)=0,"",VLOOKUP(L26,config!$A$2:$F$100,2,0)),"") ->  | Q26: =IFERROR(IF(VLOOKUP(L26,config!$A$2:$F$100,3,0)=0,"",VLOOKUP(L26,config!$A$2:$F$100,3,0)),"") ->  | S26: =IFERROR(IF(VLOOKUP(L26,config!$A$2:$F$100,4,0)=0,"",VLOOKUP(L26,config!$A$2:$F$100,4,0)),"") ->  | U26: =IFERROR(IF(VLOOKUP(L26,config!$A$2:$F$100,5,0)=0,"",VLOOKUP(L26,config!$A$2:$F$100,5,0)),"") ->  | W26: =IFERROR(IF(VLOOKUP(L26,config!$A$2:$F$100,6,0)=0,"",VLOOKUP(L26,config!$A$2:$F$100,6,0)),"") ->  | AH26: =IF('Plan kont'!B29<>"",'Plan kont'!C29,"") -> 
A27: =IF('Plan kont'!B30<>"",'Plan kont'!B30,"") ->  | O27: =IFERROR(IF(VLOOKUP(L27,config!$A$2:$F$100,2,0)=0,"",VLOOKUP(L27,config!$A$2:$F$100,2,0)),"") ->  | Q27: =IFERROR(IF(VLOOKUP(L27,config!$A$2:$F$100,3,0)=0,"",VLOOKUP(L27,config!$A$2:$F$100,3,0)),"") ->  | S27: =IFERROR(IF(VLOOKUP(L27,config!$A$2:$F$100,4,0)=0,"",VLOOKUP(L27,config!$A$2:$F$100,4,0)),"") ->  | U27: =IFERROR(IF(VLOOKUP(L27,config!$A$2:$F$100,5,0)=0,"",VLOOKUP(L27,config!$A$2:$F$100,5,0)),"") ->  | W27: =IFERROR(IF(VLOOKUP(L27,config!$A$2:$F$100,6,0)=0,"",VLOOKUP(L27,config!$A$2:$F$100,6,0)),"") ->  | AH27: =IF('Plan kont'!B30<>"",'Plan kont'!C30,"") -> 
A28: =IF('Plan kont'!B31<>"",'Plan kont'!B31,"") ->  | O28: =IFERROR(IF(VLOOKUP(L28,config!$A$2:$F$100,2,0)=0,"",VLOOKUP(L28,config!$A$2:$F$100,2,0)),"") ->  | Q28: =IFERROR(IF(VLOOKUP(L28,config!$A$2:$F$100,3,0)=0,"",VLOOKUP(L28,config!$A$2:$F$100,3,0)),"") ->  | S28: =IFERROR(IF(VLOOKUP(L28,config!$A$2:$F$100,4,0)=0,"",VLOOKUP(L28,config!$A$2:$F$100,4,0)),"") ->  | U28: =IFERROR(IF(VLOOKUP(L28,config!$A$2:$F$100,5,0)=0,"",VLOOKUP(L28,config!$A$2:$F$100,5,0)),"") ->  | W28: =IFERROR(IF(VLOOKUP(L28,config!$A$2:$F$100,6,0)=0,"",VLOOKUP(L28,config!$A$2:$F$100,6,0)),"") ->  | AH28: =IF('Plan kont'!B31<>"",'Plan kont'!C31,"") -> 
A29: =IF('Plan kont'!B32<>"",'Plan kont'!B32,"") ->  | K29: =IF(A29<>"",IF(W29="X",X29,IF(W29="Y",Y29,IF(W29="Z",Z29,IF(W29="AA",AA29,IF(W29="X-Y",X29&Y29,IF(W29="X-Z",X29&Z29,IF(W29="X-AA",X29&AA29,IF(W29="Y-Z",Y29&Z29,IF(W29="Y-AA",Y29&ZZ29,IF(W29="Z-AA",Z29&AA29,"")))))))))),"") ->  | O29: =IFERROR(IF(VLOOKUP(L29,config!$A$2:$F$100,2,0)=0,"",VLOOKUP(L29,config!$A$2:$F$100,2,0)),"") ->  | Q29: =IFERROR(IF(VLOOKUP(L29,config!$A$2:$F$100,3,0)=0,"",VLOOKUP(L29,config!$A$2:$F$100,3,0)),"") ->  | S29: =IFERROR(IF(VLOOKUP(L29,config!$A$2:$F$100,4,0)=0,"",VLOOKUP(L29,config!$A$2:$F$100,4,0)),"") ->  | U29: =IFERROR(IF(VLOOKUP(L29,config!$A$2:$F$100,5,0)=0,"",VLOOKUP(L29,config!$A$2:$F$100,5,0)),"") ->  | W29: =IFERROR(IF(VLOOKUP(L29,config!$A$2:$F$100,6,0)=0,"",VLOOKUP(L29,config!$A$2:$F$100,6,0)),"") ->  | AH29: =IF('Plan kont'!B32<>"",'Plan kont'!C32,"") -> 
A30: =IF('Plan kont'!B33<>"",'Plan kont'!B33,"") ->  | O30: =IFERROR(IF(VLOOKUP(L30,config!$A$2:$F$100,2,0)=0,"",VLOOKUP(L30,config!$A$2:$F$100,2,0)),"") ->  | Q30: =IFERROR(IF(VLOOKUP(L30,config!$A$2:$F$100,3,0)=0,"",VLOOKUP(L30,config!$A$2:$F$100,3,0)),"") ->  | S30: =IFERROR(IF(VLOOKUP(L30,config!$A$2:$F$100,4,0)=0,"",VLOOKUP(L30,config!$A$2:$F$100,4,0)),"") ->  | U30: =IFERROR(IF(VLOOKUP(L30,config!$A$2:$F$100,5,0)=0,"",VLOOKUP(L30,config!$A$2:$F$100,5,0)),"") ->  | W30: =IFERROR(IF(VLOOKUP(L30,config!$A$2:$F$100,6,0)=0,"",VLOOKUP(L30,config!$A$2:$F$100,6,0)),"") ->  | AH30: =IF('Plan kont'!B33<>"",'Plan kont'!C33,"") -> 
A31: =IF('Plan kont'!B34<>"",'Plan kont'!B34,"") ->  | O31: =IFERROR(IF(VLOOKUP(L31,config!$A$2:$F$100,2,0)=0,"",VLOOKUP(L31,config!$A$2:$F$100,2,0)),"") ->  | Q31: =IFERROR(IF(VLOOKUP(L31,config!$A$2:$F$100,3,0)=0,"",VLOOKUP(L31,config!$A$2:$F$100,3,0)),"") ->  | S31: =IFERROR(IF(VLOOKUP(L31,config!$A$2:$F$100,4,0)=0,"",VLOOKUP(L31,config!$A$2:$F$100,4,0)),"") ->  | U31: =IFERROR(IF(VLOOKUP(L31,config!$A$2:$F$100,5,0)=0,"",VLOOKUP(L31,config!$A$2:$F$100,5,0)),"") ->  | W31: =IFERROR(IF(VLOOKUP(L31,config!$A$2:$F$100,6,0)=0,"",VLOOKUP(L31,config!$A$2:$F$100,6,0)),"") ->  | AH31: =IF('Plan kont'!B34<>"",'Plan kont'!C34,"") -> 
A32: =IF('Plan kont'!B35<>"",'Plan kont'!B35,"") ->  | K32: =IF(A32<>"",IF(W32="X",X32,IF(W32="Y",Y32,IF(W32="Z",Z32,IF(W32="AA",AA32,IF(W32="X-Y",X32&Y32,IF(W32="X-Z",X32&Z32,IF(W32="X-AA",X32&AA32,IF(W32="Y-Z",Y32&Z32,IF(W32="Y-AA",Y32&ZZ32,IF(W32="Z-AA",Z32&AA32,"")))))))))),"") ->  | O32: =IFERROR(IF(VLOOKUP(L32,config!$A$2:$F$100,2,0)=0,"",VLOOKUP(L32,config!$A$2:$F$100,2,0)),"") ->  | Q32: =IFERROR(IF(VLOOKUP(L32,config!$A$2:$F$100,3,0)=0,"",VLOOKUP(L32,config!$A$2:$F$100,3,0)),"") ->  | S32: =IFERROR(IF(VLOOKUP(L32,config!$A$2:$F$100,4,0)=0,"",VLOOKUP(L32,config!$A$2:$F$100,4,0)),"") ->  | U32: =IFERROR(IF(VLOOKUP(L32,config!$A$2:$F$100,5,0)=0,"",VLOOKUP(L32,config!$A$2:$F$100,5,0)),"") ->  | W32: =IFERROR(IF(VLOOKUP(L32,config!$A$2:$F$100,6,0)=0,"",VLOOKUP(L32,config!$A$2:$F$100,6,0)),"") ->  | AH32: =IF('Plan kont'!B35<>"",'Plan kont'!C35,"") -> 
A33: =IF('Plan kont'!B36<>"",'Plan kont'!B36,"") ->  | O33: =IFERROR(IF(VLOOKUP(L33,config!$A$2:$F$100,2,0)=0,"",VLOOKUP(L33,config!$A$2:$F$100,2,0)),"") ->  | Q33: =IFERROR(IF(VLOOKUP(L33,config!$A$2:$F$100,3,0)=0,"",VLOOKUP(L33,config!$A$2:$F$100,3,0)),"") ->  | S33: =IFERROR(IF(VLOOKUP(L33,config!$A$2:$F$100,4,0)=0,"",VLOOKUP(L33,config!$A$2:$F$100,4,0)),"") ->  | U33: =IFERROR(IF(VLOOKUP(L33,config!$A$2:$F$100,5,0)=0,"",VLOOKUP(L33,config!$A$2:$F$100,5,0)),"") ->  | W33: =IFERROR(IF(VLOOKUP(L33,config!$A$2:$F$100,6,0)=0,"",VLOOKUP(L33,config!$A$2:$F$100,6,0)),"") ->  | AH33: =IF('Plan kont'!B36<>"",'Plan kont'!C36,"") -> 
A34: =IF('Plan kont'!B37<>"",'Plan kont'!B37,"") ->  | O34: =IFERROR(IF(VLOOKUP(L34,config!$A$2:$F$100,2,0)=0,"",VLOOKUP(L34,config!$A$2:$F$100,2,0)),"") ->  | Q34: =IFERROR(IF(VLOOKUP(L34,config!$A$2:$F$100,3,0)=0,"",VLOOKUP(L34,config!$A$2:$F$100,3,0)),"") ->  | S34: =IFERROR(IF(VLOOKUP(L34,config!$A$2:$F$100,4,0)=0,"",VLOOKUP(L34,config!$A$2:$F$100,4,0)),"") ->  | U34: =IFERROR(IF(VLOOKUP(L34,config!$A$2:$F$100,5,0)=0,"",VLOOKUP(L34,config!$A$2:$F$100,5,0)),"") ->  | W34: =IFERROR(IF(VLOOKUP(L34,config!$A$2:$F$100,6,0)=0,"",VLOOKUP(L34,config!$A$2:$F$100,6,0)),"") ->  | AH34: =IF('Plan kont'!B37<>"",'Plan kont'!C37,"") -> 
A35: =IF('Plan kont'!B38<>"",'Plan kont'!B38,"") ->  | O35: =IFERROR(IF(VLOOKUP(L35,config!$A$2:$F$100,2,0)=0,"",VLOOKUP(L35,config!$A$2:$F$100,2,0)),"") ->  | Q35: =IFERROR(IF(VLOOKUP(L35,config!$A$2:$F$100,3,0)=0,"",VLOOKUP(L35,config!$A$2:$F$100,3,0)),"") ->  | S35: =IFERROR(IF(VLOOKUP(L35,config!$A$2:$F$100,4,0)=0,"",VLOOKUP(L35,config!$A$2:$F$100,4,0)),"") ->  | U35: =IFERROR(IF(VLOOKUP(L35,config!$A$2:$F$100,5,0)=0,"",VLOOKUP(L35,config!$A$2:$F$100,5,0)),"") ->  | W35: =IFERROR(IF(VLOOKUP(L35,config!$A$2:$F$100,6,0)=0,"",VLOOKUP(L35,config!$A$2:$F$100,6,0)),"") ->  | AH35: =IF('Plan kont'!B38<>"",'Plan kont'!C38,"") -> 
A36: =IF('Plan kont'!B39<>"",'Plan kont'!B39,"") ->  | O36: =IFERROR(IF(VLOOKUP(L36,config!$A$2:$F$100,2,0)=0,"",VLOOKUP(L36,config!$A$2:$F$100,2,0)),"") ->  | Q36: =IFERROR(IF(VLOOKUP(L36,config!$A$2:$F$100,3,0)=0,"",VLOOKUP(L36,config!$A$2:$F$100,3,0)),"") ->  | S36: =IFERROR(IF(VLOOKUP(L36,config!$A$2:$F$100,4,0)=0,"",VLOOKUP(L36,config!$A$2:$F$100,4,0)),"") ->  | U36: =IFERROR(IF(VLOOKUP(L36,config!$A$2:$F$100,5,0)=0,"",VLOOKUP(L36,config!$A$2:$F$100,5,0)),"") ->  | W36: =IFERROR(IF(VLOOKUP(L36,config!$A$2:$F$100,6,0)=0,"",VLOOKUP(L36,config!$A$2:$F$100,6,0)),"") ->  | AH36: =IF('Plan kont'!B39<>"",'Plan kont'!C39,"") -> 
A37: =IF('Plan kont'!B40<>"",'Plan kont'!B40,"") ->  | O37: =IFERROR(IF(VLOOKUP(L37,config!$A$2:$F$100,2,0)=0,"",VLOOKUP(L37,config!$A$2:$F$100,2,0)),"") ->  | Q37: =IFERROR(IF(VLOOKUP(L37,config!$A$2:$F$100,3,0)=0,"",VLOOKUP(L37,config!$A$2:$F$100,3,0)),"") ->  | S37: =IFERROR(IF(VLOOKUP(L37,config!$A$2:$F$100,4,0)=0,"",VLOOKUP(L37,config!$A$2:$F$100,4,0)),"") ->  | U37: =IFERROR(IF(VLOOKUP(L37,config!$A$2:$F$100,5,0)=0,"",VLOOKUP(L37,config!$A$2:$F$100,5,0)),"") ->  | W37: =IFERROR(IF(VLOOKUP(L37,config!$A$2:$F$100,6,0)=0,"",VLOOKUP(L37,config!$A$2:$F$100,6,0)),"") ->  | AH37: =IF('Plan kont'!B40<>"",'Plan kont'!C40,"") -> 
A38: =IF('Plan kont'!B41<>"",'Plan kont'!B41,"") ->  | O38: =IFERROR(IF(VLOOKUP(L38,config!$A$2:$F$100,2,0)=0,"",VLOOKUP(L38,config!$A$2:$F$100,2,0)),"") ->  | Q38: =IFERROR(IF(VLOOKUP(L38,config!$A$2:$F$100,3,0)=0,"",VLOOKUP(L38,config!$A$2:$F$100,3,0)),"") ->  | S38: =IFERROR(IF(VLOOKUP(L38,config!$A$2:$F$100,4,0)=0,"",VLOOKUP(L38,config!$A$2:$F$100,4,0)),"") ->  | U38: =IFERROR(IF(VLOOKUP(L38,config!$A$2:$F$100,5,0)=0,"",VLOOKUP(L38,config!$A$2:$F$100,5,0)),"") ->  | W38: =IFERROR(IF(VLOOKUP(L38,config!$A$2:$F$100,6,0)=0,"",VLOOKUP(L38,config!$A$2:$F$100,6,0)),"") ->  | AH38: =IF('Plan kont'!B41<>"",'Plan kont'!C41,"") -> 
A39: =IF('Plan kont'!B42<>"",'Plan kont'!B42,"") ->  | O39: =IFERROR(IF(VLOOKUP(L39,config!$A$2:$F$100,2,0)=0,"",VLOOKUP(L39,config!$A$2:$F$100,2,0)),"") ->  | Q39: =IFERROR(IF(VLOOKUP(L39,config!$A$2:$F$100,3,0)=0,"",VLOOKUP(L39,config!$A$2:$F$100,3,0)),"") ->  | S39: =IFERROR(IF(VLOOKUP(L39,config!$A$2:$F$100,4,0)=0,"",VLOOKUP(L39,config!$A$2:$F$100,4,0)),"") ->  | U39: =IFERROR(IF(VLOOKUP(L39,config!$A$2:$F$100,5,0)=0,"",VLOOKUP(L39,config!$A$2:$F$100,5,0)),"") ->  | W39: =IFERROR(IF(VLOOKUP(L39,config!$A$2:$F$100,6,0)=0,"",VLOOKUP(L39,config!$A$2:$F$100,6,0)),"") ->  | AH39: =IF('Plan kont'!B42<>"",'Plan kont'!C42,"") -> 
A40: =IF('Plan kont'!B43<>"",'Plan kont'!B43,"") ->  | O40: =IFERROR(IF(VLOOKUP(L40,config!$A$2:$F$100,2,0)=0,"",VLOOKUP(L40,config!$A$2:$F$100,2,0)),"") ->  | Q40: =IFERROR(IF(VLOOKUP(L40,config!$A$2:$F$100,3,0)=0,"",VLOOKUP(L40,config!$A$2:$F$100,3,0)),"") ->  | S40: =IFERROR(IF(VLOOKUP(L40,config!$A$2:$F$100,4,0)=0,"",VLOOKUP(L40,config!$A$2:$F$100,4,0)),"") ->  | U40: =IFERROR(IF(VLOOKUP(L40,config!$A$2:$F$100,5,0)=0,"",VLOOKUP(L40,config!$A$2:$F$100,5,0)),"") ->  | W40: =IFERROR(IF(VLOOKUP(L40,config!$A$2:$F$100,6,0)=0,"",VLOOKUP(L40,config!$A$2:$F$100,6,0)),"") ->  | AH40: =IF('Plan kont'!B43<>"",'Plan kont'!C43,"") -> 
A41: =IF('Plan kont'!B44<>"",'Plan kont'!B44,"") ->  | K41: =IF(A41<>"",IF(W41="X",X41,IF(W41="Y",Y41,IF(W41="Z",Z41,IF(W41="AA",AA41,IF(W41="X-Y",X41&Y41,IF(W41="X-Z",X41&Z41,IF(W41="X-AA",X41&AA41,IF(W41="Y-Z",Y41&Z41,IF(W41="Y-AA",Y41&ZZ41,IF(W41="Z-AA",Z41&AA41,"")))))))))),"") ->  | O41: =IFERROR(IF(VLOOKUP(L41,config!$A$2:$F$100,2,0)=0,"",VLOOKUP(L41,config!$A$2:$F$100,2,0)),"") ->  | Q41: =IFERROR(IF(VLOOKUP(L41,config!$A$2:$F$100,3,0)=0,"",VLOOKUP(L41,config!$A$2:$F$100,3,0)),"") ->  | S41: =IFERROR(IF(VLOOKUP(L41,config!$A$2:$F$100,4,0)=0,"",VLOOKUP(L41,config!$A$2:$F$100,4,0)),"") ->  | U41: =IFERROR(IF(VLOOKUP(L41,config!$A$2:$F$100,5,0)=0,"",VLOOKUP(L41,config!$A$2:$F$100,5,0)),"") ->  | W41: =IFERROR(IF(VLOOKUP(L41,config!$A$2:$F$100,6,0)=0,"",VLOOKUP(L41,config!$A$2:$F$100,6,0)),"") ->  | AH41: =IF('Plan kont'!B44<>"",'Plan kont'!C44,"") -> 
A42: =IF('Plan kont'!B45<>"",'Plan kont'!B45,"") ->  | O42: =IFERROR(IF(VLOOKUP(L42,config!$A$2:$F$100,2,0)=0,"",VLOOKUP(L42,config!$A$2:$F$100,2,0)),"") ->  | Q42: =IFERROR(IF(VLOOKUP(L42,config!$A$2:$F$100,3,0)=0,"",VLOOKUP(L42,config!$A$2:$F$100,3,0)),"") ->  | S42: =IFERROR(IF(VLOOKUP(L42,config!$A$2:$F$100,4,0)=0,"",VLOOKUP(L42,config!$A$2:$F$100,4,0)),"") ->  | U42: =IFERROR(IF(VLOOKUP(L42,config!$A$2:$F$100,5,0)=0,"",VLOOKUP(L42,config!$A$2:$F$100,5,0)),"") ->  | W42: =IFERROR(IF(VLOOKUP(L42,config!$A$2:$F$100,6,0)=0,"",VLOOKUP(L42,config!$A$2:$F$100,6,0)),"") ->  | AH42: =IF('Plan kont'!B45<>"",'Plan kont'!C45,"") -> 
A43: =IF('Plan kont'!B46<>"",'Plan kont'!B46,"") ->  | O43: =IFERROR(IF(VLOOKUP(L43,config!$A$2:$F$100,2,0)=0,"",VLOOKUP(L43,config!$A$2:$F$100,2,0)),"") ->  | Q43: =IFERROR(IF(VLOOKUP(L43,config!$A$2:$F$100,3,0)=0,"",VLOOKUP(L43,config!$A$2:$F$100,3,0)),"") ->  | S43: =IFERROR(IF(VLOOKUP(L43,config!$A$2:$F$100,4,0)=0,"",VLOOKUP(L43,config!$A$2:$F$100,4,0)),"") ->  | U43: =IFERROR(IF(VLOOKUP(L43,config!$A$2:$F$100,5,0)=0,"",VLOOKUP(L43,config!$A$2:$F$100,5,0)),"") ->  | W43: =IFERROR(IF(VLOOKUP(L43,config!$A$2:$F$100,6,0)=0,"",VLOOKUP(L43,config!$A$2:$F$100,6,0)),"") ->  | AH43: =IF('Plan kont'!B46<>"",'Plan kont'!C46,"") -> 
A44: =IF('Plan kont'!B47<>"",'Plan kont'!B47,"") ->  | O44: =IFERROR(IF(VLOOKUP(L44,config!$A$2:$F$100,2,0)=0,"",VLOOKUP(L44,config!$A$2:$F$100,2,0)),"") ->  | Q44: =IFERROR(IF(VLOOKUP(L44,config!$A$2:$F$100,3,0)=0,"",VLOOKUP(L44,config!$A$2:$F$100,3,0)),"") ->  | S44: =IFERROR(IF(VLOOKUP(L44,config!$A$2:$F$100,4,0)=0,"",VLOOKUP(L44,config!$A$2:$F$100,4,0)),"") ->  | U44: =IFERROR(IF(VLOOKUP(L44,config!$A$2:$F$100,5,0)=0,"",VLOOKUP(L44,config!$A$2:$F$100,5,0)),"") ->  | W44: =IFERROR(IF(VLOOKUP(L44,config!$A$2:$F$100,6,0)=0,"",VLOOKUP(L44,config!$A$2:$F$100,6,0)),"") ->  | AH44: =IF('Plan kont'!B47<>"",'Plan kont'!C47,"") -> 
A45: =IF('Plan kont'!B48<>"",'Plan kont'!B48,"") ->  | O45: =IFERROR(IF(VLOOKUP(L45,config!$A$2:$F$100,2,0)=0,"",VLOOKUP(L45,config!$A$2:$F$100,2,0)),"") ->  | Q45: =IFERROR(IF(VLOOKUP(L45,config!$A$2:$F$100,3,0)=0,"",VLOOKUP(L45,config!$A$2:$F$100,3,0)),"") ->  | S45: =IFERROR(IF(VLOOKUP(L45,config!$A$2:$F$100,4,0)=0,"",VLOOKUP(L45,config!$A$2:$F$100,4,0)),"") ->  | U45: =IFERROR(IF(VLOOKUP(L45,config!$A$2:$F$100,5,0)=0,"",VLOOKUP(L45,config!$A$2:$F$100,5,0)),"") ->  | W45: =IFERROR(IF(VLOOKUP(L45,config!$A$2:$F$100,6,0)=0,"",VLOOKUP(L45,config!$A$2:$F$100,6,0)),"") ->  | AH45: =IF('Plan kont'!B48<>"",'Plan kont'!C48,"") -> 
A46: =IF('Plan kont'!B49<>"",'Plan kont'!B49,"") ->  | O46: =IFERROR(IF(VLOOKUP(L46,config!$A$2:$F$100,2,0)=0,"",VLOOKUP(L46,config!$A$2:$F$100,2,0)),"") ->  | Q46: =IFERROR(IF(VLOOKUP(L46,config!$A$2:$F$100,3,0)=0,"",VLOOKUP(L46,config!$A$2:$F$100,3,0)),"") ->  | S46: =IFERROR(IF(VLOOKUP(L46,config!$A$2:$F$100,4,0)=0,"",VLOOKUP(L46,config!$A$2:$F$100,4,0)),"") ->  | U46: =IFERROR(IF(VLOOKUP(L46,config!$A$2:$F$100,5,0)=0,"",VLOOKUP(L46,config!$A$2:$F$100,5,0)),"") ->  | W46: =IFERROR(IF(VLOOKUP(L46,config!$A$2:$F$100,6,0)=0,"",VLOOKUP(L46,config!$A$2:$F$100,6,0)),"") ->  | AH46: =IF('Plan kont'!B49<>"",'Plan kont'!C49,"") -> 
A47: =IF('Plan kont'!B50<>"",'Plan kont'!B50,"") ->  | K47: =IF(A47<>"",IF(W47="X",X47,IF(W47="Y",Y47,IF(W47="Z",Z47,IF(W47="AA",AA47,IF(W47="X-Y",X47&Y47,IF(W47="X-Z",X47&Z47,IF(W47="X-AA",X47&AA47,IF(W47="Y-Z",Y47&Z47,IF(W47="Y-AA",Y47&ZZ47,IF(W47="Z-AA",Z47&AA47,"")))))))))),"") ->  | O47: =IFERROR(IF(VLOOKUP(L47,config!$A$2:$F$100,2,0)=0,"",VLOOKUP(L47,config!$A$2:$F$100,2,0)),"") ->  | Q47: =IFERROR(IF(VLOOKUP(L47,config!$A$2:$F$100,3,0)=0,"",VLOOKUP(L47,config!$A$2:$F$100,3,0)),"") ->  | S47: =IFERROR(IF(VLOOKUP(L47,config!$A$2:$F$100,4,0)=0,"",VLOOKUP(L47,config!$A$2:$F$100,4,0)),"") ->  | U47: =IFERROR(IF(VLOOKUP(L47,config!$A$2:$F$100,5,0)=0,"",VLOOKUP(L47,config!$A$2:$F$100,5,0)),"") ->  | W47: =IFERROR(IF(VLOOKUP(L47,config!$A$2:$F$100,6,0)=0,"",VLOOKUP(L47,config!$A$2:$F$100,6,0)),"") ->  | AH47: =IF('Plan kont'!B50<>"",'Plan kont'!C50,"") -> 
A48: =IF('Plan kont'!B51<>"",'Plan kont'!B51,"") ->  | O48: =IFERROR(IF(VLOOKUP(L48,config!$A$2:$F$100,2,0)=0,"",VLOOKUP(L48,config!$A$2:$F$100,2,0)),"") ->  | Q48: =IFERROR(IF(VLOOKUP(L48,config!$A$2:$F$100,3,0)=0,"",VLOOKUP(L48,config!$A$2:$F$100,3,0)),"") ->  | S48: =IFERROR(IF(VLOOKUP(L48,config!$A$2:$F$100,4,0)=0,"",VLOOKUP(L48,config!$A$2:$F$100,4,0)),"") ->  | U48: =IFERROR(IF(VLOOKUP(L48,config!$A$2:$F$100,5,0)=0,"",VLOOKUP(L48,config!$A$2:$F$100,5,0)),"") ->  | W48: =IFERROR(IF(VLOOKUP(L48,config!$A$2:$F$100,6,0)=0,"",VLOOKUP(L48,config!$A$2:$F$100,6,0)),"") ->  | AH48: =IF('Plan kont'!B51<>"",'Plan kont'!C51,"") -> 
A49: =IF('Plan kont'!B52<>"",'Plan kont'!B52,"") ->  | O49: =IFERROR(IF(VLOOKUP(L49,config!$A$2:$F$100,2,0)=0,"",VLOOKUP(L49,config!$A$2:$F$100,2,0)),"") ->  | Q49: =IFERROR(IF(VLOOKUP(L49,config!$A$2:$F$100,3,0)=0,"",VLOOKUP(L49,config!$A$2:$F$100,3,0)),"") ->  | S49: =IFERROR(IF(VLOOKUP(L49,config!$A$2:$F$100,4,0)=0,"",VLOOKUP(L49,config!$A$2:$F$100,4,0)),"") ->  | U49: =IFERROR(IF(VLOOKUP(L49,config!$A$2:$F$100,5,0)=0,"",VLOOKUP(L49,config!$A$2:$F$100,5,0)),"") ->  | W49: =IFERROR(IF(VLOOKUP(L49,config!$A$2:$F$100,6,0)=0,"",VLOOKUP(L49,config!$A$2:$F$100,6,0)),"") ->  | AH49: =IF('Plan kont'!B52<>"",'Plan kont'!C52,"") -> 
A50: =IF('Plan kont'!B53<>"",'Plan kont'!B53,"") ->  | O50: =IFERROR(IF(VLOOKUP(L50,config!$A$2:$F$100,2,0)=0,"",VLOOKUP(L50,config!$A$2:$F$100,2,0)),"") ->  | Q50: =IFERROR(IF(VLOOKUP(L50,config!$A$2:$F$100,3,0)=0,"",VLOOKUP(L50,config!$A$2:$F$100,3,0)),"") ->  | S50: =IFERROR(IF(VLOOKUP(L50,config!$A$2:$F$100,4,0)=0,"",VLOOKUP(L50,config!$A$2:$F$100,4,0)),"") ->  | U50: =IFERROR(IF(VLOOKUP(L50,config!$A$2:$F$100,5,0)=0,"",VLOOKUP(L50,config!$A$2:$F$100,5,0)),"") ->  | W50: =IFERROR(IF(VLOOKUP(L50,config!$A$2:$F$100,6,0)=0,"",VLOOKUP(L50,config!$A$2:$F$100,6,0)),"") ->  | AH50: =IF('Plan kont'!B53<>"",'Plan kont'!C53,"") -> 
A51: =IF('Plan kont'!B54<>"",'Plan kont'!B54,"") ->  | O51: =IFERROR(IF(VLOOKUP(L51,config!$A$2:$F$100,2,0)=0,"",VLOOKUP(L51,config!$A$2:$F$100,2,0)),"") ->  | Q51: =IFERROR(IF(VLOOKUP(L51,config!$A$2:$F$100,3,0)=0,"",VLOOKUP(L51,config!$A$2:$F$100,3,0)),"") ->  | S51: =IFERROR(IF(VLOOKUP(L51,config!$A$2:$F$100,4,0)=0,"",VLOOKUP(L51,config!$A$2:$F$100,4,0)),"") ->  | U51: =IFERROR(IF(VLOOKUP(L51,config!$A$2:$F$100,5,0)=0,"",VLOOKUP(L51,config!$A$2:$F$100,5,0)),"") ->  | W51: =IFERROR(IF(VLOOKUP(L51,config!$A$2:$F$100,6,0)=0,"",VLOOKUP(L51,config!$A$2:$F$100,6,0)),"") ->  | AH51: =IF('Plan kont'!B54<>"",'Plan kont'!C54,"") -> 
A52: =IF('Plan kont'!B55<>"",'Plan kont'!B55,"") ->  | O52: =IFERROR(IF(VLOOKUP(L52,config!$A$2:$F$100,2,0)=0,"",VLOOKUP(L52,config!$A$2:$F$100,2,0)),"") ->  | Q52: =IFERROR(IF(VLOOKUP(L52,config!$A$2:$F$100,3,0)=0,"",VLOOKUP(L52,config!$A$2:$F$100,3,0)),"") ->  | S52: =IFERROR(IF(VLOOKUP(L52,config!$A$2:$F$100,4,0)=0,"",VLOOKUP(L52,config!$A$2:$F$100,4,0)),"") ->  | U52: =IFERROR(IF(VLOOKUP(L52,config!$A$2:$F$100,5,0)=0,"",VLOOKUP(L52,config!$A$2:$F$100,5,0)),"") ->  | W52: =IFERROR(IF(VLOOKUP(L52,config!$A$2:$F$100,6,0)=0,"",VLOOKUP(L52,config!$A$2:$F$100,6,0)),"") ->  | AH52: =IF('Plan kont'!B55<>"",'Plan kont'!C55,"") -> 
A53: =IF('Plan kont'!B56<>"",'Plan kont'!B56,"") ->  | O53: =IFERROR(IF(VLOOKUP(L53,config!$A$2:$F$100,2,0)=0,"",VLOOKUP(L53,config!$A$2:$F$100,2,0)),"") ->  | Q53: =IFERROR(IF(VLOOKUP(L53,config!$A$2:$F$100,3,0)=0,"",VLOOKUP(L53,config!$A$2:$F$100,3,0)),"") ->  | S53: =IFERROR(IF(VLOOKUP(L53,config!$A$2:$F$100,4,0)=0,"",VLOOKUP(L53,config!$A$2:$F$100,4,0)),"") ->  | U53: =IFERROR(IF(VLOOKUP(L53,config!$A$2:$F$100,5,0)=0,"",VLOOKUP(L53,config!$A$2:$F$100,5,0)),"") ->  | W53: =IFERROR(IF(VLOOKUP(L53,config!$A$2:$F$100,6,0)=0,"",VLOOKUP(L53,config!$A$2:$F$100,6,0)),"") ->  | AH53: =IF('Plan kont'!B56<>"",'Plan kont'!C56,"") -> 
A54: =IF('Plan kont'!B57<>"",'Plan kont'!B57,"") ->  | O54: =IFERROR(IF(VLOOKUP(L54,config!$A$2:$F$100,2,0)=0,"",VLOOKUP(L54,config!$A$2:$F$100,2,0)),"") ->  | Q54: =IFERROR(IF(VLOOKUP(L54,config!$A$2:$F$100,3,0)=0,"",VLOOKUP(L54,config!$A$2:$F$100,3,0)),"") ->  | S54: =IFERROR(IF(VLOOKUP(L54,config!$A$2:$F$100,4,0)=0,"",VLOOKUP(L54,config!$A$2:$F$100,4,0)),"") ->  | U54: =IFERROR(IF(VLOOKUP(L54,config!$A$2:$F$100,5,0)=0,"",VLOOKUP(L54,config!$A$2:$F$100,5,0)),"") ->  | W54: =IFERROR(IF(VLOOKUP(L54,config!$A$2:$F$100,6,0)=0,"",VLOOKUP(L54,config!$A$2:$F$100,6,0)),"") ->  | AH54: =IF('Plan kont'!B57<>"",'Plan kont'!C57,"") -> 
A55: =IF('Plan kont'!B58<>"",'Plan kont'!B58,"") ->  | O55: =IFERROR(IF(VLOOKUP(L55,config!$A$2:$F$100,2,0)=0,"",VLOOKUP(L55,config!$A$2:$F$100,2,0)),"") ->  | Q55: =IFERROR(IF(VLOOKUP(L55,config!$A$2:$F$100,3,0)=0,"",VLOOKUP(L55,config!$A$2:$F$100,3,0)),"") ->  | S55: =IFERROR(IF(VLOOKUP(L55,config!$A$2:$F$100,4,0)=0,"",VLOOKUP(L55,config!$A$2:$F$100,4,0)),"") ->  | U55: =IFERROR(IF(VLOOKUP(L55,config!$A$2:$F$100,5,0)=0,"",VLOOKUP(L55,config!$A$2:$F$100,5,0)),"") ->  | W55: =IFERROR(IF(VLOOKUP(L55,config!$A$2:$F$100,6,0)=0,"",VLOOKUP(L55,config!$A$2:$F$100,6,0)),"") ->  | AH55: =IF('Plan kont'!B58<>"",'Plan kont'!C58,"") -> 
A56: =IF('Plan kont'!B59<>"",'Plan kont'!B59,"") ->  | K56: =IF(A56<>"",IF(W56="X",X56,IF(W56="Y",Y56,IF(W56="Z",Z56,IF(W56="AA",AA56,IF(W56="X-Y",X56&Y56,IF(W56="X-Z",X56&Z56,IF(W56="X-AA",X56&AA56,IF(W56="Y-Z",Y56&Z56,IF(W56="Y-AA",Y56&ZZ56,IF(W56="Z-AA",Z56&AA56,"")))))))))),"") ->  | O56: =IFERROR(IF(VLOOKUP(L56,config!$A$2:$F$100,2,0)=0,"",VLOOKUP(L56,config!$A$2:$F$100,2,0)),"") ->  | Q56: =IFERROR(IF(VLOOKUP(L56,config!$A$2:$F$100,3,0)=0,"",VLOOKUP(L56,config!$A$2:$F$100,3,0)),"") ->  | S56: =IFERROR(IF(VLOOKUP(L56,config!$A$2:$F$100,4,0)=0,"",VLOOKUP(L56,config!$A$2:$F$100,4,0)),"") ->  | U56: =IFERROR(IF(VLOOKUP(L56,config!$A$2:$F$100,5,0)=0,"",VLOOKUP(L56,config!$A$2:$F$100,5,0)),"") ->  | W56: =IFERROR(IF(VLOOKUP(L56,config!$A$2:$F$100,6,0)=0,"",VLOOKUP(L56,config!$A$2:$F$100,6,0)),"") ->  | AH56: =IF('Plan kont'!B59<>"",'Plan kont'!C59,"") -> 
A57: =IF('Plan kont'!B60<>"",'Plan kont'!B60,"") ->  | O57: =IFERROR(IF(VLOOKUP(L57,config!$A$2:$F$100,2,0)=0,"",VLOOKUP(L57,config!$A$2:$F$100,2,0)),"") ->  | Q57: =IFERROR(IF(VLOOKUP(L57,config!$A$2:$F$100,3,0)=0,"",VLOOKUP(L57,config!$A$2:$F$100,3,0)),"") ->  | S57: =IFERROR(IF(VLOOKUP(L57,config!$A$2:$F$100,4,0)=0,"",VLOOKUP(L57,config!$A$2:$F$100,4,0)),"") ->  | U57: =IFERROR(IF(VLOOKUP(L57,config!$A$2:$F$100,5,0)=0,"",VLOOKUP(L57,config!$A$2:$F$100,5,0)),"") ->  | W57: =IFERROR(IF(VLOOKUP(L57,config!$A$2:$F$100,6,0)=0,"",VLOOKUP(L57,config!$A$2:$F$100,6,0)),"") ->  | AH57: =IF('Plan kont'!B60<>"",'Plan kont'!C60,"") -> 
A58: =IF('Plan kont'!B61<>"",'Plan kont'!B61,"") ->  | O58: =IFERROR(IF(VLOOKUP(L58,config!$A$2:$F$100,2,0)=0,"",VLOOKUP(L58,config!$A$2:$F$100,2,0)),"") ->  | Q58: =IFERROR(IF(VLOOKUP(L58,config!$A$2:$F$100,3,0)=0,"",VLOOKUP(L58,config!$A$2:$F$100,3,0)),"") ->  | S58: =IFERROR(IF(VLOOKUP(L58,config!$A$2:$F$100,4,0)=0,"",VLOOKUP(L58,config!$A$2:$F$100,4,0)),"") ->  | U58: =IFERROR(IF(VLOOKUP(L58,config!$A$2:$F$100,5,0)=0,"",VLOOKUP(L58,config!$A$2:$F$100,5,0)),"") ->  | W58: =IFERROR(IF(VLOOKUP(L58,config!$A$2:$F$100,6,0)=0,"",VLOOKUP(L58,config!$A$2:$F$100,6,0)),"") ->  | AH58: =IF('Plan kont'!B61<>"",'Plan kont'!C61,"") -> 
A59: =IF('Plan kont'!B62<>"",'Plan kont'!B62,"") ->  | O59: =IFERROR(IF(VLOOKUP(L59,config!$A$2:$F$100,2,0)=0,"",VLOOKUP(L59,config!$A$2:$F$100,2,0)),"") ->  | Q59: =IFERROR(IF(VLOOKUP(L59,config!$A$2:$F$100,3,0)=0,"",VLOOKUP(L59,config!$A$2:$F$100,3,0)),"") ->  | S59: =IFERROR(IF(VLOOKUP(L59,config!$A$2:$F$100,4,0)=0,"",VLOOKUP(L59,config!$A$2:$F$100,4,0)),"") ->  | U59: =IFERROR(IF(VLOOKUP(L59,config!$A$2:$F$100,5,0)=0,"",VLOOKUP(L59,config!$A$2:$F$100,5,0)),"") ->  | W59: =IFERROR(IF(VLOOKUP(L59,config!$A$2:$F$100,6,0)=0,"",VLOOKUP(L59,config!$A$2:$F$100,6,0)),"") ->  | AH59: =IF('Plan kont'!B62<>"",'Plan kont'!C62,"") -> 
A60: =IF('Plan kont'!B63<>"",'Plan kont'!B63,"") ->  | O60: =IFERROR(IF(VLOOKUP(L60,config!$A$2:$F$100,2,0)=0,"",VLOOKUP(L60,config!$A$2:$F$100,2,0)),"") ->  | Q60: =IFERROR(IF(VLOOKUP(L60,config!$A$2:$F$100,3,0)=0,"",VLOOKUP(L60,config!$A$2:$F$100,3,0)),"") ->  | S60: =IFERROR(IF(VLOOKUP(L60,config!$A$2:$F$100,4,0)=0,"",VLOOKUP(L60,config!$A$2:$F$100,4,0)),"") ->  | U60: =IFERROR(IF(VLOOKUP(L60,config!$A$2:$F$100,5,0)=0,"",VLOOKUP(L60,config!$A$2:$F$100,5,0)),"") ->  | W60: =IFERROR(IF(VLOOKUP(L60,config!$A$2:$F$100,6,0)=0,"",VLOOKUP(L60,config!$A$2:$F$100,6,0)),"") ->  | AH60: =IF('Plan kont'!B63<>"",'Plan kont'!C63,"") -> 
A61: =IF('Plan kont'!B64<>"",'Plan kont'!B64,"") ->  | O61: =IFERROR(IF(VLOOKUP(L61,config!$A$2:$F$100,2,0)=0,"",VLOOKUP(L61,config!$A$2:$F$100,2,0)),"") ->  | Q61: =IFERROR(IF(VLOOKUP(L61,config!$A$2:$F$100,3,0)=0,"",VLOOKUP(L61,config!$A$2:$F$100,3,0)),"") ->  | S61: =IFERROR(IF(VLOOKUP(L61,config!$A$2:$F$100,4,0)=0,"",VLOOKUP(L61,config!$A$2:$F$100,4,0)),"") ->  | U61: =IFERROR(IF(VLOOKUP(L61,config!$A$2:$F$100,5,0)=0,"",VLOOKUP(L61,config!$A$2:$F$100,5,0)),"") ->  | W61: =IFERROR(IF(VLOOKUP(L61,config!$A$2:$F$100,6,0)=0,"",VLOOKUP(L61,config!$A$2:$F$100,6,0)),"") ->  | AH61: =IF('Plan kont'!B64<>"",'Plan kont'!C64,"") -> 
A62: =IF('Plan kont'!B65<>"",'Plan kont'!B65,"") ->  | O62: =IFERROR(IF(VLOOKUP(L62,config!$A$2:$F$100,2,0)=0,"",VLOOKUP(L62,config!$A$2:$F$100,2,0)),"") ->  | Q62: =IFERROR(IF(VLOOKUP(L62,config!$A$2:$F$100,3,0)=0,"",VLOOKUP(L62,config!$A$2:$F$100,3,0)),"") ->  | S62: =IFERROR(IF(VLOOKUP(L62,config!$A$2:$F$100,4,0)=0,"",VLOOKUP(L62,config!$A$2:$F$100,4,0)),"") ->  | U62: =IFERROR(IF(VLOOKUP(L62,config!$A$2:$F$100,5,0)=0,"",VLOOKUP(L62,config!$A$2:$F$100,5,0)),"") ->  | W62: =IFERROR(IF(VLOOKUP(L62,config!$A$2:$F$100,6,0)=0,"",VLOOKUP(L62,config!$A$2:$F$100,6,0)),"") ->  | AH62: =IF('Plan kont'!B65<>"",'Plan kont'!C65,"") -> 
A63: =IF('Plan kont'!B66<>"",'Plan kont'!B66,"") ->  | O63: =IFERROR(IF(VLOOKUP(L63,config!$A$2:$F$100,2,0)=0,"",VLOOKUP(L63,config!$A$2:$F$100,2,0)),"") ->  | Q63: =IFERROR(IF(VLOOKUP(L63,config!$A$2:$F$100,3,0)=0,"",VLOOKUP(L63,config!$A$2:$F$100,3,0)),"") ->  | S63: =IFERROR(IF(VLOOKUP(L63,config!$A$2:$F$100,4,0)=0,"",VLOOKUP(L63,config!$A$2:$F$100,4,0)),"") ->  | U63: =IFERROR(IF(VLOOKUP(L63,config!$A$2:$F$100,5,0)=0,"",VLOOKUP(L63,config!$A$2:$F$100,5,0)),"") ->  | W63: =IFERROR(IF(VLOOKUP(L63,config!$A$2:$F$100,6,0)=0,"",VLOOKUP(L63,config!$A$2:$F$100,6,0)),"") ->  | AH63: =IF('Plan kont'!B66<>"",'Plan kont'!C66,"") -> 
A64: =IF('Plan kont'!B67<>"",'Plan kont'!B67,"") ->  | O64: =IFERROR(IF(VLOOKUP(L64,config!$A$2:$F$100,2,0)=0,"",VLOOKUP(L64,config!$A$2:$F$100,2,0)),"") ->  | Q64: =IFERROR(IF(VLOOKUP(L64,config!$A$2:$F$100,3,0)=0,"",VLOOKUP(L64,config!$A$2:$F$100,3,0)),"") ->  | S64: =IFERROR(IF(VLOOKUP(L64,config!$A$2:$F$100,4,0)=0,"",VLOOKUP(L64,config!$A$2:$F$100,4,0)),"") ->  | U64: =IFERROR(IF(VLOOKUP(L64,config!$A$2:$F$100,5,0)=0,"",VLOOKUP(L64,config!$A$2:$F$100,5,0)),"") ->  | W64: =IFERROR(IF(VLOOKUP(L64,config!$A$2:$F$100,6,0)=0,"",VLOOKUP(L64,config!$A$2:$F$100,6,0)),"") ->  | AH64: =IF('Plan kont'!B67<>"",'Plan kont'!C67,"") -> 
A65: =IF('Plan kont'!B68<>"",'Plan kont'!B68,"") ->  | K65: =IF(A65<>"",IF(W65="X",X65,IF(W65="Y",Y65,IF(W65="Z",Z65,IF(W65="AA",AA65,IF(W65="X-Y",X65&Y65,IF(W65="X-Z",X65&Z65,IF(W65="X-AA",X65&AA65,IF(W65="Y-Z",Y65&Z65,IF(W65="Y-AA",Y65&ZZ65,IF(W65="Z-AA",Z65&AA65,"")))))))))),"") ->  | O65: =IFERROR(IF(VLOOKUP(L65,config!$A$2:$F$100,2,0)=0,"",VLOOKUP(L65,config!$A$2:$F$100,2,0)),"") ->  | Q65: =IFERROR(IF(VLOOKUP(L65,config!$A$2:$F$100,3,0)=0,"",VLOOKUP(L65,config!$A$2:$F$100,3,0)),"") ->  | S65: =IFERROR(IF(VLOOKUP(L65,config!$A$2:$F$100,4,0)=0,"",VLOOKUP(L65,config!$A$2:$F$100,4,0)),"") ->  | U65: =IFERROR(IF(VLOOKUP(L65,config!$A$2:$F$100,5,0)=0,"",VLOOKUP(L65,config!$A$2:$F$100,5,0)),"") ->  | W65: =IFERROR(IF(VLOOKUP(L65,config!$A$2:$F$100,6,0)=0,"",VLOOKUP(L65,config!$A$2:$F$100,6,0)),"") ->  | AH65: =IF('Plan kont'!B68<>"",'Plan kont'!C68,"") -> 
A66: =IF('Plan kont'!B69<>"",'Plan kont'!B69,"") ->  | O66: =IFERROR(IF(VLOOKUP(L66,config!$A$2:$F$100,2,0)=0,"",VLOOKUP(L66,config!$A$2:$F$100,2,0)),"") ->  | Q66: =IFERROR(IF(VLOOKUP(L66,config!$A$2:$F$100,3,0)=0,"",VLOOKUP(L66,config!$A$2:$F$100,3,0)),"") ->  | S66: =IFERROR(IF(VLOOKUP(L66,config!$A$2:$F$100,4,0)=0,"",VLOOKUP(L66,config!$A$2:$F$100,4,0)),"") ->  | U66: =IFERROR(IF(VLOOKUP(L66,config!$A$2:$F$100,5,0)=0,"",VLOOKUP(L66,config!$A$2:$F$100,5,0)),"") ->  | W66: =IFERROR(IF(VLOOKUP(L66,config!$A$2:$F$100,6,0)=0,"",VLOOKUP(L66,config!$A$2:$F$100,6,0)),"") ->  | AH66: =IF('Plan kont'!B69<>"",'Plan kont'!C69,"") -> 
A67: =IF('Plan kont'!B70<>"",'Plan kont'!B70,"") ->  | H67: =IF(A67<>"",IF(U67<>"",L67&"-"&N67&"-"&P67&"-"&R67&"-"&T67,IF(S67<>"",L67&"-"&N67&"-"&P67&"-"&R67&"*",IF(Q67<>"",L67&"-"&N67&"-"&P67&"*",IF(O67<>"",L67&"-"&N67&"*",L67&"*")))),"") ->  | K67: =IF(A67<>"",IF(W67="X",X67,IF(W67="Y",Y67,IF(W67="Z",Z67,IF(W67="AA",AA67,IF(W67="X-Y",X67&Y67,IF(W67="X-Z",X67&Z67,IF(W67="X-AA",X67&AA67,IF(W67="Y-Z",Y67&Z67,IF(W67="Y-AA",Y67&ZZ67,IF(W67="Z-AA",Z67&AA67,"")))))))))),"") ->  | L67: =IF(B67<>"",IF(LEN(B67)=2,0&B67,B67),"") ->  | N67: =IF(C67<>"",C67,"") ->  | O67: =IFERROR(IF(VLOOKUP(L67,config!$A$2:$F$100,2,0)=0,"",VLOOKUP(L67,config!$A$2:$F$100,2,0)),"") ->  | P67: =IF(D67<>"",D67,"") ->  | Q67: =IFERROR(IF(VLOOKUP(L67,config!$A$2:$F$100,3,0)=0,"",VLOOKUP(L67,config!$A$2:$F$100,3,0)),"") ->  | R67: =IF(E67<>"",E67,"") ->  | S67: =IFERROR(IF(VLOOKUP(L67,config!$A$2:$F$100,4,0)=0,"",VLOOKUP(L67,config!$A$2:$F$100,4,0)),"") ->  | T67: =IF(F67<>"",F67,"") ->  | U67: =IFERROR(IF(VLOOKUP(L67,config!$A$2:$F$100,5,0)=0,"",VLOOKUP(L67,config!$A$2:$F$100,5,0)),"") ->  | V67: =IF(A67<>"",IF(AND(O67<>"",Q67<>"",S67<>"",U67<>""),L67&"-"&N67&"-"&P67&"-"&R67&"-"&T67,IF(AND(O67<>"",Q67<>"",S67<>""),L67&"-"&N67&"-"&P67&"-"&R67,IF(AND(Q67<>"",S67<>"",U67<>""),L67&"-"&P67&"-"&R67&"-"&T67,IF(AND(O67<>"",S67<>"",U67<>""),L67&"-"&N67&"-"&R67&"-"&T67,IF(AND(O67<>"",Q67<>"",U67<>""),L67&"-"&N67&"-"&P67&"-"&T67,IF(AND(O67<>"",Q67<>""),L67&"-"&N67&"-"&P67,IF(AND(O67<>"",S67<>""),L67&"-"&N67&"-"&R67,IF(AND(O67<>"",U67<>""),L67&"-"&N67&"-"&T67,IF(O67<>"",L67&"-"&N67,IF(AND(Q67<>"",S67<>""),L67&"-"&P67&"-"&R67,IF(AND(Q67<>"",U67<>""),L67&"-"&P67&"-"&T67,IF(AND(S67<>"",U67<>""),L67&"-"&R67&"-"&T67,IF(O67<>"",L67&"-"&N67,IF(Q67<>"",L67&"-"&P67,IF(U67<>"",L67&"-"&T67,IF(S67<>"",L67&"-"&R67,L67)))))))))))))))),"") ->  | W67: =IFERROR(IF(VLOOKUP(L67,config!$A$2:$F$100,6,0)=0,"",VLOOKUP(L67,config!$A$2:$F$100,6,0)),"") ->  | AH67: =IF('Plan kont'!B70<>"",'Plan kont'!C70,"") -> 
A68: =IF('Plan kont'!B71<>"",'Plan kont'!B71,"") ->  | O68: =IFERROR(IF(VLOOKUP(L68,config!$A$2:$F$100,2,0)=0,"",VLOOKUP(L68,config!$A$2:$F$100,2,0)),"") ->  | Q68: =IFERROR(IF(VLOOKUP(L68,config!$A$2:$F$100,3,0)=0,"",VLOOKUP(L68,config!$A$2:$F$100,3,0)),"") ->  | S68: =IFERROR(IF(VLOOKUP(L68,config!$A$2:$F$100,4,0)=0,"",VLOOKUP(L68,config!$A$2:$F$100,4,0)),"") ->  | U68: =IFERROR(IF(VLOOKUP(L68,config!$A$2:$F$100,5,0)=0,"",VLOOKUP(L68,config!$A$2:$F$100,5,0)),"") ->  | W68: =IFERROR(IF(VLOOKUP(L68,config!$A$2:$F$100,6,0)=0,"",VLOOKUP(L68,config!$A$2:$F$100,6,0)),"") ->  | AH68: =IF('Plan kont'!B71<>"",'Plan kont'!C71,"") -> 
A69: =IF('Plan kont'!B72<>"",'Plan kont'!B72,"") ->  | N69: =IF(C69<>"",C69,"") ->  | O69: =IFERROR(IF(VLOOKUP(L69,config!$A$2:$F$100,2,0)=0,"",VLOOKUP(L69,config!$A$2:$F$100,2,0)),"") ->  | Q69: =IFERROR(IF(VLOOKUP(L69,config!$A$2:$F$100,3,0)=0,"",VLOOKUP(L69,config!$A$2:$F$100,3,0)),"") ->  | S69: =IFERROR(IF(VLOOKUP(L69,config!$A$2:$F$100,4,0)=0,"",VLOOKUP(L69,config!$A$2:$F$100,4,0)),"") ->  | U69: =IFERROR(IF(VLOOKUP(L69,config!$A$2:$F$100,5,0)=0,"",VLOOKUP(L69,config!$A$2:$F$100,5,0)),"") ->  | W69: =IFERROR(IF(VLOOKUP(L69,config!$A$2:$F$100,6,0)=0,"",VLOOKUP(L69,config!$A$2:$F$100,6,0)),"") ->  | AH69: =IF('Plan kont'!B72<>"",'Plan kont'!C72,"") -> 
A70: =IF('Plan kont'!B73<>"",'Plan kont'!B73,"") ->  | O70: =IFERROR(IF(VLOOKUP(L70,config!$A$2:$F$100,2,0)=0,"",VLOOKUP(L70,config!$A$2:$F$100,2,0)),"") ->  | Q70: =IFERROR(IF(VLOOKUP(L70,config!$A$2:$F$100,3,0)=0,"",VLOOKUP(L70,config!$A$2:$F$100,3,0)),"") ->  | S70: =IFERROR(IF(VLOOKUP(L70,config!$A$2:$F$100,4,0)=0,"",VLOOKUP(L70,config!$A$2:$F$100,4,0)),"") ->  | U70: =IFERROR(IF(VLOOKUP(L70,config!$A$2:$F$100,5,0)=0,"",VLOOKUP(L70,config!$A$2:$F$100,5,0)),"") ->  | W70: =IFERROR(IF(VLOOKUP(L70,config!$A$2:$F$100,6,0)=0,"",VLOOKUP(L70,config!$A$2:$F$100,6,0)),"") ->  | AH70: =IF('Plan kont'!B73<>"",'Plan kont'!C73,"") -> 
A71: =IF('Plan kont'!B74<>"",'Plan kont'!B74,"") ->  | O71: =IFERROR(IF(VLOOKUP(L71,config!$A$2:$F$100,2,0)=0,"",VLOOKUP(L71,config!$A$2:$F$100,2,0)),"") ->  | Q71: =IFERROR(IF(VLOOKUP(L71,config!$A$2:$F$100,3,0)=0,"",VLOOKUP(L71,config!$A$2:$F$100,3,0)),"") ->  | S71: =IFERROR(IF(VLOOKUP(L71,config!$A$2:$F$100,4,0)=0,"",VLOOKUP(L71,config!$A$2:$F$100,4,0)),"") ->  | U71: =IFERROR(IF(VLOOKUP(L71,config!$A$2:$F$100,5,0)=0,"",VLOOKUP(L71,config!$A$2:$F$100,5,0)),"") ->  | W71: =IFERROR(IF(VLOOKUP(L71,config!$A$2:$F$100,6,0)=0,"",VLOOKUP(L71,config!$A$2:$F$100,6,0)),"") ->  | AH71: =IF('Plan kont'!B74<>"",'Plan kont'!C74,"") -> 
A72: =IF('Plan kont'!B75<>"",'Plan kont'!B75,"") ->  | O72: =IFERROR(IF(VLOOKUP(L72,config!$A$2:$F$100,2,0)=0,"",VLOOKUP(L72,config!$A$2:$F$100,2,0)),"") ->  | Q72: =IFERROR(IF(VLOOKUP(L72,config!$A$2:$F$100,3,0)=0,"",VLOOKUP(L72,config!$A$2:$F$100,3,0)),"") ->  | S72: =IFERROR(IF(VLOOKUP(L72,config!$A$2:$F$100,4,0)=0,"",VLOOKUP(L72,config!$A$2:$F$100,4,0)),"") ->  | U72: =IFERROR(IF(VLOOKUP(L72,config!$A$2:$F$100,5,0)=0,"",VLOOKUP(L72,config!$A$2:$F$100,5,0)),"") ->  | W72: =IFERROR(IF(VLOOKUP(L72,config!$A$2:$F$100,6,0)=0,"",VLOOKUP(L72,config!$A$2:$F$100,6,0)),"") ->  | AH72: =IF('Plan kont'!B75<>"",'Plan kont'!C75,"") -> 
A73: =IF('Plan kont'!B76<>"",'Plan kont'!B76,"") ->  | O73: =IFERROR(IF(VLOOKUP(L73,config!$A$2:$F$100,2,0)=0,"",VLOOKUP(L73,config!$A$2:$F$100,2,0)),"") ->  | Q73: =IFERROR(IF(VLOOKUP(L73,config!$A$2:$F$100,3,0)=0,"",VLOOKUP(L73,config!$A$2:$F$100,3,0)),"") ->  | S73: =IFERROR(IF(VLOOKUP(L73,config!$A$2:$F$100,4,0)=0,"",VLOOKUP(L73,config!$A$2:$F$100,4,0)),"") ->  | U73: =IFERROR(IF(VLOOKUP(L73,config!$A$2:$F$100,5,0)=0,"",VLOOKUP(L73,config!$A$2:$F$100,5,0)),"") ->  | W73: =IFERROR(IF(VLOOKUP(L73,config!$A$2:$F$100,6,0)=0,"",VLOOKUP(L73,config!$A$2:$F$100,6,0)),"") ->  | AH73: =IF('Plan kont'!B76<>"",'Plan kont'!C76,"") -> 
A74: =IF('Plan kont'!B77<>"",'Plan kont'!B77,"") ->  | K74: =IF(A74<>"",IF(W74="X",X74,IF(W74="Y",Y74,IF(W74="Z",Z74,IF(W74="AA",AA74,IF(W74="X-Y",X74&Y74,IF(W74="X-Z",X74&Z74,IF(W74="X-AA",X74&AA74,IF(W74="Y-Z",Y74&Z74,IF(W74="Y-AA",Y74&ZZ74,IF(W74="Z-AA",Z74&AA74,"")))))))))),"") ->  | O74: =IFERROR(IF(VLOOKUP(L74,config!$A$2:$F$100,2,0)=0,"",VLOOKUP(L74,config!$A$2:$F$100,2,0)),"") ->  | Q74: =IFERROR(IF(VLOOKUP(L74,config!$A$2:$F$100,3,0)=0,"",VLOOKUP(L74,config!$A$2:$F$100,3,0)),"") ->  | S74: =IFERROR(IF(VLOOKUP(L74,config!$A$2:$F$100,4,0)=0,"",VLOOKUP(L74,config!$A$2:$F$100,4,0)),"") ->  | U74: =IFERROR(IF(VLOOKUP(L74,config!$A$2:$F$100,5,0)=0,"",VLOOKUP(L74,config!$A$2:$F$100,5,0)),"") ->  | W74: =IFERROR(IF(VLOOKUP(L74,config!$A$2:$F$100,6,0)=0,"",VLOOKUP(L74,config!$A$2:$F$100,6,0)),"") ->  | AH74: =IF('Plan kont'!B77<>"",'Plan kont'!C77,"") -> 
A75: =IF('Plan kont'!B78<>"",'Plan kont'!B78,"") ->  | O75: =IFERROR(IF(VLOOKUP(L75,config!$A$2:$F$100,2,0)=0,"",VLOOKUP(L75,config!$A$2:$F$100,2,0)),"") ->  | Q75: =IFERROR(IF(VLOOKUP(L75,config!$A$2:$F$100,3,0)=0,"",VLOOKUP(L75,config!$A$2:$F$100,3,0)),"") ->  | S75: =IFERROR(IF(VLOOKUP(L75,config!$A$2:$F$100,4,0)=0,"",VLOOKUP(L75,config!$A$2:$F$100,4,0)),"") ->  | U75: =IFERROR(IF(VLOOKUP(L75,config!$A$2:$F$100,5,0)=0,"",VLOOKUP(L75,config!$A$2:$F$100,5,0)),"") ->  | W75: =IFERROR(IF(VLOOKUP(L75,config!$A$2:$F$100,6,0)=0,"",VLOOKUP(L75,config!$A$2:$F$100,6,0)),"") ->  | AH75: =IF('Plan kont'!B78<>"",'Plan kont'!C78,"") -> 
A76: =IF('Plan kont'!B79<>"",'Plan kont'!B79,"") ->  | O76: =IFERROR(IF(VLOOKUP(L76,config!$A$2:$F$100,2,0)=0,"",VLOOKUP(L76,config!$A$2:$F$100,2,0)),"") ->  | Q76: =IFERROR(IF(VLOOKUP(L76,config!$A$2:$F$100,3,0)=0,"",VLOOKUP(L76,config!$A$2:$F$100,3,0)),"") ->  | S76: =IFERROR(IF(VLOOKUP(L76,config!$A$2:$F$100,4,0)=0,"",VLOOKUP(L76,config!$A$2:$F$100,4,0)),"") ->  | U76: =IFERROR(IF(VLOOKUP(L76,config!$A$2:$F$100,5,0)=0,"",VLOOKUP(L76,config!$A$2:$F$100,5,0)),"") ->  | W76: =IFERROR(IF(VLOOKUP(L76,config!$A$2:$F$100,6,0)=0,"",VLOOKUP(L76,config!$A$2:$F$100,6,0)),"") ->  | AH76: =IF('Plan kont'!B79<>"",'Plan kont'!C79,"") -> 
A77: =IF('Plan kont'!B80<>"",'Plan kont'!B80,"") ->  | K77: =IF(A77<>"",IF(W77="X",X77,IF(W77="Y",Y77,IF(W77="Z",Z77,IF(W77="AA",AA77,IF(W77="X-Y",X77&Y77,IF(W77="X-Z",X77&Z77,IF(W77="X-AA",X77&AA77,IF(W77="Y-Z",Y77&Z77,IF(W77="Y-AA",Y77&ZZ77,IF(W77="Z-AA",Z77&AA77,"")))))))))),"") ->  | O77: =IFERROR(IF(VLOOKUP(L77,config!$A$2:$F$100,2,0)=0,"",VLOOKUP(L77,config!$A$2:$F$100,2,0)),"") ->  | Q77: =IFERROR(IF(VLOOKUP(L77,config!$A$2:$F$100,3,0)=0,"",VLOOKUP(L77,config!$A$2:$F$100,3,0)),"") ->  | S77: =IFERROR(IF(VLOOKUP(L77,config!$A$2:$F$100,4,0)=0,"",VLOOKUP(L77,config!$A$2:$F$100,4,0)),"") ->  | U77: =IFERROR(IF(VLOOKUP(L77,config!$A$2:$F$100,5,0)=0,"",VLOOKUP(L77,config!$A$2:$F$100,5,0)),"") ->  | W77: =IFERROR(IF(VLOOKUP(L77,config!$A$2:$F$100,6,0)=0,"",VLOOKUP(L77,config!$A$2:$F$100,6,0)),"") ->  | AH77: =IF('Plan kont'!B80<>"",'Plan kont'!C80,"") -> 
A78: =IF('Plan kont'!B81<>"",'Plan kont'!B81,"") ->  | O78: =IFERROR(IF(VLOOKUP(L78,config!$A$2:$F$100,2,0)=0,"",VLOOKUP(L78,config!$A$2:$F$100,2,0)),"") ->  | Q78: =IFERROR(IF(VLOOKUP(L78,config!$A$2:$F$100,3,0)=0,"",VLOOKUP(L78,config!$A$2:$F$100,3,0)),"") ->  | S78: =IFERROR(IF(VLOOKUP(L78,config!$A$2:$F$100,4,0)=0,"",VLOOKUP(L78,config!$A$2:$F$100,4,0)),"") ->  | U78: =IFERROR(IF(VLOOKUP(L78,config!$A$2:$F$100,5,0)=0,"",VLOOKUP(L78,config!$A$2:$F$100,5,0)),"") ->  | W78: =IFERROR(IF(VLOOKUP(L78,config!$A$2:$F$100,6,0)=0,"",VLOOKUP(L78,config!$A$2:$F$100,6,0)),"") ->  | AH78: =IF('Plan kont'!B81<>"",'Plan kont'!C81,"") -> 
A79: =IF('Plan kont'!B82<>"",'Plan kont'!B82,"") ->  | O79: =IFERROR(IF(VLOOKUP(L79,config!$A$2:$F$100,2,0)=0,"",VLOOKUP(L79,config!$A$2:$F$100,2,0)),"") ->  | Q79: =IFERROR(IF(VLOOKUP(L79,config!$A$2:$F$100,3,0)=0,"",VLOOKUP(L79,config!$A$2:$F$100,3,0)),"") ->  | S79: =IFERROR(IF(VLOOKUP(L79,config!$A$2:$F$100,4,0)=0,"",VLOOKUP(L79,config!$A$2:$F$100,4,0)),"") ->  | U79: =IFERROR(IF(VLOOKUP(L79,config!$A$2:$F$100,5,0)=0,"",VLOOKUP(L79,config!$A$2:$F$100,5,0)),"") ->  | W79: =IFERROR(IF(VLOOKUP(L79,config!$A$2:$F$100,6,0)=0,"",VLOOKUP(L79,config!$A$2:$F$100,6,0)),"") ->  | AH79: =IF('Plan kont'!B82<>"",'Plan kont'!C82,"") -> 
A80: =IF('Plan kont'!B83<>"",'Plan kont'!B83,"") ->  | O80: =IFERROR(IF(VLOOKUP(L80,config!$A$2:$F$100,2,0)=0,"",VLOOKUP(L80,config!$A$2:$F$100,2,0)),"") ->  | Q80: =IFERROR(IF(VLOOKUP(L80,config!$A$2:$F$100,3,0)=0,"",VLOOKUP(L80,config!$A$2:$F$100,3,0)),"") ->  | S80: =IFERROR(IF(VLOOKUP(L80,config!$A$2:$F$100,4,0)=0,"",VLOOKUP(L80,config!$A$2:$F$100,4,0)),"") ->  | U80: =IFERROR(IF(VLOOKUP(L80,config!$A$2:$F$100,5,0)=0,"",VLOOKUP(L80,config!$A$2:$F$100,5,0)),"") ->  | W80: =IFERROR(IF(VLOOKUP(L80,config!$A$2:$F$100,6,0)=0,"",VLOOKUP(L80,config!$A$2:$F$100,6,0)),"") ->  | AH80: =IF('Plan kont'!B83<>"",'Plan kont'!C83,"") -> 
A81: =IF('Plan kont'!B84<>"",'Plan kont'!B84,"") ->  | O81: =IFERROR(IF(VLOOKUP(L81,config!$A$2:$F$100,2,0)=0,"",VLOOKUP(L81,config!$A$2:$F$100,2,0)),"") ->  | Q81: =IFERROR(IF(VLOOKUP(L81,config!$A$2:$F$100,3,0)=0,"",VLOOKUP(L81,config!$A$2:$F$100,3,0)),"") ->  | S81: =IFERROR(IF(VLOOKUP(L81,config!$A$2:$F$100,4,0)=0,"",VLOOKUP(L81,config!$A$2:$F$100,4,0)),"") ->  | U81: =IFERROR(IF(VLOOKUP(L81,config!$A$2:$F$100,5,0)=0,"",VLOOKUP(L81,config!$A$2:$F$100,5,0)),"") ->  | W81: =IFERROR(IF(VLOOKUP(L81,config!$A$2:$F$100,6,0)=0,"",VLOOKUP(L81,config!$A$2:$F$100,6,0)),"") ->  | AH81: =IF('Plan kont'!B84<>"",'Plan kont'!C84,"") -> 
A82: =IF('Plan kont'!B85<>"",'Plan kont'!B85,"") ->  | O82: =IFERROR(IF(VLOOKUP(L82,config!$A$2:$F$100,2,0)=0,"",VLOOKUP(L82,config!$A$2:$F$100,2,0)),"") ->  | Q82: =IFERROR(IF(VLOOKUP(L82,config!$A$2:$F$100,3,0)=0,"",VLOOKUP(L82,config!$A$2:$F$100,3,0)),"") ->  | S82: =IFERROR(IF(VLOOKUP(L82,config!$A$2:$F$100,4,0)=0,"",VLOOKUP(L82,config!$A$2:$F$100,4,0)),"") ->  | U82: =IFERROR(IF(VLOOKUP(L82,config!$A$2:$F$100,5,0)=0,"",VLOOKUP(L82,config!$A$2:$F$100,5,0)),"") ->  | W82: =IFERROR(IF(VLOOKUP(L82,config!$A$2:$F$100,6,0)=0,"",VLOOKUP(L82,config!$A$2:$F$100,6,0)),"") ->  | AH82: =IF('Plan kont'!B85<>"",'Plan kont'!C85,"") -> 
A83: =IF('Plan kont'!B86<>"",'Plan kont'!B86,"") ->  | K83: =IF(A83<>"",IF(W83="X",X83,IF(W83="Y",Y83,IF(W83="Z",Z83,IF(W83="AA",AA83,IF(W83="X-Y",X83&Y83,IF(W83="X-Z",X83&Z83,IF(W83="X-AA",X83&AA83,IF(W83="Y-Z",Y83&Z83,IF(W83="Y-AA",Y83&ZZ83,IF(W83="Z-AA",Z83&AA83,"")))))))))),"") ->  | O83: =IFERROR(IF(VLOOKUP(L83,config!$A$2:$F$100,2,0)=0,"",VLOOKUP(L83,config!$A$2:$F$100,2,0)),"") ->  | Q83: =IFERROR(IF(VLOOKUP(L83,config!$A$2:$F$100,3,0)=0,"",VLOOKUP(L83,config!$A$2:$F$100,3,0)),"") ->  | S83: =IFERROR(IF(VLOOKUP(L83,config!$A$2:$F$100,4,0)=0,"",VLOOKUP(L83,config!$A$2:$F$100,4,0)),"") ->  | U83: =IFERROR(IF(VLOOKUP(L83,config!$A$2:$F$100,5,0)=0,"",VLOOKUP(L83,config!$A$2:$F$100,5,0)),"") ->  | W83: =IFERROR(IF(VLOOKUP(L83,config!$A$2:$F$100,6,0)=0,"",VLOOKUP(L83,config!$A$2:$F$100,6,0)),"") ->  | AH83: =IF('Plan kont'!B86<>"",'Plan kont'!C86,"") -> 
A84: =IF('Plan kont'!B87<>"",'Plan kont'!B87,"") ->  | K84: =IF(A84<>"",IF(W84="X",X84,IF(W84="Y",Y84,IF(W84="Z",Z84,IF(W84="AA",AA84,IF(W84="X-Y",X84&Y84,IF(W84="X-Z",X84&Z84,IF(W84="X-AA",X84&AA84,IF(W84="Y-Z",Y84&Z84,IF(W84="Y-AA",Y84&ZZ84,IF(W84="Z-AA",Z84&AA84,"")))))))))),"") ->  | O84: =IFERROR(IF(VLOOKUP(L84,config!$A$2:$F$100,2,0)=0,"",VLOOKUP(L84,config!$A$2:$F$100,2,0)),"") ->  | Q84: =IFERROR(IF(VLOOKUP(L84,config!$A$2:$F$100,3,0)=0,"",VLOOKUP(L84,config!$A$2:$F$100,3,0)),"") ->  | S84: =IFERROR(IF(VLOOKUP(L84,config!$A$2:$F$100,4,0)=0,"",VLOOKUP(L84,config!$A$2:$F$100,4,0)),"") ->  | U84: =IFERROR(IF(VLOOKUP(L84,config!$A$2:$F$100,5,0)=0,"",VLOOKUP(L84,config!$A$2:$F$100,5,0)),"") ->  | W84: =IFERROR(IF(VLOOKUP(L84,config!$A$2:$F$100,6,0)=0,"",VLOOKUP(L84,config!$A$2:$F$100,6,0)),"") ->  | AH84: =IF('Plan kont'!B87<>"",'Plan kont'!C87,"") -> 
A85: =IF('Plan kont'!B88<>"",'Plan kont'!B88,"") ->  | O85: =IFERROR(IF(VLOOKUP(L85,config!$A$2:$F$100,2,0)=0,"",VLOOKUP(L85,config!$A$2:$F$100,2,0)),"") ->  | Q85: =IFERROR(IF(VLOOKUP(L85,config!$A$2:$F$100,3,0)=0,"",VLOOKUP(L85,config!$A$2:$F$100,3,0)),"") ->  | S85: =IFERROR(IF(VLOOKUP(L85,config!$A$2:$F$100,4,0)=0,"",VLOOKUP(L85,config!$A$2:$F$100,4,0)),"") ->  | U85: =IFERROR(IF(VLOOKUP(L85,config!$A$2:$F$100,5,0)=0,"",VLOOKUP(L85,config!$A$2:$F$100,5,0)),"") ->  | W85: =IFERROR(IF(VLOOKUP(L85,config!$A$2:$F$100,6,0)=0,"",VLOOKUP(L85,config!$A$2:$F$100,6,0)),"") ->  | AH85: =IF('Plan kont'!B88<>"",'Plan kont'!C88,"") -> 
A86: =IF('Plan kont'!B89<>"",'Plan kont'!B89,"") ->  | O86: =IFERROR(IF(VLOOKUP(L86,config!$A$2:$F$100,2,0)=0,"",VLOOKUP(L86,config!$A$2:$F$100,2,0)),"") ->  | Q86: =IFERROR(IF(VLOOKUP(L86,config!$A$2:$F$100,3,0)=0,"",VLOOKUP(L86,config!$A$2:$F$100,3,0)),"") ->  | S86: =IFERROR(IF(VLOOKUP(L86,config!$A$2:$F$100,4,0)=0,"",VLOOKUP(L86,config!$A$2:$F$100,4,0)),"") ->  | U86: =IFERROR(IF(VLOOKUP(L86,config!$A$2:$F$100,5,0)=0,"",VLOOKUP(L86,config!$A$2:$F$100,5,0)),"") ->  | W86: =IFERROR(IF(VLOOKUP(L86,config!$A$2:$F$100,6,0)=0,"",VLOOKUP(L86,config!$A$2:$F$100,6,0)),"") ->  | AH86: =IF('Plan kont'!B89<>"",'Plan kont'!C89,"") -> 
A87: =IF('Plan kont'!B90<>"",'Plan kont'!B90,"") ->  | O87: =IFERROR(IF(VLOOKUP(L87,config!$A$2:$F$100,2,0)=0,"",VLOOKUP(L87,config!$A$2:$F$100,2,0)),"") ->  | Q87: =IFERROR(IF(VLOOKUP(L87,config!$A$2:$F$100,3,0)=0,"",VLOOKUP(L87,config!$A$2:$F$100,3,0)),"") ->  | S87: =IFERROR(IF(VLOOKUP(L87,config!$A$2:$F$100,4,0)=0,"",VLOOKUP(L87,config!$A$2:$F$100,4,0)),"") ->  | U87: =IFERROR(IF(VLOOKUP(L87,config!$A$2:$F$100,5,0)=0,"",VLOOKUP(L87,config!$A$2:$F$100,5,0)),"") ->  | W87: =IFERROR(IF(VLOOKUP(L87,config!$A$2:$F$100,6,0)=0,"",VLOOKUP(L87,config!$A$2:$F$100,6,0)),"") ->  | AH87: =IF('Plan kont'!B90<>"",'Plan kont'!C90,"") -> 
A88: =IF('Plan kont'!B91<>"",'Plan kont'!B91,"") ->  | O88: =IFERROR(IF(VLOOKUP(L88,config!$A$2:$F$100,2,0)=0,"",VLOOKUP(L88,config!$A$2:$F$100,2,0)),"") ->  | Q88: =IFERROR(IF(VLOOKUP(L88,config!$A$2:$F$100,3,0)=0,"",VLOOKUP(L88,config!$A$2:$F$100,3,0)),"") ->  | S88: =IFERROR(IF(VLOOKUP(L88,config!$A$2:$F$100,4,0)=0,"",VLOOKUP(L88,config!$A$2:$F$100,4,0)),"") ->  | U88: =IFERROR(IF(VLOOKUP(L88,config!$A$2:$F$100,5,0)=0,"",VLOOKUP(L88,config!$A$2:$F$100,5,0)),"") ->  | W88: =IFERROR(IF(VLOOKUP(L88,config!$A$2:$F$100,6,0)=0,"",VLOOKUP(L88,config!$A$2:$F$100,6,0)),"") ->  | AH88: =IF('Plan kont'!B91<>"",'Plan kont'!C91,"") -> 
A89: =IF('Plan kont'!B92<>"",'Plan kont'!B92,"") ->  | K89: =IF(A89<>"",IF(W89="X",X89,IF(W89="Y",Y89,IF(W89="Z",Z89,IF(W89="AA",AA89,IF(W89="X-Y",X89&Y89,IF(W89="X-Z",X89&Z89,IF(W89="X-AA",X89&AA89,IF(W89="Y-Z",Y89&Z89,IF(W89="Y-AA",Y89&ZZ89,IF(W89="Z-AA",Z89&AA89,"")))))))))),"") ->  | O89: =IFERROR(IF(VLOOKUP(L89,config!$A$2:$F$100,2,0)=0,"",VLOOKUP(L89,config!$A$2:$F$100,2,0)),"") ->  | Q89: =IFERROR(IF(VLOOKUP(L89,config!$A$2:$F$100,3,0)=0,"",VLOOKUP(L89,config!$A$2:$F$100,3,0)),"") ->  | S89: =IFERROR(IF(VLOOKUP(L89,config!$A$2:$F$100,4,0)=0,"",VLOOKUP(L89,config!$A$2:$F$100,4,0)),"") ->  | U89: =IFERROR(IF(VLOOKUP(L89,config!$A$2:$F$100,5,0)=0,"",VLOOKUP(L89,config!$A$2:$F$100,5,0)),"") ->  | W89: =IFERROR(IF(VLOOKUP(L89,config!$A$2:$F$100,6,0)=0,"",VLOOKUP(L89,config!$A$2:$F$100,6,0)),"") ->  | AH89: =IF('Plan kont'!B92<>"",'Plan kont'!C92,"") -> 
A90: =IF('Plan kont'!B93<>"",'Plan kont'!B93,"") ->  | O90: =IFERROR(IF(VLOOKUP(L90,config!$A$2:$F$100,2,0)=0,"",VLOOKUP(L90,config!$A$2:$F$100,2,0)),"") ->  | Q90: =IFERROR(IF(VLOOKUP(L90,config!$A$2:$F$100,3,0)=0,"",VLOOKUP(L90,config!$A$2:$F$100,3,0)),"") ->  | S90: =IFERROR(IF(VLOOKUP(L90,config!$A$2:$F$100,4,0)=0,"",VLOOKUP(L90,config!$A$2:$F$100,4,0)),"") ->  | U90: =IFERROR(IF(VLOOKUP(L90,config!$A$2:$F$100,5,0)=0,"",VLOOKUP(L90,config!$A$2:$F$100,5,0)),"") ->  | W90: =IFERROR(IF(VLOOKUP(L90,config!$A$2:$F$100,6,0)=0,"",VLOOKUP(L90,config!$A$2:$F$100,6,0)),"") ->  | AH90: =IF('Plan kont'!B93<>"",'Plan kont'!C93,"") -> 
A91: =IF('Plan kont'!B94<>"",'Plan kont'!B94,"") ->  | K91: =IF(A91<>"",IF(W91="X",X91,IF(W91="Y",Y91,IF(W91="Z",Z91,IF(W91="AA",AA91,IF(W91="X-Y",X91&Y91,IF(W91="X-Z",X91&Z91,IF(W91="X-AA",X91&AA91,IF(W91="Y-Z",Y91&Z91,IF(W91="Y-AA",Y91&ZZ91,IF(W91="Z-AA",Z91&AA91,"")))))))))),"") ->  | O91: =IFERROR(IF(VLOOKUP(L91,config!$A$2:$F$100,2,0)=0,"",VLOOKUP(L91,config!$A$2:$F$100,2,0)),"") ->  | Q91: =IFERROR(IF(VLOOKUP(L91,config!$A$2:$F$100,3,0)=0,"",VLOOKUP(L91,config!$A$2:$F$100,3,0)),"") ->  | S91: =IFERROR(IF(VLOOKUP(L91,config!$A$2:$F$100,4,0)=0,"",VLOOKUP(L91,config!$A$2:$F$100,4,0)),"") ->  | U91: =IFERROR(IF(VLOOKUP(L91,config!$A$2:$F$100,5,0)=0,"",VLOOKUP(L91,config!$A$2:$F$100,5,0)),"") ->  | W91: =IFERROR(IF(VLOOKUP(L91,config!$A$2:$F$100,6,0)=0,"",VLOOKUP(L91,config!$A$2:$F$100,6,0)),"") ->  | AH91: =IF('Plan kont'!B94<>"",'Plan kont'!C94,"") -> 
A92: =IF('Plan kont'!B95<>"",'Plan kont'!B95,"") ->  | K92: =IF(A92<>"",IF(W92="X",X92,IF(W92="Y",Y92,IF(W92="Z",Z92,IF(W92="AA",AA92,IF(W92="X-Y",X92&Y92,IF(W92="X-Z",X92&Z92,IF(W92="X-AA",X92&AA92,IF(W92="Y-Z",Y92&Z92,IF(W92="Y-AA",Y92&ZZ92,IF(W92="Z-AA",Z92&AA92,"")))))))))),"") ->  | O92: =IFERROR(IF(VLOOKUP(L92,config!$A$2:$F$100,2,0)=0,"",VLOOKUP(L92,config!$A$2:$F$100,2,0)),"") ->  | Q92: =IFERROR(IF(VLOOKUP(L92,config!$A$2:$F$100,3,0)=0,"",VLOOKUP(L92,config!$A$2:$F$100,3,0)),"") ->  | S92: =IFERROR(IF(VLOOKUP(L92,config!$A$2:$F$100,4,0)=0,"",VLOOKUP(L92,config!$A$2:$F$100,4,0)),"") ->  | U92: =IFERROR(IF(VLOOKUP(L92,config!$A$2:$F$100,5,0)=0,"",VLOOKUP(L92,config!$A$2:$F$100,5,0)),"") ->  | W92: =IFERROR(IF(VLOOKUP(L92,config!$A$2:$F$100,6,0)=0,"",VLOOKUP(L92,config!$A$2:$F$100,6,0)),"") ->  | AH92: =IF('Plan kont'!B95<>"",'Plan kont'!C95,"") -> 
A93: =IF('Plan kont'!B96<>"",'Plan kont'!B96,"") ->  | O93: =IFERROR(IF(VLOOKUP(L93,config!$A$2:$F$100,2,0)=0,"",VLOOKUP(L93,config!$A$2:$F$100,2,0)),"") ->  | Q93: =IFERROR(IF(VLOOKUP(L93,config!$A$2:$F$100,3,0)=0,"",VLOOKUP(L93,config!$A$2:$F$100,3,0)),"") ->  | S93: =IFERROR(IF(VLOOKUP(L93,config!$A$2:$F$100,4,0)=0,"",VLOOKUP(L93,config!$A$2:$F$100,4,0)),"") ->  | U93: =IFERROR(IF(VLOOKUP(L93,config!$A$2:$F$100,5,0)=0,"",VLOOKUP(L93,config!$A$2:$F$100,5,0)),"") ->  | W93: =IFERROR(IF(VLOOKUP(L93,config!$A$2:$F$100,6,0)=0,"",VLOOKUP(L93,config!$A$2:$F$100,6,0)),"") ->  | AH93: =IF('Plan kont'!B96<>"",'Plan kont'!C96,"") -> 
A94: =IF('Plan kont'!B97<>"",'Plan kont'!B97,"") ->  | K94: =IF(A94<>"",IF(W94="X",X94,IF(W94="Y",Y94,IF(W94="Z",Z94,IF(W94="AA",AA94,IF(W94="X-Y",X94&Y94,IF(W94="X-Z",X94&Z94,IF(W94="X-AA",X94&AA94,IF(W94="Y-Z",Y94&Z94,IF(W94="Y-AA",Y94&ZZ94,IF(W94="Z-AA",Z94&AA94,"")))))))))),"") ->  | O94: =IFERROR(IF(VLOOKUP(L94,config!$A$2:$F$100,2,0)=0,"",VLOOKUP(L94,config!$A$2:$F$100,2,0)),"") ->  | Q94: =IFERROR(IF(VLOOKUP(L94,config!$A$2:$F$100,3,0)=0,"",VLOOKUP(L94,config!$A$2:$F$100,3,0)),"") ->  | S94: =IFERROR(IF(VLOOKUP(L94,config!$A$2:$F$100,4,0)=0,"",VLOOKUP(L94,config!$A$2:$F$100,4,0)),"") ->  | U94: =IFERROR(IF(VLOOKUP(L94,config!$A$2:$F$100,5,0)=0,"",VLOOKUP(L94,config!$A$2:$F$100,5,0)),"") ->  | W94: =IFERROR(IF(VLOOKUP(L94,config!$A$2:$F$100,6,0)=0,"",VLOOKUP(L94,config!$A$2:$F$100,6,0)),"") ->  | AH94: =IF('Plan kont'!B97<>"",'Plan kont'!C97,"") -> 
